Workbook

Sheet Title Page
A1: US EPA, Office of Water, Office of Ground Water & Drinking Water
A2: Work Breakdown Structure (WBS) Model for Packed Tower Aeration (PTA) Treatment
A3: Release Date: August 12, 2014
A4: · This model is designed to assist EPA in estimating national compliance costs for drinking water regulations.
A5: · As such, the costs are intended to be representative of typical facilities.
A6: · The costs, however, do not account for all of the site-specific factors that could affect the cost of any given individual facility.
A7: · Use of this model requires Excel 2007.
A8: · The model should be opened as Read-only, so that any changes you make are saved under a new file name.
A9: · To function properly, macros ("active content") must be enabled. If a security warning appears, click "options" and "enable this content."
A10: · For further information see the following document distributed with this file:
A11: USEPA. 2014. Work Breakdown Structure-Based Cost Models for Drinking Water Treatment Technologies. Office of Water.
A12: · To begin using the model, go to the INPUT sheet.

Sheet Index
A1: INDEX
A2: This page provides an index to all user-adjustable inputs and assumptions. Click on a variable name to go directly to the adjustable cells.
A4: User-adjustable Input or Assumption | B4: Variable Name and Link
A5: Acceleration of gravity | B5: G
A6: Access space for each pump | B6: space_pumps
A7: Additional height added per tower | B7: r_xtraheight_I
A8: Additional pump head required | B8: add_head
A9: Administrative LOE as a percent of average technical labor | B9: Clerical_percent
A10: Air conditioning EER | B10: EER
A11: Air pipe length per tower | B11: air_L
A12: Alkalinity as CaCO3 | B12: alk_ppm
A13: Alternate packing unit cost | B13: alt_pack_cost
A14: Always include NEPA compliance costs? | B14: include_NEPA
A15: Annual cooling degree days | B15: cool_DD
A16: Annual heating degree days | B16: heat_DD
A17: Average Flow (including bypass) | B17: Qwa_in
A18: Basin excavation depth above which deeper boreholes are needed | B18: bore_need
A19: Basin excavation depth above which deeper boreholes are needed | B19: deep_bore_need
A20: Bedding depth below pipe | B20: bedding_depth
A21: Bedding depth surrounding the pipe | B21: bedding_pct
A22: Blower efficiency | B22: BLOW_EFF
A23: Boiling point of contaminant | B23: Tb_in
A24: Boiling point of new contaminant | B24: r_Tb_in
A25: Borehole depth for deep clearwells | B25: bore_depth_max
A26: Borehole depth for shallow clearwells | B26: bore_depth_min
A27: Borehole depth with no clearwell | B27: bore_depth_nobasin
A28: Borehole needed every x square feet | B28: hole_per_sf
A29: Boreholes per job | B29: hole_per_job
A30: Buffer space around other sides of buildings | B30: non_fire_buffer
A31: Builder's risk insurance percentage | B31: br_ins_pct
A32: Building height | B32: Building_height
A33: Chemical storage required | B33: cstore_days
A34: Chemical tank mixer horsepower | B34: cmix_hp_per
A35: Clearwell detention time | B35: AW_Det
A36: Coefficient of passive pressure | B36: Coeff_Kp
A37: Component level | B37: component_level_I
A38: Computer workstations per x operators | B38: workstation_ratio
A39: Concrete pad thickness | B39: pad_thick
A40: Concrete pad thickness for small systems | B40: pad_thick_small
A41: Concrete thickness | B41: conc_thick
A42: Contaminant removal input type | B42: Units_rem_I
A43: Cooling table for buildings 500 square feet or greater | B43: cooling_table
A44: Cooling table for buildings less than 500 ft2 | B44: cooling_table_shed
A45: Cooling ventilation/infiltration load | B45: cool_viload
A46: Corrosion control chemical chosen | B46: chem_type
A47: Cost estimating method | B47: curve
A48: Cost for parts & maintenance for PTA towers | B48: PTA_maintenance
A49: Cost for parts & maintenance for pumps and blowers | B49: pump_maintenance
A50: Critical surface tension of packing | B50: SP
A51: Days per year of chemical feed | B51: chem_freq
A52: Density of air | B52: PA
A53: Density of water | B53: PW
A54: Design Flow (including bypass) | B54: Qw_in
A55: Design safety factor for standby power | B55: std_safety_factor
A56: Dosage of sodium hexametaphosphate | B56: sh_dose
A57: Dosage of tetrasodium polyphosphate | B57: tp_dose
A58: Drive controllers per blower | B58: S_blower
A59: Drive controllers per booster pump | B59: S_booster_pump
A60: Drive controllers per catalytic oxidizer | B60: S_CO
A61: Drive controllers per chemical metering pump | B61: S_cm_pump
A62: Drive controllers per mixer | B62: S_mix
A63: Drive controllers per thermal oxidizer | B63: S_TO
A64: Electric resistance heating efficiency | B64: resist_eff
A65: Electrical percentage | B65: elect_pct
A66: Engineering percentage for large systems | B66: eng_pct_large
A67: Engineering percentage for medium systems | B67: eng_pct_medium
A68: Engineering percentage for small systems | B68: eng_pct_small
A69: Ethernet modules | B69: plc_ethernet
A70: Financing percentage | B70: finance_pct
A71: Financing percentage for small systems | B71: finance_pct_small
A72: Fire truck buffer requirements | B72: fire_buffer
A73: Flow meters for air line per tower | B73: fm_air
A74: Flow meters for influent and treated water line | B74: tot_fm_in
A75: Flow meters for process line per tower | B75: fm_proc
A76: Force Constant for Air | B76: E_KA
A77: Freeboard | B77: freeboard
A78: Freeboard above packing material | B78: Free_Board_Col
A79: Friction factor | B79: CF
A80: Frost depth | B80: frost
A81: GAC bed life | B81: og_opt3
A82: Gas law constant | B82: R_C
A83: H2SO4 mg/meq | B83: H2SO4_molwt
A84: H2SO4 solution strength | B84: H2SO4_strength
A85: HCl mg/meq | B85: hcl_molwt
A86: HCl quantity to trigger RMP requirement | B86: HCl_quant_RMP
A87: HCl solution strength | B87: hcl_strength
A88: HCl strength to trigger RMP requirement | B88: HCl_strength_RMP
A89: Heat pump cooling mode EER | B89: hp_EER
A90: Heat pump heating coefficient of performance | B90: COP
A91: Heat recovery type | B91: og_opt1_I
A92: Heating oil heat content | B92: diesel_heat_content
A93: Heating table for buildings 500 square feet or greater | B93: heating_table
A94: Heating table for buildings less than 500 ft2 | B94: heating_table_shed
A95: Heating ventilation/infiltration load | B95: heat_viload
A96: Henry's coefficient | B96: Henry
A97: Henry's coefficient for new contaminant | B97: r_Henry
A98: High/low alarms per chemical tank | B98: alarm_chem
A99: Hours per media changeout | B99: uloe_throwaway
A100: I/O port table | B100: port_table
A101: Include a separate day tank if daily volume is x or greater | B101: day_tank_needed
A102: Include architectural fee for small systems? | B102: include_arch_small
A103: Include architectural fee? | B103: include_arch
A104: Include buildings in total capital cost? | B104: include_buildings
A105: Include concrete pad in total capital cost? | B105: include_pad
A106: Include construction management cost? | B106: include_cm
A107: Include contingency costs for high cost systems? | B107: include_conting_high
A108: Include contingency costs for low cost systems? | B108: include_conting_low
A109: Include contingency costs for medium cost systems? | B109: include_conting_medium
A110: Include cooling in standby power | B110: need_cool
A111: Include geotechnical costs for high cost systems? | B111: include_geo_high
A112: Include geotechnical costs for low cost systems? | B112: include_geo_low
A113: Include geotechnical costs for medium cost systems? | B113: include_geo_medium
A114: Include heating in standby power | B114: need_heat
A115: Include land costs? | B115: include_land
A116: Include performance bond cost? | B116: include_bond
A117: Include permit costs? | B117: include_permits
A118: Include pilot study costs? | B118: include_pilot
A119: Include sitework costs? | B119: include_sitework
A120: Include standby power costs for small systems? | B120: include_standby_small
A121: Include standby power costs? | B121: include_standby
A122: Include yard piping costs? | B122: include_yardpipe
A123: Influent concentration | B123: Influent_conc
A124: Influent concentration of new contaminant | B124: r_influent_conc_I
A125: Initial water pH | B125: pHo
A126: Installation, Transportatation, and O&P percentage | B126: inst_pct
A127: Instrumentation and control percentage | B127: i_c_pct
A128: Legal percentage | B128: legal_pct
A129: Lighting power per sf, high-quality buildings | B129: lighting_power_high
A130: Lighting power per sf, low-quality buildings and sheds | B130: lighting_power_low
A131: Lighting power per sf, mid-quality buildings | B131: lighting_power_mid
A132: Linear feet bored per day | B132: hole_per_day
A133: Maintenance LOE for chemical supply systems | B133: uloe_chem_maint
A134: Maintenance LOE for instruments (includes calibration) | B134: uloe_inst_maint
A135: Maintenance LOE for pumps | B135: uloe_pump_maint
A136: Maintenance LOE for valves | B136: uloe_valve_maint
A137: Mangerial LOE as a percent of average technical labor | B137: Manager_percent
A138: Maximum access space per tower or tank | B138: max_space_vessels
A139: Maximum packing height | B139: Max_pack_std
A140: Maximum packing height for difficult contaminants | B140: Max_pack_MTBE
A141: Maximum packing height to diameter ratio | B141: Max_d_rat_cda
A142: Maximum tower area | B142: Max_Area_cda
A143: Melting point of contaminant | B143: Tm_in
A144: Melting point of new contaminant | B144: r_Tm_in
A145: Mid-efficiency oil furnace efficiency | B145: diesel_eff
A146: Minimum average flow as percentage of design | B146: min_avg_flow
A147: Minimum number of boreholes | B147: min_holes
A148: Minimum number of towers | B148: min_col
A149: Minimum packing height to diameter ratio | B149: Min_d_rat_cda
A150: Minimum standby power generator size | B150: min_standby
A151: Minimum tower area | B151: Min_Area_cda
A152: Minimum trench depth to top of pipe | B152: min_trench_depth
A153: Minutes per 100 sf per day | B153: uloe_fp
A154: Minutes per instrument per day | B154: uloe_inst
A155: Minutes per pump, blower, and offgas unit per day | B155: uloe_pump
A156: Minutes per valve per week | B156: uloe_valve
A157: Miscellaneous allowance percentage | B157: misc_pct
A158: Mobilization percentage for large systems | B158: mob_pct_large
A159: Mobilization percentage for medium systems | B159: mob_pct_medium
A160: Mobilization percentage for small systems | B160: mob_pct_small
A161: Molar volume of contaminant | B161: Mv_in
A162: Molar volume of gas at STP | B162: GO
A163: Molar volume of new contaminant | B163: r_Mv_in
A164: Molecular Radius of Air | B164: RA
A165: Molecular weight of air | B165: MWA
A166: Molecular weight of contaminant | B166: Mw_in
A167: Molecular weight of new contaminant | B167: r_Mw_in
A168: NaOH solution strength | B168: naoh_strength
A169: Natural gas condensing furnace efficiency | B169: gas_eff
A170: Natural gas non-condensing furnace efficiency | B170: gas_non_eff
A171: Number of blowers | B171: parallel_I
A172: Number of booster pumps | B172: num_pumps_I
A173: Number of check valves on acid line per chemical pump | B173: HCl_chv_pump
A174: Number of check valves on bypass line | B174: tot_bp_chv
A175: Number of check valves on caustic line per chemical pump | B175: NaOH_chv_pump
A176: Number of check valves on corrosion chemical line per chemical pump | B176: chem_chv_pump
A177: Number of check valves on influent line | B177: tot_in_chv
A178: Number of CPUs | B178: plc_cpu
A179: Number of electrical enclosures | B179: elec_encl
A180: Number of manual valves on influent and treated water line | B180: tot_man_valves
A181: Number of mechanical ventilation days per year (large system) | B181: fan_days_large
A182: Number of mechanical ventilation days per year (medium system) | B182: fan_days_medium
A183: Number of mechanical ventilation days per year (small system) | B183: fan_days_small
A184: Number of redundant blowers | B184: NRD_blower
A185: Number of redundant booster pumps | B185: NRD_pump
A186: Number of redundant chemical metering pumps | B186: NRD_cm_pump
A187: Number of redundant columns to be added | B187: NRD_I
A188: Number of redundant towers for small systems | B188: NRD_small
A189: Number of shifts | B189: shifts_day
A190: Off-gas pollution control technology | B190: Offgas_Tech_I
A191: Office space per employee | B191: space_office
A192: Office space per employee for small systems | B192: space_office_small
A193: Operating Pressure | B193: Op_Press
A194: Operating temperature | B194: T
A195: Operator interfaces | B195: plc_interface
A196: Overdesign sensitivity | B196: P_REM_INC
A197: Overexcavation | B197: overexcavate
A198: Packing size | B198: Packing_Size
A199: Percent of Total Flow that is Bypassed | B199: bp_pct
A200: Percent removal or effluent concentration | B200: Rem_I
A201: Percent removal or effluent concentration for retrofit | B201: r_rem_I
... 50 more rows

Sheet INPUT
A1: PACKED TOWER AERATION (PTA) SYSTEM DESIGN AND COST INPUT
E3: STEP 1
E4: Select Contaminant
E7: STEP 2 | H7: =IF(OR('Standard Inputs'!AV9,'Standard Inputs'!AV17,'Standard Inputs'!AV25,'Standard Inputs'!AV33,'Standard Inputs'!AV41,'Standard Inputs'!AV49,'Standard Inputs'!AV57,'Standard Inputs'!AV65,'Standard Inputs'!AV73,'Standard Inputs'!AV81,'Standard Inputs'!AV89,'Standard Inputs'!AV97,'Standard Inputs'!AV105,'Standard Inputs'!AV113,'Standard Inputs'!AV121,'Standard Inputs'!AV129),"<- Using this design",IF(OR('Standard Inputs'!AW9,'Standard Inputs'!AW17,'Standard Inputs'!AW25,'Standard Inputs'!AW33,'Standard Inputs'!AW41,'Standard Inputs'!AW49,'Standard Inputs'!AW57,'Standard Inputs'!AW65,'Standard Inputs'!AW73,'Standard Inputs'!AW81,'Standard Inputs'!AW89,'Standard Inputs'!AW97,'Standard Inputs'!AW105,'Standard Inputs'!AW113,'Standard Inputs'!AW121,'Standard Inputs'!AW129),"<- You modified this design","")) -> <- Using this design | I7: =IF(contam=16," Note: standard designs not defined for other contaminants. Use manual input or set designs on Standard Inputs page.","") -> 
E8: Select one of the eight standard designs at right | H8: =IF(OR('Standard Inputs'!AV10,'Standard Inputs'!AV18,'Standard Inputs'!AV26,'Standard Inputs'!AV34,'Standard Inputs'!AV42,'Standard Inputs'!AV50,'Standard Inputs'!AV58,'Standard Inputs'!AV66,'Standard Inputs'!AV74,'Standard Inputs'!AV82,'Standard Inputs'!AV90,'Standard Inputs'!AV98,'Standard Inputs'!AV106,'Standard Inputs'!AV114,'Standard Inputs'!AV122,'Standard Inputs'!AV130),"<- Using this design",IF(OR('Standard Inputs'!AW10,'Standard Inputs'!AW18,'Standard Inputs'!AW26,'Standard Inputs'!AW34,'Standard Inputs'!AW42,'Standard Inputs'!AW50,'Standard Inputs'!AW58,'Standard Inputs'!AW66,'Standard Inputs'!AW74,'Standard Inputs'!AW82,'Standard Inputs'!AW90,'Standard Inputs'!AW98,'Standard Inputs'!AW106,'Standard Inputs'!AW114,'Standard Inputs'!AW122,'Standard Inputs'!AW130),"<- You modified this design","")) -> 
H9: =IF(OR('Standard Inputs'!AV11,'Standard Inputs'!AV19,'Standard Inputs'!AV27,'Standard Inputs'!AV35,'Standard Inputs'!AV43,'Standard Inputs'!AV51,'Standard Inputs'!AV59,'Standard Inputs'!AV67,'Standard Inputs'!AV75,'Standard Inputs'!AV83,'Standard Inputs'!AV91,'Standard Inputs'!AV99,'Standard Inputs'!AV107,'Standard Inputs'!AV115,'Standard Inputs'!AV123,'Standard Inputs'!AV131),"<- Using this design",IF(OR('Standard Inputs'!AW11,'Standard Inputs'!AW19,'Standard Inputs'!AW27,'Standard Inputs'!AW35,'Standard Inputs'!AW43,'Standard Inputs'!AW51,'Standard Inputs'!AW59,'Standard Inputs'!AW67,'Standard Inputs'!AW75,'Standard Inputs'!AW83,'Standard Inputs'!AW91,'Standard Inputs'!AW99,'Standard Inputs'!AW107,'Standard Inputs'!AW115,'Standard Inputs'!AW123,'Standard Inputs'!AW131),"<- You modified this design","")) -> 
E10: OR | H10: =IF(OR('Standard Inputs'!AV12,'Standard Inputs'!AV20,'Standard Inputs'!AV28,'Standard Inputs'!AV36,'Standard Inputs'!AV44,'Standard Inputs'!AV52,'Standard Inputs'!AV60,'Standard Inputs'!AV68,'Standard Inputs'!AV76,'Standard Inputs'!AV84,'Standard Inputs'!AV92,'Standard Inputs'!AV100,'Standard Inputs'!AV108,'Standard Inputs'!AV116,'Standard Inputs'!AV124,'Standard Inputs'!AV132),"<- Using this design",IF(OR('Standard Inputs'!AW12,'Standard Inputs'!AW20,'Standard Inputs'!AW28,'Standard Inputs'!AW36,'Standard Inputs'!AW44,'Standard Inputs'!AW52,'Standard Inputs'!AW60,'Standard Inputs'!AW68,'Standard Inputs'!AW76,'Standard Inputs'!AW84,'Standard Inputs'!AW92,'Standard Inputs'!AW100,'Standard Inputs'!AW108,'Standard Inputs'!AW116,'Standard Inputs'!AW124,'Standard Inputs'!AW132),"<- You modified this design","")) -> 
H11: =IF(OR('Standard Inputs'!AV13,'Standard Inputs'!AV21,'Standard Inputs'!AV29,'Standard Inputs'!AV37,'Standard Inputs'!AV45,'Standard Inputs'!AV53,'Standard Inputs'!AV61,'Standard Inputs'!AV69,'Standard Inputs'!AV77,'Standard Inputs'!AV85,'Standard Inputs'!AV93,'Standard Inputs'!AV101,'Standard Inputs'!AV109,'Standard Inputs'!AV117,'Standard Inputs'!AV125,'Standard Inputs'!AV133),"<- Using this design",IF(OR('Standard Inputs'!AW13,'Standard Inputs'!AW21,'Standard Inputs'!AW29,'Standard Inputs'!AW37,'Standard Inputs'!AW45,'Standard Inputs'!AW53,'Standard Inputs'!AW61,'Standard Inputs'!AW69,'Standard Inputs'!AW77,'Standard Inputs'!AW85,'Standard Inputs'!AW93,'Standard Inputs'!AW101,'Standard Inputs'!AW109,'Standard Inputs'!AW117,'Standard Inputs'!AW125,'Standard Inputs'!AW133),"<- You modified this design","")) ->  | I11: See model documentation for more information on standard designs
E12: Select "CLEAR FOR MANUAL ENTRY" | H12: =IF(OR('Standard Inputs'!AV14,'Standard Inputs'!AV22,'Standard Inputs'!AV30,'Standard Inputs'!AV38,'Standard Inputs'!AV46,'Standard Inputs'!AV54,'Standard Inputs'!AV62,'Standard Inputs'!AV70,'Standard Inputs'!AV78,'Standard Inputs'!AV86,'Standard Inputs'!AV94,'Standard Inputs'!AV102,'Standard Inputs'!AV110,'Standard Inputs'!AV118,'Standard Inputs'!AV126,'Standard Inputs'!AV134),"<- Using this design",IF(OR('Standard Inputs'!AW14,'Standard Inputs'!AW22,'Standard Inputs'!AW30,'Standard Inputs'!AW38,'Standard Inputs'!AW46,'Standard Inputs'!AW54,'Standard Inputs'!AW62,'Standard Inputs'!AW70,'Standard Inputs'!AW78,'Standard Inputs'!AW86,'Standard Inputs'!AW94,'Standard Inputs'!AW102,'Standard Inputs'!AW110,'Standard Inputs'!AW118,'Standard Inputs'!AW126,'Standard Inputs'!AW134),"<- You modified this design","")) -> 
H13: =IF(OR('Standard Inputs'!AV15,'Standard Inputs'!AV23,'Standard Inputs'!AV31,'Standard Inputs'!AV39,'Standard Inputs'!AV47,'Standard Inputs'!AV55,'Standard Inputs'!AV63,'Standard Inputs'!AV71,'Standard Inputs'!AV79,'Standard Inputs'!AV87,'Standard Inputs'!AV95,'Standard Inputs'!AV103,'Standard Inputs'!AV111,'Standard Inputs'!AV119,'Standard Inputs'!AV127,'Standard Inputs'!AV135),"<- Using this design",IF(OR('Standard Inputs'!AW15,'Standard Inputs'!AW23,'Standard Inputs'!AW31,'Standard Inputs'!AW39,'Standard Inputs'!AW47,'Standard Inputs'!AW55,'Standard Inputs'!AW63,'Standard Inputs'!AW71,'Standard Inputs'!AW79,'Standard Inputs'!AW87,'Standard Inputs'!AW95,'Standard Inputs'!AW103,'Standard Inputs'!AW111,'Standard Inputs'!AW119,'Standard Inputs'!AW127,'Standard Inputs'!AW135),"<- You modified this design","")) -> 
H14: =IF(OR('Standard Inputs'!AV16,'Standard Inputs'!AV24,'Standard Inputs'!AV32,'Standard Inputs'!AV40,'Standard Inputs'!AV48,'Standard Inputs'!AV56,'Standard Inputs'!AV64,'Standard Inputs'!AV72,'Standard Inputs'!AV80,'Standard Inputs'!AV88,'Standard Inputs'!AV96,'Standard Inputs'!AV104,'Standard Inputs'!AV112,'Standard Inputs'!AV120,'Standard Inputs'!AV128,'Standard Inputs'!AV136),"<- Using this design",IF(OR('Standard Inputs'!AW16,'Standard Inputs'!AW24,'Standard Inputs'!AW32,'Standard Inputs'!AW40,'Standard Inputs'!AW48,'Standard Inputs'!AW56,'Standard Inputs'!AW64,'Standard Inputs'!AW72,'Standard Inputs'!AW80,'Standard Inputs'!AW88,'Standard Inputs'!AW96,'Standard Inputs'!AW104,'Standard Inputs'!AW112,'Standard Inputs'!AW120,'Standard Inputs'!AW128,'Standard Inputs'!AW136),"<- You modified this design","")) -> 
H15: =IF(COUNTIF(H7:H14,"")=8,"Using a manual design","") ->  | I15: =IF(COUNTIF(H7:H14,"")=16,"Fill in all gold cells below","") -> 
E16: STEP 3:
E17: (Optional for standard designs)
C18: =AND(C32,C42,C49,C54,C70,C81,C97,C114) -> TRUE | E18: Enter or change values in the gold and blue cells below, under "Manual Inputs" | G18: =IF(ERRORNOTE<>"",ERRORNOTE,IF(C18,IF('Standard Inputs'!AV139,"Input Complete -- Results Ready","Input Complete--Press 'Run Design Program, Generate Results'"),"Input Incomplete--Check for Error Messages Below")) -> Input Complete -- Results Ready
E20: STEP 4: | I20: Results summary (see OUTPUT sheet for details)
C21: TRUE | E21: =IF(input_status="input complete -- results ready","Results are ready (no need to click button)","Click here to generate results -->") -> Results are ready (no need to click button) | I21: ="Direct Capital Cost: " & IF(Missing_Cost,"Missing cost!",IF(cost_buildup_error,"Cost buildup error!",IF(input_status="input complete -- results ready",IF(ISERROR(direct_cost),"Calculation error!",TEXT(direct_cost,"$0,0")),"Input incomplete"))) -> Direct Capital Cost: $190,058
I22: ="Total Capital Cost: " & IF(Missing_Cost,"Missing cost!",IF(cost_buildup_error,"Cost buildup error!",IF(input_status="input complete -- results ready",IF(ISERROR(system_cost),"Calculation error!",TEXT(system_cost,"$0,0")),"Input incomplete"))) -> Total Capital Cost: Calculation error!
I23: ="Annual O&M Cost: "&IF(input_status="input complete -- results ready",IF(ISERROR(om_cost),"Calculation error!",TEXT(om_cost,"$0,0")),"Input incomplete") -> Annual O&M Cost: $13,980
E24: MANUAL INPUTS | I24: ="Annualized Cost: "&IF(Missing_Cost,"Missing Price!",IF(cost_buildup_error,"Cost buildup error!",IF(input_status="input complete -- results ready",IF(ISERROR(Annualized_Cost),"Calculation error!",TEXT(Annualized_Cost,"$0,0")&" ("&useful_life&" years at "&Discount_rate*100&"%)"),"Input incomplete"))) -> Annualized Cost: Calculation error!
E25: Cells in gold are required; cells in blue are optional | I25: =IF(Missing_Cost,"A price is not available for at least one required component. See Use? column on OUTPUT sheet.",IF(cost_buildup_error,"There is an Excel error in the price for at least one component. Please see the Use? column on OUTPUT sheet.",IF(warning_details<>"",warning_details,""))) -> 
B26: Used? | C26: Valid input? | D26: Invalid reason? | H26: Select units
E27: Design Flow (including bypass) | F27: Qw_in | G27: 0.03 | H27: MGD
E28: Average Flow (including bypass) | F28: Qwa_in | G28: 0.007 | H28: MGD
E29: For information:
E30: Treatment system design flow | G30: =IF(ISERROR(design_flow),"",IF(df_units="gpm",Design_Flow_Rate,IF(df_units="cubic meters/second",QW, design_flow))) -> 0.03 | H30: =IF(df_units="","",df_units) -> MGD
E31: Bypass design flow | G31: =IF(ISERROR(design_flow),"",IF(df_units="gpm",bp_flow_rate, bp_flow_rate*60*24/10^6)) -> 0 | H31: =IF(df_units="","",df_units) -> MGD | I31: ="Current bypass percentage is "&TEXT(bp_pct,"0%")&". Go to Critical Design Assumptions (link below) to change this value." -> Current bypass percentage is 0%. Go to Critical Design Assumptions (link below) to change this value.
C32: =IF(OR(df_units="",af_units=""),FALSE,IF(OR(average_flow>design_flow,average_flow<min_avg_flow*design_flow),FALSE,IF(OR(QW_IN=0,QWA_IN=0),FALSE,TRUE))) -> TRUE | D32: =IF(OR(df_units="",af_units=""),"Choose units for design and average flow",IF(average_flow>design_flow,"The average flow should not be greater than the design flow",IF(average_flow<design_flow*min_avg_flow,"The average flow must be at least " & min_avg_flow & " times design flow",IF(OR(QW_IN=0,QWA_IN=0),"Input incomplete","OK")))) -> OK | H32: =IF(C32,"System Size Inputs OK",D32) -> System Size Inputs OK | I32: Adjust bypass percentage
E34: Influent concentration | F34: Influent_conc | G34: 5 | H34: =IF(contam=2,"pCi/L","ug/L") -> ug/L
E35: Contaminant removal input type | F35: Units_rem_I | G35: effluent concentration | H35: <--- pick one
E36: =IF(Units_rem=1,"Percent removal ", IF(Units_rem=2,"Effluent concentration","")) -> Effluent concentration | F36: Rem_I | G36: 0.5 | H36: =IF(Units_rem=1,"decimal between 0 and 1",IF(contam=2,"pCi/L","ug/L")) -> ug/L
E37: For information:
E38: =IF(Units_rem=2,"Percent Removal", IF(Units_rem=1,"Effluent concentration","")) -> Percent Removal | G38: =IF(OR(Influent_conc="",Units_rem_I=""),"",IF(Units_rem=1,Influent_conc*(1-Rem_I),IF(Units_rem=2,TEXT(1-(Rem_I/Influent_conc),"0.0%")))) -> 90.0% | H38: =IF(Units_rem_I="effluent concentration","",IF(contam=2,"pCi/L","ug/L")) -> 
E40: Safety factor (Kla) | F40: SF_Kla | G40: 1.4 | H40: decimal greater than 1.0 | I40: Typical values are 1.2 to 1.4.
E41: Safety factor (Henry's) | F41: SF_Henry | G41: 1.4 | H41: decimal greater than 1.0 | I41: Typical values are 1.2 to 1.4.
C42: =IF(OR(Influent_conc="",Units_rem_I="",Rem_I="",SF_KLA="",SF_HENRY=""),FALSE,IF(AND(Units_rem=1,Rem_I>=1),FALSE,IF(AND(Units_rem=2,Rem_I>=Influent_conc),FALSE,TRUE))) -> TRUE | D42: =IF(OR(Influent_conc="",Units_rem_I="",Rem_I="",SF_KLA="",SF_HENRY=""),"Removal Inputs Incomplete",IF(AND(Units_rem=1,Rem_I>=1),"Set percent removal to a decimal greater than 0 and less than 1",IF(AND(Units_rem=2,Rem_I>=Influent_conc),"Set effluent concentration less than influent concentration","OK"))) -> OK | H42: =IF(C42,"Removal Inputs OK",D42) -> Removal Inputs OK
E44: Henry's coefficient | F44: Henry | G44: 0.187 | H44: atm m3/m3 | I44: ="Note: units for Henry's law constant MUST be atm m3/m3 at "&OP_PRESS&" atm and the operating temperature selected below. For information on converting units, adjusting for temperature, and example coefficients for various contaminants, see the sheet 'Henry's Reference' (link below)." -> Note: units for Henry's law constant MUST be atm m3/m3 at 1 atm and the operating temperature selected below. For information on converting units, adjusting for temperature, and example coefficients for various contaminants, see the sheet 'Henry's Reference' (link below).
E45: Molecular weight of contaminant | F45: Mw_in | G45: 131.39 | H45: kg/kilomole | I45: Henry's Coefficient Reference Sheet
E46: Molar volume of contaminant | F46: Mv_in | G46: 0.102 | H46: m3/kilomole
E47: Boiling point of contaminant | F47: Tb_in | G47: 359.7 | H47: degrees Kelvin | I47: If unknown, enter melting point instead
E48: Melting point of contaminant | F48: Tm_in | H48: =IF(NOT(ISBLANK(TB_IN)),"not required","degrees Kelvin") -> not required | I48: Required only if boiling point is not available
C49: =IF(OR(HENRY="",MW_IN="",MV_IN="",AND(TB_IN="",TM_IN="")),FALSE,TRUE) -> TRUE | D49: =IF(OR(HENRY="",MW_IN="",MV_IN="",AND(TB_IN="",TM_IN="")),"Contaminant inputs incomplete","OK") -> OK | H49: =IF(C49,"Contaminant Inputs OK",D49) -> Contaminant Inputs OK
E51: Operating temperature | F51: T | G51: 283 | H51: degrees Kelvin | I51: Equilibrium operating temperature. 283 degrees K (10 degrees C) is typical of groundwater. If changed, also change air density and viscosity below, and change Henry's constant above. See sheets "Air Reference" (link below) and "Henry's Reference" (link above) for information on changing these values.
E52: Density of air | F52: PA | G52: 1.247 | H52: kg/m3 | I52: Adjust density and viscosity to match temperature using info on air reference sheet for other operating temperatures (see link below).
E53: Viscosity of air | F53: UA | G53: 1.79e-05 | H53: kg/m-sec | I53: Air Reference Sheet
C54: =IF(OR(T="",PA="",UA=""),FALSE,TRUE) -> TRUE | D54: =IF(C54,"OK","Operating parameter inputs incomplete") -> OK | H54: =IF(C54,"Operating Parameter Inputs OK",D54) -> Operating Parameter Inputs OK
C56: =NOT(Packing_size="") -> TRUE | E56: Packing size | F56: Packing_Size | G56: 2 | H56: inches | I56: Model default inputs are 2 inch tripacks
C57: =NOT(AP="") -> TRUE | E57: Surface area of packing | F57: AP | G57: 157 | H57: m2/m3 | I57: See packing reference sheet (link below) for alternate values for different packing materials
C58: =NOT(SP="") -> TRUE | E58: Critical surface tension of packing | F58: SP | G58: 0.033 | H58: kg/sec2 | I58: Packing Reference Sheet
C59: =NOT(CF="") -> TRUE | E59: Friction factor | F59: CF | G59: 15
E60: Alternate packing unit cost | F60: alt_pack_cost | H60: $/cubic meter | I60: Optional. If a packing material other than the default is used, enter a unit cost here.
E61: Design program results (for information): | I61: Design program is using the following constraints:
E62: Number of Columns (including redundancy) | G62: =IF(ISERROR(TOT_COL),"",TOT_COL) -> 2 | H62: units | I62: ="Minimum packing height to diameter ratio: "&MIN_D_RAT&"x column diameter" -> Minimum packing height to diameter ratio: 1.5x column diameter
E63: Tower Height | G63: =IF(ISERROR(Shell_Height),"",ROUND(Shell_Height*3.3,1)) -> 14.5 | H63: ft | I63: ="Maximum packing height to diameter ratio: "&MAX_D_RAT&"x column diameter" -> Maximum packing height to diameter ratio: 10x column diameter
E64: Tower Diameter | G64: =IF(ISERROR(D),"",ROUND(D*3.3,0)) -> 1 | H64: ft | I64: ="Maximum packing height: "&MAX_PACK&" meters ("&MAX_PACK*3.28&" feet)" -> Maximum packing height: 6.1 meters (20.008 feet)
E65: Air-To-Water Ratio | G65: =RATIO&":1" -> 93:1 | I65: ="Maximum column area: "&MAX_AREA&" sq. meters ("&TEXT(MAX_AREA*(3.28^2),"0.0")&" sq. feet)" -> Maximum column area: 7.258 sq. meters (78.1 sq. feet)
E66: Liquid Loading Rate | G66: =L_LOAD -> 0.006586148313 | H66: m3/m2 - sec | I66: ="Minimum column area: "&MIN_AREA&" sq. meters ("&TEXT(MIN_AREA*(3.28^2),"0.0")&" sq. feet)" -> Minimum column area: 0.01825 sq. meters (0.2 sq. feet)
E67: Air Loading Rate | G67: =G_LOAD -> 0.6125117931 | H67: m3/m2 - sec | I67: Adjust column design program constraints
C69: =NOT(AW_DET="") -> TRUE | E69: Clearwell detention time | F69: AW_Det | G69: 5 | H69: minutes | I69: Guidance: 5 to 10 minutes. Enter 0 to remove clearwell (e.g., use existing clearwell)
C70: =IF(NOT(AND(C56:C59,C69)),FALSE,TRUE) -> TRUE | D70: =IF(NOT(C70),"Tower Design Inputs Incomplete","OK") -> OK | H70: =IF(C70,"Tower Design Inputs OK",D70) -> Tower Design Inputs OK
C72: =IF(contam=2,TRUE,NOT(max_VOC_release="")) -> TRUE | E72: VOC release at which air pollution control system is needed | F72: max_VOC_release | G72: 1 | H72: =IF(contam=2,"not required","lbs/day") -> lbs/day | I72: =IF(contam=2,"","CMRP (2000) states 1 lb/day is the maximum emission level for all VOCs for California South Coast AQMD, but other districts may require different emissions standards based on location of the site and regional ambient air quality.") -> CMRP (2000) states 1 lb/day is the maximum emission level for all VOCs for California South Coast AQMD, but other districts may require different emissions standards based on location of the site and regional ambient air quality.
E73: For information: | G73: =IF(contam=2,"Available off-gas control options not relevant for radon",IF(max_VOC_release="","",IF(VOC_Release>max_VOC_release,"Off-gas control system may be required if contaminant is a regulated VOC","Off-gas control system may not be required"))) -> Off-gas control system may not be required
C75: =IF(contam=2,TRUE,NOT(Offgas_Tech_I="")) -> TRUE | E75: Off-gas pollution control technology | F75: Offgas_Tech_I | G75: none | H75: =IF(contam=2,"not required","<--- pick one") -> <--- pick one
B76: =OR(Offgas_Tech=2,Offgas_Tech=3) -> FALSE | C76: =IF(B76,NOT(og_opt1_I=""),TRUE) -> TRUE | E76: Heat recovery type | F76: og_opt1_I | G76: none | H76: =IF(NOT(B76),"not required","<--- pick one") -> not required
B77: =Offgas_Tech=1 -> FALSE | C77: =IF(B77,NOT(og_opt2_I=""),TRUE) -> TRUE | E77: Spent GAC regeneration | F77: og_opt2_I | H77: =IF(NOT(B77),"not required","<--- pick one") -> not required
B78: =Offgas_Tech=1 -> FALSE | C78: =IF(B77,IF(contam=1,TRUE,NOT(og_opt3="")),TRUE) -> TRUE | E78: ="GAC bed life"&IF(contam=1," (optional)","") -> GAC bed life | F78: og_opt3 | H78: =IF(NOT(B78),"not required","months") -> not required | I78: =IF(AND(Offgas_Tech=1,contam=1),"Leave blank to use default calculation","") -> 
E79: =IF(AND(Offgas_Tech=1,og_opt3="",contam=1),"For information:","") -> 
E80: =IF(AND(Offgas_Tech=1,og_opt3="",contam=1),"Calculated GAC bed life","") ->  | G80: =IF(AND(Offgas_Tech=1,og_opt3="",contam=1),bed_life,"") ->  | H80: =IF(AND(Offgas_Tech=1,og_opt3="",contam=1),"months","") -> 
C81: =IF(NOT(AND(C72,C75:C78)),FALSE,TRUE) -> TRUE | D81: =IF(NOT(C81),"Offgas Inputs Incomplete","OK") -> OK | H81: =IF(C81,"Off-gas Inputs OK",D81) -> Off-gas Inputs OK
E83: Number of booster pumps | F83: num_pumps_I | H83: pumps | I83: Enter 0 to exclude booster pumps (e.g., use existing pumps). Leave blank to accept model default calculations (which always include pumps for this technology)
C84: =IF(ISERROR(QP),FALSE,IF(QP>max_pump_size,FALSE,TRUE)) -> TRUE | D84: =IF(C84=FALSE,"Warning: insufficient number of pumps","") ->  | E84: For information: # of booster pumps | G84: =IF(ISERROR(NUM_OF_PUMPS),"",NUM_OF_PUMPS) -> 2 | H84: pumps
E86: Number of blowers | F86: parallel_I | H86: blowers | I86: Designs should always include at least one blower. Leave blank to accept model default calculations.
C87: =IF(ISERROR(Q_BLOWER),FALSE,IF(Q_BLOWER>max_blow_size,FALSE,TRUE)) -> TRUE | D87: =IF(C87=FALSE,"Warning: insufficient number of blowers","") ->  | E87: For information: # of blowers | G87: =IF(ISERROR(PARALLEL),"",PARALLEL) -> 2 | H87: blowers
E89: Number of redundant columns to be added | F89: NRD_I | H89: units | I89: Leave blank to accept redundancy frequency specified in critical design assumptions
E90: For information: Redundant columns | G90: =IF(ISERROR(NRD_col),"",NRD_col) -> 0 | H90: units
E91: Component level | F91: component_level_I | H91: <-- pick or leave blank | I91: Leave blank to use low cost components
E92: System automation | F92: manual_I | G92: fully automated | H92: <-- pick or leave blank | I92: Leave blank to allow model to pick based on component level
E93: For information: Component level | G93: =IF(component_level=2,"high cost",IF(component_level=1,"mid cost","low cost")) -> low cost
E94: Automation | G94: =IF(manual=1,"manual",IF(manual=2,"semi-automated",IF(manual=3,"fully automated"))) -> fully automated
H95: =D84 -> 
H96: =D87 -> 
C97: =IF(NOT(AND(C84,C87)),FALSE,TRUE) -> TRUE | D97: =IF(NOT(C97),"Optional Inputs Incomplete","OK") -> OK | H97: =IF(C97,"Optional Inputs OK",D97) -> Optional Inputs OK
E99: Retrofit | F99: retrofit_I | H99: <-- pick or leave blank | I99: Select to calculate costs to retrofit a system for a new contaminant or greater removal
B100: =IF(retrofit=1,TRUE,FALSE) -> FALSE | C100: =IF(r_xtraheight_I="",TRUE,IF(r_xtraheight_units="",FALSE,TRUE)) -> TRUE | E100: Additional height added per tower | F100: r_xtraheight_I | I100: =IF(retrofit=0,"","Current height between redistribution rings is "&r_ring_space_ft&" ft. Enter 0 or leave blank to retrofit by adjusting air-to-water ratio only") -> 
B101: =IF(r_new_contam=1,TRUE,FALSE) -> FALSE | C101: =IF(B101,NOT(r_Henry=""),TRUE) -> TRUE | E101: Henry's coefficient for new contaminant | F101: r_Henry | H101: =IF(B101,"atm m3/m3","not required") -> not required | I101: See above for notes on Henry's constant
B102: FALSE | C102: =IF(B102,NOT(r_Mw_in=""),TRUE) -> TRUE | E102: Molecular weight of new contaminant | F102: r_Mw_in | H102: =IF(B102,"kg/kilomole","not required") -> not required
B103: FALSE | C103: =IF(B103,NOT(r_Mv_in=""),TRUE) -> TRUE | E103: Molar volume of new contaminant | F103: r_Mv_in | H103: =IF(B103,"m3/kilomole","not required") -> not required
B104: FALSE | C104: =IF(B104,NOT(r_Tb_in=""),TRUE) -> TRUE | E104: Boiling point of new contaminant | F104: r_Tb_in | H104: =IF(B104,"degrees Kelvin","not required") -> not required
B105: =IF(r_new_contam=1,IF(r_Tb_in="",TRUE,FALSE),FALSE) -> FALSE | C105: =IF(B105,NOT(r_Tm_in=""),TRUE) -> TRUE | E105: Melting point of new contaminant | F105: r_Tm_in | H105: =IF(B105,"degrees Kelvin","not required") -> not required
B106: FALSE | C106: =IF(B106,NOT(r_influent_conc_I=""),TRUE) -> TRUE | E106: Influent concentration of new contaminant | F106: r_influent_conc_I | H106: =IF(B106,"ug/L","not required") -> not required
B107: FALSE | C107: =IF(B107,NOT(r_units_rem_I=""),TRUE) -> TRUE | E107: Removal input type for new contaminant | F107: r_units_rem_I | H107: =IF(B107,"<--- pick one","not required") -> not required
B108: =IF(retrofit=1,TRUE,FALSE) -> FALSE | C108: =IF(NOT(B108),TRUE,IF(r_rem_I="",FALSE,IF(AND(r_units_rem=1,r_rem_I>=1),FALSE,IF(AND(r_units_rem=2,r_rem_I>=r_influent_conc),FALSE,IF(r_new_contam=0,CHOOSE(r_units_rem,r_rem_I>Rem_I,r_rem_I<Rem_I),TRUE))))) -> TRUE | E108: =IF(r_new_contam=1,IF(r_units_rem=1,"Percent removal for new contaminant", IF(r_units_rem=2,"Effluent concentration of new contaminant","")),IF(r_units_rem=1,"New percent removal", IF(r_units_rem=2,"New effluent concentration",""))) -> New effluent concentration | F108: r_rem_I | H108: =IF(B108,IF(r_units_rem=1,"decimal between 0 and 1",IF(AND(contam=2,r_new_contam=0),"pCi/L","ug/L")),"not required") -> not required
E109: =IF(r_new_contam=1,"","For information:") -> For information:
E110: =IF(r_new_contam=1,"For Information:","Original "&IF(Units_rem=2,"percent removal", IF(Units_rem=1,"effluent concentration",""))) -> Original percent removal | G110: =IF(OR(retrofit=0,r_influent_conc="",r_units_rem="",r_new_contam=1),"",G38) ->  | H110: =IF(OR(retrofit=0,r_units_rem=2,r_new_contam=1),"",IF(contam=2,"pCi/L","ug/L")) -> 
E111: =IF(r_new_contam=1,IF(r_units_rem=2,"Percent removal for new contaminant", IF(r_units_rem=1,"Effluent concentration of new contaminant","")),IF(r_units_rem=2,"New percent removal", IF(r_units_rem=1,"New effluent concentration",""))) -> New percent removal | G111: =IF(retrofit=0,"",IF(AND(r_new_contam=1,OR(r_influent_conc_I="",r_units_rem_I="")),"",IF(r_rem_I="","",IF(r_units_rem=1,r_influent_conc*(1-r_rem_I),IF(r_units_rem=2,TEXT(r_P_REM,"0.0%")))))) ->  | H111: =IF(OR(retrofit=0,r_units_rem=2),"",IF(AND(contam=2,r_new_contam=0),"pCi/L","ug/L")) -> 
E112: New tower height | G112: =IF(OR(ISERROR(r_Shell_height),retrofit=0),"",IF(r_xtraheight=0,"unchanged",ROUND(r_Shell_height*3.3,1))) ->  | H112: =IF(OR(retrofit=0,r_xtraheight=0),"","ft") -> 
E113: New air-to-water ratio | G113: =IF(retrofit=0,"",IF(r_RATIO=RATIO,"unchanged",r_RATIO&":1")) -> 
C114: =IF(NOT(AND(C100:C108)),FALSE,TRUE) -> TRUE | D114: =IF(NOT(C114),IF(AND(r_units_rem=1,r_rem_I>=1),"Set percent removal to a decimal greater than 0 and less than 1",IF(AND(r_new_contam=1,r_units_rem=2,r_rem_I>=r_influent_conc),"Set effluent concentration less than influent concentration",IF(AND(r_new_contam=0,OR(AND(r_units_rem=1,r_rem_I<=Rem_I),AND(r_units_rem=2,r_rem_I>=Rem_I))),"New removal must be greater than old removal",IF(AND(B100,NOT(C100)),"Choose units for additional tower height","Retrofit Inputs Incomplete")))),"OK") -> OK | H114: =IF(C114,"Retrofit Inputs OK",D114) -> Retrofit Inputs OK

Sheet OUTPUT
A1: OUTPUT SUMMARY
B2: Parameter | C2: Value | D2: Units
B3: Technology | C3: PTA
B4: Contaminant Type | C4: =VLOOKUP(contam,contaminant_lookup,2)&IF(retrofit=1," Retrofit","") -> TCE
B5: =IF(retrofit=1,"Original ","")&"Percent Removal" -> Percent Removal | C5: =P_REM -> 0.9
B6: System Size Category | C6: =IF(ss_cat2=1,"small","large") -> small
B7: Design Flow | C7: =design_flow -> 0.03 | D7: MGD (excludes bypass flow)
B8: Average Flow | C8: =average_flow -> 0.007 | D8: MGD (excludes bypass flow)
B9: =IF(retrofit=1,"Original Tower Height","Tower Height") -> Tower Height | C9: =ROUND(Shell_Height*3.3,0) -> 15 | D9: ft
B10: Tower Diameter | C10: =ROUND(D*3.3,0) -> 1 | D10: ft
B11: =IF(retrofit=1,"Original A:W Ratio","Air-To-Water Ratio") -> Air-To-Water Ratio | C11: =RATIO&":1" -> 93:1
B12: Liquid Loading Rate | C12: =L_LOAD -> 0.006586148313 | D12: m3/m2 - sec
B13: =IF(retrofit=1,"Original Air Load Rate","Air Loading Rate") -> Air Loading Rate | C13: =G_LOAD -> 0.6125117931 | D13: m3/m2 - sec
B14: Off-Gas Treatment | C14: =IF(Offgas_Tech_I="","none",Offgas_Tech_I) -> none
B17: ="Resulting Costs (in year "&TEXT(current_year_cl,0)&" dollars)" -> Resulting Costs (in year 2013 dollars)
B18: Direct Capital Cost | C18: =IF(input_status<>"input complete -- results ready","Input incomplete",IF(Missing_Cost,"Missing cost!",IF(cost_buildup_error,"Error in buildup!",direct_cost))) -> 190058.3024 | D18: Details
B19: Add-on Cost | C19: =IF(input_status<>"input complete -- results ready","Input incomplete",addon_cost) ->  | D19: Details
B20: Indirect Capital Cost | C20: =IF(input_status<>"input complete -- results ready","Input incomplete",indirect_cost) ->  | D20: Details | E20: =IF(retrofit=1,"After Retrofit:","") -> 
B21: Total Capital Cost | C21: =IF(input_status<>"input complete -- results ready","Input incomplete",IF(Missing_Cost,"Missing cost!",IF(cost_buildup_error,"Error in buildup!",system_cost))) ->  | D21: Details | E21: =IF(retrofit=1,"New Tower Height","") ->  | F21: =IF(OR(ISERROR(r_Shell_height),retrofit=0),"",IF(r_xtraheight=0,"unchanged",ROUND(r_Shell_height*3.3,1))) ->  | G21: =IF(retrofit=1,"ft","") -> 
B22: Annual O&M Cost | C22: =IF(input_status<>"input complete -- results ready","Input incomplete",om_cost) -> 13979.99594 | D22: Details | E22: =IF(retrofit=1,"New A:W Ratio","") ->  | F22: =IF(retrofit=0,"",IF(r_RATIO=RATIO,"unchanged",r_RATIO&":1")) -> 
B23: ="Annualized Cost "&IF(OR(input_status<>"input complete -- results ready",Missing_Cost,cost_buildup_error),"","("&useful_life&" years at "&Discount_rate*100&"%)") ->  | C23: =IF(input_status<>"input complete -- results ready","Input incomplete",IF(Missing_Cost,"Missing cost!",IF(cost_buildup_error,"Error in buildup!",Annualized_Cost))) ->  | D23: Details | E23: =IF(retrofit=1,"New Air Load Rate","") ->  | F23: =IF(retrofit=0,"",IF(r_RATIO=RATIO,"unchanged",r_G_Load)) ->  | G23: =IF(retrofit=1,"m3/m2 - sec","") -> 
B24: Per 1,000 gallons average flow | C24: =IF(input_status<>"input complete -- results ready","Input incomplete",IF(Missing_Cost,"Missing cost!",IF(cost_buildup_error,"Error in buildup!",C385))) -> 
B25: Per household per year | C25: =IF(input_status<>"input complete -- results ready","Input incomplete",IF(Missing_Cost,"Missing cost!",IF(cost_buildup_error,"Error in buildup!",C386))) -> 
A27: Direct Capital Cost Details (items in italics, without a 1 in the "Use?" column, represent alternate costs and are excluded from total)
A28: WBS # | B28: Item | C28: Design Quantity | E28: Design Size | G28: Size used in estimate | I28: Unit Cost | J28: Total Cost | K28: Useful Life | L28: Use? | M28: Full Line Item Name | N28: Resulting priority selection (after considering whether this is a retrofit scenario) | W28: Include in Retrofit? | X28: Baseline priority selection | AG28: Useful Life
N29: Small (<1 mgd) | Q29: Medium (1-10 mgd) | T29: Large (>10 mgd) | X29: Small (<1 mgd) | AA29: Medium (1-10 mgd) | AD29: Large (>10 mgd)
N30: Low | O30: Mid | P30: High | Q30: Low | R30: Mid | S30: High | T30: Low | U30: Mid | V30: High | X30: Low | Y30: Mid | Z30: High | AA30: Low | AB30: Mid | AC30: High | AD30: Low | AE30: Mid | AF30: High | AG30: Count? | AH30: Depreciation
A31: 1. | B31: Aeration Columns
A32: 1.1 | B32: Shell
A33: 1.1.1 | B33: Stainless Steel | C33: =TOT_COL -> 2 | D33: units | E33: =col_vol -> 121.323738 | F33: gal | G33: =IF(curve=1,col_vol,VLOOKUP(col_vol,ss_shell_cost_cl,2)) -> 121.323738 | H33: gal | I33: =IF(curve=1,ss_shell_eq,VLOOKUP(col_vol,ss_shell_cost_cl,3)) -> 26378.30875 | J33: =IF(I33="contact vendor","--",C33*I33) -> 52756.6175 | K33: =VLOOKUP(col_vol,ss_shell_cost_cl,IF(ss_cat="large",4,5)) -> 20 | L33: 0 | M33: =$B$31&" - "&$B$32&" - "&B33 -> Aeration Columns - Shell - Stainless Steel | N33: =IF(retrofit=1,$W33*X33,IF(ISBLANK(X33),"",X33)) -> 3 | O33: 3 | P33: 1 | Q33: 3 | R33: 3 | S33: 1 | T33: 3 | U33: =IF(retrofit=1,$W33*AE33,IF(ISBLANK(AE33),"",AE33)) -> 3 | V33: 1 | W33: 0 | X33: 3 | Y33: 3 | Z33: 1 | AA33: 3 | AB33: 3 | AC33: 1 | AD33: 3 | AE33: 3 | AF33: 1 | AG33: =IF(ISERROR(K33*L33),0,IF(K33<1,0,L33)) -> 0 | AH33: =IF(AG33,J33/K33,0) -> 0
A34: 1.1.1 | B34: Fiberglass | C34: =TOT_COL -> 2 | D34: units | E34: =col_vol -> 121.323738 | F34: gal | G34: =IF(curve=1,col_vol,VLOOKUP(col_vol,fg_shell_cost_cl,2)) -> 121.323738 | H34: gal | I34: =IF(curve=1,fg_shell_eq,VLOOKUP(col_vol,fg_shell_cost_cl,3)) -> 23400.9969 | J34: =IF(I34="contact vendor","--",C34*I34) -> 46801.9938 | K34: =VLOOKUP(col_vol,fg_shell_cost_cl,IF(ss_cat="large",4,5)) -> 18 | L34: 1 | M34: =$B$31&" - "&$B$32&" - "&B34 -> Aeration Columns - Shell - Fiberglass | N34: 1 | O34: 2 | P34: 2 | Q34: 1 | R34: 2 | S34: 2 | T34: 1 | U34: 2 | V34: 2 | W34: 0 | X34: 1 | Y34: 2 | Z34: 2 | AA34: 1 | AB34: 2 | AC34: 2 | AD34: 1 | AE34: 2 | AF34: 2 | AG34: 1 | AH34: 2600.110767
A35: 1.1.1 | B35: Aluminum | C35: =TOT_COL -> 2 | D35: units | E35: =col_vol -> 121.323738 | F35: gal | G35: =IF(curve=1,col_vol,VLOOKUP(col_vol,al_shell_cost_cl,2)) -> 121.323738 | H35: gal | I35: =IF(curve=1,al_shell_eq,VLOOKUP(col_vol,al_shell_cost_cl,3)) -> 21609.51862 | J35: =IF(I35="contact vendor","--",C35*I35) -> 43219.03724 | K35: =VLOOKUP(col_vol,al_shell_cost_cl,IF(ss_cat="large",4,5)) -> 20 | L35: 0 | M35: =$B$31&" - "&$B$32&" - "&B35 -> Aeration Columns - Shell - Aluminum | N35: 2 | O35: 1 | P35: 3 | Q35: 2 | R35: 1 | S35: 3 | T35: 2 | U35: 1 | V35: 3 | W35: 0 | X35: 2 | Y35: 1 | Z35: 3 | AA35: 2 | AB35: 1 | AC35: 3 | AD35: 2 | AE35: 1 | AF35: 3 | AG35: 0 | AH35: 0
A36: 1.2 | B36: Support Plate | AG36: 0 | AH36: 0
A37: 1.2.1 | B37: Stainless Steel | C37: =TOT_COL -> 2 | D37: units | E37: =AREA -> 0.1043781536 | F37: square m | G37: =IF(curve=1,AREA,VLOOKUP(AREA,ss_splate_cost_cl,2)) -> 0.1043781536 | H37: square m | I37: =IF(curve=1,ss_splate_eq,VLOOKUP(AREA,ss_splate_cost_cl,3)) -> 977.4449861 | J37: =IF(I37="contact vendor","--",C37*I37) -> 1954.889972 | K37: =VLOOKUP(AREA,ss_splate_cost_cl,IF(ss_cat="large",4,5)) -> 30 | L37: 0 | M37: =$B$31&" - "&$B$36&" - "&B37 -> Aeration Columns - Support Plate - Stainless Steel | N37: =IF(retrofit=1,$W37*X37,IF(ISBLANK(X37),"",X37)) -> 2 | O37: 1 | P37: 1 | Q37: 2 | R37: 1 | S37: 1 | T37: 2 | U37: 1 | V37: 1 | W37: 0 | X37: 2 | Y37: 1 | Z37: 1 | AA37: 2 | AB37: 1 | AC37: 1 | AD37: 2 | AE37: 1 | AF37: 1 | AG37: 0 | AH37: 0
A38: 1.2.1 | B38: Plastic | C38: =TOT_COL -> 2 | D38: units | E38: =AREA -> 0.1043781536 | F38: square m | G38: =IF(curve=1,AREA,VLOOKUP(AREA,pl_splate_cost_cl,2)) -> 0.1043781536 | H38: square m | I38: =IF(curve=1,pl_splate_eq,VLOOKUP(AREA,pl_splate_cost_cl,3)) -> 1819.407173 | J38: =IF(I38="contact vendor","--",C38*I38) -> 3638.814346 | K38: =VLOOKUP(AREA,pl_splate_cost_cl,IF(ss_cat="large",4,5)) -> 20 | L38: 1 | M38: =$B$31&" - "&$B$36&" - "&B38 -> Aeration Columns - Support Plate - Plastic | N38: 1 | O38: 2 | P38: 2 | Q38: 1 | R38: 2 | S38: 2 | T38: 1 | U38: 2 | V38: 2 | W38: 0 | X38: 1 | Y38: 2 | Z38: 2 | AA38: 1 | AB38: 2 | AC38: 2 | AD38: 1 | AE38: 2 | AF38: 2 | AG38: 1 | AH38: 181.9407173
A39: 1.3 | B39: Liquid Distributor | AG39: 0 | AH39: 0
A40: 1.3.1 | B40: Stainless Steel | C40: =TOT_COL -> 2 | D40: units | E40: =AREA -> 0.1043781536 | F40: square m | G40: =IF(curve=1,AREA,VLOOKUP(AREA,ss_ldist_cost_cl,2)) -> 0.1043781536 | H40: square m | I40: =IF(curve=1,ss_ldist_eq,VLOOKUP(AREA,ss_ldist_cost_cl,3)) -> 1823.669055 | J40: =IF(I40="contact vendor","--",C40*I40) -> 3647.33811 | K40: =VLOOKUP(AREA,ss_ldist_cost_cl,IF(ss_cat="large",4,5)) -> 30 | L40: 0 | M40: =$B$31&" - "&$B$39&" - "&B40 -> Aeration Columns - Liquid Distributor - Stainless Steel | N40: =IF(retrofit=1,$W40*X40,IF(ISBLANK(X40),"",X40)) -> 2 | O40: 1 | P40: 1 | Q40: 2 | R40: 1 | S40: 1 | T40: 2 | U40: 1 | V40: 1 | W40: 0 | X40: 2 | Y40: 1 | Z40: 1 | AA40: 2 | AB40: 1 | AC40: 1 | AD40: 2 | AE40: 1 | AF40: 1 | AG40: 0 | AH40: 0
A41: 1.3.1 | B41: Plastic | C41: =TOT_COL -> 2 | D41: units | E41: =AREA -> 0.1043781536 | F41: square m | G41: =IF(curve=1,AREA,VLOOKUP(AREA,pl_ldist_cost_cl,2)) -> 0.1043781536 | H41: square m | I41: =IF(curve=1,pl_ldist_eq,VLOOKUP(AREA,pl_ldist_cost_cl,3)) -> 2615.190261 | J41: =IF(I41="contact vendor","--",C41*I41) -> 5230.380522 | K41: =VLOOKUP(AREA,pl_ldist_cost_cl,IF(ss_cat="large",4,5)) -> 20 | L41: 1 | M41: =$B$31&" - "&$B$39&" - "&B41 -> Aeration Columns - Liquid Distributor - Plastic | N41: 1 | O41: 2 | P41: 2 | Q41: 1 | R41: 2 | S41: 2 | T41: 1 | U41: 2 | V41: 2 | W41: 0 | X41: 1 | Y41: 2 | Z41: 2 | AA41: 1 | AB41: 2 | AC41: 2 | AD41: 1 | AE41: 2 | AF41: 2 | AG41: 1 | AH41: 261.5190261
A42: 1.4 | B42: Liquid Redistributor | AG42: 0 | AH42: 0
A43: 1.4.1 | B43: Stainless Steel | C43: =tot_R -> 2 | D43: units | E43: =AREA -> 0.1043781536 | F43: square m | G43: =IF(curve=1,AREA,VLOOKUP(AREA,ss_redist_cost_cl,2)) -> 0.1043781536 | H43: square m | I43: =IF(curve=1,ss_redist_eq,VLOOKUP(AREA,ss_redist_cost_cl,3)) -> 1965.156221 | J43: =IF(I43="contact vendor","--",C43*I43) -> 3930.312442 | K43: =VLOOKUP(AREA,ss_redist_cost_cl,IF(ss_cat="large",4,5)) -> 30 | L43: 0 | M43: =$B$31&" - "&$B$42&" - "&B43 -> Aeration Columns - Liquid Redistributor - Stainless Steel | N43: =IF(retrofit=1,$W43*X43,IF(ISBLANK(X43),"",X43)) -> 2 | O43: 1 | P43: 1 | Q43: 2 | R43: 1 | S43: 1 | T43: 2 | U43: =IF(retrofit=1,$W43*AE43,IF(ISBLANK(AE43),"",AE43)) -> 1 | V43: 1 | W43: 0 | X43: 2 | Y43: 1 | Z43: 1 | AA43: 2 | AB43: 1 | AC43: 1 | AD43: 2 | AE43: 1 | AF43: 1 | AG43: 0 | AH43: 0
A44: 1.4.1 | B44: Plastic | C44: =tot_R -> 2 | D44: units | E44: =AREA -> 0.1043781536 | F44: square m | G44: =IF(curve=1,AREA,VLOOKUP(AREA,pl_redist_cost_cl,2)) -> 0.1043781536 | H44: square m | I44: =IF(curve=1,pl_redist_eq,VLOOKUP(AREA,pl_redist_cost_cl,3)) -> 2633.669229 | J44: =IF(I44="contact vendor","--",C44*I44) -> 5267.338459 | K44: =VLOOKUP(AREA,pl_redist_cost_cl,IF(ss_cat="large",4,5)) -> 20 | L44: 1 | M44: =$B$31&" - "&$B$42&" - "&B44 -> Aeration Columns - Liquid Redistributor - Plastic | N44: 1 | O44: 2 | P44: 2 | Q44: 1 | R44: 2 | S44: 2 | T44: 1 | U44: 2 | V44: 2 | W44: 0 | X44: 1 | Y44: 2 | Z44: 2 | AA44: 1 | AB44: 2 | AC44: 2 | AD44: 1 | AE44: 2 | AF44: 2 | AG44: 1 | AH44: 263.3669229
A45: 1.5 | B45: Packing | C45: =Pv_ft -> 25.31437523 | D45: cubic ft | E45: =Packing_size -> 2 | F45: inches | G45: =IF(alt_pack_cost="",VLOOKUP(Packing_size,packing_cost_cl,2),Packing_size) -> 2 | H45: inches | I45: =IF(alt_pack_cost="",VLOOKUP(Packing_size,packing_cost_cl,3),alt_pack_cost) -> 22.90094546 | J45: =IF(I45="contact vendor","--",C45*I45) -> 579.7231264 | K45: =VLOOKUP(Packing_size,packing_cost_cl,IF(ss_cat="large",4,5)) -> 20 | L45: 1 | M45: =$B$31&" - "&B45 -> Aeration Columns - Packing | N45: 1 | O45: 1 | P45: 1 | Q45: 1 | R45: 1 | S45: 1 | T45: 1 | U45: 1 | V45: 1 | W45: 0 | X45: 1 | Y45: 1 | Z45: 1 | AA45: 1 | AB45: 1 | AC45: 1 | AD45: 1 | AE45: 1 | AF45: 1 | AG45: 1 | AH45: 28.98615632
A46: 2. | B46: Pumps and Blowers | AG46: 0 | AH46: 0
A47: 2.1 | B47: Booster Pumps | C47: =tot_pumps -> 2 | D47: units | E47: =QP -> 13.02083333 | F47: gpm | G47: =IF(curve=1,QP,VLOOKUP(QP,pump_cost_cl,2)) -> 13.02083333 | H47: gpm | I47: =IF(C47=0,"NA",IF(curve=1,pump_eq,VLOOKUP(QP,pump_cost_cl,3))) -> 5960.376105 | J47: =IF(I47="contact vendor","--",C47*I47) -> 11920.75221 | K47: =VLOOKUP(QP,pump_cost_cl,IF(ss_cat="large",4,5)) -> 17 | L47: 1 | M47: =$B$46&" - "&B47 -> Pumps and Blowers - Booster Pumps | N47: =IF(retrofit=1,$W47*X47,IF(ISBLANK(X47),"",X47)) -> 1 | O47: 1 | P47: 1 | Q47: 1 | R47: 1 | S47: 1 | T47: 1 | U47: 1 | V47: 1 | W47: 0 | X47: 1 | Y47: 1 | Z47: 1 | AA47: 1 | AB47: 1 | AC47: 1 | AD47: 1 | AE47: 1 | AF47: 1 | AG47: 1 | AH47: 701.2207183
A48: 2.2 | B48: Acid Metering Pumps | AG48: 0 | AH48: 0
A49: 2.2.1 | B49: PVC - Motor Driven | C49: =HCl_pumps -> 0 | D49: units | E49: =IF(C49=0,"NA",HCl_pump_rate) -> NA | F49: =IF(C49=0,"","gph") ->  | G49: =IF(C49=0,"NA",IF(curve=1,HCl_pump_rate,VLOOKUP(HCl_pump_rate,pvc_mmpump_cost_cl,2))) -> NA | H49: =IF(C49=0,"","gph") ->  | I49: =IF(C49=0,"NA",IF(curve=1,pvc_mmpump_eq_hcl,VLOOKUP(HCl_pump_rate,pvc_mmpump_cost_cl,3))) -> NA | J49: =IF(C49=0,"--",IF(I49="contact vendor","--",C49*I49)) -> -- | K49: =IF(C49=0,"NA",VLOOKUP(HCl_pump_rate,pvc_mmpump_cost_cl,IF(ss_cat="large",4,5))) -> NA | M49: =$B$46&" - "&$B$48&" - "&B49 -> Pumps and Blowers - Acid Metering Pumps - PVC - Motor Driven | N49: =IF(retrofit=1,$W49*X49,IF(ISBLANK(X49),"",X49)) -> 2 | O49: 1 | P49: 1 | Q49: 2 | R49: 2 | S49: 1 | T49: 2 | U49: 2 | V49: 1 | W49: 0 | X49: 2 | Y49: 1 | Z49: 1 | AA49: 2 | AB49: 2 | AC49: 1 | AD49: 2 | AE49: 2 | AF49: 1 | AG49: 0 | AH49: 0
A50: 2.2.1 | B50: PVC - Electric | C50: =HCl_pumps -> 0 | D50: units | E50: =IF(C50=0,"NA",HCl_pump_rate) -> NA | F50: =IF(C50=0,"","gph") ->  | G50: =IF(C50=0,"NA",IF(curve=1,HCl_pump_rate,VLOOKUP(HCl_pump_rate,pvc_empump_cost_cl,2))) -> NA | H50: =IF(C50=0,"","gph") ->  | I50: =IF(C50=0,"NA",IF(curve=1,pvc_empump_eq_hcl,VLOOKUP(HCl_pump_rate,pvc_empump_cost_cl,3))) -> NA | J50: -- | K50: =IF(C50=0,"NA",VLOOKUP(HCl_pump_rate,pvc_empump_cost_cl,IF(ss_cat="large",4,5))) -> NA | M50: =$B$46&" - "&$B$48&" - "&B50 -> Pumps and Blowers - Acid Metering Pumps - PVC - Electric | N50: 1 | O50: 2 | P50: 2 | Q50: 1 | R50: 1 | S50: 2 | T50: 1 | U50: 1 | V50: 2 | W50: 0 | X50: 1 | Y50: 2 | Z50: 2 | AA50: 1 | AB50: 1 | AC50: 2 | AD50: 1 | AE50: 1 | AF50: 2 | AG50: 0 | AH50: 0
A51: 2.3 | B51: Sodium Hydroxide Metering Pumps | AG51: 0 | AH51: 0
A52: 2.3.1 | B52: PVC - Motor Driven | C52: =NaOH_pumps -> 0 | D52: units | E52: =IF(C52=0,"NA",NaOH_pump_rate) -> NA | F52: =IF(C52=0,"","gph") ->  | G52: =IF(C52=0,"NA",IF(curve=1,NaOH_pump_rate,VLOOKUP(NaOH_pump_rate,pvc_mmpump_cost_cl,2))) -> NA | H52: =IF(C52=0,"","gph") ->  | I52: =IF(C52=0,"NA",IF(curve=1,pvc_mmpump_eq_naoh,VLOOKUP(NaOH_pump_rate,pvc_mmpump_cost_cl,3))) -> NA | J52: =IF(C52=0,"--",IF(I52="contact vendor","--",C52*I52)) -> -- | K52: =IF(C52=0,"NA",VLOOKUP(NaOH_pump_rate,pvc_mmpump_cost_cl,IF(ss_cat="large",4,5))) -> NA | M52: =$B$46&" - "&$B$51&" - "&B52 -> Pumps and Blowers - Sodium Hydroxide Metering Pumps - PVC - Motor Driven | N52: =IF(retrofit=1,$W52*X52,IF(ISBLANK(X52),"",X52)) -> 3 | O52: 3 | P52: 2 | Q52: 3 | R52: 3 | S52: 2 | T52: 3 | U52: =IF(retrofit=1,$W52*AE52,IF(ISBLANK(AE52),"",AE52)) -> 3 | V52: 2 | W52: 0 | X52: 3 | Y52: 3 | Z52: 2 | AA52: 3 | AB52: 3 | AC52: 2 | AD52: 3 | AE52: 3 | AF52: 2 | AG52: 0 | AH52: 0
A53: 2.3.1 | B53: Stainless Steel - Motor Driven | C53: =NaOH_pumps -> 0 | D53: units | E53: =IF(C53=0,"NA",NaOH_pump_rate) -> NA | F53: =IF(C53=0,"","gph") ->  | G53: =IF(C53=0,"NA",IF(curve=1,NaOH_pump_rate,VLOOKUP(NaOH_pump_rate,ss_mmpump_cost_cl,2))) -> NA | H53: =IF(C53=0,"","gph") ->  | I53: =IF(C53=0,"NA",IF(curve=1,ss_mmpump_eq_naoh,VLOOKUP(NaOH_pump_rate,ss_mmpump_cost_cl,3))) -> NA | J53: -- | K53: =IF(C53=0,"NA",VLOOKUP(NaOH_pump_rate,ss_mmpump_cost_cl,IF(ss_cat="large",4,5))) -> NA | M53: =$B$46&" - "&$B$51&" - "&B53 -> Pumps and Blowers - Sodium Hydroxide Metering Pumps - Stainless Steel - Motor Driven | N53: 4 | O53: 4 | P53: 1 | Q53: 4 | R53: 4 | S53: 1 | T53: 4 | U53: 4 | V53: 1 | W53: 0 | X53: 4 | Y53: 4 | Z53: 1 | AA53: 4 | AB53: 4 | AC53: 1 | AD53: 4 | AE53: 4 | AF53: 1 | AG53: 0 | AH53: 0
A54: 2.3.1 | B54: PVC - Electric | C54: =NaOH_pumps -> 0 | D54: units | E54: =IF(C54=0,"NA",NaOH_pump_rate) -> NA | F54: =IF(C54=0,"","gph") ->  | G54: =IF(C54=0,"NA",IF(curve=1,NaOH_pump_rate,VLOOKUP(NaOH_pump_rate,pvc_empump_cost_cl,2))) -> NA | H54: =IF(C54=0,"","gph") ->  | I54: =IF(C54=0,"NA",IF(curve=1,pvc_empump_eq_naoh,VLOOKUP(NaOH_pump_rate,pvc_empump_cost_cl,3))) -> NA | J54: -- | K54: =IF(C54=0,"NA",VLOOKUP(NaOH_pump_rate,pvc_empump_cost_cl,IF(ss_cat="large",4,5))) -> NA | M54: =$B$46&" - "&$B$51&" - "&B54 -> Pumps and Blowers - Sodium Hydroxide Metering Pumps - PVC - Electric | N54: 1 | O54: 2 | P54: 4 | Q54: 1 | R54: 2 | S54: 4 | T54: 1 | U54: 2 | V54: 4 | W54: 0 | X54: 1 | Y54: 2 | Z54: 4 | AA54: 1 | AB54: 2 | AC54: 4 | AD54: 1 | AE54: 2 | AF54: 4 | AG54: 0 | AH54: 0
A55: 2.3.1 | B55: Stainless Steel - Electric | C55: =NaOH_pumps -> 0 | D55: units | E55: =IF(C55=0,"NA",NaOH_pump_rate) -> NA | F55: =IF(C55=0,"","gph") ->  | G55: =IF(C55=0,"NA",IF(curve=1,NaOH_pump_rate,VLOOKUP(NaOH_pump_rate,ss_empump_cost_cl,2))) -> NA | H55: =IF(C55=0,"","gph") ->  | I55: =IF(C55=0,"NA",IF(curve=1,ss_empump_eq_naoh,VLOOKUP(NaOH_pump_rate,ss_empump_cost_cl,3))) -> NA | J55: -- | K55: =IF(C55=0,"NA",VLOOKUP(NaOH_pump_rate,ss_empump_cost_cl,IF(ss_cat="large",4,5))) -> NA | M55: =$B$46&" - "&$B$51&" - "&B55 -> Pumps and Blowers - Sodium Hydroxide Metering Pumps - Stainless Steel - Electric | N55: =IF(retrofit=1,$W55*X55,IF(ISBLANK(X55),"",X55)) -> 2 | O55: =IF(retrofit=1,$W55*Y55,IF(ISBLANK(Y55),"",Y55)) -> 1 | P55: =IF(retrofit=1,$W55*Z55,IF(ISBLANK(Z55),"",Z55)) -> 3 | Q55: =IF(retrofit=1,$W55*AA55,IF(ISBLANK(AA55),"",AA55)) -> 2 | R55: =IF(retrofit=1,$W55*AB55,IF(ISBLANK(AB55),"",AB55)) -> 1 | S55: =IF(retrofit=1,$W55*AC55,IF(ISBLANK(AC55),"",AC55)) -> 3 | T55: =IF(retrofit=1,$W55*AD55,IF(ISBLANK(AD55),"",AD55)) -> 2 | U55: =IF(retrofit=1,$W55*AE55,IF(ISBLANK(AE55),"",AE55)) -> 1 | V55: =IF(retrofit=1,$W55*AF55,IF(ISBLANK(AF55),"",AF55)) -> 3 | W55: 0 | X55: 2 | Y55: 1 | Z55: 3 | AA55: 2 | AB55: 1 | AC55: 3 | AD55: 2 | AE55: 1 | AF55: 3 | AG55: =IF(ISERROR(K55*L55),0,IF(K55<1,0,L55)) -> 0 | AH55: =IF(AG55,J55/K55,0) -> 0
A56: 2.4 | B56: Corrosion Control Chemical Metering Pumps | AG56: 0 | AH56: 0
A57: 2.4.1 | B57: PVC - Motor Driven | C57: =IF(chem_type=1,0,cc_pumps) -> 2 | D57: units | E57: =IF(chem_type=1,"NA",cc_pump_rate) -> 0.006288564118 | F57: =IF(chem_type=1,"","gph") -> gph | G57: =IF(chem_type=1,"NA",IF(curve=1,cc_pump_rate,VLOOKUP(cc_pump_rate,pvc_mmpump_cost_cl,2))) -> 0.006288564118 | H57: =IF(chem_type=1,"","gph") -> gph | I57: =IF(chem_type=1,"NA",IF(curve=1,pvc_mmpump_eq_cc,VLOOKUP(cc_pump_rate,pvc_mmpump_cost_cl,3))) -> 3416.340247 | J57: =IF(C57=0,"--",IF(I57="contact vendor","--",C57*I57)) -> 6832.680494 | K57: =IF(chem_type=1,"NA",VLOOKUP(cc_pump_rate,pvc_mmpump_cost_cl,IF(ss_cat="large",4,5))) -> 17 | L57: 0 | M57: =$B$46&" - "&$B$56&" - "&B57 -> Pumps and Blowers - Corrosion Control Chemical Metering Pumps - PVC - Motor Driven | N57: =IF(retrofit=1,$W57*X57,IF(ISBLANK(X57),"",X57)) -> 3 | O57: 3 | P57: 2 | Q57: 3 | R57: 3 | S57: 2 | T57: 3 | U57: =IF(retrofit=1,$W57*AE57,IF(ISBLANK(AE57),"",AE57)) -> 3 | V57: 2 | W57: 0 | X57: 3 | Y57: 3 | Z57: 2 | AA57: 3 | AB57: 3 | AC57: 2 | AD57: 3 | AE57: 3 | AF57: 2 | AG57: 0 | AH57: 0
A58: 2.4.1 | B58: Stainless Steel - Motor Driven | C58: =IF(chem_type=1,0,cc_pumps) -> 2 | D58: units | E58: =IF(chem_type=1,"NA",cc_pump_rate) -> 0.006288564118 | F58: =IF(chem_type=1,"","gph") -> gph | G58: =IF(chem_type=1,"NA",IF(curve=1,cc_pump_rate,VLOOKUP(cc_pump_rate,ss_mmpump_cost_cl,2))) -> 0.006288564118 | H58: =IF(chem_type=1,"","gph") -> gph | I58: =IF(chem_type=1,"NA",IF(curve=1,ss_mmpump_eq_cc,VLOOKUP(cc_pump_rate,ss_mmpump_cost_cl,3))) -> 3817.817112 | J58: 7635.634224 | K58: =IF(chem_type=1,"NA",VLOOKUP(cc_pump_rate,ss_mmpump_cost_cl,IF(ss_cat="large",4,5))) -> 17 | L58: 0 | M58: =$B$46&" - "&$B$56&" - "&B58 -> Pumps and Blowers - Corrosion Control Chemical Metering Pumps - Stainless Steel - Motor Driven | N58: 4 | O58: 4 | P58: 1 | Q58: 4 | R58: 4 | S58: 1 | T58: 4 | U58: 4 | V58: 1 | W58: 0 | X58: 4 | Y58: 4 | Z58: 1 | AA58: 4 | AB58: 4 | AC58: 1 | AD58: 4 | AE58: 4 | AF58: 1 | AG58: 0 | AH58: 0
A59: 2.4.1 | B59: PVC - Electric | C59: =IF(chem_type=1,0,cc_pumps) -> 2 | D59: units | E59: =IF(chem_type=1,"NA",cc_pump_rate) -> 0.006288564118 | F59: =IF(chem_type=1,"","gph") -> gph | G59: =IF(chem_type=1,"NA",IF(curve=1,cc_pump_rate,VLOOKUP(cc_pump_rate,pvc_empump_cost_cl,2))) -> 0.006288564118 | H59: =IF(chem_type=1,"","gph") -> gph | I59: =IF(chem_type=1,"NA",IF(curve=1,pvc_empump_eq_cc,VLOOKUP(cc_pump_rate,pvc_empump_cost_cl,3))) -> 439.5411946 | J59: 879.0823893 | K59: =IF(chem_type=1,"NA",VLOOKUP(cc_pump_rate,pvc_empump_cost_cl,IF(ss_cat="large",4,5))) -> 15 | L59: 1 | M59: =$B$46&" - "&$B$56&" - "&B59 -> Pumps and Blowers - Corrosion Control Chemical Metering Pumps - PVC - Electric | N59: 1 | O59: 2 | P59: 4 | Q59: 1 | R59: 2 | S59: 4 | T59: 1 | U59: 2 | V59: 4 | W59: 0 | X59: 1 | Y59: 2 | Z59: 4 | AA59: 1 | AB59: 2 | AC59: 4 | AD59: 1 | AE59: 2 | AF59: 4 | AG59: 1 | AH59: 58.60549262
A60: 2.4.1 | B60: Stainless Steel - Electric | C60: =IF(chem_type=1,0,cc_pumps) -> 2 | D60: units | E60: =IF(chem_type=1,"NA",cc_pump_rate) -> 0.006288564118 | F60: =IF(chem_type=1,"","gph") -> gph | G60: =IF(chem_type=1,"NA",IF(curve=1,cc_pump_rate,VLOOKUP(cc_pump_rate,ss_empump_cost_cl,2))) -> 0.006288564118 | H60: =IF(chem_type=1,"","gph") -> gph | I60: =IF(chem_type=1,"NA",IF(curve=1,ss_empump_eq_cc,VLOOKUP(cc_pump_rate,ss_empump_cost_cl,3))) -> 1221.59929 | J60: 2443.19858 | K60: =IF(chem_type=1,"NA",VLOOKUP(cc_pump_rate,ss_empump_cost_cl,IF(ss_cat="large",4,5))) -> 15 | L60: 0 | M60: =$B$46&" - "&$B$56&" - "&B60 -> Pumps and Blowers - Corrosion Control Chemical Metering Pumps - Stainless Steel - Electric | N60: 2 | O60: 1 | P60: 3 | Q60: 2 | R60: 1 | S60: 3 | T60: 2 | U60: 1 | V60: 3 | W60: 0 | X60: 2 | Y60: 1 | Z60: 3 | AA60: 2 | AB60: 1 | AC60: 3 | AD60: 2 | AE60: 1 | AF60: 3 | AG60: 0 | AH60: 0
A61: 2.5 | B61: Blowers | AG61: 0 | AH61: 0
A62: 2.5.1 | B62: Centrifugal | C62: =tot_blowers -> 2 | D62: units | E62: =Q_BLOWER -> 135.448136 | F62: cfm | G62: =IF(curve=1,Q_BLOWER,VLOOKUP(Q_BLOWER,cent_blow_cost_cl,2)) -> 135.448136 | H62: cfm | I62: =IF(curve=1,cent_blow_eq,VLOOKUP(Q_BLOWER,cent_blow_cost_cl,3)) -> 28092.93808 | J62: =IF(C62=0,"--",IF(I62="contact vendor","--",C62*I62)) -> 56185.87615 | K62: =VLOOKUP(Q_BLOWER,cent_blow_cost_cl,IF(ss_cat="large",4,5)) -> 20 | L62: 1 | M62: =$B$46&" - "&$B$61&" - "&B62 -> Pumps and Blowers - Blowers - Centrifugal | N62: =IF(retrofit=1,$W62*X62,IF(ISBLANK(X62),"",X62)) -> 1 | O62: 1 | P62: 2 | Q62: 1 | R62: 1 | S62: 2 | T62: 1 | U62: 1 | V62: 2 | W62: 0 | X62: 1 | Y62: 1 | Z62: 2 | AA62: 1 | AB62: 1 | AC62: 2 | AD62: 1 | AE62: 1 | AF62: 2 | AG62: 1 | AH62: 2809.293808
A63: 2.5.1 | B63: Positive Displacement | C63: =tot_blowers -> 2 | D63: units | E63: =Q_BLOWER -> 135.448136 | F63: cfm | G63: =IF(curve=1,Q_BLOWER,VLOOKUP(Q_BLOWER,pd_blow_cost_cl,2)) -> 135.448136 | H63: cfm | I63: =IF(curve=1,pd_blow_eq,VLOOKUP(Q_BLOWER,pd_blow_cost_cl,3)) -> 11133.61406 | J63: 22267.22812 | K63: =VLOOKUP(Q_BLOWER,pd_blow_cost_cl,IF(ss_cat="large",4,5)) -> 20 | L63: 0 | M63: =$B$46&" - "&$B$61&" - "&B63 -> Pumps and Blowers - Blowers - Positive Displacement | N63: 2 | O63: 2 | P63: 1 | Q63: 2 | R63: 2 | S63: 1 | T63: 2 | U63: 2 | V63: 1 | W63: 0 | X63: 2 | Y63: 2 | Z63: 1 | AA63: 2 | AB63: 2 | AC63: 1 | AD63: 2 | AE63: 2 | AF63: 1 | AG63: 0 | AH63: 0
A64: 3. | B64: Clearwell | AG64: 0 | AH64: 0
A65: 3.1 | B65: Concrete | C65: =IF(AW_DET=0,0,1) -> 1 | D65: units | E65: =clearwell_gal -> 652.6788423 | F65: gal | G65: =clearwell_gal -> 652.6788423 | H65: gal | I65: =IF(AW_DET=0,"NA",concrete_vol_yd/C65*VLOOKUP(0,conc_basin_cost_cl,3)) -> 3559.345133 | J65: =IF(C65=0,"--",IF(I65="contact vendor","--",C65*I65)) -> 3559.345133 | K65: =IF(AW_DET=0,"NA",VLOOKUP(0,conc_basin_cost_cl,IF(ss_cat="large",4,5))) -> 37 | L65: 1 | M65: =$B$64&" - "&B65 -> Clearwell - Concrete | N65: =IF(retrofit=1,$W65*X65,IF(ISBLANK(X65),"",X65)) -> 1 | O65: 1 | P65: 1 | Q65: 1 | R65: 1 | S65: 1 | T65: 1 | U65: =IF(retrofit=1,$W65*AE65,IF(ISBLANK(AE65),"",AE65)) -> 1 | V65: 1 | W65: 0 | X65: 1 | Y65: 1 | Z65: 1 | AA65: 1 | AB65: 1 | AC65: 1 | AD65: 1 | AE65: 1 | AF65: 1 | AG65: 1 | AH65: 96.19851709
A66: 3.2 | B66: Excavation | C66: =IF(AW_DET=0,0,x_vol_yd) -> 52 | D66: cubic yds | E66: NA | G66: NA | I66: =IF(AW_DET=0,"NA",VLOOKUP(0,excavate_cost_cl,3)) -> 28.1275 | J66: 1462.63 | K66: =IF(AW_DET=0,"NA",VLOOKUP(0,conc_basin_cost_cl,IF(ss_cat="large",4,5))) -> 37 | L66: 1 | M66: =$B$64&" - "&B66 -> Clearwell - Excavation | N66: 1 | O66: 1 | P66: 1 | Q66: 1 | R66: 1 | S66: 1 | T66: 1 | U66: 1 | V66: 1 | W66: 0 | X66: 1 | Y66: 1 | Z66: 1 | AA66: 1 | AB66: 1 | AC66: 1 | AD66: 1 | AE66: 1 | AF66: 1 | AG66: =IF(ISERROR(K66*L66),0,IF(K66<1,0,L66)) -> 1 | AH66: =IF(AG66,J66/K66,0) -> 39.53054054
A67: 3.3 | B67: Backfill and Compaction | C67: =IF(AW_DET=0,0,b_vol_yd) -> 49 | D67: cubic yds | E67: NA | G67: NA | I67: =IF(AW_DET=0,"NA",VLOOKUP(0,backfill_cost_cl,3)) -> 13.04 | J67: 638.96 | K67: =IF(AW_DET=0,"NA",VLOOKUP(0,conc_basin_cost_cl,IF(ss_cat="large",4,5))) -> 37 | L67: 1 | M67: =$B$64&" - "&B67 -> Clearwell - Backfill and Compaction | N67: 1 | O67: 1 | P67: 1 | Q67: 1 | R67: 1 | S67: 1 | T67: 1 | U67: 1 | V67: 1 | W67: 0 | X67: 1 | Y67: 1 | Z67: 1 | AA67: 1 | AB67: 1 | AC67: 1 | AD67: 1 | AE67: 1 | AF67: 1 | AG67: 1 | AH67: 17.26918919
A68: 4. | B68: Chemical Storage | AG68: 0 | AH68: 0
A69: 4.1 | B69: Acid Storage Tanks | AG69: 0 | AH69: 0
A70: 4.1.1 | B70: Plastic/HDPE | C70: =HCl_tanks -> 0 | D70: units | E70: =IF(C70=0,"NA",HCl_tank_vol) -> NA | F70: =IF(C70=0,"","gal") ->  | G70: =IF(C70=0,"NA",IF(curve=1,HCl_tank_vol,VLOOKUP(HCl_tank_vol,pl_cst_cost_cl,2))) -> NA | H70: =IF(C70=0,"","gal") ->  | I70: =IF(C70=0,"NA",IF(curve=1,pl_cst_eq_hcl,VLOOKUP(HCl_tank_vol,pl_cst_cost_cl,3))) -> NA | J70: =IF(C70=0,"--",IF(I70="contact vendor","--",C70*I70)) -> -- | K70: =IF(C70=0,"NA",VLOOKUP(HCl_tank_vol,pl_cst_cost_cl,IF(ss_cat="large",4,5))) -> NA | M70: =$B$68&" - "&$B$69&" - "&B70 -> Chemical Storage - Acid Storage Tanks - Plastic/HDPE | N70: =IF(retrofit=1,$W70*X70,IF(ISBLANK(X70),"",X70)) -> 1 | O70: 2 | P70: 2 | Q70: 1 | R70: 2 | S70: 2 | T70: 1 | U70: 2 | V70: 2 | W70: 0 | X70: 1 | Y70: 2 | Z70: 2 | AA70: 1 | AB70: 2 | AC70: 2 | AD70: 1 | AE70: 2 | AF70: 2 | AG70: 0 | AH70: 0
A71: 4.1.1 | B71: Fiberglass | C71: =HCl_tanks -> 0 | D71: units | E71: =IF(C71=0,"NA",HCl_tank_vol) -> NA | F71: =IF(C71=0,"","gal") ->  | G71: =IF(C71=0,"NA",IF(curve=1,HCl_tank_vol,VLOOKUP(HCl_tank_vol,fg_cst_cost_cl,2))) -> NA | H71: =IF(C71=0,"","gal") ->  | I71: =IF(C71=0,"NA",IF(curve=1,fg_cst_eq_hcl,VLOOKUP(HCl_tank_vol,fg_cst_cost_cl,3))) -> NA | J71: -- | K71: =IF(C71=0,"NA",VLOOKUP(HCl_tank_vol,fg_cst_cost_cl,IF(ss_cat="large",4,5))) -> NA | M71: =$B$68&" - "&$B$69&" - "&B71 -> Chemical Storage - Acid Storage Tanks - Fiberglass | N71: 2 | O71: 1 | P71: 1 | Q71: 2 | R71: 1 | S71: 1 | T71: 2 | U71: 1 | V71: 1 | W71: 0 | X71: 2 | Y71: 1 | Z71: 1 | AA71: 2 | AB71: 1 | AC71: 1 | AD71: 2 | AE71: 1 | AF71: 1 | AG71: 0 | AH71: 0
A72: 4.2 | B72: Acid Day Tanks | AG72: 0 | AH72: 0
A73: 4.2.1 | B73: Plastic/HDPE | C73: =day_tanks_acid -> 0 | D73: units | E73: =IF(C73=0,"NA",day_tank_vol_acid) -> NA | F73: =IF(C73=0,"","gal") ->  | G73: =IF(C73=0,"NA",IF(curve=1,day_tank_vol_acid,VLOOKUP(day_tank_vol_acid,pl_cst_cost_cl,2))) -> NA | H73: =IF(C73=0,"","gal") ->  | I73: =IF(C73=0,"NA",IF(curve=1,pl_day_eq_hcl,VLOOKUP(day_tank_vol_acid,pl_cst_cost_cl,3))) -> NA | J73: =IF(C73=0,"--",IF(I73="contact vendor","--",C73*I73)) -> -- | K73: =IF(C73=0,"NA",VLOOKUP(day_tank_vol_acid,pl_cst_cost_cl,IF(ss_cat="large",4,5))) -> NA | M73: =$B$68&" - "&$B$72&" - "&B73 -> Chemical Storage - Acid Day Tanks - Plastic/HDPE | N73: =IF(retrofit=1,$W73*X73,IF(ISBLANK(X73),"",X73)) -> 1 | O73: =IF(retrofit=1,$W73*Y73,IF(ISBLANK(Y73),"",Y73)) -> 2 | P73: =IF(retrofit=1,$W73*Z73,IF(ISBLANK(Z73),"",Z73)) -> 2 | Q73: =IF(retrofit=1,$W73*AA73,IF(ISBLANK(AA73),"",AA73)) -> 1 | R73: =IF(retrofit=1,$W73*AB73,IF(ISBLANK(AB73),"",AB73)) -> 2 | S73: =IF(retrofit=1,$W73*AC73,IF(ISBLANK(AC73),"",AC73)) -> 2 | T73: =IF(retrofit=1,$W73*AD73,IF(ISBLANK(AD73),"",AD73)) -> 1 | U73: =IF(retrofit=1,$W73*AE73,IF(ISBLANK(AE73),"",AE73)) -> 2 | V73: =IF(retrofit=1,$W73*AF73,IF(ISBLANK(AF73),"",AF73)) -> 2 | W73: 0 | X73: 1 | Y73: 2 | Z73: 2 | AA73: 1 | AB73: 2 | AC73: 2 | AD73: 1 | AE73: 2 | AF73: 2 | AG73: 0 | AH73: 0
A74: 4.2.1 | B74: Fiberglass | C74: =day_tanks_acid -> 0 | D74: units | E74: =IF(C74=0,"NA",day_tank_vol_acid) -> NA | F74: =IF(C74=0,"","gal") ->  | G74: =IF(C74=0,"NA",IF(curve=1,day_tank_vol_acid,VLOOKUP(day_tank_vol_acid,fg_cst_cost_cl,2))) -> NA | H74: =IF(C74=0,"","gal") ->  | I74: =IF(C74=0,"NA",IF(curve=1,fg_day_eq_hcl,VLOOKUP(day_tank_vol_acid,fg_cst_cost_cl,3))) -> NA | J74: =IF(C74=0,"--",IF(I74="contact vendor","--",C74*I74)) -> -- | K74: =IF(C74=0,"NA",VLOOKUP(day_tank_vol_acid,fg_cst_cost_cl,IF(ss_cat="large",4,5))) -> NA | M74: =$B$68&" - "&$B$72&" - "&B74 -> Chemical Storage - Acid Day Tanks - Fiberglass | N74: 2 | O74: 1 | P74: 1 | Q74: 2 | R74: 1 | S74: 1 | T74: 2 | U74: 1 | V74: 1 | W74: 0 | X74: 2 | Y74: 1 | Z74: 1 | AA74: 2 | AB74: 1 | AC74: 1 | AD74: 2 | AE74: 1 | AF74: 1 | AG74: 0 | AH74: 0
A75: 4.3 | B75: Mixers for Acid Storage Tanks | AG75: 0 | AH75: 0
A76: 4.3.1 | B76: Portable | C76: =cmixers_acid -> 0 | D76: units | E76: =IF(C76=0,"NA",cmix_size_acid) -> NA | F76: =IF(C76=0,"","hp") ->  | G76: =IF(C76=0,"NA",VLOOKUP(cmix_size_acid,port_mix_cost_cl,2)) -> NA | H76: =IF(C76=0,"","hp") ->  | I76: =IF(C76=0,"NA",VLOOKUP(cmix_size_acid,port_mix_cost_cl,3)) -> NA | J76: =IF(C76=0,"--",IF(I76="contact vendor","--",C76*I76)) -> -- | K76: =IF(C76=0,"NA",VLOOKUP(cmix_size_acid,port_mix_cost_cl,IF(ss_cat="large",4,5))) -> NA | M76: =$B$68&" - "&$B$75&" - "&B76 -> Chemical Storage - Mixers for Acid Storage Tanks - Portable | N76: =IF(retrofit=1,$W76*X76,IF(ISBLANK(X76),"",X76)) -> 3 | O76: 3 | P76: 3 | Q76: 3 | R76: 3 | S76: 3 | T76: 3 | U76: 3 | V76: 3 | W76: 0 | X76: 3 | Y76: 3 | Z76: 3 | AA76: 3 | AB76: 3 | AC76: 3 | AD76: 3 | AE76: 3 | AF76: 3 | AG76: 0 | AH76: 0
A77: 4.3.1 | B77: Mounted | C77: =cmixers_acid -> 0 | D77: units | E77: =IF(C77=0,"NA",cmix_size_acid) -> NA | F77: =IF(C77=0,"","hp") ->  | G77: =IF(C77=0,"NA",IF(curve=1,cmix_size_acid,VLOOKUP(cmix_size_acid,mount_mix_cost_cl,2))) -> NA | H77: =IF(C77=0,"","hp") ->  | I77: =IF(C77=0,"NA",IF(curve=1,cmount_mix_eq_hcl,VLOOKUP(cmix_size_acid,mount_mix_cost_cl,3))) -> NA | J77: =IF(C77=0,"--",IF(I77="contact vendor","--",C77*I77)) -> -- | K77: =IF(C77=0,"NA",VLOOKUP(cmix_size_acid,mount_mix_cost_cl,IF(ss_cat="large",4,5))) -> NA | M77: =$B$68&" - "&$B$75&" - "&B77 -> Chemical Storage - Mixers for Acid Storage Tanks - Mounted | N77: 1 | O77: 1 | P77: 1 | Q77: 1 | R77: 1 | S77: 1 | T77: 1 | U77: 1 | V77: 1 | W77: 0 | X77: 1 | Y77: 1 | Z77: 1 | AA77: 1 | AB77: 1 | AC77: 1 | AD77: 1 | AE77: 1 | AF77: 1 | AG77: 0 | AH77: 0
A78: 4.3.1 | B78: Impeller | C78: =cmixers_acid -> 0 | D78: units | E78: =IF(C78=0,"NA",cmix_size_acid) -> NA | F78: =IF(C78=0,"","hp") ->  | G78: =IF(C78=0,"NA",IF(curve=1,cmix_size_acid,VLOOKUP(cmix_size_acid,imp_mix_cost_cl,2))) -> NA | H78: =IF(C78=0,"","hp") ->  | I78: =IF(C78=0,"NA",IF(curve=1,cimp_mix_eq_hcl,VLOOKUP(cmix_size_acid,imp_mix_cost_cl,3))) -> NA | J78: =IF(C78=0,"--",IF(I78="contact vendor","--",C78*I78)) -> -- | K78: =IF(C78=0,"NA",VLOOKUP(cmix_size_acid,imp_mix_cost_cl,IF(ss_cat="large",4,5))) -> NA | M78: =$B$68&" - "&$B$75&" - "&B78 -> Chemical Storage - Mixers for Acid Storage Tanks - Impeller | N78: 2 | O78: 2 | P78: 2 | Q78: 2 | R78: 2 | S78: 2 | T78: 2 | U78: 2 | V78: 2 | W78: 0 | X78: 2 | Y78: 2 | Z78: 2 | AA78: 2 | AB78: 2 | AC78: 2 | AD78: 2 | AE78: 2 | AF78: 2 | AG78: 0 | AH78: 0
A79: 4.4 | B79: Mixers for Acid Day Tanks | AG79: 0 | AH79: 0
A80: 4.4.1 | B80: Portable | C80: =dmixers_acid -> 0 | D80: units | E80: =IF(C80=0,"NA",dmix_size_acid) -> NA | F80: =IF(C80=0,"","hp") ->  | G80: =IF(C80=0,"NA",VLOOKUP(dmix_size_acid,port_mix_cost_cl,2)) -> NA | H80: =IF(C80=0,"","hp") ->  | I80: =IF(C80=0,"NA",VLOOKUP(dmix_size_acid,port_mix_cost_cl,3)) -> NA | J80: =IF(C80=0,"--",IF(I80="contact vendor","--",C80*I80)) -> -- | K80: =IF(C80=0,"NA",VLOOKUP(dmix_size_acid,port_mix_cost_cl,IF(ss_cat="large",4,5))) -> NA | M80: =$B$68&" - "&$B$79&" - "&B80 -> Chemical Storage - Mixers for Acid Day Tanks - Portable | N80: =IF(retrofit=1,$W80*X80,IF(ISBLANK(X80),"",X80)) -> 3 | O80: 3 | P80: 3 | Q80: 3 | R80: 3 | S80: 3 | T80: 3 | U80: 3 | V80: 3 | W80: 0 | X80: 3 | Y80: 3 | Z80: 3 | AA80: 3 | AB80: 3 | AC80: 3 | AD80: 3 | AE80: 3 | AF80: 3 | AG80: 0 | AH80: 0
A81: 4.4.1 | B81: Mounted | C81: =dmixers_acid -> 0 | D81: units | E81: =IF(C81=0,"NA",dmix_size_acid) -> NA | F81: =IF(C81=0,"","hp") ->  | G81: =IF(C81=0,"NA",IF(curve=1,dmix_size_acid,VLOOKUP(dmix_size_acid,mount_mix_cost_cl,2))) -> NA | H81: =IF(C81=0,"","hp") ->  | I81: =IF(C81=0,"NA",IF(curve=1,dmount_mix_eq_hcl,VLOOKUP(dmix_size_acid,mount_mix_cost_cl,3))) -> NA | J81: =IF(C81=0,"--",IF(I81="contact vendor","--",C81*I81)) -> -- | K81: =IF(C81=0,"NA",VLOOKUP(dmix_size_acid,mount_mix_cost_cl,IF(ss_cat="large",4,5))) -> NA | M81: =$B$68&" - "&$B$79&" - "&B81 -> Chemical Storage - Mixers for Acid Day Tanks - Mounted | N81: 1 | O81: 1 | P81: 1 | Q81: 1 | R81: 1 | S81: 1 | T81: 1 | U81: 1 | V81: 1 | W81: 0 | X81: 1 | Y81: 1 | Z81: 1 | AA81: 1 | AB81: 1 | AC81: 1 | AD81: 1 | AE81: 1 | AF81: 1 | AG81: 0 | AH81: 0
A82: 4.4.1 | B82: Impeller | C82: =dmixers_acid -> 0 | D82: units | E82: =IF(C82=0,"NA",dmix_size_acid) -> NA | F82: =IF(C82=0,"","hp") ->  | G82: =IF(C82=0,"NA",IF(curve=1,dmix_size_acid,VLOOKUP(dmix_size_acid,imp_mix_cost_cl,2))) -> NA | H82: =IF(C82=0,"","hp") ->  | I82: =IF(C82=0,"NA",IF(curve=1,dimp_mix_eq_hcl,VLOOKUP(dmix_size_acid,imp_mix_cost_cl,3))) -> NA | J82: =IF(C82=0,"--",IF(I82="contact vendor","--",C82*I82)) -> -- | K82: =IF(C82=0,"NA",VLOOKUP(dmix_size_acid,imp_mix_cost_cl,IF(ss_cat="large",4,5))) -> NA | M82: =$B$68&" - "&$B$79&" - "&B82 -> Chemical Storage - Mixers for Acid Day Tanks - Impeller | N82: 2 | O82: 2 | P82: 2 | Q82: 2 | R82: 2 | S82: 2 | T82: 2 | U82: 2 | V82: 2 | W82: 0 | X82: 2 | Y82: 2 | Z82: 2 | AA82: 2 | AB82: 2 | AC82: 2 | AD82: 2 | AE82: 2 | AF82: 2 | AG82: 0 | AH82: 0
A83: 4.5 | B83: Sodium Hydroxide Storage Tanks | AG83: 0 | AH83: 0
A84: 4.5.1 | B84: Plastic/HDPE | C84: =NaOH_tanks -> 0 | D84: units | E84: =IF(C84=0,"NA",NaOH_tank_vol) -> NA | F84: =IF(C84=0,"","gal") ->  | G84: =IF(C84=0,"NA",IF(curve=1,NaOH_tank_vol,VLOOKUP(NaOH_tank_vol,pl_cst_cost_cl,2))) -> NA | H84: =IF(C84=0,"","gal") ->  | I84: =IF(C84=0,"NA",IF(curve=1,pl_cst_eq_naoh,VLOOKUP(NaOH_tank_vol,pl_cst_cost_cl,3))) -> NA | J84: =IF(C84=0,"--",IF(I84="contact vendor","--",C84*I84)) -> -- | K84: =IF(C84=0,"NA",VLOOKUP(NaOH_tank_vol,pl_cst_cost_cl,IF(ss_cat="large",4,5))) -> NA | M84: =$B$68&" - "&$B$83&" - "&B84 -> Chemical Storage - Sodium Hydroxide Storage Tanks - Plastic/HDPE | N84: =IF(retrofit=1,$W84*X84,IF(ISBLANK(X84),"",X84)) -> 1 | O84: 2 | P84: 3 | Q84: 1 | R84: 2 | S84: 3 | T84: 1 | U84: 2 | V84: 3 | W84: 0 | X84: 1 | Y84: 2 | Z84: 3 | AA84: 1 | AB84: 2 | AC84: 3 | AD84: 1 | AE84: 2 | AF84: 3 | AG84: 0 | AH84: 0
A85: 4.5.1 | B85: Fiberglass | C85: =NaOH_tanks -> 0 | D85: units | E85: =IF(C85=0,"NA",NaOH_tank_vol) -> NA | F85: =IF(C85=0,"","gal") ->  | G85: =IF(C85=0,"NA",IF(curve=1,NaOH_tank_vol,VLOOKUP(NaOH_tank_vol,fg_cst_cost_cl,2))) -> NA | H85: =IF(C85=0,"","gal") ->  | I85: =IF(C85=0,"NA",IF(curve=1,fg_cst_eq_naoh,VLOOKUP(NaOH_tank_vol,fg_cst_cost_cl,3))) -> NA | J85: -- | K85: =IF(C85=0,"NA",VLOOKUP(NaOH_tank_vol,fg_cst_cost_cl,IF(ss_cat="large",4,5))) -> NA | M85: =$B$68&" - "&$B$83&" - "&B85 -> Chemical Storage - Sodium Hydroxide Storage Tanks - Fiberglass | N85: 2 | O85: 1 | P85: 2 | Q85: 2 | R85: 1 | S85: 2 | T85: 2 | U85: 1 | V85: 2 | W85: 0 | X85: 2 | Y85: 1 | Z85: 2 | AA85: 2 | AB85: 1 | AC85: 2 | AD85: 2 | AE85: 1 | AF85: 2 | AG85: 0 | AH85: 0
A86: 4.5.1 | B86: Stainless Steel | C86: =NaOH_tanks -> 0 | D86: units | E86: =IF(C86=0,"NA",NaOH_tank_vol) -> NA | F86: =IF(C86=0,"","gal") ->  | G86: =IF(C86=0,"NA",IF(curve=1,NaOH_tank_vol,VLOOKUP(NaOH_tank_vol,ss_cst_cost_cl,2))) -> NA | H86: =IF(C86=0,"","gal") ->  | I86: =IF(C86=0,"NA",IF(curve=1,ss_cst_eq_naoh,VLOOKUP(NaOH_tank_vol,ss_cst_cost_cl,3))) -> NA | J86: -- | K86: =IF(C86=0,"NA",VLOOKUP(NaOH_tank_vol,ss_cst_cost_cl,IF(ss_cat="large",4,5))) -> NA | M86: =$B$68&" - "&$B$83&" - "&B86 -> Chemical Storage - Sodium Hydroxide Storage Tanks - Stainless Steel | N86: =IF(retrofit=1,$W86*X86,IF(ISBLANK(X86),"",X86)) -> 3 | O86: 3 | P86: 1 | Q86: 3 | R86: 3 | S86: 1 | T86: 3 | U86: 3 | V86: 1 | W86: 0 | X86: 3 | Y86: 3 | Z86: 1 | AA86: 3 | AB86: 3 | AC86: 1 | AD86: 3 | AE86: 3 | AF86: 1 | AG86: 0 | AH86: 0
A87: 4.5.2 | B87: Heat Tracing | C87: =NaOH_tanks -> 0 | D87: units | E87: =IF(C87=0,"NA",NaOH_tank_vol) -> NA | F87: =IF(C87=0,"","gal") ->  | G87: =IF(C87=0,"NA",IF(curve=1,NaOH_tank_vol,VLOOKUP(NaOH_tank_vol,cst_heat_cost_cl,2))) -> NA | H87: =IF(C87=0,"","gal") ->  | I87: =IF(C87=0,"NA",IF(curve=1,cst_heat_eq,VLOOKUP(NaOH_tank_vol,cst_heat_cost_cl,3))) -> NA | J87: -- | K87: =IF(C87=0,"NA",VLOOKUP(NaOH_tank_vol,cst_heat_cost_cl,IF(ss_cat="large",4,5))) -> NA | M87: =$B$68&" - "&$B$83&" - "&B87 -> Chemical Storage - Sodium Hydroxide Storage Tanks - Heat Tracing | N87: =IF(retrofit=1,$W87*X87,IF(ISBLANK(X87),"",X87)) -> 1 | O87: =IF(retrofit=1,$W87*Y87,IF(ISBLANK(Y87),"",Y87)) -> 1 | P87: =IF(retrofit=1,$W87*Z87,IF(ISBLANK(Z87),"",Z87)) -> 1 | Q87: =IF(retrofit=1,$W87*AA87,IF(ISBLANK(AA87),"",AA87)) -> 1 | R87: =IF(retrofit=1,$W87*AB87,IF(ISBLANK(AB87),"",AB87)) -> 1 | S87: =IF(retrofit=1,$W87*AC87,IF(ISBLANK(AC87),"",AC87)) -> 1 | T87: =IF(retrofit=1,$W87*AD87,IF(ISBLANK(AD87),"",AD87)) -> 1 | U87: =IF(retrofit=1,$W87*AE87,IF(ISBLANK(AE87),"",AE87)) -> 1 | V87: =IF(retrofit=1,$W87*AF87,IF(ISBLANK(AF87),"",AF87)) -> 1 | W87: 0 | X87: 1 | Y87: 1 | Z87: 1 | AA87: 1 | AB87: 1 | AC87: 1 | AD87: 1 | AE87: 1 | AF87: 1 | AG87: =IF(ISERROR(K87*L87),0,IF(K87<1,0,L87)) -> 0 | AH87: =IF(AG87,J87/K87,0) -> 0
A88: 4.5.3 | B88: Insulation | C88: =NaOH_tanks -> 0 | D88: units | E88: =IF(C88=0,"NA",NaOH_tank_vol) -> NA | F88: =IF(C88=0,"","gal") ->  | G88: =IF(C88=0,"NA",IF(curve=1,NaOH_tank_vol,VLOOKUP(NaOH_tank_vol,cst_insul_cost_cl,2))) -> NA | H88: =IF(C88=0,"","gal") ->  | I88: =IF(C88=0,"NA",IF(curve=1,cst_insul_eq,VLOOKUP(NaOH_tank_vol,cst_insul_cost_cl,3))) -> NA | J88: -- | K88: =IF(C88=0,"NA",VLOOKUP(NaOH_tank_vol,cst_insul_cost_cl,IF(ss_cat="large",4,5))) -> NA | M88: =$B$68&" - "&$B$83&" - "&B88 -> Chemical Storage - Sodium Hydroxide Storage Tanks - Insulation | N88: =IF(retrofit=1,$W88*X88,IF(ISBLANK(X88),"",X88)) -> 1 | O88: =IF(retrofit=1,$W88*Y88,IF(ISBLANK(Y88),"",Y88)) -> 1 | P88: =IF(retrofit=1,$W88*Z88,IF(ISBLANK(Z88),"",Z88)) -> 1 | Q88: =IF(retrofit=1,$W88*AA88,IF(ISBLANK(AA88),"",AA88)) -> 1 | R88: =IF(retrofit=1,$W88*AB88,IF(ISBLANK(AB88),"",AB88)) -> 1 | S88: =IF(retrofit=1,$W88*AC88,IF(ISBLANK(AC88),"",AC88)) -> 1 | T88: =IF(retrofit=1,$W88*AD88,IF(ISBLANK(AD88),"",AD88)) -> 1 | U88: =IF(retrofit=1,$W88*AE88,IF(ISBLANK(AE88),"",AE88)) -> 1 | V88: =IF(retrofit=1,$W88*AF88,IF(ISBLANK(AF88),"",AF88)) -> 1 | W88: 0 | X88: 1 | Y88: 1 | Z88: 1 | AA88: 1 | AB88: 1 | AC88: 1 | AD88: 1 | AE88: 1 | AF88: 1 | AG88: =IF(ISERROR(K88*L88),0,IF(K88<1,0,L88)) -> 0 | AH88: =IF(AG88,J88/K88,0) -> 0
A89: 4.6 | B89: Sodium Hydroxide Day Tanks | AG89: =IF(ISERROR(K89*L89),0,IF(K89<1,0,L89)) -> 0 | AH89: =IF(AG89,J89/K89,0) -> 0
A90: 4.6.1 | B90: Plastic/HDPE | C90: =day_tanks_NaOH -> 0 | D90: units | E90: =IF(C90=0,"NA",day_tank_vol_NaOH) -> NA | F90: =IF(C90=0,"","gal") ->  | G90: =IF(C90=0,"NA",IF(curve=1,day_tank_vol_NaOH,VLOOKUP(day_tank_vol_NaOH,pl_cst_cost_cl,2))) -> NA | H90: =IF(C90=0,"","gal") ->  | I90: =IF(C90=0,"NA",IF(curve=1,pl_day_eq_naoh,VLOOKUP(day_tank_vol,pl_cst_cost_cl,3))) -> NA | J90: =IF(C90=0,"--",IF(I90="contact vendor","--",C90*I90)) -> -- | K90: =IF(C90=0,"NA",VLOOKUP(day_tank_vol_NaOH,pl_cst_cost_cl,IF(ss_cat="large",4,5))) -> NA | M90: =$B$68&" - "&$B$89&" - "&B90 -> Chemical Storage - Sodium Hydroxide Day Tanks - Plastic/HDPE | N90: =IF(retrofit=1,$W90*X90,IF(ISBLANK(X90),"",X90)) -> 1 | O90: 2 | P90: 3 | Q90: 1 | R90: 2 | S90: 3 | T90: 1 | U90: 2 | V90: 3 | W90: 0 | X90: 1 | Y90: 2 | Z90: 3 | AA90: 1 | AB90: 2 | AC90: 3 | AD90: 1 | AE90: 2 | AF90: 3 | AG90: =IF(ISERROR(K90*L90),0,IF(K90<1,0,L90)) -> 0 | AH90: =IF(AG90,J90/K90,0) -> 0
A91: 4.6.1 | B91: Fiberglass | C91: =day_tanks_NaOH -> 0 | D91: units | E91: =IF(C91=0,"NA",day_tank_vol_NaOH) -> NA | F91: =IF(C91=0,"","gal") ->  | G91: =IF(C91=0,"NA",IF(curve=1,day_tank_vol_NaOH,VLOOKUP(day_tank_vol_NaOH,fg_cst_cost_cl,2))) -> NA | H91: =IF(C91=0,"","gal") ->  | I91: =IF(C91=0,"NA",IF(curve=1,fg_day_eq_naoh,VLOOKUP(day_tank_vol,fg_cst_cost_cl,3))) -> NA | J91: =IF(C91=0,"--",IF(I91="contact vendor","--",C91*I91)) -> -- | K91: =IF(C91=0,"NA",VLOOKUP(day_tank_vol_NaOH,fg_cst_cost_cl,IF(ss_cat="large",4,5))) -> NA | M91: =$B$68&" - "&$B$89&" - "&B91 -> Chemical Storage - Sodium Hydroxide Day Tanks - Fiberglass | N91: 2 | O91: 1 | P91: 2 | Q91: 2 | R91: 1 | S91: 2 | T91: 2 | U91: 1 | V91: 2 | W91: 0 | X91: 2 | Y91: 1 | Z91: 2 | AA91: 2 | AB91: 1 | AC91: 2 | AD91: 2 | AE91: 1 | AF91: 2 | AG91: =IF(ISERROR(K91*L91),0,IF(K91<1,0,L91)) -> 0 | AH91: =IF(AG91,J91/K91,0) -> 0
A92: 4.6.1 | B92: Stainless Steel | C92: =day_tanks_NaOH -> 0 | D92: units | E92: =IF(C92=0,"NA",day_tank_vol_NaOH) -> NA | F92: =IF(C92=0,"","gal") ->  | G92: =IF(C92=0,"NA",IF(curve=1,day_tank_vol_NaOH,VLOOKUP(day_tank_vol_NaOH,ss_cst_cost_cl,2))) -> NA | H92: =IF(C92=0,"","gal") ->  | I92: =IF(C92=0,"NA",IF(curve=1,ss_day_eq_naoh,VLOOKUP(day_tank_vol,ss_cst_cost_cl,3))) -> NA | J92: =IF(C92=0,"--",IF(I92="contact vendor","--",C92*I92)) -> -- | K92: =IF(C92=0,"NA",VLOOKUP(day_tank_vol_NaOH,ss_cst_cost_cl,IF(ss_cat="large",4,5))) -> NA | M92: =$B$68&" - "&$B$89&" - "&B92 -> Chemical Storage - Sodium Hydroxide Day Tanks - Stainless Steel | N92: =IF(retrofit=1,$W92*X92,IF(ISBLANK(X92),"",X92)) -> 3 | O92: 3 | P92: 1 | Q92: 3 | R92: 3 | S92: 1 | T92: 3 | U92: 3 | V92: 1 | W92: 0 | X92: 3 | Y92: 3 | Z92: 1 | AA92: 3 | AB92: 3 | AC92: 1 | AD92: 3 | AE92: 3 | AF92: 1 | AG92: =IF(ISERROR(K92*L92),0,IF(K92<1,0,L92)) -> 0 | AH92: =IF(AG92,J92/K92,0) -> 0
A93: 4.6.2 | B93: Heat Tracing | C93: =day_tanks_NaOH -> 0 | D93: units | E93: =IF(C93=0,"NA",day_tank_vol_NaOH) -> NA | F93: =IF(C93=0,"","gal") ->  | G93: =IF(C93=0,"NA",IF(curve=1,day_tank_vol_NaOH,VLOOKUP(day_tank_vol_NaOH,cst_heat_cost_cl,2))) -> NA | H93: =IF(C93=0,"","gal") ->  | I93: =IF(C93=0,"NA",IF(curve=1,day_heat_eq,VLOOKUP(day_tank_vol,cst_heat_cost_cl,3))) -> NA | J93: =IF(C93=0,"--",IF(I93="contact vendor","--",C93*I93)) -> -- | K93: =IF(C93=0,"NA",VLOOKUP(day_tank_vol_NaOH,cst_heat_cost_cl,IF(ss_cat="large",4,5))) -> NA | M93: =$B$68&" - "&$B$89&" - "&B93 -> Chemical Storage - Sodium Hydroxide Day Tanks - Heat Tracing | N93: 1 | O93: 1 | P93: 1 | Q93: 1 | R93: 1 | S93: 1 | T93: 1 | U93: 1 | V93: 1 | W93: 0 | X93: 1 | Y93: 1 | Z93: 1 | AA93: 1 | AB93: 1 | AC93: 1 | AD93: 1 | AE93: 1 | AF93: 1 | AG93: =IF(ISERROR(K93*L93),0,IF(K93<1,0,L93)) -> 0 | AH93: =IF(AG93,J93/K93,0) -> 0
A94: 4.6.3 | B94: Insulation | C94: =day_tanks_NaOH -> 0 | D94: units | E94: =IF(C94=0,"NA",day_tank_vol_NaOH) -> NA | F94: =IF(C94=0,"","gal") ->  | G94: =IF(C94=0,"NA",IF(curve=1,day_tank_vol_NaOH,VLOOKUP(day_tank_vol_NaOH,cst_insul_cost_cl,2))) -> NA | H94: =IF(C94=0,"","gal") ->  | I94: =IF(C94=0,"NA",IF(curve=1,day_insul_eq,VLOOKUP(day_tank_vol,cst_insul_cost_cl,3))) -> NA | J94: =IF(C94=0,"--",IF(I94="contact vendor","--",C94*I94)) -> -- | K94: =IF(C94=0,"NA",VLOOKUP(day_tank_vol_NaOH,cst_insul_cost_cl,IF(ss_cat="large",4,5))) -> NA | M94: =$B$68&" - "&$B$89&" - "&B94 -> Chemical Storage - Sodium Hydroxide Day Tanks - Insulation | N94: 1 | O94: 1 | P94: 1 | Q94: 1 | R94: 1 | S94: 1 | T94: 1 | U94: 1 | V94: 1 | W94: 0 | X94: 1 | Y94: 1 | Z94: 1 | AA94: 1 | AB94: 1 | AC94: 1 | AD94: 1 | AE94: 1 | AF94: 1 | AG94: 0 | AH94: 0
A95: 4.7 | B95: Mixers for Sodium Hydroxide Storage Tanks | AG95: =IF(ISERROR(K95*L95),0,IF(K95<1,0,L95)) -> 0 | AH95: =IF(AG95,J95/K95,0) -> 0
A96: 4.7.1 | B96: Portable | C96: =cmixers_NaOH -> 0 | D96: units | E96: =IF(C96=0,"NA",cmix_size_NaOH) -> NA | F96: =IF(C96=0,"","hp") ->  | G96: =IF(C96=0,"NA",VLOOKUP(cmix_size_NaOH,port_mix_cost_cl,2)) -> NA | H96: =IF(C96=0,"","hp") ->  | I96: =IF(C96=0,"NA",VLOOKUP(cmix_size_NaOH,port_mix_cost_cl,3)) -> NA | J96: =IF(C96=0,"--",IF(I96="contact vendor","--",C96*I96)) -> -- | K96: =IF(C96=0,"NA",VLOOKUP(cmix_size_NaOH,port_mix_cost_cl,IF(ss_cat="large",4,5))) -> NA | M96: =$B$68&" - "&$B$95&" - "&B96 -> Chemical Storage - Mixers for Sodium Hydroxide Storage Tanks - Portable | N96: =IF(retrofit=1,$W96*X96,IF(ISBLANK(X96),"",X96)) -> 3 | O96: 3 | P96: 3 | Q96: 3 | R96: 3 | S96: 3 | T96: 3 | U96: 3 | V96: 3 | W96: 0 | X96: 3 | Y96: 3 | Z96: 3 | AA96: 3 | AB96: 3 | AC96: 3 | AD96: 3 | AE96: 3 | AF96: 3 | AG96: 0 | AH96: 0
A97: 4.7.1 | B97: Mounted | C97: =cmixers_NaOH -> 0 | D97: units | E97: =IF(C97=0,"NA",cmix_size_NaOH) -> NA | F97: =IF(C97=0,"","hp") ->  | G97: =IF(C97=0,"NA",IF(curve=1,cmix_size_NaOH,VLOOKUP(cmix_size_NaOH,mount_mix_cost_cl,2))) -> NA | H97: =IF(C97=0,"","hp") ->  | I97: =IF(C97=0,"NA",IF(curve=1,cmount_mix_eq_naoh,VLOOKUP(cmix_size_NaOH,mount_mix_cost_cl,3))) -> NA | J97: =IF(C97=0,"--",IF(I97="contact vendor","--",C97*I97)) -> -- | K97: =IF(C97=0,"NA",VLOOKUP(cmix_size_NaOH,mount_mix_cost_cl,IF(ss_cat="large",4,5))) -> NA | M97: =$B$68&" - "&$B$95&" - "&B97 -> Chemical Storage - Mixers for Sodium Hydroxide Storage Tanks - Mounted | N97: 1 | O97: 1 | P97: 1 | Q97: 1 | R97: 1 | S97: 1 | T97: 1 | U97: 1 | V97: 1 | W97: 0 | X97: 1 | Y97: 1 | Z97: 1 | AA97: 1 | AB97: 1 | AC97: 1 | AD97: 1 | AE97: 1 | AF97: 1 | AG97: 0 | AH97: 0
A98: 4.7.1 | B98: Impeller | C98: =cmixers_NaOH -> 0 | D98: units | E98: =IF(C98=0,"NA",cmix_size_NaOH) -> NA | F98: =IF(C98=0,"","hp") ->  | G98: =IF(C98=0,"NA",IF(curve=1,cmix_size_NaOH,VLOOKUP(cmix_size_NaOH,imp_mix_cost_cl,2))) -> NA | H98: =IF(C98=0,"","hp") ->  | I98: =IF(C98=0,"NA",IF(curve=1,cimp_mix_eq_naoh,VLOOKUP(cmix_size_NaOH,imp_mix_cost_cl,3))) -> NA | J98: =IF(C98=0,"--",IF(I98="contact vendor","--",C98*I98)) -> -- | K98: =IF(C98=0,"NA",VLOOKUP(cmix_size_NaOH,imp_mix_cost_cl,IF(ss_cat="large",4,5))) -> NA | M98: =$B$68&" - "&$B$95&" - "&B98 -> Chemical Storage - Mixers for Sodium Hydroxide Storage Tanks - Impeller | N98: 2 | O98: 2 | P98: 2 | Q98: 2 | R98: 2 | S98: 2 | T98: 2 | U98: 2 | V98: 2 | W98: 0 | X98: 2 | Y98: 2 | Z98: 2 | AA98: 2 | AB98: 2 | AC98: 2 | AD98: 2 | AE98: 2 | AF98: 2 | AG98: 0 | AH98: 0
A99: 4.8 | B99: Mixers for Sodium Hydroxide Day Tanks | AG99: 0 | AH99: 0
A100: 4.8.1 | B100: Portable | C100: =dmixers_NaOH -> 0 | D100: units | E100: =IF(C100=0,"NA",dmix_size_NaOH) -> NA | F100: =IF(C100=0,"","hp") ->  | G100: =IF(C100=0,"NA",VLOOKUP(dmix_size_NaOH,port_mix_cost_cl,2)) -> NA | H100: =IF(C100=0,"","hp") ->  | I100: =IF(C100=0,"NA",VLOOKUP(dmix_size_NaOH,port_mix_cost_cl,3)) -> NA | J100: =IF(C100=0,"--",IF(I100="contact vendor","--",C100*I100)) -> -- | K100: =IF(C100=0,"NA",VLOOKUP(dmix_size_NaOH,port_mix_cost_cl,IF(ss_cat="large",4,5))) -> NA | M100: =$B$68&" - "&$B$99&" - "&B100 -> Chemical Storage - Mixers for Sodium Hydroxide Day Tanks - Portable | N100: =IF(retrofit=1,$W100*X100,IF(ISBLANK(X100),"",X100)) -> 3 | O100: 3 | P100: 3 | Q100: 3 | R100: 3 | S100: 3 | T100: 3 | U100: 3 | V100: 3 | W100: 0 | X100: 3 | Y100: 3 | Z100: 3 | AA100: 3 | AB100: 3 | AC100: 3 | AD100: 3 | AE100: 3 | AF100: 3 | AG100: 0 | AH100: 0
A101: 4.8.1 | B101: Mounted | C101: =dmixers_NaOH -> 0 | D101: units | E101: =IF(C101=0,"NA",dmix_size_NaOH) -> NA | F101: =IF(C101=0,"","hp") ->  | G101: =IF(C101=0,"NA",IF(curve=1,dmix_size_NaOH,VLOOKUP(dmix_size_NaOH,mount_mix_cost_cl,2))) -> NA | H101: =IF(C101=0,"","hp") ->  | I101: =IF(C101=0,"NA",IF(curve=1,dmount_mix_eq_naoh,VLOOKUP(dmix_size_NaOH,mount_mix_cost_cl,3))) -> NA | J101: =IF(C101=0,"--",IF(I101="contact vendor","--",C101*I101)) -> -- | K101: =IF(C101=0,"NA",VLOOKUP(dmix_size_NaOH,mount_mix_cost_cl,IF(ss_cat="large",4,5))) -> NA | M101: =$B$68&" - "&$B$99&" - "&B101 -> Chemical Storage - Mixers for Sodium Hydroxide Day Tanks - Mounted | N101: 1 | O101: 1 | P101: 1 | Q101: 1 | R101: 1 | S101: 1 | T101: 1 | U101: 1 | V101: 1 | W101: 0 | X101: 1 | Y101: 1 | Z101: 1 | AA101: 1 | AB101: 1 | AC101: 1 | AD101: 1 | AE101: 1 | AF101: 1 | AG101: 0 | AH101: 0
A102: 4.8.1 | B102: Impeller | C102: =dmixers_NaOH -> 0 | D102: units | E102: =IF(C102=0,"NA",dmix_size_NaOH) -> NA | F102: =IF(C102=0,"","hp") ->  | G102: =IF(C102=0,"NA",IF(curve=1,dmix_size_NaOH,VLOOKUP(dmix_size_NaOH,imp_mix_cost_cl,2))) -> NA | H102: =IF(C102=0,"","hp") ->  | I102: =IF(C102=0,"NA",IF(curve=1,dimp_mix_eq_naoh,VLOOKUP(dmix_size_NaOH,imp_mix_cost_cl,3))) -> NA | J102: =IF(C102=0,"--",IF(I102="contact vendor","--",C102*I102)) -> -- | K102: =IF(C102=0,"NA",VLOOKUP(dmix_size_NaOH,imp_mix_cost_cl,IF(ss_cat="large",4,5))) -> NA | M102: =$B$68&" - "&$B$99&" - "&B102 -> Chemical Storage - Mixers for Sodium Hydroxide Day Tanks - Impeller | N102: 2 | O102: 2 | P102: 2 | Q102: 2 | R102: 2 | S102: 2 | T102: 2 | U102: 2 | V102: 2 | W102: 0 | X102: 2 | Y102: 2 | Z102: 2 | AA102: 2 | AB102: 2 | AC102: 2 | AD102: 2 | AE102: 2 | AF102: 2 | AG102: 0 | AH102: 0
A103: 4.9 | B103: Corrosion Control Chemical Storage Tanks | AG103: 0 | AH103: 0
A104: 4.9.1 | B104: Plastic/HDPE | C104: =IF(chem_type=1,0,cc_tanks) -> 1 | D104: units | E104: =IF(chem_type=1,"NA",cc_tank_vol) -> 4.225915087 | F104: =IF(chem_type=1,"","gal") -> gal | G104: =IF(chem_type=1,"NA",IF(curve=1,cc_tank_vol,VLOOKUP(cc_tank_vol,pl_cst_cost_cl,2))) -> 4.225915087 | H104: =IF(chem_type=1,"","gal") -> gal | I104: =IF(chem_type=1,"NA",IF(curve=1,pl_cst_eq,VLOOKUP(cc_tank_vol,pl_cst_cost_cl,3))) -> 754.7539436 | J104: =IF(C104=0,"--",IF(I104="contact vendor","--",C104*I104)) -> 754.7539436 | K104: =IF(chem_type=1,"NA",VLOOKUP(cc_tank_vol,pl_cst_cost_cl,IF(ss_cat="large",4,5))) -> 7 | L104: 1 | M104: =$B$68&" - "&$B$103&" - "&B104 -> Chemical Storage - Corrosion Control Chemical Storage Tanks - Plastic/HDPE | N104: =IF(retrofit=1,$W104*X104,IF(ISBLANK(X104),"",X104)) -> 1 | O104: 2 | P104: 3 | Q104: 1 | R104: 2 | S104: 3 | T104: 1 | U104: 2 | V104: 3 | W104: 0 | X104: =IF(chem_type=1,0,1) -> 1 | Y104: =IF(chem_type=1,0,2) -> 2 | Z104: 3 | AA104: =IF(chem_type=1,0,1) -> 1 | AB104: =IF(chem_type=1,0,2) -> 2 | AC104: 3 | AD104: =IF(chem_type=1,0,1) -> 1 | AE104: =IF(chem_type=1,0,2) -> 2 | AF104: 3 | AG104: 1 | AH104: 107.8219919
A105: 4.9.1 | B105: Fiberglass | C105: =IF(chem_type=1,0,cc_tanks) -> 1 | D105: units | E105: =IF(chem_type=1,"NA",cc_tank_vol) -> 4.225915087 | F105: =IF(chem_type=1,"","gal") -> gal | G105: =IF(chem_type=1,"NA",IF(curve=1,cc_tank_vol,VLOOKUP(cc_tank_vol,fg_cst_cost_cl,2))) -> 4.225915087 | H105: =IF(chem_type=1,"","gal") -> gal | I105: =IF(chem_type=1,"NA",IF(curve=1,fg_cst_eq,VLOOKUP(cc_tank_vol,fg_cst_cost_cl,3))) -> contact vendor | J105: -- | K105: =IF(chem_type=1,"NA",VLOOKUP(cc_tank_vol,fg_cst_cost_cl,IF(ss_cat="large",4,5))) -> 7 | L105: 0 | M105: =$B$68&" - "&$B$103&" - "&B105 -> Chemical Storage - Corrosion Control Chemical Storage Tanks - Fiberglass | N105: 2 | O105: 1 | P105: 2 | Q105: 2 | R105: 1 | S105: 2 | T105: 2 | U105: 1 | V105: 2 | W105: 0 | X105: =IF(chem_type=1,0,2) -> 2 | Y105: =IF(chem_type=1,0,1) -> 1 | Z105: 2 | AA105: =IF(chem_type=1,0,2) -> 2 | AB105: =IF(chem_type=1,0,1) -> 1 | AC105: 2 | AD105: =IF(chem_type=1,0,2) -> 2 | AE105: =IF(chem_type=1,0,1) -> 1 | AF105: 2 | AG105: 0 | AH105: 0
A106: 4.9.1 | B106: Stainless Steel | C106: =IF(chem_type=1,0,cc_tanks) -> 1 | D106: units | E106: =IF(chem_type=1,"NA",cc_tank_vol) -> 4.225915087 | F106: =IF(chem_type=1,"","gal") -> gal | G106: =IF(chem_type=1,"NA",IF(curve=1,cc_tank_vol,VLOOKUP(cc_tank_vol,ss_cst_cost_cl,2))) -> 4.225915087 | H106: =IF(chem_type=1,"","gal") -> gal | I106: =IF(chem_type=1,"NA",IF(curve=1,ss_cst_eq,VLOOKUP(cc_tank_vol,ss_cst_cost_cl,3))) -> contact vendor | J106: -- | K106: =IF(chem_type=1,"NA",VLOOKUP(cc_tank_vol,ss_cst_cost_cl,IF(ss_cat="large",4,5))) -> 30 | L106: 0 | M106: =$B$68&" - "&$B$103&" - "&B106 -> Chemical Storage - Corrosion Control Chemical Storage Tanks - Stainless Steel | N106: =IF(retrofit=1,$W106*X106,IF(ISBLANK(X106),"",X106)) -> 3 | O106: 3 | P106: 1 | Q106: 3 | R106: 3 | S106: 1 | T106: 3 | U106: 3 | V106: 1 | W106: 1 | X106: 3 | Y106: 3 | Z106: 1 | AA106: 3 | AB106: 3 | AC106: 1 | AD106: 3 | AE106: 3 | AF106: 1 | AG106: 0 | AH106: 0
A107: 4.10 | B107: Corrosion Control Day Tanks | AG107: 0 | AH107: 0
A108: 4.10.1 | B108: Plastic/HDPE | C108: =day_tanks_sh -> 0 | D108: units | E108: =IF(C108=0,"NA",day_tank_vol_sh) -> NA | F108: =IF(C108=0,"","gal") ->  | G108: =IF(C108=0,"NA",IF(curve=1,day_tank_vol_sh,VLOOKUP(day_tank_vol_sh,pl_cst_cost_cl,2))) -> NA | H108: =IF(C108=0,"","gal") ->  | I108: =IF(C108=0,"NA",IF(curve=1,pl_day_eq,VLOOKUP(day_tank_vol_sh,pl_cst_cost_cl,3))) -> NA | J108: =IF(C108=0,"--",IF(I108="contact vendor","--",C108*I108)) -> -- | K108: =IF(C108=0,"NA",VLOOKUP(day_tank_vol_sh,pl_cst_cost_cl,IF(ss_cat="large",4,5))) -> NA | M108: =$B$68&" - "&$B$108&" - "&B108 -> Chemical Storage - Plastic/HDPE - Plastic/HDPE | N108: =IF(retrofit=1,$W108*X108,IF(ISBLANK(X108),"",X108)) -> 1 | O108: 2 | P108: 3 | Q108: 1 | R108: 2 | S108: 3 | T108: 1 | U108: 2 | V108: 3 | W108: 0 | X108: 1 | Y108: 2 | Z108: 3 | AA108: 1 | AB108: 2 | AC108: 3 | AD108: 1 | AE108: 2 | AF108: 3 | AG108: 0 | AH108: 0
A109: 4.10.1 | B109: Fiberglass | C109: =day_tanks_sh -> 0 | D109: units | E109: =IF(C109=0,"NA",day_tank_vol_sh) -> NA | F109: =IF(C109=0,"","gal") ->  | G109: =IF(C109=0,"NA",IF(curve=1,day_tank_vol_sh,VLOOKUP(day_tank_vol_sh,fg_cst_cost_cl,2))) -> NA | H109: =IF(C109=0,"","gal") ->  | I109: =IF(C109=0,"NA",IF(curve=1,fg_day_eq,VLOOKUP(day_tank_vol_sh,fg_cst_cost_cl,3))) -> NA | J109: =IF(C109=0,"--",IF(I109="contact vendor","--",C109*I109)) -> -- | K109: =IF(C109=0,"NA",VLOOKUP(day_tank_vol_sh,fg_cst_cost_cl,IF(ss_cat="large",4,5))) -> NA | M109: =$B$68&" - "&$B$108&" - "&B109 -> Chemical Storage - Plastic/HDPE - Fiberglass | N109: 2 | O109: 1 | P109: 2 | Q109: 2 | R109: 1 | S109: 2 | T109: 2 | U109: 1 | V109: 2 | W109: 0 | X109: 2 | Y109: 1 | Z109: 2 | AA109: 2 | AB109: 1 | AC109: 2 | AD109: 2 | AE109: 1 | AF109: 2 | AG109: 0 | AH109: 0
A110: 4.10.1 | B110: Stainless Steel | C110: =day_tanks_sh -> 0 | D110: units | E110: =IF(C110=0,"NA",day_tank_vol_sh) -> NA | F110: =IF(C110=0,"","gal") ->  | G110: =IF(C110=0,"NA",IF(curve=1,day_tank_vol_sh,VLOOKUP(day_tank_vol_sh,ss_cst_cost_cl,2))) -> NA | H110: =IF(C110=0,"","gal") ->  | I110: =IF(C110=0,"NA",IF(curve=1,ss_day_eq,VLOOKUP(day_tank_vol_sh,ss_cst_cost_cl,3))) -> NA | J110: =IF(C110=0,"--",IF(I110="contact vendor","--",C110*I110)) -> -- | K110: =IF(C110=0,"NA",VLOOKUP(day_tank_vol_sh,ss_cst_cost_cl,IF(ss_cat="large",4,5))) -> NA | M110: =$B$68&" - "&$B$108&" - "&B110 -> Chemical Storage - Plastic/HDPE - Stainless Steel | N110: =IF(retrofit=1,$W110*X110,IF(ISBLANK(X110),"",X110)) -> 3 | O110: 3 | P110: 1 | Q110: 3 | R110: 3 | S110: 1 | T110: 3 | U110: 3 | V110: 1 | W110: 0 | X110: 3 | Y110: 3 | Z110: 1 | AA110: 3 | AB110: 3 | AC110: 1 | AD110: 3 | AE110: 3 | AF110: 1 | AG110: 0 | AH110: 0
A111: 4.11 | B111: Mixers for Corrosion Control Storage Tanks | AG111: 0 | AH111: 0
A112: 4.11.1 | B112: Portable | C112: =cmixers_sh -> 1 | D112: units | E112: =IF(C112=0,"NA",cmix_size_sh) -> 0.001056478772 | F112: =IF(C112=0,"","hp") -> hp | G112: =IF(C112=0,"NA",VLOOKUP(cmix_size_sh,port_mix_cost_cl,2)) -> 1 | H112: =IF(C112=0,"","hp") -> hp | I112: =IF(C112=0,"NA",VLOOKUP(cmix_size_sh,port_mix_cost_cl,3)) -> 1977.7631 | J112: =IF(C112=0,"--",IF(I112="contact vendor","--",C112*I112)) -> 1977.7631 | K112: =IF(C112=0,"NA",VLOOKUP(cmix_size_sh,port_mix_cost_cl,IF(ss_cat="large",4,5))) -> 20 | L112: 0 | M112: =$B$68&" - "&$B$111&" - "&B112 -> Chemical Storage - Mixers for Corrosion Control Storage Tanks - Portable | N112: =IF(retrofit=1,$W112*X112,IF(ISBLANK(X112),"",X112)) -> 3 | O112: 3 | P112: 3 | Q112: 3 | R112: 3 | S112: 3 | T112: 3 | U112: 3 | V112: 3 | W112: 0 | X112: 3 | Y112: 3 | Z112: 3 | AA112: 3 | AB112: 3 | AC112: 3 | AD112: 3 | AE112: 3 | AF112: 3 | AG112: 0 | AH112: 0
A113: 4.11.1 | B113: Mounted | C113: =cmixers_sh -> 1 | D113: units | E113: =IF(C113=0,"NA",cmix_size_sh) -> 0.001056478772 | F113: =IF(C113=0,"","hp") -> hp | G113: =IF(C113=0,"NA",IF(curve=1,cmix_size_sh,VLOOKUP(cmix_size_sh,mount_mix_cost_cl,2))) -> 0.001056478772 | H113: =IF(C113=0,"","hp") -> hp | I113: =IF(C113=0,"NA",IF(curve=1,cmount_mix_eq,VLOOKUP(cmix_size_sh,mount_mix_cost_cl,3))) -> 368.6950786 | J113: =IF(C113=0,"--",IF(I113="contact vendor","--",C113*I113)) -> 368.6950786 | K113: =IF(C113=0,"NA",VLOOKUP(cmix_size_sh,mount_mix_cost_cl,IF(ss_cat="large",4,5))) -> 22 | L113: 1 | M113: =$B$68&" - "&$B$111&" - "&B113 -> Chemical Storage - Mixers for Corrosion Control Storage Tanks - Mounted | N113: 1 | O113: 1 | P113: 1 | Q113: 1 | R113: 1 | S113: 1 | T113: 1 | U113: 1 | V113: 1 | W113: 0 | X113: 1 | Y113: 1 | Z113: 1 | AA113: 1 | AB113: 1 | AC113: 1 | AD113: 1 | AE113: 1 | AF113: 1 | AG113: 1 | AH113: 16.75886721
A114: 4.11.1 | B114: Impeller | C114: =cmixers_sh -> 1 | D114: units | E114: =IF(C114=0,"NA",cmix_size_sh) -> 0.001056478772 | F114: =IF(C114=0,"","hp") -> hp | G114: =IF(C114=0,"NA",IF(curve=1,cmix_size_sh,VLOOKUP(cmix_size_sh,imp_mix_cost_cl,2))) -> 0.001056478772 | H114: =IF(C114=0,"","hp") -> hp | I114: =IF(C114=0,"NA",IF(curve=1,cimp_mix_eq,VLOOKUP(cmix_size_sh,imp_mix_cost_cl,3))) -> 195.0444509 | J114: =IF(C114=0,"--",IF(I114="contact vendor","--",C114*I114)) -> 195.0444509 | K114: =IF(C114=0,"NA",VLOOKUP(cmix_size_sh,imp_mix_cost_cl,IF(ss_cat="large",4,5))) -> 20 | L114: 0 | M114: =$B$68&" - "&$B$111&" - "&B114 -> Chemical Storage - Mixers for Corrosion Control Storage Tanks - Impeller | N114: 2 | O114: 2 | P114: 2 | Q114: 2 | R114: 2 | S114: 2 | T114: 2 | U114: 2 | V114: 2 | W114: 0 | X114: 2 | Y114: 2 | Z114: 2 | AA114: 2 | AB114: 2 | AC114: 2 | AD114: 2 | AE114: 2 | AF114: 2 | AG114: 0 | AH114: 0
A115: 4.12 | B115: Mixers for Corrosion Control Day Tanks | AG115: 0 | AH115: 0
A116: 4.12.1 | B116: Portable | C116: =dmixers_sh -> 0 | D116: units | E116: =IF(C116=0,"NA",dmix_size_sh) -> NA | F116: =IF(C116=0,"","hp") ->  | G116: =IF(C116=0,"NA",VLOOKUP(dmix_size_sh,port_mix_cost_cl,2)) -> NA | H116: =IF(C116=0,"","hp") ->  | I116: =IF(C116=0,"NA",VLOOKUP(dmix_size_sh,port_mix_cost_cl,3)) -> NA | J116: =IF(C116=0,"--",IF(I116="contact vendor","--",C116*I116)) -> -- | K116: =IF(C116=0,"NA",VLOOKUP(dmix_size_sh,port_mix_cost_cl,IF(ss_cat="large",4,5))) -> NA | M116: =$B$68&" - "&$B$115&" - "&B116 -> Chemical Storage - Mixers for Corrosion Control Day Tanks - Portable | N116: =IF(retrofit=1,$W116*X116,IF(ISBLANK(X116),"",X116)) -> 3 | O116: 3 | P116: 3 | Q116: 3 | R116: 3 | S116: 3 | T116: 3 | U116: 3 | V116: 3 | W116: 0 | X116: 3 | Y116: 3 | Z116: 3 | AA116: 3 | AB116: 3 | AC116: 3 | AD116: 3 | AE116: 3 | AF116: 3 | AG116: 0 | AH116: 0
A117: 4.12.1 | B117: Mounted | C117: =dmixers_sh -> 0 | D117: units | E117: =IF(C117=0,"NA",dmix_size_sh) -> NA | F117: =IF(C117=0,"","hp") ->  | G117: =IF(C117=0,"NA",IF(curve=1,dmix_size_sh,VLOOKUP(dmix_size_sh,mount_mix_cost_cl,2))) -> NA | H117: =IF(C117=0,"","hp") ->  | I117: =IF(C117=0,"NA",IF(curve=1,dmount_mix_eq,VLOOKUP(dmix_size_sh,mount_mix_cost_cl,3))) -> NA | J117: =IF(C117=0,"--",IF(I117="contact vendor","--",C117*I117)) -> -- | K117: =IF(C117=0,"NA",VLOOKUP(dmix_size_sh,mount_mix_cost_cl,IF(ss_cat="large",4,5))) -> NA | M117: =$B$68&" - "&$B$115&" - "&B117 -> Chemical Storage - Mixers for Corrosion Control Day Tanks - Mounted | N117: 1 | O117: 1 | P117: 1 | Q117: 1 | R117: 1 | S117: 1 | T117: 1 | U117: 1 | V117: 1 | W117: 0 | X117: 1 | Y117: 1 | Z117: 1 | AA117: 1 | AB117: 1 | AC117: 1 | AD117: 1 | AE117: 1 | AF117: 1 | AG117: 0 | AH117: 0
A118: 4.12.1 | B118: Impeller | C118: =dmixers_sh -> 0 | D118: units | E118: =IF(C118=0,"NA",dmix_size_sh) -> NA | F118: =IF(C118=0,"","hp") ->  | G118: =IF(C118=0,"NA",IF(curve=1,dmix_size_sh,VLOOKUP(dmix_size_sh,imp_mix_cost_cl,2))) -> NA | H118: =IF(C118=0,"","hp") ->  | I118: =IF(C118=0,"NA",IF(curve=1,dimp_mix_eq,VLOOKUP(dmix_size_sh,imp_mix_cost_cl,3))) -> NA | J118: =IF(C118=0,"--",IF(I118="contact vendor","--",C118*I118)) -> -- | K118: =IF(C118=0,"NA",VLOOKUP(dmix_size_sh,imp_mix_cost_cl,IF(ss_cat="large",4,5))) -> NA | M118: =$B$68&" - "&$B$115&" - "&B118 -> Chemical Storage - Mixers for Corrosion Control Day Tanks - Impeller | N118: 2 | O118: 2 | P118: 2 | Q118: 2 | R118: 2 | S118: 2 | T118: 2 | U118: 2 | V118: 2 | W118: 0 | X118: 2 | Y118: 2 | Z118: 2 | AA118: 2 | AB118: 2 | AC118: 2 | AD118: 2 | AE118: 2 | AF118: 2 | AG118: 0 | AH118: 0
A119: 5. | B119: Chemicals | AG119: 0 | AH119: 0
A120: 5.1 | B120: =CHOOSE(acid_type,"No acid addition","Hydrochloric Acid","Sulfuric Acid") -> No acid addition | C120: =HCl_init -> 0 | D120: lbs | E120: NA | G120: NA | I120: =IF(C120=0,"NA",VLOOKUP(B120,chem_cost_cl,3,FALSE)) -> NA | J120: =IF(C120=0,"--",IF(I120="contact vendor","--",C120*I120)) -> -- | K120: =IF(C120=0,"NA",VLOOKUP(B120,chem_cost_cl,IF(ss_cat="large",4,5),FALSE)) -> NA | M120: =$B$119&" - "&B120 -> Chemicals - No acid addition | N120: =IF(retrofit=1,$W120*X120,IF(ISBLANK(X120),"",X120)) -> 1 | O120: 1 | P120: 1 | Q120: 1 | R120: 1 | S120: 1 | T120: 1 | U120: =IF(retrofit=1,$W120*AE120,IF(ISBLANK(AE120),"",AE120)) -> 1 | V120: 1 | W120: 0 | X120: 1 | Y120: 1 | Z120: 1 | AA120: 1 | AB120: 1 | AC120: 1 | AD120: 1 | AE120: 1 | AF120: 1 | AG120: 0 | AH120: 0
A121: 5.2 | B121: =CHOOSE(acid_type,"No caustic addition","Sodium Hydroxide","Sodium Hydroxide") -> No caustic addition | C121: =NaOH_init -> 0 | D121: lbs | E121: NA | G121: NA | I121: =IF(C121=0,"NA",VLOOKUP(B121,chem_cost_cl,3,FALSE)) -> NA | J121: -- | K121: =IF(C121=0,"NA",VLOOKUP(B121,chem_cost_cl,IF(ss_cat="large",4,5),FALSE)) -> NA | M121: =$B$119&" - "&B121 -> Chemicals - No caustic addition | N121: 1 | O121: 1 | P121: 1 | Q121: 1 | R121: 1 | S121: 1 | T121: 1 | U121: 1 | V121: 1 | W121: 0 | X121: 1 | Y121: 1 | Z121: 1 | AA121: 1 | AB121: 1 | AC121: 1 | AD121: 1 | AE121: 1 | AF121: 1 | AG121: 0 | AH121: 0
A122: 5.3 | B122: =CHOOSE(chem_type,"Corrosion control chemical","Sodium Hexametaphosphate","Tetrasodium Polyphosphate") -> Sodium Hexametaphosphate | C122: =IF(chem_type=1,0,cc_init) -> 8.757 | D122: lbs | E122: NA | G122: NA | I122: =IF(chem_type=1,"NA",VLOOKUP(B122,chem_cost_cl,3,FALSE)) -> 2.346730389 | J122: 20.55031802 | K122: =IF(C122=0,"NA",VLOOKUP(B122,chem_cost_cl,IF(ss_cat="large",4,5),FALSE)) -> N/A | L122: 1 | M122: =$B$119&" - "&B122 -> Chemicals - Sodium Hexametaphosphate | N122: 1 | O122: 1 | P122: 1 | Q122: 1 | R122: 1 | S122: 1 | T122: 1 | U122: 1 | V122: 1 | W122: 0 | X122: =IF(chem_type=1,0,1) -> 1 | Y122: =IF(chem_type=1,0,1) -> 1 | Z122: 1 | AA122: 1 | AB122: 1 | AC122: 1 | AD122: 1 | AE122: 1 | AF122: 1 | AG122: 0 | AH122: 0
A123: 6. | B123: Piping | AG123: 0 | AH123: 0
A124: 6.1 | B124: Process Piping | AG124: 0 | AH124: 0
A125: 6.1.1 | B125: Ductile Iron | C125: =proc_pipe_length -> 62.54290682 | D125: lf | E125: =proc_pipe_diam -> 1.5 | F125: in. diam | G125: =IF(curve=1,proc_pipe_diam,VLOOKUP(proc_pipe_diam,di_pipe_cost_cl,2)) -> 1.5 | H125: in. diam | I125: =IF(curve=1,di_pipe_eq_in,VLOOKUP(proc_pipe_diam,di_pipe_cost_cl,3)) -> contact vendor | J125: =IF(I125="contact vendor","--",C125*I125) -> -- | K125: =VLOOKUP(proc_pipe_diam,di_pipe_cost_cl,IF(ss_cat="large",4,5)) -> 35 | L125: 0 | M125: =$B$123&" - "&$B$124&" - "&B125 -> Piping - Process Piping - Ductile Iron | N125: =IF(retrofit=1,$W125*X125,IF(ISBLANK(X125),"",X125)) -> 3 | O125: =IF(retrofit=1,$W125*Y125,IF(ISBLANK(Y125),"",Y125)) -> 3 | P125: 3 | Q125: 3 | R125: 3 | S125: 3 | T125: 3 | U125: =IF(retrofit=1,$W125*AE125,IF(ISBLANK(AE125),"",AE125)) -> 3 | V125: 3 | W125: 0 | X125: 3 | Y125: 3 | Z125: 3 | AA125: 3 | AB125: 3 | AC125: 3 | AD125: 3 | AE125: 3 | AF125: 3 | AG125: 0 | AH125: 0
A126: 6.1.1 | B126: CPVC | C126: =proc_pipe_length -> 62.54290682 | D126: lf | E126: =proc_pipe_diam -> 1.5 | F126: in. diam | G126: =IF(curve=1,proc_pipe_diam,VLOOKUP(proc_pipe_diam,cpvc_pipe_cost_cl,2)) -> 1.5 | H126: in. diam | I126: =IF(curve=1,cpvc_pipe_eq_in,VLOOKUP(proc_pipe_diam,cpvc_pipe_cost_cl,3)) -> 8.838485539 | J126: =IF(I126="contact vendor","--",C126*I126) -> 552.7845774 | K126: =VLOOKUP(proc_pipe_diam,cpvc_pipe_cost_cl,IF(ss_cat="large",4,5)) -> 17 | L126: 0 | M126: =$B$123&" - "&$B$124&" - "&B126 -> Piping - Process Piping - CPVC | N126: 2 | O126: 1 | P126: 4 | Q126: 2 | R126: 1 | S126: 4 | T126: 2 | U126: 1 | V126: 4 | W126: 0 | X126: 2 | Y126: 1 | Z126: 4 | AA126: 2 | AB126: 1 | AC126: 4 | AD126: 2 | AE126: 1 | AF126: 4 | AG126: 0 | AH126: 0
A127: 6.1.1 | B127: PVC | C127: =proc_pipe_length -> 62.54290682 | D127: lf | E127: =proc_pipe_diam -> 1.5 | F127: in. diam | G127: =IF(curve=1,proc_pipe_diam,VLOOKUP(proc_pipe_diam,pvc_pipe_cost_cl,2)) -> 1.5 | H127: in. diam | I127: =IF(curve=1,pvc_pipe_eq_in,VLOOKUP(proc_pipe_diam,pvc_pipe_cost_cl,3)) -> 2.280486905 | J127: =IF(I127="contact vendor","--",C127*I127) -> 142.62828 | K127: =VLOOKUP(proc_pipe_diam,pvc_pipe_cost_cl,IF(ss_cat="large",4,5)) -> 17 | L127: 1 | M127: =$B$123&" - "&$B$124&" - "&B127 -> Piping - Process Piping - PVC | N127: 1 | O127: 2 | P127: 5 | Q127: 1 | R127: 2 | S127: 5 | T127: 1 | U127: 2 | V127: 5 | W127: 0 | X127: 1 | Y127: 2 | Z127: 5 | AA127: 1 | AB127: 2 | AC127: 5 | AD127: 1 | AE127: 2 | AF127: 5 | AG127: =IF(ISERROR(K127*L127),0,IF(K127<1,0,L127)) -> 1 | AH127: =IF(AG127,J127/K127,0) -> 8.389898824
A128: 6.1.1 | B128: Stainless Steel | C128: =proc_pipe_length -> 62.54290682 | D128: lf | E128: =proc_pipe_diam -> 1.5 | F128: in. diam | G128: =IF(curve=1,proc_pipe_diam,VLOOKUP(proc_pipe_diam,ss_pipe_cost_cl,2)) -> 1.5 | H128: in. diam | I128: =IF(curve=1,ss_pipe_eq_in,VLOOKUP(proc_pipe_diam,ss_pipe_cost_cl,3)) -> 50.30819207 | J128: =IF(I128="contact vendor","--",C128*I128) -> 3146.420569 | K128: =VLOOKUP(proc_pipe_diam,ss_pipe_cost_cl,IF(ss_cat="large",4,5)) -> 40 | L128: 0 | M128: =$B$123&" - "&$B$124&" - "&B128 -> Piping - Process Piping - Stainless Steel | N128: 5 | O128: 5 | P128: 1 | Q128: 5 | R128: 5 | S128: 1 | T128: 5 | U128: 5 | V128: 1 | W128: 0 | X128: 5 | Y128: 5 | Z128: 1 | AA128: 5 | AB128: 5 | AC128: 1 | AD128: 5 | AE128: 5 | AF128: 1 | AG128: 0 | AH128: 0
A129: 6.1.1 | B129: Steel | C129: =proc_pipe_length -> 62.54290682 | D129: lf | E129: =proc_pipe_diam -> 1.5 | F129: in. diam | G129: =IF(curve=1,proc_pipe_diam,VLOOKUP(proc_pipe_diam,st_pipe_cost_cl,2)) -> 1.5 | H129: in. diam | I129: =IF(curve=1,st_pipe_eq_in,VLOOKUP(proc_pipe_diam,st_pipe_cost_cl,3)) -> 24.83631933 | J129: =IF(I129="contact vendor","--",C129*I129) -> 1553.335606 | K129: =VLOOKUP(proc_pipe_diam,st_pipe_cost_cl,IF(ss_cat="large",4,5)) -> 33 | L129: 0 | M129: =$B$123&" - "&$B$124&" - "&B129 -> Piping - Process Piping - Steel | N129: 4 | O129: 4 | P129: 2 | Q129: 4 | R129: 4 | S129: 2 | T129: 4 | U129: 4 | V129: 2 | W129: 0 | X129: 4 | Y129: 4 | Z129: 2 | AA129: 4 | AB129: 4 | AC129: 2 | AD129: 4 | AE129: 4 | AF129: 2 | AG129: 0 | AH129: 0
A130: 6.2 | B130: Inlet and Outlet Piping | AG130: 0 | AH130: 0
A131: 6.2.1 | B131: Ductile Iron | C131: =in_out_pipe_length -> 40 | D131: lf | E131: =in_out_pipe_diam -> 1.5 | F131: in. diam | G131: =IF(curve=1,in_out_pipe_diam,VLOOKUP(in_out_pipe_diam,di_pipe_cost_cl,2)) -> 1.5 | H131: in. diam | I131: =IF(curve=1,di_pipe_eq_head,VLOOKUP(in_out_pipe_diam,di_pipe_cost_cl,3)) -> contact vendor | J131: =IF(I131="contact vendor","--",C131*I131) -> -- | K131: =VLOOKUP(in_out_pipe_diam,di_pipe_cost_cl,IF(ss_cat="large",4,5)) -> 35 | L131: 0 | M131: =$B$123&" - "&$B$130&" - "&B131 -> Piping - Inlet and Outlet Piping - Ductile Iron | N131: =IF(retrofit=1,$W131*X131,IF(ISBLANK(X131),"",X131)) -> 3 | O131: 3 | P131: 3 | Q131: 3 | R131: 3 | S131: 3 | T131: 3 | U131: =IF(retrofit=1,$W131*AE131,IF(ISBLANK(AE131),"",AE131)) -> 3 | V131: 3 | W131: 0 | X131: 3 | Y131: 3 | Z131: 3 | AA131: 3 | AB131: 3 | AC131: 3 | AD131: 3 | AE131: 3 | AF131: 3 | AG131: 0 | AH131: 0
A132: 6.2.1 | B132: CPVC | C132: =in_out_pipe_length -> 40 | D132: lf | E132: =in_out_pipe_diam -> 1.5 | F132: in. diam | G132: =IF(curve=1,in_out_pipe_diam,VLOOKUP(in_out_pipe_diam,cpvc_pipe_cost_cl,2)) -> 1.5 | H132: in. diam | I132: =IF(curve=1,cpvc_pipe_eq_head,VLOOKUP(in_out_pipe_diam,cpvc_pipe_cost_cl,3)) -> 8.838485539 | J132: =IF(I132="contact vendor","--",C132*I132) -> 353.5394215 | K132: =VLOOKUP(in_out_pipe_diam,cpvc_pipe_cost_cl,IF(ss_cat="large",4,5)) -> 17 | L132: 0 | M132: =$B$123&" - "&$B$130&" - "&B132 -> Piping - Inlet and Outlet Piping - CPVC | N132: 2 | O132: 1 | P132: 4 | Q132: 2 | R132: 1 | S132: 4 | T132: 2 | U132: 1 | V132: 4 | W132: 0 | X132: 2 | Y132: 1 | Z132: 4 | AA132: 2 | AB132: 1 | AC132: 4 | AD132: 2 | AE132: 1 | AF132: 4 | AG132: 0 | AH132: 0
A133: 6.2.1 | B133: PVC | C133: =in_out_pipe_length -> 40 | D133: lf | E133: =in_out_pipe_diam -> 1.5 | F133: in. diam | G133: =IF(curve=1,in_out_pipe_diam,VLOOKUP(in_out_pipe_diam,pvc_pipe_cost_cl,2)) -> 1.5 | H133: in. diam | I133: =IF(curve=1,pvc_pipe_eq_head,VLOOKUP(in_out_pipe_diam,pvc_pipe_cost_cl,3)) -> 2.280486905 | J133: =IF(I133="contact vendor","--",C133*I133) -> 91.21947621 | K133: =VLOOKUP(in_out_pipe_diam,pvc_pipe_cost_cl,IF(ss_cat="large",4,5)) -> 17 | L133: 1 | M133: =$B$123&" - "&$B$130&" - "&B133 -> Piping - Inlet and Outlet Piping - PVC | N133: 1 | O133: 2 | P133: 5 | Q133: 1 | R133: 2 | S133: 5 | T133: 1 | U133: 2 | V133: 5 | W133: 0 | X133: 1 | Y133: 2 | Z133: 5 | AA133: 1 | AB133: 2 | AC133: 5 | AD133: 1 | AE133: 2 | AF133: 5 | AG133: 1 | AH133: 5.365851541
A134: 6.2.1 | B134: Stainless Steel | C134: =in_out_pipe_length -> 40 | D134: lf | E134: =in_out_pipe_diam -> 1.5 | F134: in. diam | G134: =IF(curve=1,in_out_pipe_diam,VLOOKUP(in_out_pipe_diam,ss_pipe_cost_cl,2)) -> 1.5 | H134: in. diam | I134: =IF(curve=1,ss_pipe_eq_head,VLOOKUP(in_out_pipe_diam,ss_pipe_cost_cl,3)) -> 50.30819207 | J134: =IF(I134="contact vendor","--",C134*I134) -> 2012.327683 | K134: =VLOOKUP(in_out_pipe_diam,ss_pipe_cost_cl,IF(ss_cat="large",4,5)) -> 40 | L134: 0 | M134: =$B$123&" - "&$B$130&" - "&B134 -> Piping - Inlet and Outlet Piping - Stainless Steel | N134: 5 | O134: 5 | P134: 1 | Q134: 5 | R134: 5 | S134: 1 | T134: 5 | U134: 5 | V134: 1 | W134: 0 | X134: 5 | Y134: 5 | Z134: 1 | AA134: 5 | AB134: 5 | AC134: 1 | AD134: 5 | AE134: 5 | AF134: 1 | AG134: 0 | AH134: 0
A135: 6.2.1 | B135: Steel | C135: =in_out_pipe_length -> 40 | D135: lf | E135: =in_out_pipe_diam -> 1.5 | F135: in. diam | G135: =IF(curve=1,in_out_pipe_diam,VLOOKUP(in_out_pipe_diam,st_pipe_cost_cl,2)) -> 1.5 | H135: in. diam | I135: =IF(curve=1,st_pipe_eq_head,VLOOKUP(in_out_pipe_diam,st_pipe_cost_cl,3)) -> 24.83631933 | J135: =IF(I135="contact vendor","--",C135*I135) -> 993.4527734 | K135: =VLOOKUP(in_out_pipe_diam,st_pipe_cost_cl,IF(ss_cat="large",4,5)) -> 33 | L135: 0 | M135: =$B$123&" - "&$B$130&" - "&B135 -> Piping - Inlet and Outlet Piping - Steel | N135: 4 | O135: 4 | P135: 2 | Q135: 4 | R135: 4 | S135: 2 | T135: 4 | U135: 4 | V135: 2 | W135: 0 | X135: 4 | Y135: 4 | Z135: 2 | AA135: 4 | AB135: 4 | AC135: 2 | AD135: 4 | AE135: 4 | AF135: 2 | AG135: 0 | AH135: 0
A136: 6.3 | B136: Air Piping | AG136: 0 | AH136: 0
A137: 6.3.1 | B137: CPVC | C137: =air_pipe_length -> 200 | D137: lf | E137: =air_pipe_diam -> 1.5 | F137: in. diam | G137: =IF(curve=1,air_pipe_diam,VLOOKUP(air_pipe_diam,cpvc_pipe_cost_cl,2)) -> 1.5 | H137: in. diam | I137: =IF(curve=1,cpvc_pipe_eq_air,VLOOKUP(air_pipe_diam,cpvc_pipe_cost_cl,3)) -> 8.838485539 | J137: =IF(I137="contact vendor","--",C137*I137) -> 1767.697108 | K137: =VLOOKUP(air_pipe_diam,cpvc_pipe_cost_cl,IF(ss_cat="large",4,5)) -> 17 | L137: 0 | M137: =$B$123&" - "&$B$136&" - "&B137 -> Piping - Air Piping - CPVC | N137: =IF(retrofit=1,$W137*X137,IF(ISBLANK(X137),"",X137)) -> 2 | O137: 1 | P137: 3 | Q137: 2 | R137: 1 | S137: 3 | T137: 2 | U137: =IF(retrofit=1,$W137*AE137,IF(ISBLANK(AE137),"",AE137)) -> 1 | V137: 3 | W137: 0 | X137: 2 | Y137: 1 | Z137: 3 | AA137: 2 | AB137: 1 | AC137: 3 | AD137: 2 | AE137: 1 | AF137: 3 | AG137: 0 | AH137: 0
A138: 6.3.1 | B138: PVC | C138: =air_pipe_length -> 200 | D138: lf | E138: =air_pipe_diam -> 1.5 | F138: in. diam | G138: =IF(curve=1,air_pipe_diam,VLOOKUP(air_pipe_diam,pvc_pipe_cost_cl,2)) -> 1.5 | H138: in. diam | I138: =IF(curve=1,pvc_pipe_eq_air,VLOOKUP(air_pipe_diam,pvc_pipe_cost_cl,3)) -> 2.280486905 | J138: =IF(I138="contact vendor","--",C138*I138) -> 456.097381 | K138: =VLOOKUP(air_pipe_diam,pvc_pipe_cost_cl,IF(ss_cat="large",4,5)) -> 17 | L138: 1 | M138: =$B$123&" - "&$B$136&" - "&B138 -> Piping - Air Piping - PVC | N138: 1 | O138: 2 | P138: 4 | Q138: 1 | R138: 2 | S138: 4 | T138: 1 | U138: 2 | V138: 4 | W138: 0 | X138: 1 | Y138: 2 | Z138: 4 | AA138: 1 | AB138: 2 | AC138: 4 | AD138: 1 | AE138: 2 | AF138: 4 | AG138: 1 | AH138: 26.82925771
A139: 6.3.1 | B139: Stainless Steel | C139: =air_pipe_length -> 200 | D139: lf | E139: =air_pipe_diam -> 1.5 | F139: in. diam | G139: =IF(curve=1,air_pipe_diam,VLOOKUP(air_pipe_diam,ss_pipe_cost_cl,2)) -> 1.5 | H139: in. diam | I139: =IF(curve=1,ss_pipe_eq_air,VLOOKUP(air_pipe_diam,ss_pipe_cost_cl,3)) -> 50.30819207 | J139: =IF(I139="contact vendor","--",C139*I139) -> 10061.63841 | K139: =VLOOKUP(air_pipe_diam,ss_pipe_cost_cl,IF(ss_cat="large",4,5)) -> 40 | L139: 0 | M139: =$B$123&" - "&$B$136&" - "&B139 -> Piping - Air Piping - Stainless Steel | N139: 4 | O139: 4 | P139: 1 | Q139: 4 | R139: 4 | S139: 1 | T139: 4 | U139: 4 | V139: 1 | W139: 0 | X139: 4 | Y139: 4 | Z139: 1 | AA139: 4 | AB139: 4 | AC139: 1 | AD139: 4 | AE139: 4 | AF139: 1 | AG139: 0 | AH139: 0
A140: 6.3.1 | B140: Steel | C140: =air_pipe_length -> 200 | D140: lf | E140: =air_pipe_diam -> 1.5 | F140: in. diam | G140: =IF(curve=1,air_pipe_diam,VLOOKUP(air_pipe_diam,st_pipe_cost_cl,2)) -> 1.5 | H140: in. diam | I140: =IF(curve=1,st_pipe_eq_air,VLOOKUP(air_pipe_diam,st_pipe_cost_cl,3)) -> 24.83631933 | J140: =IF(I140="contact vendor","--",C140*I140) -> 4967.263867 | K140: =VLOOKUP(air_pipe_diam,st_pipe_cost_cl,IF(ss_cat="large",4,5)) -> 33 | L140: 0 | M140: =$B$123&" - "&$B$136&" - "&B140 -> Piping - Air Piping - Steel | N140: 3 | O140: 3 | P140: 2 | Q140: 3 | R140: 3 | S140: 2 | T140: 3 | U140: 3 | V140: 2 | W140: 0 | X140: 3 | Y140: 3 | Z140: 2 | AA140: 3 | AB140: 3 | AC140: 2 | AD140: 3 | AE140: 3 | AF140: 2 | AG140: 0 | AH140: 0
A141: 6.4 | B141: Acid Feed Piping | AG141: 0 | AH141: 0
A142: 6.4.1 | B142: CPVC | C142: =IF(acid_type=1,0,chem_pipe_length) -> 0 | D142: lf | E142: =IF(C142=0,"NA",HCl_pipe_diam) -> NA | F142: =IF(C142=0,"","in. diam") ->  | G142: =IF(C142=0,"NA",IF(curve=1,HCl_pipe_diam,VLOOKUP(HCl_pipe_diam,cpvc_pipe_cost_cl,2))) -> NA | H142: =IF(C142=0,"","in. diam") ->  | I142: =IF(C142=0,"NA",IF(curve=1,cpvc_pipe_eq_hcl,VLOOKUP(HCl_pipe_diam,cpvc_pipe_cost_cl,3))) -> NA | J142: =IF(C142=0,"--",IF(I142="contact vendor","--",C142*I142)) -> -- | K142: =IF(C142=0,"NA",VLOOKUP(HCl_pipe_diam,cpvc_pipe_cost_cl,IF(ss_cat="large",4,5))) -> NA | M142: =$B$123&" - "&$B$141&" - "&B142 -> Piping - Acid Feed Piping - CPVC | N142: =IF(retrofit=1,$W142*X142,IF(ISBLANK(X142),"",X142)) -> 2 | O142: 1 | P142: 2 | Q142: 2 | R142: 1 | S142: 2 | T142: 2 | U142: =IF(retrofit=1,$W142*AE142,IF(ISBLANK(AE142),"",AE142)) -> 1 | V142: 2 | W142: 0 | X142: 2 | Y142: 1 | Z142: 2 | AA142: 2 | AB142: 1 | AC142: 2 | AD142: 2 | AE142: 1 | AF142: 2 | AG142: 0 | AH142: 0
A143: 6.4.1 | B143: PVC | C143: =IF(acid_type=1,0,chem_pipe_length) -> 0 | D143: lf | E143: =IF(C143=0,"NA",HCl_pipe_diam) -> NA | F143: =IF(C143=0,"","in. diam") ->  | G143: =IF(C143=0,"NA",IF(curve=1,HCl_pipe_diam,VLOOKUP(HCl_pipe_diam,pvc_pipe_cost_cl,2))) -> NA | H143: =IF(C143=0,"","in. diam") ->  | I143: =IF(C143=0,"NA",IF(curve=1,pvc_pipe_eq_hcl,VLOOKUP(HCl_pipe_diam,pvc_pipe_cost_cl,3))) -> NA | J143: -- | K143: =IF(C143=0,"NA",VLOOKUP(HCl_pipe_diam,pvc_pipe_cost_cl,IF(ss_cat="large",4,5))) -> NA | M143: =$B$123&" - "&$B$141&" - "&B143 -> Piping - Acid Feed Piping - PVC | N143: 1 | O143: 2 | P143: 3 | Q143: 1 | R143: 2 | S143: 3 | T143: 1 | U143: 2 | V143: 3 | W143: 0 | X143: 1 | Y143: 2 | Z143: 3 | AA143: 1 | AB143: 2 | AC143: 3 | AD143: 1 | AE143: 2 | AF143: 3 | AG143: 0 | AH143: 0
A144: 6.4.1 | B144: Stainless Steel | C144: =IF(acid_type=1,0,chem_pipe_length) -> 0 | D144: lf | E144: =IF(C144=0,"NA",HCl_pipe_diam) -> NA | F144: =IF(C144=0,"","in. diam") ->  | G144: =IF(C144=0,"NA",IF(curve=1,HCl_pipe_diam,VLOOKUP(HCl_pipe_diam,ss_pipe_cost_cl,2))) -> NA | H144: =IF(C144=0,"","in. diam") ->  | I144: =IF(C144=0,"NA",IF(curve=1,ss_pipe_eq_hcl,VLOOKUP(HCl_pipe_diam,ss_pipe_cost_cl,3))) -> NA | J144: -- | K144: =IF(C144=0,"NA",VLOOKUP(HCl_pipe_diam,ss_pipe_cost_cl,IF(ss_cat="large",4,5))) -> NA | M144: =$B$123&" - "&$B$141&" - "&B144 -> Piping - Acid Feed Piping - Stainless Steel | N144: 3 | O144: 3 | P144: 1 | Q144: 3 | R144: 3 | S144: 1 | T144: 3 | U144: 3 | V144: 1 | W144: 0 | X144: 3 | Y144: 3 | Z144: 1 | AA144: 3 | AB144: 3 | AC144: 1 | AD144: 3 | AE144: 3 | AF144: 1 | AG144: 0 | AH144: 0
A145: 6.5 | B145: Sodium Hydroxide Feed Piping | AG145: 0 | AH145: 0
A146: 6.5.1 | B146: CPVC | C146: =IF(acid_type=1,0,chem_pipe_length) -> 0 | D146: lf | E146: =IF(C146=0,"NA",NaOH_pipe_diam) -> NA | F146: =IF(C146=0,"","in. diam") ->  | G146: =IF(C146=0,"NA",IF(curve=1,NaOH_pipe_diam,VLOOKUP(NaOH_pipe_diam,cpvc_pipe_cost_cl,2))) -> NA | H146: =IF(C146=0,"","in. diam") ->  | I146: =IF(C142=0,"NA",IF(curve=1,cpvc_pipe_eq_naoh,VLOOKUP(NaOH_pipe_diam,cpvc_pipe_cost_cl,3))) -> NA | J146: =IF(C146=0,"--",IF(I146="contact vendor","--",C146*I146)) -> -- | K146: =IF(C146=0,"NA",VLOOKUP(NaOH_pipe_diam,cpvc_pipe_cost_cl,IF(ss_cat="large",4,5))) -> NA | M146: =$B$123&" - "&$B$145&" - "&B146 -> Piping - Sodium Hydroxide Feed Piping - CPVC | N146: =IF(retrofit=1,$W146*X146,IF(ISBLANK(X146),"",X146)) -> 2 | O146: 1 | P146: 2 | Q146: 2 | R146: 1 | S146: 2 | T146: 2 | U146: =IF(retrofit=1,$W146*AE146,IF(ISBLANK(AE146),"",AE146)) -> 1 | V146: 2 | W146: 0 | X146: 2 | Y146: 1 | Z146: 2 | AA146: 2 | AB146: 1 | AC146: 2 | AD146: 2 | AE146: 1 | AF146: 2 | AG146: 0 | AH146: 0
A147: 6.5.1 | B147: PVC | C147: =IF(acid_type=1,0,chem_pipe_length) -> 0 | D147: lf | E147: =IF(C147=0,"NA",NaOH_pipe_diam) -> NA | F147: =IF(C147=0,"","in. diam") ->  | G147: =IF(C147=0,"NA",IF(curve=1,NaOH_pipe_diam,VLOOKUP(NaOH_pipe_diam,pvc_pipe_cost_cl,2))) -> NA | H147: =IF(C147=0,"","in. diam") ->  | I147: =IF(C142=0,"NA",IF(curve=1,pvc_pipe_eq_naoh,VLOOKUP(NaOH_pipe_diam,pvc_pipe_cost_cl,3))) -> NA | J147: -- | K147: =IF(C147=0,"NA",VLOOKUP(NaOH_pipe_diam,pvc_pipe_cost_cl,IF(ss_cat="large",4,5))) -> NA | M147: =$B$123&" - "&$B$145&" - "&B147 -> Piping - Sodium Hydroxide Feed Piping - PVC | N147: 1 | O147: 2 | P147: 3 | Q147: 1 | R147: 2 | S147: 3 | T147: 1 | U147: 2 | V147: 3 | W147: 0 | X147: 1 | Y147: 2 | Z147: 3 | AA147: 1 | AB147: 2 | AC147: 3 | AD147: 1 | AE147: 2 | AF147: 3 | AG147: 0 | AH147: 0
A148: 6.5.1 | B148: Stainless Steel | C148: =IF(acid_type=1,0,chem_pipe_length) -> 0 | D148: lf | E148: =IF(C148=0,"NA",NaOH_pipe_diam) -> NA | F148: =IF(C148=0,"","in. diam") ->  | G148: =IF(C148=0,"NA",IF(curve=1,NaOH_pipe_diam,VLOOKUP(NaOH_pipe_diam,ss_pipe_cost_cl,2))) -> NA | H148: =IF(C148=0,"","in. diam") ->  | I148: =IF(C142=0,"NA",IF(curve=1,ss_pipe_eq_naoh,VLOOKUP(NaOH_pipe_diam,ss_pipe_cost_cl,3))) -> NA | J148: -- | K148: =IF(C148=0,"NA",VLOOKUP(NaOH_pipe_diam,ss_pipe_cost_cl,IF(ss_cat="large",4,5))) -> NA | M148: =$B$123&" - "&$B$145&" - "&B148 -> Piping - Sodium Hydroxide Feed Piping - Stainless Steel | N148: 3 | O148: 3 | P148: 1 | Q148: 3 | R148: 3 | S148: 1 | T148: 3 | U148: 3 | V148: 1 | W148: 0 | X148: 3 | Y148: 3 | Z148: 1 | AA148: 3 | AB148: 3 | AC148: 1 | AD148: 3 | AE148: 3 | AF148: 1 | AG148: 0 | AH148: 0
A149: 6.6 | B149: Corrosion Control Chemical Feed Piping | AG149: 0 | AH149: 0
A150: 6.6.1 | B150: CPVC | C150: =IF(chem_type=1,0,chem_pipe_length) -> 20 | D150: lf | E150: =IF(chem_type=1,"NA",cc_pipe_diam) -> 0.5 | F150: =IF(chem_type=1,"","in. diam") -> in. diam | G150: =IF(chem_type=1,"NA",IF(curve=1,cc_pipe_diam,VLOOKUP(cc_pipe_diam,cpvc_pipe_cost_cl,2))) -> 0.5 | H150: =IF(chem_type=1,"","in. diam") -> in. diam | I150: =IF(chem_type=1,"NA",IF(curve=1,cpvc_pipe_eq_cc,VLOOKUP(cc_pipe_diam,cpvc_pipe_cost_cl,3))) -> 2.627019235 | J150: 52.54038471 | K150: =IF(chem_type=1,"NA",VLOOKUP(cc_pipe_diam,cpvc_pipe_cost_cl,IF(ss_cat="large",4,5))) -> 17 | L150: 0 | M150: =$B$123&" - "&$B$149&" - "&B150 -> Piping - Corrosion Control Chemical Feed Piping - CPVC | N150: =IF(retrofit=1,$W150*X150,IF(ISBLANK(X150),"",X150)) -> 2 | O150: 1 | P150: 2 | Q150: 2 | R150: 1 | S150: 2 | T150: 2 | U150: =IF(retrofit=1,$W150*AE150,IF(ISBLANK(AE150),"",AE150)) -> 1 | V150: 2 | W150: 0 | X150: =IF(chem_type=1,0,2) -> 2 | Y150: =IF(chem_type=1,0,1) -> 1 | Z150: =IF(chem_type=1,0,2) -> 2 | AA150: =IF(chem_type=1,0,2) -> 2 | AB150: =IF(chem_type=1,0,1) -> 1 | AC150: =IF(chem_type=1,0,2) -> 2 | AD150: =IF(chem_type=1,0,2) -> 2 | AE150: =IF(chem_type=1,0,1) -> 1 | AF150: =IF(chem_type=1,0,2) -> 2 | AG150: 0 | AH150: 0
A151: 6.6.1 | B151: PVC | C151: =IF(chem_type=1,0,chem_pipe_length) -> 20 | D151: lf | E151: =IF(chem_type=1,"NA",cc_pipe_diam) -> 0.5 | F151: =IF(chem_type=1,"","in. diam") -> in. diam | G151: =IF(chem_type=1,"NA",IF(curve=1,cc_pipe_diam,VLOOKUP(cc_pipe_diam,pvc_pipe_cost_cl,2))) -> 0.5 | H151: =IF(chem_type=1,"","in. diam") -> in. diam | I151: =IF(chem_type=1,"NA",IF(curve=1,pvc_pipe_eq_cc,VLOOKUP(cc_pipe_diam,pvc_pipe_cost_cl,3))) -> 1.022077298 | J151: 20.44154596 | K151: =IF(chem_type=1,"NA",VLOOKUP(cc_pipe_diam,pvc_pipe_cost_cl,IF(ss_cat="large",4,5))) -> 17 | L151: 1 | M151: =$B$123&" - "&$B$149&" - "&B151 -> Piping - Corrosion Control Chemical Feed Piping - PVC | N151: 1 | O151: 2 | P151: 3 | Q151: 1 | R151: 2 | S151: 3 | T151: 1 | U151: 2 | V151: 3 | W151: 0 | X151: =IF(chem_type=1,0,1) -> 1 | Y151: =IF(chem_type=1,0,2) -> 2 | Z151: =IF(chem_type=1,0,3) -> 3 | AA151: =IF(chem_type=1,0,1) -> 1 | AB151: =IF(chem_type=1,0,2) -> 2 | AC151: =IF(chem_type=1,0,3) -> 3 | AD151: =IF(chem_type=1,0,1) -> 1 | AE151: =IF(chem_type=1,0,2) -> 2 | AF151: =IF(chem_type=1,0,3) -> 3 | AG151: 1 | AH151: 1.20244388
A152: 6.6.1 | B152: Stainless Steel | C152: =IF(chem_type=1,0,chem_pipe_length) -> 20 | D152: lf | E152: =IF(chem_type=1,"NA",cc_pipe_diam) -> 0.5 | F152: =IF(chem_type=1,"","in. diam") -> in. diam | G152: =IF(chem_type=1,"NA",IF(curve=1,cc_pipe_diam,VLOOKUP(cc_pipe_diam,ss_pipe_cost_cl,2))) -> 0.5 | H152: =IF(chem_type=1,"","in. diam") -> in. diam | I152: =IF(chem_type=1,"NA",IF(curve=1,ss_pipe_eq_cc,VLOOKUP(cc_pipe_diam,ss_pipe_cost_cl,3))) -> 17.5544077 | J152: 351.0881541 | K152: =IF(chem_type=1,"NA",VLOOKUP(cc_pipe_diam,ss_pipe_cost_cl,IF(ss_cat="large",4,5))) -> 40 | L152: 0 | M152: =$B$123&" - "&$B$149&" - "&B152 -> Piping - Corrosion Control Chemical Feed Piping - Stainless Steel | N152: 3 | O152: 3 | P152: 1 | Q152: 3 | R152: 3 | S152: 1 | T152: 3 | U152: 3 | V152: 1 | W152: 0 | X152: =IF(chem_type=1,0,3) -> 3 | Y152: =IF(chem_type=1,0,3) -> 3 | Z152: =IF(chem_type=1,0,1) -> 1 | AA152: =IF(chem_type=1,0,3) -> 3 | AB152: =IF(chem_type=1,0,3) -> 3 | AC152: =IF(chem_type=1,0,1) -> 1 | AD152: =IF(chem_type=1,0,3) -> 3 | AE152: =IF(chem_type=1,0,3) -> 3 | AF152: =IF(chem_type=1,0,1) -> 1 | AG152: 0 | AH152: 0
A153: 6.7 | B153: Bypass Piping | AG153: 0 | AH153: 0
A154: 6.7.1 | B154: CPVC | C154: =bp_pipe_length -> 0 | D154: lf | E154: =IF(bp_pct>0,bp_pipe_diam,"NA") -> NA | F154: =IF(bp_pct=0," ","in. diam") ->  | G154: =IF(bp_pct=0,"NA",IF(curve=1,bp_pipe_diam,VLOOKUP(bp_pipe_diam,cpvc_pipe_cost_cl,2))) -> NA | H154: =IF(bp_pct=0," ","in. diam") ->  | I154: =IF(bp_pct=0,"NA",IF(curve=1,cpvc_pipe_eq_bp,VLOOKUP(bp_pipe_diam,cpvc_pipe_cost_cl,3))) -> NA | J154: -- | K154: =IF(C154=0,"NA",VLOOKUP(E154,cpvc_pipe_cost_cl,IF(ss_cat="large",4,5))) -> NA | M154: =$B$123&" - "&$B$153&" - "&B154 -> Piping - Bypass Piping - CPVC | N154: =IF(retrofit=1,$W154*X154,IF(ISBLANK(X154),"",X154)) -> 2 | O154: 1 | P154: 3 | Q154: 2 | R154: 1 | S154: 3 | T154: 2 | U154: =IF(retrofit=1,$W154*AE154,IF(ISBLANK(AE154),"",AE154)) -> 1 | V154: 3 | W154: 0 | X154: 2 | Y154: 1 | Z154: 3 | AA154: 2 | AB154: 1 | AC154: 3 | AD154: 2 | AE154: 1 | AF154: 3 | AG154: 0 | AH154: 0
A155: 6.7.1 | B155: PVC | C155: =bp_pipe_length -> 0 | D155: lf | E155: =IF(bp_pct>0,bp_pipe_diam,"NA") -> NA | F155: =IF(bp_pct=0," ","in. diam") ->  | G155: =IF(bp_pct=0,"NA",IF(curve=1,bp_pipe_diam,VLOOKUP(bp_pipe_diam,pvc_pipe_cost_cl,2))) -> NA | H155: =IF(bp_pct=0," ","in. diam") ->  | I155: =IF(bp_pct=0,"NA",IF(curve=1,pvc_pipe_eq_bp,VLOOKUP(bp_pipe_diam,pvc_pipe_cost_cl,3))) -> NA | J155: -- | K155: =IF(C155=0,"NA",VLOOKUP(E155,pvc_pipe_cost_cl,IF(ss_cat="large",4,5))) -> NA | M155: =$B$123&" - "&$B$153&" - "&B155 -> Piping - Bypass Piping - PVC | N155: 1 | O155: 2 | P155: 4 | Q155: 1 | R155: 2 | S155: 4 | T155: 1 | U155: 2 | V155: 4 | W155: 0 | X155: 1 | Y155: 2 | Z155: 4 | AA155: 1 | AB155: 2 | AC155: 4 | AD155: 1 | AE155: 2 | AF155: 4 | AG155: 0 | AH155: 0
A156: 6.7.1 | B156: Stainless Steel | C156: =bp_pipe_length -> 0 | D156: lf | E156: =IF(bp_pct>0,bp_pipe_diam,"NA") -> NA | F156: =IF(bp_pct=0," ","in. diam") ->  | G156: =IF(bp_pct=0,"NA",IF(curve=1,bp_pipe_diam,VLOOKUP(bp_pipe_diam,ss_pipe_cost_cl,2))) -> NA | H156: =IF(bp_pct=0," ","in. diam") ->  | I156: =IF(bp_pct=0,"NA",IF(curve=1,ss_pipe_eq_bp,VLOOKUP(bp_pipe_diam,ss_pipe_cost_cl,3))) -> NA | J156: -- | K156: =IF(C156=0,"NA",VLOOKUP(E156,ss_pipe_cost_cl,IF(ss_cat="large",4,5))) -> NA | M156: =$B$123&" - "&$B$153&" - "&B156 -> Piping - Bypass Piping - Stainless Steel | N156: 4 | O156: 4 | P156: 1 | Q156: 4 | R156: 4 | S156: 1 | T156: 4 | U156: 4 | V156: 1 | W156: 0 | X156: 4 | Y156: 4 | Z156: 1 | AA156: 4 | AB156: 4 | AC156: 1 | AD156: 4 | AE156: 4 | AF156: 1 | AG156: 0 | AH156: 0
A157: 6.7.1 | B157: Steel | C157: =bp_pipe_length -> 0 | D157: lf | E157: =IF(bp_pct>0,bp_pipe_diam,"NA") -> NA | F157: =IF(bp_pct=0," ","in. diam") ->  | G157: =IF(bp_pct=0,"NA",IF(curve=1,bp_pipe_diam,VLOOKUP(bp_pipe_diam,st_pipe_cost_cl,2))) -> NA | H157: =IF(bp_pct=0," ","in. diam") ->  | I157: =IF(bp_pct=0,"NA",IF(curve=1,st_pipe_eq_bp,VLOOKUP(bp_pipe_diam,st_pipe_cost_cl,3))) -> NA | J157: -- | K157: =IF(C157=0,"NA",VLOOKUP(E157,st_pipe_cost_cl,IF(ss_cat="large",4,5))) -> NA | M157: =$B$123&" - "&$B$153&" - "&B157 -> Piping - Bypass Piping - Steel | N157: 3 | O157: 3 | P157: 2 | Q157: 3 | R157: 3 | S157: 2 | T157: 3 | U157: 3 | V157: 2 | W157: 0 | X157: 3 | Y157: 3 | Z157: 2 | AA157: 3 | AB157: 3 | AC157: 2 | AD157: 3 | AE157: 3 | AF157: 2 | AG157: 0 | AH157: 0
A158: 7. | B158: Valves | AG158: 0 | AH158: 0
A159: 7.1 | B159: Motor/Air Operated (on/off) | AG159: =IF(ISERROR(K159*L159),0,IF(K159<1,0,L159)) -> 0 | AH159: =IF(AG159,J159/K159,0) -> 0
A160: 7.1.1 | B160: Process - Polypropylene/PVC | C160: =tot_proc_MOVs -> 6 | D160: units | E160: =IF(C160=0,"NA",tank_valve_size) -> 1.5 | F160: =IF(C160=0,"","in. diam") -> in. diam | G160: =IF(C160=0,"NA",IF(curve=1,tank_valve_size,VLOOKUP(tank_valve_size,pp_mov_cost_cl,2))) -> 1.5 | H160: =IF(C160=0,"","in. diam") -> in. diam | I160: =IF(C160=0,"NA",IF(curve=1,pp_mov_eq_in,VLOOKUP(tank_valve_size,pp_mov_cost_cl,3))) -> 745.5619347 | J160: =IF(C160=0,"--",IF(I160="contact vendor","--",C160*I160)) -> 4473.371608 | K160: =IF(C160=0,"NA",VLOOKUP(tank_valve_size,pp_mov_cost_cl,IF(ss_cat="large",4,5))) -> 20 | L160: 1 | M160: =$B$159&" "&$B$158&" - "&B160 -> Motor/Air Operated (on/off) Valves - Process - Polypropylene/PVC | N160: =IF(retrofit=1,$W160*X160,IF(ISBLANK(X160),"",X160)) -> 1 | O160: =IF(retrofit=1,$W160*Y160,IF(ISBLANK(Y160),"",Y160)) -> 2 | P160: =IF(retrofit=1,$W160*Z160,IF(ISBLANK(Z160),"",Z160)) -> 3 | Q160: =IF(retrofit=1,$W160*AA160,IF(ISBLANK(AA160),"",AA160)) -> 1 | R160: =IF(retrofit=1,$W160*AB160,IF(ISBLANK(AB160),"",AB160)) -> 2 | S160: =IF(retrofit=1,$W160*AC160,IF(ISBLANK(AC160),"",AC160)) -> 3 | T160: =IF(retrofit=1,$W160*AD160,IF(ISBLANK(AD160),"",AD160)) -> 1 | U160: =IF(retrofit=1,$W160*AE160,IF(ISBLANK(AE160),"",AE160)) -> 2 | V160: =IF(retrofit=1,$W160*AF160,IF(ISBLANK(AF160),"",AF160)) -> 3 | W160: 0 | X160: 1 | Y160: 2 | Z160: 3 | AA160: 1 | AB160: 2 | AC160: 3 | AD160: 1 | AE160: 2 | AF160: 3 | AG160: 1 | AH160: 223.6685804
A161: 7.1.1 | B161: Process - Stainless Steel | C161: =tot_proc_MOVs -> 6 | D161: units | E161: =IF(C161=0,"NA",tank_valve_size) -> 1.5 | F161: in. diam | G161: =IF(C161=0,"NA",IF(curve=1,tank_valve_size,VLOOKUP(tank_valve_size,ss_mov_cost_cl,2))) -> 1.5 | H161: =IF(C161=0,"","in. diam") -> in. diam | I161: =IF(C161=0,"NA",IF(curve=1,ss_mov_eq_in,VLOOKUP(tank_valve_size,ss_mov_cost_cl,3))) -> 832.0295645 | J161: 4992.177387 | K161: =IF(C161=0,"NA",VLOOKUP(tank_valve_size,ss_mov_cost_cl,IF(ss_cat="large",4,5))) -> 20 | L161: 0 | M161: =$B$159&" "&$B$158&" - "&B161 -> Motor/Air Operated (on/off) Valves - Process - Stainless Steel | N161: 3 | O161: 3 | P161: 1 | Q161: 3 | R161: 3 | S161: 1 | T161: 3 | U161: 3 | V161: 1 | W161: 0 | X161: 3 | Y161: 3 | Z161: 1 | AA161: 3 | AB161: 3 | AC161: 1 | AD161: 3 | AE161: 3 | AF161: 1 | AG161: 0 | AH161: 0
A162: 7.1.1 | B162: Process - Cast Iron | C162: =tot_proc_MOVs -> 6 | D162: units | E162: =IF(C162=0,"NA",tank_valve_size) -> 1.5 | F162: in. diam | G162: =IF(C162=0,"NA",IF(curve=1,tank_valve_size,VLOOKUP(tank_valve_size,ci_mov_cost_cl,2))) -> 1.5 | H162: in. diam | I162: =IF(C162=0,"NA",IF(curve=1,ci_mov_eq_in,VLOOKUP(tank_valve_size,ci_mov_cost_cl,3))) -> contact vendor | J162: -- | K162: =IF(C162=0,"NA",VLOOKUP(tank_valve_size,ci_mov_cost_cl,IF(ss_cat="large",4,5))) -> 20 | L162: 0 | M162: Motor/Air Operated (on/off) Valves - Process - Cast Iron | N162: 2 | O162: 1 | P162: 2 | Q162: 2 | R162: 1 | S162: 2 | T162: 2 | U162: 1 | V162: 2 | W162: 0 | X162: 2 | Y162: 1 | Z162: 2 | AA162: 2 | AB162: 1 | AC162: 2 | AD162: 2 | AE162: 1 | AF162: 2 | AG162: 0 | AH162: 0
A163: 7.1.2 | B163: Air - Polypropylene/PVC | C163: =tot_air_MOVs -> 2 | D163: units | E163: =IF(C163=0,"NA",air_valve_size) -> 1.5 | F163: in. diam | G163: =IF(C163=0,"NA",IF(curve=1,air_valve_size,VLOOKUP(air_valve_size,pp_mov_cost_cl,2))) -> 1.5 | H163: in. diam | I163: =IF(C163=0,"NA",IF(curve=1,pp_mov_eq_air,VLOOKUP(air_valve_size,pp_mov_cost_cl,3))) -> 745.5619347 | J163: 1491.123869 | K163: =IF(C163=0,"NA",VLOOKUP(air_valve_size,pp_mov_cost_cl,IF(ss_cat="large",4,5))) -> 20 | L163: 1 | M163: Motor/Air Operated (on/off) Valves - Air - Polypropylene/PVC | N163: 1 | O163: 2 | P163: 3 | Q163: 1 | R163: 2 | S163: 3 | T163: 1 | U163: 2 | V163: 3 | W163: 0 | X163: 1 | Y163: 2 | Z163: 3 | AA163: 1 | AB163: 2 | AC163: 3 | AD163: 1 | AE163: 2 | AF163: 3 | AG163: 1 | AH163: 74.55619347
A164: 7.1.2 | B164: Air - Stainless Steel | C164: =tot_air_MOVs -> 2 | D164: units | E164: =IF(C164=0,"NA",air_valve_size) -> 1.5 | F164: in. diam | G164: =IF(C164=0,"NA",IF(curve=1,air_valve_size,VLOOKUP(air_valve_size,ss_mov_cost_cl,2))) -> 1.5 | H164: in. diam | I164: =IF(C164=0,"NA",IF(curve=1,ss_mov_eq_air,VLOOKUP(air_valve_size,ss_mov_cost_cl,3))) -> 832.0295645 | J164: 1664.059129 | K164: =IF(C164=0,"NA",VLOOKUP(air_valve_size,ss_mov_cost_cl,IF(ss_cat="large",4,5))) -> 20 | L164: 0 | M164: Motor/Air Operated (on/off) Valves - Air - Stainless Steel | N164: 3 | O164: 3 | P164: 1 | Q164: 3 | R164: 3 | S164: 1 | T164: 3 | U164: 3 | V164: 1 | W164: 0 | X164: 3 | Y164: 3 | Z164: 1 | AA164: 3 | AB164: 3 | AC164: 1 | AD164: 3 | AE164: 3 | AF164: 1 | AG164: 0 | AH164: 0
A165: 7.1.2 | B165: Air - Cast Iron | C165: =tot_air_MOVs -> 2 | D165: units | E165: =IF(C165=0,"NA",air_valve_size) -> 1.5 | F165: in. diam | G165: =IF(C165=0,"NA",IF(curve=1,air_valve_size,VLOOKUP(air_valve_size,ci_mov_cost_cl,2))) -> 1.5 | H165: in. diam | I165: =IF(C165=0,"NA",IF(curve=1,ci_mov_eq_air,VLOOKUP(air_valve_size,ci_mov_cost_cl,3))) -> contact vendor | J165: -- | K165: =IF(C165=0,"NA",VLOOKUP(air_valve_size,ci_mov_cost_cl,IF(ss_cat="large",4,5))) -> 20 | L165: 0 | M165: Motor/Air Operated (on/off) Valves - Air - Cast Iron | N165: 2 | O165: 1 | P165: 2 | Q165: 2 | R165: 1 | S165: 2 | T165: 2 | U165: 1 | V165: 2 | W165: 0 | X165: 2 | Y165: 1 | Z165: 2 | AA165: 2 | AB165: 1 | AC165: 2 | AD165: 2 | AE165: 1 | AF165: 2 | AG165: 0 | AH165: 0
A166: 7.1.3 | B166: Acid - Polypropylene/PVC | C166: =tot_HCl_MOVs -> 0 | D166: units | E166: =IF(C166=0,"NA",HCl_valve_size) -> NA | G166: =IF(C166=0,"NA",IF(curve=1,HCl_valve_size,VLOOKUP(HCl_valve_size,pp_mov_cost_cl,2))) -> NA | I166: =IF(C166=0,"NA",IF(curve=1,pp_mov_eq_hcl,VLOOKUP(HCl_valve_size,pp_mov_cost_cl,3))) -> NA | J166: -- | K166: =IF(C166=0,"NA",VLOOKUP(HCl_valve_size,pp_mov_cost_cl,IF(ss_cat="large",4,5))) -> NA | M166: Motor/Air Operated (on/off) Valves - Acid - Polypropylene/PVC | N166: 1 | O166: 2 | P166: 2 | Q166: 1 | R166: 2 | S166: 2 | T166: 1 | U166: 2 | V166: 2 | W166: 0 | X166: 1 | Y166: 2 | Z166: 2 | AA166: 1 | AB166: 2 | AC166: 2 | AD166: 1 | AE166: 2 | AF166: 2 | AG166: 0 | AH166: 0
A167: 7.1.3 | B167: Acid - Stainless Steel | C167: =tot_HCl_MOVs -> 0 | D167: units | E167: =IF(C167=0,"NA",HCl_valve_size) -> NA | G167: =IF(C167=0,"NA",IF(curve=1,HCl_valve_size,VLOOKUP(HCl_valve_size,ss_mov_cost_cl,2))) -> NA | I167: =IF(C167=0,"NA",IF(curve=1,ss_mov_eq_hcl,VLOOKUP(HCl_valve_size,ss_mov_cost_cl,3))) -> NA | J167: -- | K167: =IF(C167=0,"NA",VLOOKUP(HCl_valve_size,ss_mov_cost_cl,IF(ss_cat="large",4,5))) -> NA | M167: Motor/Air Operated (on/off) Valves - Acid - Stainless Steel | N167: 2 | O167: 1 | P167: 1 | Q167: 2 | R167: 1 | S167: 1 | T167: 2 | U167: 1 | V167: 1 | W167: 0 | X167: 2 | Y167: 1 | Z167: 1 | AA167: 2 | AB167: 1 | AC167: 1 | AD167: 2 | AE167: 1 | AF167: 1 | AG167: 0 | AH167: 0
A168: 7.1.4 | B168: Sodium Hydroxide - Polypropylene/PVC | C168: =tot_NaOH_MOVs -> 0 | D168: units | E168: =IF(C168=0,"NA",NaOH_valve_size) -> NA | G168: =IF(C168=0,"NA",IF(curve=1,NaOH_valve_size,VLOOKUP(NaOH_valve_size,pp_mov_cost_cl,2))) -> NA | I168: =IF(C168=0,"NA",IF(curve=1,pp_mov_eq_naoh,VLOOKUP(NaOH_valve_size,pp_mov_cost_cl,3))) -> NA | J168: -- | K168: =IF(C168=0,"NA",VLOOKUP(NaOH_valve_size,pp_mov_cost_cl,IF(ss_cat="large",4,5))) -> NA | M168: Motor/Air Operated (on/off) Valves - Sodium Hydroxide - Polypropylene/PVC | N168: 1 | O168: 2 | P168: 2 | Q168: 1 | R168: 2 | S168: 2 | T168: 1 | U168: 2 | V168: 2 | W168: 0 | X168: 1 | Y168: 2 | Z168: 2 | AA168: 1 | AB168: 2 | AC168: 2 | AD168: 1 | AE168: 2 | AF168: 2 | AG168: 0 | AH168: 0
A169: 7.1.4 | B169: Sodium Hydroxide - Stainless Steel | C169: =tot_NaOH_MOVs -> 0 | D169: units | E169: =IF(C169=0,"NA",NaOH_valve_size) -> NA | G169: =IF(C169=0,"NA",IF(curve=1,NaOH_valve_size,VLOOKUP(NaOH_valve_size,ss_mov_cost_cl,2))) -> NA | I169: =IF(C169=0,"NA",IF(curve=1,ss_mov_eq_naoh,VLOOKUP(NaOH_valve_size,ss_mov_cost_cl,3))) -> NA | J169: -- | K169: =IF(C169=0,"NA",VLOOKUP(NaOH_valve_size,ss_mov_cost_cl,IF(ss_cat="large",4,5))) -> NA | M169: Motor/Air Operated (on/off) Valves - Sodium Hydroxide - Stainless Steel | N169: 2 | O169: 1 | P169: 1 | Q169: 2 | R169: 1 | S169: 1 | T169: 2 | U169: 1 | V169: 1 | W169: 0 | X169: 2 | Y169: 1 | Z169: 1 | AA169: 2 | AB169: 1 | AC169: 1 | AD169: 2 | AE169: 1 | AF169: 1 | AG169: 0 | AH169: 0
A170: 7.1.5 | B170: Corrosion Control Chemical - Polypropylene/PVC | C170: =IF(chem_type=1,0,tot_chem_MOVs) -> 4 | D170: units | E170: =IF(C170=0,"NA",IF(chem_type=1,"NA",cc_valve_size)) -> 0.5 | F170: in. diam | G170: =IF(C170=0,"NA",IF(chem_type=1,"NA",IF(curve=1,cc_valve_size,VLOOKUP(cc_valve_size,pp_mov_cost_cl,2)))) -> 0.5 | H170: in. diam | I170: =IF(C170=0,"NA",IF(chem_type=1,"NA",IF(curve=1,pp_mov_eq_cc,VLOOKUP(cc_valve_size,pp_mov_cost_cl,3)))) -> 489.8276175 | J170: 1959.31047 | K170: =IF(C170=0,"NA",IF(chem_type=1,"NA",VLOOKUP(cc_valve_size,pp_mov_cost_cl,IF(ss_cat="large",4,5)))) -> 20 | L170: 1 | M170: Motor/Air Operated (on/off) Valves - Corrosion Control Chemical - Polypropylene/PVC | N170: 1 | O170: 2 | P170: 2 | Q170: 1 | R170: 2 | S170: 2 | T170: 1 | U170: 2 | V170: 2 | W170: 0 | X170: =IF(chem_type=1,0,1) -> 1 | Y170: =IF(chem_type=1,0,2) -> 2 | Z170: =IF(chem_type=1,0,2) -> 2 | AA170: =IF(chem_type=1,0,1) -> 1 | AB170: =IF(chem_type=1,0,2) -> 2 | AC170: =IF(chem_type=1,0,2) -> 2 | AD170: =IF(chem_type=1,0,1) -> 1 | AE170: =IF(chem_type=1,0,2) -> 2 | AF170: =IF(chem_type=1,0,2) -> 2 | AG170: 1 | AH170: 97.96552351
A171: 7.1.5 | B171: Corrosion Control Chemical - Stainless Steel | C171: =IF(chem_type=1,0,tot_chem_MOVs) -> 4 | D171: units | E171: =IF(C171=0,"NA",IF(chem_type=1,"NA",cc_valve_size)) -> 0.5 | F171: in. diam | G171: =IF(C171=0,"NA",IF(chem_type=1,"NA",IF(curve=1,cc_valve_size,VLOOKUP(cc_valve_size,ss_mov_cost_cl,2)))) -> 0.5 | H171: in. diam | I171: =IF(C171=0,"NA",IF(chem_type=1,"NA",IF(curve=1,ss_mov_eq_cc,VLOOKUP(cc_valve_size,ss_mov_cost_cl,3)))) -> contact vendor | J171: -- | K171: =IF(C171=0,"NA",IF(chem_type=1,"NA",VLOOKUP(cc_valve_size,ss_mov_cost_cl,IF(ss_cat="large",4,5)))) -> 20 | L171: 0 | M171: =$B$159&" "&$B$158&" - "&B171 -> Motor/Air Operated (on/off) Valves - Corrosion Control Chemical - Stainless Steel | N171: 2 | O171: 1 | P171: 1 | Q171: 2 | R171: 1 | S171: 1 | T171: 2 | U171: 1 | V171: 1 | W171: 0 | X171: =IF(chem_type=1,0,2) -> 2 | Y171: =IF(chem_type=1,0,1) -> 1 | Z171: =IF(chem_type=1,0,1) -> 1 | AA171: =IF(chem_type=1,0,2) -> 2 | AB171: =IF(chem_type=1,0,1) -> 1 | AC171: =IF(chem_type=1,0,1) -> 1 | AD171: =IF(chem_type=1,0,2) -> 2 | AE171: =IF(chem_type=1,0,1) -> 1 | AF171: =IF(chem_type=1,0,1) -> 1 | AG171: 0 | AH171: 0
A172: 7.1.6 | B172: Bypass - Polypropylene/PVC | C172: =IF(bp_pct>0,tot_bp_MOVs,0) -> 0 | D172: units | E172: =IF(C172=0,"NA",IF(bp_pct=0,"NA",bypass_valve_size)) -> NA | G172: =IF(C172=0,"NA",IF(bp_pct=0,"NA",(IF(curve=1,bypass_valve_size,VLOOKUP(bypass_valve_size,pp_mov_cost_cl,2))))) -> NA | I172: =IF(C172=0,"NA",IF(bp_pct=0,"NA",(IF(curve=1,pp_mov_eq_bp,VLOOKUP(bypass_valve_size,pp_mov_cost_cl,3))))) -> NA | J172: -- | K172: =IF(C172=0,"NA",IF(bp_pct=0,"NA",VLOOKUP(bypass_valve_size,pp_mov_cost_cl,IF(ss_cat="large",4,5)))) -> NA | M172: =$B$159&" "&$B$158&" - "&B172 -> Motor/Air Operated (on/off) Valves - Bypass - Polypropylene/PVC | N172: 1 | O172: 2 | P172: 3 | Q172: 1 | R172: 2 | S172: 3 | T172: 1 | U172: 2 | V172: 3 | W172: 0 | X172: 1 | Y172: 2 | Z172: 3 | AA172: 1 | AB172: 2 | AC172: 3 | AD172: 1 | AE172: 2 | AF172: 3 | AG172: 0 | AH172: 0
A173: 7.1.6 | B173: Bypass - Stainless Steel | C173: =IF(bp_pct>0,tot_bp_MOVs,0) -> 0 | D173: units | E173: =IF(C173=0,"NA",IF(bp_pct=0,"NA",bypass_valve_size)) -> NA | G173: =IF(C173=0,"NA",IF(bp_pct=0,"NA",(IF(curve=1,bypass_valve_size,VLOOKUP(bypass_valve_size,ss_mov_cost_cl,2))))) -> NA | I173: =IF(C173=0,"NA",IF(bp_pct=0,"NA",(IF(curve=1,ss_mov_eq_bp,VLOOKUP(bypass_valve_size,ss_mov_cost_cl,3))))) -> NA | J173: -- | K173: =IF(C173=0,"NA",IF(bp_pct=0,"NA",VLOOKUP(bypass_valve_size,ss_mov_cost_cl,IF(ss_cat="large",4,5)))) -> NA | M173: =$B$159&" "&$B$158&" - "&B173 -> Motor/Air Operated (on/off) Valves - Bypass - Stainless Steel | N173: 3 | O173: 3 | P173: 1 | Q173: 3 | R173: 3 | S173: 1 | T173: 3 | U173: 3 | V173: 1 | W173: 0 | X173: 3 | Y173: 3 | Z173: 1 | AA173: 3 | AB173: 3 | AC173: 1 | AD173: 3 | AE173: 3 | AF173: 1 | AG173: 0 | AH173: 0
A174: 7.1.6 | B174: Bypass - Cast Iron | C174: =IF(bp_pct>0,tot_bp_MOVs,0) -> 0 | D174: units | E174: =IF(C174=0,"NA",IF(bp_pct=0,"NA",bypass_valve_size)) -> NA | G174: =IF(C174=0,"NA",IF(bp_pct=0,"NA",(IF(curve=1,bypass_valve_size,VLOOKUP(bypass_valve_size,ci_mov_cost_cl,2))))) -> NA | I174: =IF(C174=0,"NA",IF(bp_pct=0,"NA",(IF(curve=1,ci_mov_eq_bp,VLOOKUP(bypass_valve_size,ci_mov_cost_cl,3))))) -> NA | J174: -- | K174: =IF(C174=0,"NA",IF(bp_pct=0,"NA",VLOOKUP(bypass_valve_size,ci_mov_cost_cl,IF(ss_cat="large",4,5)))) -> NA | M174: =$B$159&" "&$B$158&" - "&B174 -> Motor/Air Operated (on/off) Valves - Bypass - Cast Iron | N174: 2 | O174: 1 | P174: 2 | Q174: 2 | R174: 1 | S174: 2 | T174: 2 | U174: 1 | V174: 2 | W174: 0 | X174: 2 | Y174: 1 | Z174: 2 | AA174: 2 | AB174: 1 | AC174: 2 | AD174: 2 | AE174: 1 | AF174: 2 | AG174: 0 | AH174: 0
A175: 7.2 | B175: Manual | AG175: 0 | AH175: 0
A176: 7.2.1 | B176: Inlet and outlet - Polypropylene/PVC | C176: =tot_man_valves -> 2 | D176: units | E176: =IF(C176=0,"NA",in_valve_size) -> 1.5 | F176: =IF(C176=0,"","in. diam") -> in. diam | G176: =IF(C176=0,"NA",IF(curve=1,in_valve_size,VLOOKUP(in_valve_size,pp_man_cost_cl,2))) -> 1.5 | H176: =IF(C176=0,"","in. diam") -> in. diam | I176: =IF(C176=0,"NA",IF(curve=1,pp_man_eq,VLOOKUP(in_valve_size,pp_man_cost_cl,3))) -> 189.5734428 | J176: 379.1468856 | K176: =IF(C176=0,"NA",VLOOKUP(in_valve_size,pp_man_cost_cl,IF(ss_cat="large",4,5))) -> 20 | L176: 1 | M176: =$B$175&" "&$B$158&" - "&B176 -> Manual Valves - Inlet and outlet - Polypropylene/PVC | N176: =IF(retrofit=1,$W176*X176,IF(ISBLANK(X176),"",X176)) -> 1 | O176: =IF(retrofit=1,$W176*Y176,IF(ISBLANK(Y176),"",Y176)) -> 2 | P176: =IF(retrofit=1,$W176*Z176,IF(ISBLANK(Z176),"",Z176)) -> 3 | Q176: =IF(retrofit=1,$W176*AA176,IF(ISBLANK(AA176),"",AA176)) -> 1 | R176: =IF(retrofit=1,$W176*AB176,IF(ISBLANK(AB176),"",AB176)) -> 2 | S176: =IF(retrofit=1,$W176*AC176,IF(ISBLANK(AC176),"",AC176)) -> 3 | T176: =IF(retrofit=1,$W176*AD176,IF(ISBLANK(AD176),"",AD176)) -> 1 | U176: =IF(retrofit=1,$W176*AE176,IF(ISBLANK(AE176),"",AE176)) -> 2 | V176: =IF(retrofit=1,$W176*AF176,IF(ISBLANK(AF176),"",AF176)) -> 3 | W176: 0 | X176: 1 | Y176: 2 | Z176: 3 | AA176: 1 | AB176: 2 | AC176: 3 | AD176: 1 | AE176: 2 | AF176: 3 | AG176: 1 | AH176: 18.95734428
A177: 7.2.1 | B177: Inlet and outlet - Stainless Steel | C177: =tot_man_valves -> 2 | D177: units | E177: =IF(C177=0,"NA",in_valve_size) -> 1.5 | F177: in. diam | G177: =IF(C177=0,"NA",IF(curve=1,in_valve_size,VLOOKUP(in_valve_size,ss_man_cost_cl,2))) -> 1.5 | H177: in. diam | I177: =IF(C177=0,"NA",IF(curve=1,ss_man_eq,VLOOKUP(in_valve_size,ss_man_cost_cl,3))) -> 686.2752334 | J177: 1372.550467 | K177: =IF(C177=0,"NA",VLOOKUP(in_valve_size,ss_man_cost_cl,IF(ss_cat="large",4,5))) -> 20 | L177: 0 | M177: =$B$175&" "&$B$158&" - "&B177 -> Manual Valves - Inlet and outlet - Stainless Steel | N177: 3 | O177: 3 | P177: 1 | Q177: 3 | R177: 3 | S177: 1 | T177: 3 | U177: 3 | V177: 1 | W177: 0 | X177: 3 | Y177: 3 | Z177: 1 | AA177: 3 | AB177: 3 | AC177: 1 | AD177: 3 | AE177: 3 | AF177: 1 | AG177: 0 | AH177: 0
A178: 7.2.1 | B178: Inlet and outlet - Cast Iron | C178: =tot_man_valves -> 2 | D178: units | E178: =IF(C178=0,"NA",in_valve_size) -> 1.5 | F178: in. diam | G178: =IF(C178=0,"NA",IF(curve=1,in_valve_size,VLOOKUP(in_valve_size,ci_bfv_cost_cl,2))) -> 1.5 | H178: in. diam | I178: =IF(C178=0,"NA",IF(curve=1,ci_bfv_eq,VLOOKUP(in_valve_size,ci_bfv_cost_cl,3))) -> contact vendor | J178: -- | K178: =IF(C178=0,"NA",VLOOKUP(in_valve_size,ci_bfv_cost_cl,IF(ss_cat="large",4,5))) -> 20 | L178: 0 | M178: =$B$175&" "&$B$158&" - "&B178 -> Manual Valves - Inlet and outlet - Cast Iron | N178: 2 | O178: 1 | P178: 2 | Q178: 2 | R178: 1 | S178: 2 | T178: 2 | U178: 1 | V178: 2 | W178: 0 | X178: 2 | Y178: 1 | Z178: 2 | AA178: 2 | AB178: 1 | AC178: 2 | AD178: 2 | AE178: 1 | AF178: 2 | AG178: 0 | AH178: 0
A179: 7.2.2 | B179: Process - Polypropylene/PVC | C179: =tot_proc_man -> 0 | D179: units | E179: =IF(C179=0,"NA",tank_valve_size) -> NA | G179: =IF(C179=0,"NA",IF(curve=1,tank_valve_size,VLOOKUP(tank_valve_size,pp_man_cost_cl,2))) -> NA | I179: =IF(C179=0,"NA",IF(curve=1,pp_man_eq_in,VLOOKUP(tank_valve_size,pp_man_cost_cl,3))) -> NA | J179: -- | K179: =IF(C179=0,"NA",VLOOKUP(tank_valve_size,pp_man_cost_cl,IF(ss_cat="large",4,5))) -> NA | M179: =$B$175&" "&$B$158&" - "&B179 -> Manual Valves - Process - Polypropylene/PVC | N179: 1 | O179: 2 | P179: 3 | Q179: 1 | R179: 2 | S179: 3 | T179: 1 | U179: 2 | V179: 3 | W179: 0 | X179: 1 | Y179: 2 | Z179: 3 | AA179: 1 | AB179: 2 | AC179: 3 | AD179: 1 | AE179: 2 | AF179: 3 | AG179: 0 | AH179: 0
A180: 7.2.2 | B180: Process - Stainless Steel | C180: =tot_proc_man -> 0 | D180: units | E180: =IF(C180=0,"NA",tank_valve_size) -> NA | G180: =IF(C180=0,"NA",IF(curve=1,tank_valve_size,VLOOKUP(tank_valve_size,ss_man_cost_cl,2))) -> NA | I180: =IF(C180=0,"NA",IF(curve=1,ss_man_eq_in,VLOOKUP(tank_valve_size,ss_man_cost_cl,3))) -> NA | J180: -- | K180: =IF(C180=0,"NA",VLOOKUP(tank_valve_size,ss_man_cost_cl,IF(ss_cat="large",4,5))) -> NA | M180: Manual Valves - Process - Stainless Steel | N180: 3 | O180: 3 | P180: 1 | Q180: 3 | R180: 3 | S180: 1 | T180: 3 | U180: 3 | V180: 1 | W180: 0 | X180: 3 | Y180: 3 | Z180: 1 | AA180: 3 | AB180: 3 | AC180: 1 | AD180: 3 | AE180: 3 | AF180: 1 | AG180: 0 | AH180: 0
A181: 7.2.2 | B181: Process - Cast Iron | C181: =tot_proc_man -> 0 | D181: units | E181: =IF(C181=0,"NA",tank_valve_size) -> NA | G181: =IF(C181=0,"NA",IF(curve=1,tank_valve_size,VLOOKUP(tank_valve_size,ci_bfv_cost_cl,2))) -> NA | I181: =IF(C181=0,"NA",IF(curve=1,ci_man_eq_in,VLOOKUP(tank_valve_size,ci_bfv_cost_cl,3))) -> NA | J181: -- | K181: =IF(C181=0,"NA",VLOOKUP(tank_valve_size,ci_bfv_cost_cl,IF(ss_cat="large",4,5))) -> NA | M181: Manual Valves - Process - Cast Iron | N181: 2 | O181: 1 | P181: 2 | Q181: 2 | R181: 1 | S181: 2 | T181: 2 | U181: 1 | V181: 2 | W181: 0 | X181: 2 | Y181: 1 | Z181: 2 | AA181: 2 | AB181: 1 | AC181: 2 | AD181: 2 | AE181: 1 | AF181: 2 | AG181: 0 | AH181: 0
A182: 7.2.3 | B182: Air - Polypropylene/PVC | C182: =tot_air_man -> 0 | D182: units | E182: =IF(C182=0,"NA",air_valve_size) -> NA | G182: =IF(C182=0,"NA",IF(curve=1,air_valve_size,VLOOKUP(air_valve_size,pp_man_cost_cl,2))) -> NA | I182: =IF(C182=0,"NA",IF(curve=1,pp_man_eq_air,VLOOKUP(air_valve_size,pp_man_cost_cl,3))) -> NA | J182: -- | K182: =IF(C182=0,"NA",VLOOKUP(air_valve_size,pp_man_cost_cl,IF(ss_cat="large",4,5))) -> NA | M182: Manual Valves - Air - Polypropylene/PVC | N182: 1 | O182: 2 | P182: 3 | Q182: 1 | R182: 2 | S182: 3 | T182: 1 | U182: 2 | V182: 3 | W182: 0 | X182: 1 | Y182: 2 | Z182: 3 | AA182: 1 | AB182: 2 | AC182: 3 | AD182: 1 | AE182: 2 | AF182: 3 | AG182: 0 | AH182: 0
A183: 7.2.3 | B183: Air - Stainless Steel | C183: =tot_air_man -> 0 | D183: units | E183: =IF(C183=0,"NA",air_valve_size) -> NA | G183: =IF(C183=0,"NA",IF(curve=1,air_valve_size,VLOOKUP(air_valve_size,ss_man_cost_cl,2))) -> NA | I183: =IF(C183=0,"NA",IF(curve=1,ss_man_eq_air,VLOOKUP(air_valve_size,ss_man_cost_cl,3))) -> NA | J183: -- | K183: =IF(C183=0,"NA",VLOOKUP(air_valve_size,ss_man_cost_cl,IF(ss_cat="large",4,5))) -> NA | M183: Manual Valves - Air - Stainless Steel | N183: 3 | O183: 3 | P183: 1 | Q183: 3 | R183: 3 | S183: 1 | T183: 3 | U183: 3 | V183: 1 | W183: 0 | X183: 3 | Y183: 3 | Z183: 1 | AA183: 3 | AB183: 3 | AC183: 1 | AD183: 3 | AE183: 3 | AF183: 1 | AG183: 0 | AH183: 0
A184: 7.2.3 | B184: Air - Cast Iron | C184: =tot_air_man -> 0 | D184: units | E184: =IF(C184=0,"NA",air_valve_size) -> NA | G184: =IF(C184=0,"NA",IF(curve=1,air_valve_size,VLOOKUP(air_valve_size,ci_bfv_cost_cl,2))) -> NA | I184: =IF(C184=0,"NA",IF(curve=1,ci_man_eq_air,VLOOKUP(air_valve_size,ci_bfv_cost_cl,3))) -> NA | J184: -- | K184: =IF(C184=0,"NA",VLOOKUP(air_valve_size,ci_bfv_cost_cl,IF(ss_cat="large",4,5))) -> NA | M184: Manual Valves - Air - Cast Iron | N184: 2 | O184: 1 | P184: 2 | Q184: 2 | R184: 1 | S184: 2 | T184: 2 | U184: 1 | V184: 2 | W184: 0 | X184: 2 | Y184: 1 | Z184: 2 | AA184: 2 | AB184: 1 | AC184: 2 | AD184: 2 | AE184: 1 | AF184: 2 | AG184: 0 | AH184: 0
A185: 7.2.4 | B185: Acid - Polypropylene/PVC | C185: =tot_HCl_man -> 0 | D185: units | E185: =IF(C185=0,"NA",HCl_valve_size) -> NA | G185: =IF(C185=0,"NA",IF(curve=1,HCl_valve_size,VLOOKUP(HCl_valve_size,pp_man_cost_cl,2))) -> NA | I185: =IF(C185=0,"NA",IF(curve=1,pp_man_eq_hcl,VLOOKUP(HCl_valve_size,pp_man_cost_cl,3))) -> NA | J185: -- | K185: =IF(C185=0,"NA",VLOOKUP(HCl_valve_size,pp_man_cost_cl,IF(ss_cat="large",4,5))) -> NA | M185: Manual Valves - Acid - Polypropylene/PVC | N185: 1 | O185: 2 | P185: 2 | Q185: 1 | R185: 2 | S185: 2 | T185: 1 | U185: 2 | V185: 2 | W185: 0 | X185: 1 | Y185: 2 | Z185: 2 | AA185: 1 | AB185: 2 | AC185: 2 | AD185: 1 | AE185: 2 | AF185: 2 | AG185: 0 | AH185: 0
A186: 7.2.4 | B186: Acid - Stainless Steel | C186: =tot_HCl_man -> 0 | D186: units | E186: =IF(C186=0,"NA",HCl_valve_size) -> NA | G186: =IF(C186=0,"NA",IF(curve=1,HCl_valve_size,VLOOKUP(HCl_valve_size,ss_man_cost_cl,2))) -> NA | I186: =IF(C186=0,"NA",IF(curve=1,ss_man_eq_hcl,VLOOKUP(HCl_valve_size,ss_man_cost_cl,3))) -> NA | J186: -- | K186: =IF(C186=0,"NA",VLOOKUP(HCl_valve_size,ss_man_cost_cl,IF(ss_cat="large",4,5))) -> NA | M186: Manual Valves - Acid - Stainless Steel | N186: 2 | O186: 1 | P186: 1 | Q186: 2 | R186: 1 | S186: 1 | T186: 2 | U186: 1 | V186: 1 | W186: 0 | X186: 2 | Y186: 1 | Z186: 1 | AA186: 2 | AB186: 1 | AC186: 1 | AD186: 2 | AE186: 1 | AF186: 1 | AG186: 0 | AH186: 0
A187: 7.2.5 | B187: Sodium Hydroxide - Polypropylene/PVC | C187: =tot_NaOH_man -> 0 | D187: units | E187: =IF(C187=0,"NA",NaOH_valve_size) -> NA | G187: =IF(C187=0,"NA",IF(curve=1,NaOH_valve_size,VLOOKUP(NaOH_valve_size,pp_man_cost_cl,2))) -> NA | I187: =IF(C187=0,"NA",IF(curve=1,pp_man_eq_naoh,VLOOKUP(NaOH_valve_size,pp_man_cost_cl,3))) -> NA | J187: -- | K187: =IF(C187=0,"NA",VLOOKUP(NaOH_valve_size,pp_man_cost_cl,IF(ss_cat="large",4,5))) -> NA | M187: Manual Valves - Sodium Hydroxide - Polypropylene/PVC | N187: 1 | O187: 2 | P187: 2 | Q187: 1 | R187: 2 | S187: 2 | T187: 1 | U187: 2 | V187: 2 | W187: 0 | X187: 1 | Y187: 2 | Z187: 2 | AA187: 1 | AB187: 2 | AC187: 2 | AD187: 1 | AE187: 2 | AF187: 2 | AG187: 0 | AH187: 0
A188: 7.2.5 | B188: Sodium Hydroxide - Stainless Steel | C188: =tot_NaOH_man -> 0 | D188: units | E188: =IF(C188=0,"NA",NaOH_valve_size) -> NA | G188: =IF(C188=0,"NA",IF(curve=1,NaOH_valve_size,VLOOKUP(NaOH_valve_size,ss_man_cost_cl,2))) -> NA | I188: =IF(C188=0,"NA",IF(curve=1,ss_man_eq_naoh,VLOOKUP(NaOH_valve_size,ss_man_cost_cl,3))) -> NA | J188: -- | K188: =IF(C188=0,"NA",VLOOKUP(NaOH_valve_size,ss_man_cost_cl,IF(ss_cat="large",4,5))) -> NA | M188: Manual Valves - Sodium Hydroxide - Stainless Steel | N188: 2 | O188: 1 | P188: 1 | Q188: 2 | R188: 1 | S188: 1 | T188: 2 | U188: 1 | V188: 1 | W188: 0 | X188: 2 | Y188: 1 | Z188: 1 | AA188: 2 | AB188: 1 | AC188: 1 | AD188: 2 | AE188: 1 | AF188: 1 | AG188: 0 | AH188: 0
A189: 7.2.6 | B189: Corrosion Control Chemical - Polypropylene/PVC | C189: =IF(chem_type=1,0,tot_chem_man) -> 0 | D189: units | E189: =IF(C189=0,"NA",IF(chem_type=1,"NA",cc_valve_size)) -> NA | G189: =IF(C189=0,"NA",IF(chem_type=1,"NA",IF(curve=1,cc_valve_size,VLOOKUP(cc_valve_size,pp_man_cost_cl,2)))) -> NA | I189: =IF(C189=0,"NA",IF(chem_type=1,"NA",IF(curve=1,pp_man_eq_cc,VLOOKUP(cc_valve_size,pp_man_cost_cl,3)))) -> NA | J189: -- | K189: =IF(C189=0,"NA",IF(chem_type=1,"NA",VLOOKUP(cc_valve_size,pp_man_cost_cl,IF(ss_cat="large",4,5)))) -> NA | M189: Manual Valves - Corrosion Control Chemical - Polypropylene/PVC | N189: 1 | O189: 2 | P189: 2 | Q189: 1 | R189: 2 | S189: 2 | T189: 1 | U189: 2 | V189: 2 | W189: 0 | X189: =IF(chem_type=1,0,1) -> 1 | Y189: =IF(chem_type=1,0,2) -> 2 | Z189: =IF(chem_type=1,0,2) -> 2 | AA189: =IF(chem_type=1,0,1) -> 1 | AB189: =IF(chem_type=1,0,2) -> 2 | AC189: =IF(chem_type=1,0,2) -> 2 | AD189: =IF(chem_type=1,0,1) -> 1 | AE189: =IF(chem_type=1,0,2) -> 2 | AF189: =IF(chem_type=1,0,2) -> 2 | AG189: 0 | AH189: 0
A190: 7.2.6 | B190: Corrosion Control Chemical - Stainless Steel | C190: =IF(chem_type=1,0,tot_chem_man) -> 0 | D190: units | E190: =IF(C190=0,"NA",IF(chem_type=1,"NA",cc_valve_size)) -> NA | G190: =IF(C190=0,"NA",IF(chem_type=1,"NA",IF(curve=1,cc_valve_size,VLOOKUP(cc_valve_size,ss_man_cost_cl,2)))) -> NA | I190: =IF(C190=0,"NA",IF(chem_type=1,"NA",IF(curve=1,ss_man_eq_cc,VLOOKUP(cc_valve_size,ss_man_cost_cl,3)))) -> NA | J190: -- | K190: =IF(C190=0,"NA",IF(chem_type=1,"NA",VLOOKUP(cc_valve_size,ss_man_cost_cl,IF(ss_cat="large",4,5)))) -> NA | M190: Manual Valves - Corrosion Control Chemical - Stainless Steel | N190: 2 | O190: 1 | P190: 1 | Q190: 2 | R190: 1 | S190: 1 | T190: 2 | U190: 1 | V190: 1 | W190: 0 | X190: =IF(chem_type=1,0,2) -> 2 | Y190: =IF(chem_type=1,0,1) -> 1 | Z190: =IF(chem_type=1,0,1) -> 1 | AA190: =IF(chem_type=1,0,2) -> 2 | AB190: =IF(chem_type=1,0,1) -> 1 | AC190: =IF(chem_type=1,0,1) -> 1 | AD190: =IF(chem_type=1,0,2) -> 2 | AE190: =IF(chem_type=1,0,1) -> 1 | AF190: =IF(chem_type=1,0,1) -> 1 | AG190: 0 | AH190: 0
A191: 7.2.7 | B191: Bypass - Polypropylene/PVC | C191: =IF(bp_pct>0,tot_bp_man,0) -> 0 | D191: units | E191: =IF(C191=0,"NA",IF(bp_pct=0,"NA",bypass_valve_size)) -> NA | G191: =IF(C191=0,"NA",IF(bp_pct=0,"NA",(IF(curve=1,bypass_valve_size,VLOOKUP(bypass_valve_size,pp_man_cost_cl,2))))) -> NA | I191: =IF(C191=0,"NA",IF(bp_pct=0,"NA",(IF(curve=1,pp_man_eq_bp,VLOOKUP(bypass_valve_size,pp_man_cost_cl,3))))) -> NA | J191: -- | K191: =IF(C191=0,"NA",IF(bp_pct=0,"NA",VLOOKUP(bypass_valve_size,pp_man_cost_cl,IF(ss_cat="large",4,5)))) -> NA | M191: Manual Valves - Bypass - Polypropylene/PVC | N191: 1 | O191: 2 | P191: 3 | Q191: 1 | R191: 2 | S191: 3 | T191: 1 | U191: 2 | V191: 3 | W191: 0 | X191: 1 | Y191: 2 | Z191: 3 | AA191: 1 | AB191: 2 | AC191: 3 | AD191: 1 | AE191: 2 | AF191: 3 | AG191: =IF(ISERROR(K191*L191),0,IF(K191<1,0,L191)) -> 0 | AH191: =IF(AG191,J191/K191,0) -> 0
A192: 7.2.7 | B192: Bypass - Stainless Steel | C192: =IF(bp_pct>0,tot_bp_man,0) -> 0 | D192: units | E192: =IF(C192=0,"NA",IF(bp_pct=0,"NA",bypass_valve_size)) -> NA | G192: =IF(C192=0,"NA",IF(bp_pct=0,"NA",(IF(curve=1,bypass_valve_size,VLOOKUP(bypass_valve_size,ss_man_cost_cl,2))))) -> NA | I192: =IF(C192=0,"NA",IF(bp_pct=0,"NA",(IF(curve=1,ss_man_eq_bp,VLOOKUP(bypass_valve_size,ss_man_cost_cl,3))))) -> NA | J192: -- | K192: =IF(C192=0,"NA",IF(bp_pct=0,"NA",VLOOKUP(bypass_valve_size,ss_man_cost_cl,IF(ss_cat="large",4,5)))) -> NA | M192: Manual Valves - Bypass - Stainless Steel | N192: 3 | O192: 3 | P192: 1 | Q192: 3 | R192: 3 | S192: 1 | T192: 3 | U192: 3 | V192: 1 | W192: 0 | X192: 3 | Y192: 3 | Z192: 1 | AA192: 3 | AB192: 3 | AC192: 1 | AD192: 3 | AE192: 3 | AF192: 1 | AG192: 0 | AH192: 0
A193: 7.2.7 | B193: Bypass - Cast Iron | C193: =IF(bp_pct>0,tot_bp_man,0) -> 0 | D193: units | E193: =IF(C193=0,"NA",IF(bp_pct=0,"NA",bypass_valve_size)) -> NA | G193: =IF(C193=0,"NA",IF(bp_pct=0,"NA",(IF(curve=1,bypass_valve_size,VLOOKUP(bypass_valve_size,ci_bfv_cost_cl,2))))) -> NA | I193: =IF(C193=0,"NA",IF(bp_pct=0,"NA",(IF(curve=1,ci_bfv_eq_bp,VLOOKUP(bypass_valve_size,ci_bfv_cost_cl,3))))) -> NA | J193: -- | K193: =IF(C193=0,"NA",IF(bp_pct=0,"NA",VLOOKUP(bypass_valve_size,ci_bfv_cost_cl,IF(ss_cat="large",4,5)))) -> NA | M193: Manual Valves - Bypass - Cast Iron | N193: 2 | O193: 1 | P193: 2 | Q193: 2 | R193: 1 | S193: 2 | T193: 2 | U193: 1 | V193: 2 | W193: 0 | X193: 2 | Y193: 1 | Z193: 2 | AA193: 2 | AB193: 1 | AC193: 2 | AD193: 2 | AE193: 1 | AF193: 2 | AG193: 0 | AH193: 0
A194: 7.3 | B194: Check Valves | AG194: 0 | AH194: 0
A195: 7.3.1 | B195: Acid - Polypropylene/PVC | C195: =tot_HCl_chv -> 0 | D195: units | E195: =IF(C195=0,"NA",HCl_valve_size) -> NA | F195: =IF(C195=0,"","in. diam") ->  | G195: =IF(C195=0,"NA",IF(curve=1,HCl_valve_size,VLOOKUP(HCl_valve_size,pp_chv_cost_cl,2))) -> NA | H195: =IF(C195=0,"","in. diam") ->  | I195: =IF(C195=0,"NA",IF(curve=1,pp_chv_eq_hcl,VLOOKUP(HCl_valve_size,pp_chv_cost_cl,3))) -> NA | J195: -- | K195: =IF(C194=0,"NA",VLOOKUP(HCl_valve_size,pp_chv_cost_cl,IF(ss_cat="large",4,5))) -> NA | M195: =$B$194&" - "&B195 -> Check Valves - Acid - Polypropylene/PVC | N195: =IF(retrofit=1,$W195*X195,IF(ISBLANK(X195),"",X195)) -> 1 | O195: =IF(retrofit=1,$W195*Y195,IF(ISBLANK(Y195),"",Y195)) -> 2 | P195: =IF(retrofit=1,$W195*Z195,IF(ISBLANK(Z195),"",Z195)) -> 2 | Q195: =IF(retrofit=1,$W195*AA195,IF(ISBLANK(AA195),"",AA195)) -> 1 | R195: =IF(retrofit=1,$W195*AB195,IF(ISBLANK(AB195),"",AB195)) -> 2 | S195: =IF(retrofit=1,$W195*AC195,IF(ISBLANK(AC195),"",AC195)) -> 2 | T195: =IF(retrofit=1,$W195*AD195,IF(ISBLANK(AD195),"",AD195)) -> 1 | U195: =IF(retrofit=1,$W195*AE195,IF(ISBLANK(AE195),"",AE195)) -> 2 | V195: =IF(retrofit=1,$W195*AF195,IF(ISBLANK(AF195),"",AF195)) -> 2 | W195: 0 | X195: 1 | Y195: 2 | Z195: 2 | AA195: 1 | AB195: 2 | AC195: 2 | AD195: 1 | AE195: 2 | AF195: 2 | AG195: 0 | AH195: 0
A196: 7.3.1 | B196: Acid - Stainless Steel | C196: =tot_HCl_chv -> 0 | D196: units | E196: =IF(C196=0,"NA",HCl_valve_size) -> NA | G196: =IF(C196=0,"NA",IF(curve=1,HCl_valve_size,VLOOKUP(HCl_valve_size,ss_chv_cost_cl,2))) -> NA | I196: =IF(C196=0,"NA",IF(curve=1,ss_chv_eq_hcl,VLOOKUP(HCl_valve_size,ss_chv_cost_cl,3))) -> NA | J196: -- | K196: =IF(C195=0,"NA",VLOOKUP(HCl_valve_size,ss_chv_cost_cl,IF(ss_cat="large",4,5))) -> NA | M196: Check Valves - Acid - Stainless Steel | N196: 2 | O196: 1 | P196: 1 | Q196: 2 | R196: 1 | S196: 1 | T196: 2 | U196: 1 | V196: 1 | W196: 0 | X196: 2 | Y196: 1 | Z196: 1 | AA196: 2 | AB196: 1 | AC196: 1 | AD196: 2 | AE196: 1 | AF196: 1 | AG196: 0 | AH196: 0
A197: 7.3.2 | B197: Sodium Hydroxide - Polypropylene/PVC | C197: =tot_NaOH_chv -> 0 | D197: units | E197: =IF(C197=0,"NA",NaOH_valve_size) -> NA | G197: =IF(C197=0,"NA",IF(curve=1,NaOH_valve_size,VLOOKUP(NaOH_valve_size,pp_chv_cost_cl,2))) -> NA | I197: =IF(C197=0,"NA",IF(curve=1,pp_chv_eq_naoh,VLOOKUP(NaOH_valve_size,pp_chv_cost_cl,3))) -> NA | J197: -- | K197: =IF(C196=0,"NA",VLOOKUP(NaOH_valve_size,pp_chv_cost_cl,IF(ss_cat="large",4,5))) -> NA | M197: Check Valves - Sodium Hydroxide - Polypropylene/PVC | N197: 1 | O197: 2 | P197: 2 | Q197: 1 | R197: 2 | S197: 2 | T197: 1 | U197: 2 | V197: 2 | W197: 0 | X197: 1 | Y197: 2 | Z197: 2 | AA197: 1 | AB197: 2 | AC197: 2 | AD197: 1 | AE197: 2 | AF197: 2 | AG197: 0 | AH197: 0
A198: 7.3.2 | B198: Sodium Hydroxide - Stainless Steel | C198: =tot_NaOH_chv -> 0 | D198: units | E198: =IF(C198=0,"NA",NaOH_valve_size) -> NA | G198: =IF(C198=0,"NA",IF(curve=1,NaOH_valve_size,VLOOKUP(NaOH_valve_size,ss_chv_cost_cl,2))) -> NA | I198: =IF(C198=0,"NA",IF(curve=1,ss_chv_eq_naoh,VLOOKUP(NaOH_valve_size,ss_chv_cost_cl,3))) -> NA | J198: -- | K198: =IF(C197=0,"NA",VLOOKUP(NaOH_valve_size,ss_chv_cost_cl,IF(ss_cat="large",4,5))) -> NA | M198: Check Valves - Sodium Hydroxide - Stainless Steel | N198: 2 | O198: 1 | P198: 1 | Q198: 2 | R198: 1 | S198: 1 | T198: 2 | U198: 1 | V198: 1 | W198: 0 | X198: 2 | Y198: 1 | Z198: 1 | AA198: 2 | AB198: 1 | AC198: 1 | AD198: 2 | AE198: 1 | AF198: 1 | AG198: 0 | AH198: 0
A199: 7.3.3 | B199: Corrosion Control Chemical - Polypropylene/PVC | C199: =IF(chem_type=1,0,tot_chem_chv) -> 4 | D199: units | E199: =IF(C199=0,"NA",IF(chem_type=1,"NA",cc_valve_size)) -> 0.5 | F199: in. diam | G199: =IF(chem_type=1,"NA",IF(curve=1,cc_valve_size,VLOOKUP(cc_valve_size,pp_chv_cost_cl,2))) -> 0.5 | H199: in. diam | I199: =IF(chem_type=1,"NA",IF(curve=1,pp_chv_eq_cc,VLOOKUP(cc_valve_size,pp_chv_cost_cl,3))) -> 67.54525848 | J199: 270.1810339 | K199: =IF(chem_type=1,"NA",VLOOKUP(cc_valve_size,pp_chv_cost_cl,IF(ss_cat="large",4,5))) -> 20 | L199: 1 | M199: Check Valves - Corrosion Control Chemical - Polypropylene/PVC | N199: 1 | O199: 2 | P199: 2 | Q199: 1 | R199: 2 | S199: 2 | T199: 1 | U199: 2 | V199: 2 | W199: 0 | X199: =IF(chem_type=1,0,1) -> 1 | Y199: =IF(chem_type=1,0,2) -> 2 | Z199: =IF(chem_type=1,0,2) -> 2 | AA199: =IF(chem_type=1,0,1) -> 1 | AB199: =IF(chem_type=1,0,2) -> 2 | AC199: =IF(chem_type=1,0,2) -> 2 | AD199: =IF(chem_type=1,0,1) -> 1 | AE199: =IF(chem_type=1,0,2) -> 2 | AF199: =IF(chem_type=1,0,2) -> 2 | AG199: 1 | AH199: 13.5090517
A200: 7.3.3 | B200: Corrosion Control Chemical - Stainless Steel | C200: =IF(chem_type=1,0,tot_chem_chv) -> 4 | D200: units | E200: =IF(C200=0,"NA",IF(chem_type=1,"NA",cc_valve_size)) -> 0.5 | F200: in. diam | G200: =IF(chem_type=1,"NA",IF(curve=1,cc_valve_size,VLOOKUP(cc_valve_size,ss_chv_cost_cl,2))) -> 0.5 | H200: in. diam | I200: =IF(chem_type=1,"NA",IF(curve=1,ss_chv_eq_cc,VLOOKUP(cc_valve_size,ss_chv_cost_cl,3))) -> 499.0408889 | J200: 1996.163556 | K200: =IF(chem_type=1,"NA",VLOOKUP(cc_valve_size,ss_chv_cost_cl,IF(ss_cat="large",4,5))) -> 20 | L200: 0 | M200: Check Valves - Corrosion Control Chemical - Stainless Steel | N200: 2 | O200: 1 | P200: 1 | Q200: 2 | R200: 1 | S200: 1 | T200: 2 | U200: 1 | V200: 1 | W200: 0 | X200: =IF(chem_type=1,0,2) -> 2 | Y200: =IF(chem_type=1,0,1) -> 1 | Z200: =IF(chem_type=1,0,1) -> 1 | AA200: =IF(chem_type=1,0,2) -> 2 | AB200: =IF(chem_type=1,0,1) -> 1 | AC200: =IF(chem_type=1,0,1) -> 1 | AD200: =IF(chem_type=1,0,2) -> 2 | AE200: =IF(chem_type=1,0,1) -> 1 | AF200: =IF(chem_type=1,0,1) -> 1 | AG200: 0 | AH200: 0
A201: 7.3.4 | B201: Inlet - Polypropylene/PVC | C201: =tot_in_chv -> 1 | D201: units | E201: =IF(C201=0,"NA",in_valve_size) -> 1.5 | F201: in. diam | G201: =IF(curve=1,in_valve_size,VLOOKUP(in_valve_size,pp_chv_cost_cl,2)) -> 1.5 | H201: in. diam | I201: =IF(curve=1,pp_chv_eq_in,VLOOKUP(in_valve_size,pp_chv_cost_cl,3)) -> 160.6910138 | J201: 160.6910138 | K201: =VLOOKUP(in_valve_size,pp_chv_cost_cl,IF(ss_cat="large",4,5)) -> 20 | L201: 1 | M201: Check Valves - Inlet - Polypropylene/PVC | N201: 1 | O201: 2 | P201: 3 | Q201: 1 | R201: 2 | S201: 3 | T201: 1 | U201: 2 | V201: 3 | W201: 0 | X201: 1 | Y201: 2 | Z201: 3 | AA201: 1 | AB201: 2 | AC201: 3 | AD201: 1 | AE201: 2 | AF201: 3 | AG201: 1 | AH201: 8.03455069
A202: 7.3.4 | B202: Inlet - Stainless Steel | C202: =tot_in_chv -> 1 | D202: units | E202: =IF(C202=0,"NA",in_valve_size) -> 1.5 | F202: in. diam | G202: =IF(curve=1,in_valve_size,VLOOKUP(in_valve_size,ss_chv_cost_cl,2)) -> 1.5 | H202: in. diam | I202: =IF(curve=1,ss_chv_eq_in,VLOOKUP(in_valve_size,ss_chv_cost_cl,3)) -> 808.7050268 | J202: 808.7050268 | K202: =VLOOKUP(in_valve_size,ss_chv_cost_cl,IF(ss_cat="large",4,5)) -> 20 | L202: 0 | M202: Check Valves - Inlet - Stainless Steel | N202: 3 | O202: 3 | P202: 1 | Q202: 3 | R202: 3 | S202: 1 | T202: 3 | U202: 3 | V202: 1 | W202: 0 | X202: 3 | Y202: 3 | Z202: 1 | AA202: 3 | AB202: 3 | AC202: 1 | AD202: 3 | AE202: 3 | AF202: 1 | AG202: 0 | AH202: 0
A203: 7.3.4 | B203: Inlet - Cast Iron | C203: =tot_in_chv -> 1 | D203: units | E203: =IF(C203=0,"NA",in_valve_size) -> 1.5 | F203: in. diam | G203: =IF(curve=1,in_valve_size,VLOOKUP(in_valve_size,ci_chv_cost_cl,2)) -> 1.5 | H203: in. diam | I203: =IF(curve=1,ci_chv_eq_in,VLOOKUP(in_valve_size,ci_chv_cost_cl,3)) -> contact vendor | J203: -- | K203: =VLOOKUP(in_valve_size,ci_chv_cost_cl,IF(ss_cat="large",4,5)) -> 20 | L203: 0 | M203: Check Valves - Inlet - Cast Iron | N203: 2 | O203: 1 | P203: 2 | Q203: 2 | R203: 1 | S203: 2 | T203: 2 | U203: 1 | V203: 2 | W203: 0 | X203: 2 | Y203: 1 | Z203: 2 | AA203: 2 | AB203: 1 | AC203: 2 | AD203: 2 | AE203: 1 | AF203: 2 | AG203: 0 | AH203: 0
... 199 more rows

Sheet Air and Packing Reference
A1: Reference data for the density and viscosity of air at various temperatures
A3: Temperature (degrees K) | B3: Viscosity (kg/m-s) | C3: Density at 1 atm (kg/m3)
A4: 250 | B4: 1.62e-05 | C4: 1.4128
A5: 263 | B5: 1.68e-05 | C5: 1.342
A6: 268 | B6: 1.71e-05 | C6: 1.317
A7: 273 | B7: 1.74e-05 | C7: 1.292
A8: 278 | B8: 1.76e-05 | C8: 1.269
A9: 283 | B9: 1.79e-05 | C9: 1.247
A10: 288 | B10: 1.81e-05 | C10: 1.225
A11: 293 | B11: 1.84e-05 | C11: 1.204
A12: 298 | B12: 1.86e-05 | C12: 1.184
A13: 300 | B13: 1.87e-05 | C13: 1.1774
A14: 303 | B14: 1.89e-05 | C14: 1.165
A15: 350 | B15: 2.11e-05 | C15: 0.998
A17: Note: viscosity is not strongly pressure-dependent and may be used over a fairly wide range of pressures
A18: Sources:
A19: Holman, J.P. Heat Transfer. New York: McGraw-Hill Book Company
A20: The Engineering Toolbox: Air - Absolute and Kinematic Viscosity; click to go to http://www.engineeringtoolbox.com
A21: Gas Viscosity Calculator; click to go to http://www.lmnoeng.com/Flow/GasViscosity.htm
A22: Wikipedia: Density of Air; click to go to http://en.wikipedia.org/wiki/Density_of_air
A24: Reference Data for Packing Characteristics
A25: Sources:
A26: Source 1: M. Cummins, original PTA design program developed for EPA
A27: Source 2: Air Stripping and Aeration. Table 5.8: Physical Characteristics of Packing Materials. p 5.17.
A28: Source 3: Perry's Chemical Engineering Handbook, 6th Edition, 1984.
A29: Source 4: Narbaitz et al. "Evaluating Aeration-Stripping Media on the Pilot Scale." J. AWWA 94:9. September 2002.
A30: Source 5: Goss, B. 2010. "Chapter 6: Bonding of Low-Energy Plastics and Rubbers." Practical Guide to Adhesive Bonding of Small Engineering Plastic and Rubber Parts. iSmithers Rapra Publishing.
A32: Critical Surface Tension of Packing Materials
A33: Material | B33: Source 3 | C33: Source 5
B34: (kg/sec2 or N/m) | C34: (N/m)
A35: Acetal | C35: 0.022
A36: Carbon | B36: 0.056
A37: Ceramic | B37: 0.061
A38: Glass | B38: 0.073
A39: Nylon 6 | C39: 0.046
A40: Paraffin | B40: 0.02
A41: Polycarbonate | C41: 0.046
A42: Polyethylene | B42: 0.033 | C42: 0.031
A43: PET | C43: 0.041 to 0.047
A44: Polymethylmethacrylate (acrylic) | C44: 0.039
A45: Polypropylene | C45: 0.029
A46: Polystyrene | C46: 0.035 to 0.037
A47: Polyvinylchloride | B47: 0.04 | C47: 0.039
A48: PTFE | C48: 0.018
A49: Steel | B49: 0.075
A51: Surface Area and Friction Factor for Plastic Saddles
A52: Packing size | C52: Source 1 | E52: Source 1 | G52: Source 4 | I52: Source 2 | K52: Source 3
C53: Glitsch Saddles (polyethylene) | E53: Koch Saddles (polyethylene) | G53: Koch Flexisaddles (polypropylene) | I53: Saddles (unspecified plastic) | K53: Intalox Saddles (unspecified plastic)
C54: Friction factor | D54: Surface area of packing | E54: Friction factor | F54: Surface area of packing | G54: Friction factor | H54: Surface area of packing | I54: Friction factor | J54: Surface area of packing | K54: Friction factor | L54: Surface area of packing
A55: (in) | B55: (mm) | D55: (m2/m3) | F55: (m2/m3) | H55: (m2/m3) | J55: (m2/m3) | L55: (m2/m3)
A56: 1 | B56: 25 | C56: 33.2 | D56: 203 | E56: 30 | F56: 207 | L56: 206
A57: 1.5 | E57: 20 | F57: 108
A58: 2 | B58: 50 | C58: 21 | D58: 98 | E58: 15 | F58: 89 | I58: 20 | J58: 110 | L58: 108
A59: 3 | B59: 75 | C59: 16 | D59: 66 | H59: 88.6 | I59: 16 | J59: 89 | L59: 88
A61: Surface Area and Friction Factor for Plastic Rings
A62: Packing size | C62: Source 1 | E62: Source 4 | G62: Source 1 | I62: Source 4 | K62: Source 2 | M62: Source 3
C63: Glitsch Cascade Minirings (polyethylene) | E63: Glitsch Cascade Minirings (polypropylene) | G63: Koch Flexirings (polyethylene) | I63: Koch Flexirings (polypropylene) | K63: Pall Rings (unspecified plastic) | M63: Pall Rings (polypropylene)
C64: Friction factor | D64: Surface area of packing | E64: Friction factor | F64: Surface area of packing | G64: Friction factor | H64: Surface area of packing | I64: Friction factor | J64: Surface area of packing | K64: Friction factor | L64: Surface area of packing | M64: Friction factor | N64: Surface area of packing
A65: (in) | B65: (mm) | D65: (m2/m3) | F65: (m2/m3) | H65: (m2/m3) | J65: (m2/m3) | L65: (m2/m3) | N65: (m2/m3)
A66: =B66*0.03937 -> 0.62992 | B66: 16 | N66: 340
A67: 1 | B67: 25 | C67: 20.8 | G67: 32.3 | K67: 52 | L67: 206 | N67: 205
A68: 1.5 | B68: 38 | N68: 130
A69: 2 | B69: 50 | C69: 10.5 | F69: 141 | J69: 115 | K69: 25 | L69: 102 | N69: 100
A70: 3.5 | B70: 88 or 90 | K70: 16 | L70: 85 | N70: 85
A72: Surface Area and Friction Factor for Plastic Tri-packs
A73: Packing size | C73: Source 1 | E73: Source 4 | G73: Source 2 | I73: Source 3
C74: Jaeger Tri-packs (polyethylene) | E74: Jaeger Tri-packs (polypropylene) | G74: Tri-packs (unspecified plastic) | I74: Tri-packs (unspecified plastic)
C75: Friction factor | D75: Surface area of packing | E75: Friction factor | F75: Surface area of packing | G75: Friction factor | H75: Surface area of packing | I75: Friction factor | J75: Surface area of packing
A76: (in) | B76: (mm) | D76: (m2/m3) | F76: (m2/m3) | H76: (m2/m3) | J76: (m2/m3)
A77: 1 | B77: 25 | C77: 20 | G77: 28 | H77: 279
A78: 2 | B78: 50 | C78: 15 | D78: 138 | F78: 157 | G78: 16 | H78: 157 | I78: 15 | J78: 157
A79: 3.5 | B79: 88 | G79: 12 | H79: 125 | I79: 14 | J79: 138
A81: Surface Area and Friction Factor for Plastic Telerettes
A82: Packing size | C82: Source 2 | E82: Source 3
C83: Tellerettes (unspecified plastic) | E83: Tellerettes (low-density Polyethylene)
C84: Friction factor | D84: Surface area of packing | E84: Friction factor | F84: Surface area of packing
A85: (in) | B85: (mm) | D85: (m2/m3) | F85: (m2/m3)
A86: 1 | B86: 25 | F86: 250
A87: 2 | B87: 50 | C87: 20 | D87: 112
A89: Surface Area and Friction Factor for Other Plastic Packing
A90: Packing size | C90: Source 4 | E90: Source 1 | G90: Source 4
C91: Nor-Pac (polypropylene) | E91: Norton Snowflakes (polyethylene) | G91: Norton Snowflakes (polypropylene)
C92: Friction factor | D92: Surface area of packing | E92: Friction factor | F92: Surface area of packing | G92: Friction factor | H92: Surface area of packing
A93: (in) | B93: (mm) | D93: (m2/m3) | F93: (m2/m3) | H93: (m2/m3)
A94: 1.5 | B94: 28 | D94: 145 | E94: 11.1
A95: 2 | B95: 50 | D95: 100 | E95: 11.1
A96: 3.7 | B96: 94 | E96: 11.1 | H96: 91.8
A98: Surface Area and Friction Factor for Ceramic Saddles
A99: Packing size | C99: Source 1 | E99: Source 2 | G99: Source 2 | I99: Source 3 | K99: Source 3
C100: Saddles | E100: Berl Saddles | G100: Intalox Saddles | I100: Berl Saddles | K100: Intalox Saddles
C101: Friction factor | D101: Surface area of packing | E101: Friction factor | F101: Surface area of packing | G101: Friction factor | H101: Surface area of packing | I101: Friction factor | J101: Surface area of packing | K101: Friction factor | L101: Surface area of packing
A102: (in) | B102: (mm) | D102: (m2/m3) | F102: (m2/m3) | H102: (m2/m3) | J102: (m2/m3) | L102: (m2/m3)
A103: 0.25 | B103: 6 | C103: 900 | D103: 899 | J103: 900 | L103: 984
A104: 0.5 | B104: 13 | C104: 240 | D104: 466 | E104: 240 | F104: 466 | G104: 200 | H104: 623 | J104: 465 | L104: 625
A105: 0.75 | B105: 19 | C105: 170 | D105: 269
A106: 1 | B106: 25 | C106: 110 | D106: 249 | E106: 110 | F106: 249 | G106: 98 | H106: 256 | J106: 250 | L106: 255
A107: 1.5 | B107: 38 | C107: 654 | D107: 144 | E107: 45 | F107: 105 | G107: 40 | H107: 118 | J107: 150 | L107: 195
A108: 2 | B108: 50 | C108: 45 | D108: 105 | J108: 105 | L108: 118
A109: =B109*0.03937 -> 2.95275 | B109: 75 | G109: 22 | H109: 92 | L109: 92
A111: Surface Area and Friction Factor for Ceramic Rings
A112: Packing size | C112: Source 2 | E112: Source 3
C113: Raschig Rings | E113: Raschig Rings
C114: Friction factor | D114: Surface area of packing | E114: Friction factor | F114: Surface area of packing
A115: (in) | B115: (mm) | D115: (m2/m3) | F115: (m2/m3)
A116: 0.25 | B116: 6 | F116: 710
A117: 0.5 | B117: 13 | C117: 580 | D117: 364 | F117: 370
A118: =B118*0.03937 -> 0.74803 | B118: 19 | F118: 240
A119: 1 | B119: 25 | C119: 155 | D119: 190 | F119: 190
A120: 1.49606 | B120: 38 | F120: 120
A121: 1.9685 | B121: 50 | C121: 65 | D121: 92 | F121: 92
A122: 2.95275 | B122: 75 | C122: 37 | D122: 62 | F122: 62
A123: 3.937 | B123: 100 | F123: 46
A125: Surface Area and Friction Factor for Structured Packing
A126: Packing size | C126: Source 4 | E126: Source 4 | G126: Source 4
C127: Munters No. 12060 (polyvinylchloride) | E127: Kompac (polypropylene) | G127: Koch Flexipac (polypropylene)
C128: Friction factor | D128: Surface area of packing | E128: Friction factor | F128: Surface area of packing | G128: Friction factor | H128: Surface area of packing
A129: (in) | B129: (mm) | D129: (m2/m3) | F129: (m2/m3) | H129: (m2/m3)
A130: 0.63 | B130: 16 | D130: 223
A131: 2 | B131: 50 | F131: 110 | H131: 131

Sheet Critical Design Assumptions
A1: Default Critical Design Assumptions
A2: Users may change any of the cells in the Value column; cells in gold are most important and may vary based on contaminant treated and site-specific conditions
A4: Assumption | B4: Range Name | C4: Value | D4: Units | E4: Guidance
A5: Cost estimating method | B5: curve | C5: 1 | D5: <-- enter 1 to use cost equations, leave blank to use lookup tables for component costs | E5: Keeping this assumption with a value of 1 is strongly recommended; the cost equations method is more appropriate for national cost estimating and will be more accurate for nearly all user-specified designs
A7: Tower Design Constraints
A8: Minimum packing height to diameter ratio | B8: Min_d_rat_cda | C8: 1.5 | D8: x tower diameter | E8: Constraint is to maintain a practical geometry for radon removal, which in theory could operate with a low packing height. Constraint not relevant to more conventional contaminants because design program will require high packing height to achieve removal.
A9: Maximum packing height to diameter ratio | B9: Max_d_rat_cda | C9: 10 | D9: x tower diameter | E9: Maximum is <10 due to need to consider structural stability of tower (Richard E. Hubel, Tim O'Brien, American Water Works Service Company).
A10: Maximum packing height | B10: Max_pack_std | C10: 6.1 | D10: meters | E10: Maximum tower height depends on local considerations; 6.1 meters corresponds to 20 feet
A11: Maximum packing height for difficult contaminants | B11: Max_pack_MTBE | C11: 13 | D11: meters | E11: Currently used for MTBE; 13 meters is approximately 43 feet
A12: Maximum tower area | B12: Max_Area_cda | C12: 7.258 | D12: square meters | E12: Based on a maximum tower diamter of 10 ft; can be larger if towers are constructed on-site (Richard E. Hubel, Tim O'Brien, American Water Works Service Company).
A13: Minimum tower area | B13: Min_Area_cda | C13: 0.01825 | D13: square meters | E13: Based on a minimum diameter of 0.5 feet
A14: Overdesign sensitivity | B14: P_REM_INC | C14: 0.05 | E14: Used by design program when overdesign is required. Lower values will allow more precise designs, but increase processing time.
A15: Operating Pressure | B15: Op_Press | C15: 1 | D15: atm
A16: Spacing between liquid redistribution rings | B16: ring_space | C16: 2 | D16: meters
A17: Freeboard above packing material | B17: Free_Board_Col | C17: 1 | D17: meters
A18: Minimum number of towers | B18: min_col | C18: 2 | D18: units | E18: Minimum of two units allows for operational reundancy; system can operate at reduced flow with one tower out of service
A19: Number of redundant towers for small systems | B19: NRD_small | C19: 0 | D19: units | E19: PTA towers are out of service infrequently, so small systems typically do not require a redundant tower (O'Brien Peer Review Comments)
A20: Redundancy frequency for large systems | B20: redund_freq | C20: 0 | E20: Add a tower for every x operating towers, rounded up. 0 indicates no redundant towers; redundancy not required with minimum of two towers
A22: Pumps, Blowers, Piping
A23: Safety factor for pumps | B23: pump_safety_factor | C23: 0.25 | E23: Used for both booster and chemical metering pumps
A24: Number of redundant booster pumps | B24: NRD_pump | C24: 0 | D24: units | E24: Multiple pump approach eliminates need for redundant pumps
A25: Number of redundant blowers | B25: NRD_blower | C25: 0 | D25: units | E25: Multiple blower approach eliminates need for redundant blowers
A26: Number of redundant chemical metering pumps | B26: NRD_cm_pump | C26: 1 | D26: pumps
A27: Minimum average flow as percentage of design | B27: min_avg_flow | C27: 0.1 | E27: The minimum ratio of average flow to design flow. If the ratio falls below this value, it will trigger a warning on the INPUT sheet. If this value is zero, no minimum is enforced.
A28: Air pipe length per tower | B28: air_L | C28: 100 | D28: feet/tower
A30: Bypass Flow
A31: Percent of Total Flow that is Bypassed | B31: bp_pct | C31: 0 | E31: 0% is default consistent with the type of cost curves that EPA will need for its national cost simulation model
A33: Clearwell design
A34: Freeboard | B34: freeboard | C34: 3 | D34: feet
A35: Overexcavation | B35: overexcavate | C35: 4 | D35: ft | E35: 2 feet each side in each dimension
A36: Concrete thickness | B36: conc_thick | C36: 1 | D36: ft
A38: Chemical usage
A39: Days per year of chemical feed | B39: chem_freq | C39: 365 | D39: days per year | E39: Default of 365 assumes continuous addition. Reduce days per year to simulate intermittent addition.
A40: Chemical storage required | B40: cstore_days | C40: 30 | D40: days | E40: Adjust this value if intermittent addition is chosen
A41: Include a separate day tank if daily volume is x or greater | B41: day_tank_needed | C41: 5 | D41: gal
A42: Chemical tank mixer horsepower | B42: cmix_hp_per | C42: 0.25 | D42: hp per 1000 gal
A44: Corrosion control chemicals | E44: Chemical additions below are to prevent scaling and corrosion, and may depend on influent water quality
A45: Corrosion control chemical chosen | B45: chem_type | C45: 2 | D45: <-- 1 for no corrosion control chemical, 2 for sodium hexametaphosphate, 3 for tetrasodium polyphosphate
A46: Dosage of sodium hexametaphosphate | B46: sh_dose | C46: 5 | D46: mg/l | E46: Addition of sodium hexametaphosphate or tetrasodium polyphosphate may be employed for scaling and corrosion control
A47: Sodium hexametaphospate solution strength | B47: sh_strength | C47: 0.1 | E47: Prepare solution @ 1 lb/gal/ BIF Chemicals Used in Water and Waste Water (Richard E. Hubel, Tim O'Brien, American Water Works Service Company)
A48: Specific gravity of sodium hexametaphosphate solution | B48: sh_spgr | C48: 2.484
A49: Dosage of tetrasodium polyphosphate | B49: tp_dose | C49: 5 | D49: mg/l
A50: Tetrasodium polyphospate solution strength | B50: tp_strength | C50: 0.04 | E50: Prepare solution @ 0.3 lb/gal/ BIF Chemicals Used in Water and Waste Water (Richard E. Hubel, Tim O'Brien, American Water Works Service Company)
A51: Specific gravity of tetrasodium polyphosphate solution | B51: tp_spgr | C51: 2.484
A53: Acid/Caustic Addition | E53: Acid addition to lower pH may also be used to prevent scaling, although natural CO removal by PTA may render this unneccessary
A54: Type of acid | B54: acid_type | C54: 1 | D54: <-- 1 for no acid addition, 2 for HCl, 3 for H2SO4
A55: Initial water pH | B55: pHo | C55: 7.5
A56: Alkalinity as CaCO3 | B56: alk_ppm | C56: 100 | D56: ppm
A57: Target pH for treatment | B57: pHf_selected | C57: 5.5
A58: HCl solution strength | B58: hcl_strength | C58: 0.36
A59: HCl mg/meq | B59: hcl_molwt | C59: 36.5 | D59: mg/meq
A60: H2SO4 solution strength | B60: H2SO4_strength | C60: 0.7767
A61: H2SO4 mg/meq | B61: H2SO4_molwt | C61: =98.1/2 -> 49.05 | D61: mg/meq
A62: NaOH solution strength | B62: naoh_strength | C62: 0.5
A64: Chemical Constants
A65: Acceleration of gravity | B65: G | C65: 9.81 | D65: m/s2
A66: Gas law constant | B66: R_C | C66: 0.0821 | D66: (atm m3)/(KM deg K)
A67: Molar volume of gas at STP | B67: GO | C67: 22.4 | D67: m3/kmole
A68: Standard temperature | B68: TS | C68: 273 | D68: Deg. Kelvin
A69: Standard pressure | B69: PS | C69: 1 | D69: atm
A70: Molecular weight of air | B70: MWA | C70: 29 | D70: kg/kmole
A71: Density of water | B71: PW | C71: 999.7 | D71: kg/m3 | E71: @10 C
A72: Viscosity of water | B72: UW | C72: 0.001307 | D72: kg/m s | E72: @10 C
A73: Surface tension of water | B73: SW | C73: 0.0742 | D73: kg/s2 | E73: @10 C, from StEPP
A74: Molecular Radius of Air | B74: RA | C74: 0.3711 | D74: nm
A75: Force Constant for Air | B75: E_KA | C75: 78.6 | D75: Deg. Kelvin
A76: Standard Pressure | B76: P_S | C76: 101325 | D76: N/m2
A78: Valves and Instrumentation
A79: See the Valve Table at the bottom of this page for additional assumptions relating to valves
A80: Number of manual valves on influent and treated water line | B80: tot_man_valves | C80: 2 | D80: valves
A82: Number of check valves on influent line | B82: tot_in_chv | C82: 1 | D82: valves
A83: Number of check valves on bypass line | B83: tot_bp_chv | C83: 1 | D83: valves
A84: Number of check valves on acid line per chemical pump | B84: HCl_chv_pump | C84: 2 | D84: valves/pump
A85: Number of check valves on caustic line per chemical pump | B85: NaOH_chv_pump | C85: 2 | D85: valves/pump
A86: Number of check valves on corrosion chemical line per chemical pump | B86: chem_chv_pump | C86: 2 | D86: valves/pump
A88: Flow meters for influent and treated water line | B88: tot_fm_in | C88: 1 | D88: units | E88: Only on treated water line in this technology
A89: Flow meters for process line per tower | B89: fm_proc | C89: 1 | D89: units/tower
A90: Flow meters for air line per tower | B90: fm_air | C90: 1 | D90: units/tower
A91: High/low alarms per chemical tank | B91: alarm_chem | C91: 1 | D91: units/tank
A92: pH meters | B92: pH_controls | C92: 2 | D92: units | E92: One for influent line, one for treated water line
A93: Temperature meters | B93: temp_meters | C93: 1 | D93: units | E93: One for influent line
A94: TDS monitors | B94: num_TDS | C94: 0 | D94: units
A95: Turbidity meters | B95: turb_meters | C95: 1 | D95: units | E95: One for treated water line
A96: Turbidity meters (for small systems <1 MGD) | B96: turb_meters_small | C96: 0 | D96: units | E96: Reduced instrumentation for small systems
A97: Number of electrical enclosures | B97: elec_encl | C97: 1 | D97: units
A99: System Controls
A100: See the I/O Port Table at the bottom of this page for additional assumptions relating to system controls
A101: Controllers are used only under full automation
A102: To change the degree of automation, change the number of controllers to zero for the appropriate items.
A103: Drive controllers per booster pump | B103: S_booster_pump | C103: 1 | D103: units
A104: Drive controllers per blower | B104: S_blower | C104: 1 | D104: units
A105: Drive controllers per chemical metering pump | B105: S_cm_pump | C105: 1 | D105: units
A106: Drive controllers per thermal oxidizer | B106: S_TO | C106: 2 | D106: units | E106: One for burners, one for secondary air
A107: Drive controllers per catalytic oxidizer | B107: S_CO | C107: 2 | D107: units | E107: One for burners, one for secondary air
A108: Drive controllers per mixer | B108: S_mix | C108: 1 | D108: units
A110: Number of CPUs | B110: plc_cpu | C110: 2 | D110: units | E110: One CPU is needed to run the local and expansion bases and modules (max 8192 I/O); using two to provide redundancy
A111: Ethernet modules | B111: plc_ethernet | C111: 2 | D111: units | E111: One ethernet module is needed; using two to provide redundancy
A112: Operator interfaces | B112: plc_interface | C112: 2 | D112: units | E112: Two to provide redundancy in the event of SCADA node failure
A113: UPSs | B113: ups | C113: 1 | D113: unit | E113: UPS protects the PLC system from undesired outages and surges that can adversely affect the performance of the PLC unit
A114: Computer workstations per x operators | B114: workstation_ratio | C114: 1 | D114: operator/workstation | E114: Minimum will always be one, but larger systems will have multiple workstations to control the system
A115: Number of shifts | B115: shifts_day | C115: 3 | D115: shifts/day | E115: Used to determine number of workstations
A116: Printers per x computer workstations | B116: printer_ratio | C116: 4 | D116: workstations/printer | E116: Minimum will always be one, but larger systems will have multiple printers
A118: Structure/Floorplan
A119: Maximum access space per tower or tank | B119: max_space_vessels | C119: 6 | D119: feet | E119: This is the MAXIMUM; space between towers and tanks defaults to tower or tank diameter, up to this maximum. Maximum provides space for sandblasting and painting for large tanks (5-8 feet per Richard E. Hubel, Peter Keenan, American Water Works Service Company).
A120: Access space for each pump | B120: space_pumps | C120: 4 | D120: feet | E120: Used for both pumps and blowers; provide a minimum of 3 ft (1 m) of clear space around each item of equipment (American Water Works Association and American Society of Civil Engineers. Water Treatment Plant Design. Third Edition. New York: McGraw Hill, 1998. Pp. 695).
A121: Fire truck buffer requirements | B121: fire_buffer | C121: 40 | D121: feet
A122: Buffer space around other sides of buildings | B122: non_fire_buffer | C122: 10 | D122: feet
A123: Building height | B123: Building_height | C123: 20 | D123: feet
A124: Office space per employee | B124: space_office | C124: 100 | D124: square ft
A125: Office space per employee for small systems | B125: space_office_small | C125: 0 | D125: square ft | E125: Small systems do not require office space
A126: Concrete pad thickness | B126: pad_thick | C126: =6/12 -> 0.5 | D126: feet
A127: Concrete pad thickness for small systems | B127: pad_thick_small | C127: =4/12 -> 0.3333333333 | D127: feet
A130: Valve Table
A131: Under assumptions below, valves are motorized for fully automated systems, manual for semi-automated and manual systems
A132: To change the degree of automation, the user may replace the numbers in each of the blue columns.
A133: Number of control valves of x type on y line per z | B133: Lookup name | C133: Manual | D133: Semi-auto | E133: Fully Auto | F133: Units
A134: Number of motor/air operated control valves on process line per tower | B134: proc_MOV_vessel | C134: 0 | D134: 0 | E134: 1 | F134: valves/tower
A135: Number of motor/air operated control valves on process line per booster pump | B135: proc_MOV_pump | C135: 0 | D135: 0 | E135: 2 | F135: valves/pump
A136: Number of motor/air operated control valves on air line per tower | B136: air_MOV_vessel | C136: 0 | D136: 0 | E136: 1 | F136: valves/tower
A137: Number of motor/air operated control valves on caustic lines per pump | B137: NaOH_MOV_pump | C137: 0 | D137: 0 | E137: 2 | F137: valves/pump
A138: Number of motor/air operated control valves on acid lines per pump | B138: HCl_MOV_pump | C138: 0 | D138: 0 | E138: 2 | F138: valves/pump
A139: Number of motor/air operated control valves on corrosion chemical lines per pump | B139: chem_MOV_pump | C139: 0 | D139: 0 | E139: 2 | F139: valves/pump
A140: Number of motor/air operated control valves on by-pass line | B140: tot_bp_MOVs | C140: 0 | D140: 0 | E140: 1 | F140: valves
A141: Number of motor/air operated control valves per day tank | B141: chem_mov_day | C141: 0 | D141: 0 | E141: 1 | F141: valves/tank
A142: Number of manual valves per day tank | B142: chem_man_day | C142: 1 | D142: 1 | E142: 0 | F142: valves/tank
A143: Number of motor/air operated control valves per offgas control unit | B143: air_MOV_og | C143: 0 | D143: 0 | E143: 1 | F143: valves/unit
A144: Additional motor/air operated control valves with offgas control | B144: add_MOV_og | C144: 0 | D144: 0 | E144: 1 | F144: valve | G144: For emergency direct venting
A145: Number of manual control valves on process line per tower | B145: proc_man_vessel | C145: 1 | D145: 1 | E145: 0 | F145: valves/tower
A146: Number of manual control valves on process line per booster pump | B146: proc_man_pump | C146: 2 | D146: 2 | E146: 0 | F146: valves/pump
A147: Number of manual control valves on air line per tower | B147: air_man_vessel | C147: 1 | D147: 1 | E147: 0 | F147: valves/tower
A148: Number of manual control valves on caustic lines per pump | B148: NaOH_man_pump | C148: 2 | D148: 2 | E148: 0 | F148: valves/pump
A149: Number of manual control valves on acid lines per pump | B149: HCl_man_pump | C149: 2 | D149: 2 | E149: 0 | F149: valves/pump
A150: Number of manual control valves on corrosion chemical lines per pump | B150: chem_man_pump | C150: 2 | D150: 2 | E150: 0 | F150: valves/pump
A151: Number of manual control valves on by-pass line | B151: tot_bp_man | C151: 1 | D151: 1 | E151: 0 | F151: valves
A152: Number of manual control valves per offgas control unit | B152: air_man_og | C152: 1 | D152: 1 | E152: 0 | F152: valves/unit
A153: Additional manual control valves with offgas control | B153: add_man_og | C153: 1 | D153: 1 | E153: 0 | F153: valve | G153: For emergency direct venting
A156: I/O Port Table
A157: Full automation includes all inputs and outputs, semi-automated uses inputs only, manual control uses neither
A158: To change the degree of automation, the user may replace the numbers in each of the blue columns.
A159: I/O Ports needed per…. | B159: Lookup name | C159: Discrete Inputs | D159: Discrete Outputs | E159: Analog Inputs | F159: Analog Outputs | G159: Guidance
A160: Alarm (including level switch/alarms, high/low alarms, low alarms) | B160: alarm | C160: 1 | D160: 1 | E160: 0 | F160: 0
A161: Catalytic oxidizer | B161: CO | C161: 3 | D161: 2 | E161: 2 | F161: 1 | G161: Air flow: 2 AI, 1 AO, Temperature controller: 1 DI, 1 DO, Automated shut down: 1 DI, 1 DO, LEL sensor: 1 DI
A162: Air flow meter (rotameter) | B162: flow_air | C162: 0 | D162: 0 | E162: 1 | F162: 0
A163: Magnetic flow meter | B163: flow_mag | C163: 0 | D163: 0 | E163: 1 | F163: 0
A164: Orifice plate flow meter | B164: flow_op | C164: 0 | D164: 0 | E164: 2 | F164: 1 | G164: Additional analog input because flow meters include pressure gauges
A165: Propeller flow meter | B165: flow_prop | C165: 0 | D165: 0 | E165: 1 | F165: 0
A166: Venturi flow meter | B166: flow_ven | C166: 0 | D166: 0 | E166: 2 | F166: 1 | G166: Additional analog input because flow meters include pressure gauges
A167: pH meter | B167: ph | C167: 0 | D167: 0 | E167: 1 | F167: 0
A168: Drive controller | B168: switch | C168: 3 | D168: 1 | E168: 0 | F168: 0
A169: TDS monitor | B169: TDS | C169: 1 | D169: 0 | E169: 0 | F169: 0
A170: Temperature meter | B170: temp | C170: 0 | D170: 0 | E170: 1 | F170: 0
A171: Thermal oxidizer | B171: TO | C171: 3 | D171: 2 | E171: 2 | F171: 1 | G171: Air flow: 2 AI, 1 AO, Temperature controller: 1 DI, 1 DO, Automated shut down: 1 DI, 1 DO, LEL sensor: 1 DI
A172: Turbidity meter | B172: turb | C172: 0 | D172: 0 | E172: 1 | F172: 0
A173: Motor/air operated valve | B173: valve | C173: 0 | D173: 0 | E173: 1 | F173: 1

Sheet O&M Assumptions
A1: Default O&M Assumptions
A2: Users may change any of the cells in the Value column
A4: Assumption | B4: Range Name | C4: Value | D4: Units | E4: Guidance
A5: Materials
A6: Cost for parts & maintenance for pumps and blowers | B6: pump_maintenance | C6: 0.01 | D6: of capital cost | E6: For calculating cost of actual maintenance materials; not to be confused with depreciation; 5% would be too high (Richard E. Hubel, Peter Keenan, American Water Works Service Company, Inc)
A7: Cost for parts & maintenance for PTA towers | B7: PTA_maintenance | C7: 0.04 | D7: of capital cost | E7: For calculating cost of actual maintenance materials; not to be confused with depreciation
A9: Labor
A10: Mangerial LOE as a percent of average technical labor | B10: Manager_percent | C10: 0.1 | D10: fraction
A11: Administrative LOE as a percent of average technical labor | B11: Clerical_percent | C11: 0.1 | D11: fraction
A13: Operating LOE assumptions
A14: Minutes per instrument per day | B14: uloe_inst | C14: 5 | D14: min/day | E14: For manual systems only
A15: Recording operating paramenters for automated systems | B15: uloe_inst_auto | C15: 5 | D15: min/day | E15: For semiautomated and automated systems
A16: Minutes per pump, blower, and offgas unit per day | B16: uloe_pump | C16: 5 | D16: min/day | E16: For manual and semiautomated systems
A17: Minutes per valve per week | B17: uloe_valve | C17: 5 | D17: min/week | E17: For manual and semiautomated systems
A18: Minutes per 100 sf per day | B18: uloe_fp | C18: 1 | D18: min/100 sf/day
A19: Hours per media changeout | B19: uloe_throwaway | C19: 4 | D19: hours/bed/event | E19: For systems with GAC offgas treatment
A21: Maintenance LOE assumptions
A22: Maintenance LOE for instruments (includes calibration) | B22: uloe_inst_maint | C22: 10 | D22: min/month
A23: Maintenance LOE for pumps | B23: uloe_pump_maint | C23: 30.25 | D23: hours/year | E23: Based on vendor recommended maintenance activities; applied to large, frequently operated pumps only
A24: Maintenance LOE for valves | B24: uloe_valve_maint | C24: 5 | D24: min/year | E24: Applied to main process valves only
A25: Maintenance LOE for chemical supply systems | B25: uloe_chem_maint | C25: 60 | D25: min/month
A27: Energy
A28: Additional pump head required | B28: add_head | C28: 3.5 | D28: meters | E28: Pump head = tower packing height + clearwell depth + this addition
A29: Pump efficiency | B29: PUMP_EFF | C29: 0.75
A30: Blower efficiency | B30: BLOW_EFF | C30: 0.7
A32: Lighting and HVAC
A33: Lighting power per sf, low-quality buildings and sheds | B33: lighting_power_low | C33: 1 | D33: W/sf | E33: 1, 2, and 4 W/sf are the assumptions used for building capital costs.
A34: Lighting power per sf, mid-quality buildings | B34: lighting_power_mid | C34: 2 | D34: W/sf
A35: Lighting power per sf, high-quality buildings | B35: lighting_power_high | C35: 4 | D35: W/sf
A37: Ventilation air change rate for pump room | B37: Air_changes_pump | C37: 20 | D37: air changes/hr | E37: Could be lower (annual average 3 changes/hr) in a northern climate
A38: Ventilation air change rate for chemical storage | B38: Air_changes_chem_storage | C38: 2 | D38: air changes/hr
A39: Ventilation air change rate for offices | B39: Air_changes_office | C39: 2 | D39: air changes/hr
A40: Pressure drop across the fan | B40: Fan_pressure_drop | C40: 0.25 | D40: lbs/ft2
E41: Number of days per year where natural ventilation is applicable cannot be greater than 365 days
A42: Number of mechanical ventilation days per year (small system) | B42: fan_days_small | C42: 90 | D42: days/year | E42: For small systems (<1 MGD)
A43: Number of mechanical ventilation days per year (medium system) | B43: fan_days_medium | C43: 120 | D43: days/year | E43: For medium systems (1 - 10 MGD)
A44: Number of mechanical ventilation days per year (large system) | B44: fan_days_large | C44: 185 | D44: days/year | E44: For large systems (> 10 MGD)
A46: R-value for walls | B46: R_wall | C46: 13 | D46: hr-sf-degF/BTU | E46: Assumes standard building materials. If higher R-value materials are desired, user may also need to adjust the cost of building materials.
A47: R-value for ceilings | B47: R_ceiling | C47: 38 | D47: hr-sf-degF/BTU | E47: Assumes standard building materials. If higher R-value materials are desired, user may also need to adjust the cost of building materials.
A48: Annual heating degree days | B48: heat_DD | C48: 4923 | D48: degree days | E48: Heating and cooling assumptions should be consistent with one another. Assumed values are for a climate that results in a total energy usage for heating and cooling equal to the national median.
A49: Annual cooling degree days | B49: cool_DD | C49: 1697 | D49: degree days | E49: Heating and cooling assumptions should be consistent with one another. Assumed values are for a climate that results in a total energy usage for heating and cooling equal to the national median.
A50: Heating ventilation/infiltration load | B50: heat_viload | C50: 168679 | D50: BTU/cfm | E50: Heating and cooling assumptions should be consistent with one another. Assumed values are for a climate that results in a total energy usage for heating and cooling equal to the national median.
A51: Cooling ventilation/infiltration load | B51: cool_viload | C51: 51771 | D51: BTU/cfm | E51: Heating and cooling assumptions should be consistent with one another. Assumed values are for a climate that results in a total energy usage for heating and cooling equal to the national median.
A52: Electric resistance heating efficiency | B52: resist_eff | C52: 0.98 | E52: See Appendix E
A53: Heat pump heating coefficient of performance | B53: COP | C53: 3.2 | E53: See Appendix E
A54: Natural gas non-condensing furnace efficiency | B54: gas_non_eff | C54: 0.8 | E54: See Appendix E
A55: Natural gas condensing furnace efficiency | B55: gas_eff | C55: 0.95 | E55: See Appendix E
A56: Standard oil furnace efficiency | B56: diesel_non_eff | C56: 0.78 | E56: See Appendix E
A57: Mid-efficiency oil furnace efficiency | B57: diesel_eff | C57: 0.85 | E57: See Appendix E
A58: Air conditioning EER | B58: EER | C58: 11 | D58: Whr/BTU | E58: See Appendix E
A59: Heat pump cooling mode EER | B59: hp_EER | C59: 10.1 | D59: Whr/BTU | E59: See Appendix E
A61: Heating oil heat content | B61: diesel_heat_content | C61: 139000 | D61: BTU/gal | E61: U.S. DOE, Energy Information Administration.

Sheet Indirect Assumptions
A1: Default Assumptions for Indirect and Add-On Costs
A2: Users may change any of the cells in the Value column
A4: Assumption | B4: Range Name | C4: Value | D4: Units | E4: Guidance
A5: Permits
A6: Include permit costs? | B6: include_permits | C6: 1 | D6: <--- enter 1 for yes, 0 for no
A7: Always include NEPA compliance costs? | B7: include_NEPA | C7: 0 | D7: <--- enter 1 for yes, 2 for no | E7: Default of 0 means NEPA compliance is included in the high component cost estimate only. Selecting 1 means NEPA compliance will be included in all estimates. Selecting 0 means NEPA compliance will never be included.
A8: HCl strength to trigger RMP requirement | B8: HCl_strength_RMP | C8: 0.37
A9: HCl quantity to trigger RMP requirement | B9: HCl_quant_RMP | C9: 15000 | D9: lbs
A11: Pilot Study
A12: Include pilot study costs? | B12: include_pilot | C12: 1 | D12: <--- enter 1 for yes, 0 for no
A14: Land
A15: Include land costs? | B15: include_land | C15: 1 | D15: <--- enter 1 for yes, 0 for no
A17: Mobilization and Demobilization
A18: Mobilization percentage for small systems | B18: mob_pct_small | C18: 0.05 | D18: of direct capital cost | E18: Typically 2-5% of the estimated construction cost. Enter 0% to exclude.
A19: Mobilization percentage for medium systems | B19: mob_pct_medium | C19: 0.04 | D19: of direct capital cost
A20: Mobilization percentage for large systems | B20: mob_pct_large | C20: 0.02 | D20: of direct capital cost
A22: Architectural Fees for Treatment Building
A23: Include architectural fee? | B23: include_arch | C23: 1 | D23: <--- enter 1 for yes, 0 for no | E23: Must be added to building cost. Change for special considerations. Includes structural, mechanical, and electrical engineering for building only.
A24: Include architectural fee for small systems? | B24: include_arch_small | C24: 0 | D24: <--- enter 1 for yes, 0 for no
A26: Installation, Transportatation, and O&P
A27: Installation, Transportatation, and O&P percentage | B27: inst_pct | C27: 0 | D27: of direct capital cost | E27: Included in line item unit costs. Add a percentage for special considerations such as a remote site or high cost location.
A29: Sitework
A30: Include sitework costs? | B30: include_sitework | C30: 1 | D30: <--- enter 1 for yes, 0 for no
A32: Yard Piping
A33: Include yard piping costs? | B33: include_yardpipe | C33: 1 | D33: <--- enter 1 for yes, 0 for no
A34: Frost depth | B34: frost | C34: 38 | D34: inches | E34: Should be consistent with (reflect same climate as) heating and cooling assumptions on O&M assumptions page
A35: Minimum trench depth to top of pipe | B35: min_trench_depth | C35: 36 | D35: inches | E35: US Army Corps of Engineers recommended minimum cover for distribution pipes of 2.5 ft in grassed areas, 3 ft if buried under pavement or roadways but not less than frost penetration depth (USACOE 1984)
A36: Soil density | B36: soil_dens | C36: 97 | D36: lb/cubic ft. | E36: Based on soil density of loamy sand (1.55 gm/cc)
A37: Coefficient of passive pressure | B37: Coeff_Kp | C37: 3
A38: Reduction factor | B38: Reduction | C38: 0.467
A39: Bedding depth below pipe | B39: bedding_depth | C39: 6 | D39: inches
A40: Bedding depth surrounding the pipe | B40: bedding_pct | C40: 0.25 | D40: of pipe diameter
A41: Trench inside angle | B41: trench_angle | C41: =RADIANS(45) -> 0.7853981634 | D41: radians
A42: Pipe length from water source to the boundary of the 10 foot buffer | B42: yard_in | C42: 0 | D42: feet | E42: Use if technology is first step in treatment process
A43: Pipe length the boundary of the 10 foot buffer to distribution network | B43: yard_out | C43: 0 | D43: feet | E43: Use if technology is last step in treatment process
A45: Geotechnical
A46: Include geotechnical costs for low cost systems? | B46: include_geo_low | C46: 0 | D46: <--- enter 1 for yes, 0 for no | E46: Note: geotechnical is always included when a clearwell is present, regardless of the numbers entered here, because of excavation requirements
A47: Include geotechnical costs for medium cost systems? | B47: include_geo_medium | C47: 0 | D47: <--- enter 1 for yes, 0 for no
A48: Include geotechnical costs for high cost systems? | B48: include_geo_high | C48: 1 | D48: <--- enter 1 for yes, 0 for no
A49: Test pit length | B49: pit_length | C49: 4 | D49: feet
A50: Test pit width | B50: pit_width | C50: 4 | D50: feet
A51: Test pit depth | B51: pit_depth | C51: 7 | D51: feet
A52: Borehole depth with no clearwell | B52: bore_depth_nobasin | C52: 10 | D52: feet
A53: Borehole depth for shallow clearwells | B53: bore_depth_min | C53: 25 | D53: feet
A54: Borehole depth for deep clearwells | B54: bore_depth_max | C54: 50 | D54: feet
A55: Basin excavation depth above which deeper boreholes are needed | B55: deep_bore_need | C55: 20 | D55: feet | E55: Large systems with deep basins require deeper investigation
A56: Basin excavation depth above which deeper boreholes are needed | B56: bore_need | C56: 2000 | D56: square feet | E56: Without clearwells, only large systems need boreholes
A57: Minimum number of boreholes | B57: min_holes | C57: 4
A58: Borehole needed every x square feet | B58: hole_per_sf | C58: 1000 | D58: square feet
A59: Boreholes per job | B59: hole_per_job | C59: 24 | D59: boreholes/job
A60: Linear feet bored per day | B60: hole_per_day | C60: 55.5 | D60: l.f./day | E60: RS Means Costworks 2001
A62: Standby Power
A63: Include standby power costs? | B63: include_standby | C63: 1 | D63: <--- enter 1 for yes, 0 for no
A64: Include standby power costs for small systems? | B64: include_standby_small | C64: 0 | D64: <--- enter 1 for yes, 0 for no
A65: Design safety factor for standby power | B65: std_safety_factor | C65: 0 | E65: Default 0%. Apply a percentage to increase standby power requirements.
A66: Include heating in standby power | B66: need_heat | C66: 0 | D66: <--- enter 1 for yes, 0 for no | E66: If a system uses gas or diesel heat, heating will not be included in standby power, regardless of this assumption.
A67: Include cooling in standby power | B67: need_cool | C67: 0 | D67: <--- enter 1 for yes, 0 for no | E67: If both heating and cooling are included, standby power requirements will be based on the maximum of the two
A68: Minimum standby power generator size | B68: min_standby | C68: 1.5 | D68: kW
A70: Electrical (including yard wiring)
A71: Electrical percentage | B71: elect_pct | C71: 0.1 | D71: of direct cost
A73: Instrumentation and Control
A74: Instrumentation and control percentage | B74: i_c_pct | C74: 0 | D74: of direct cost | E74: Included as a direct cost line item
A76: Contingency
A77: Include contingency costs for low cost systems? | B77: include_conting_low | C77: 0 | D77: <--- enter 1 for yes, 0 for no
A78: Include contingency costs for medium cost systems? | B78: include_conting_medium | C78: 0 | D78: <--- enter 1 for yes, 0 for no
A79: Include contingency costs for high cost systems? | B79: include_conting_high | C79: 1 | D79: <--- enter 1 for yes, 0 for no
A80: Technology complexity factor | B80: complexity | C80: 1 | E80: Technology-specific factor. See Appendices for details. Low complexity = 0.5; Average complexity = 1.0; High complexity = 1.5; Very high complexity = 2.0.
A82: Process Engineering
A83: Engineering percentage for small systems | B83: eng_pct_small | C83: 0.2 | D83: of direct capital cost | E83: Enter 0% to exclude
A84: Engineering percentage for medium systems | B84: eng_pct_medium | C84: 0.12 | D84: of direct capital cost
A85: Engineering percentage for large systems | B85: eng_pct_large | C85: 0.08 | D85: of direct capital cost
A87: Miscellaneous Allowance
A88: Miscellaneous allowance percentage | B88: misc_pct | C88: 0.1 | D88: of direct capital cost | E88: Enter 0% to exclude
A90: Legal, Fiscal, and Administrative
A91: Legal percentage | B91: legal_pct | C91: 0.02 | D91: of direct capital cost | E91: Enter 0% to exclude. Highly site-specific. Can range from 2-5% of equipment, installation, construction, electrical, and standby power.
A93: Sales Tax
A94: Sales tax percentage | B94: tax_pct | C94: 0 | D94: of direct capital cost | E94: May be exempt if constructed with public funds. May be as high as 7.25% of equipment and construction, with national average 4.75%.
A96: Financing during Construction
A97: Financing percentage | B97: finance_pct | C97: 0.05 | D97: of direct capital cost | E97: Enter 0% to exclude. Typically assumed to be one year's interest on capital cost.
A98: Financing percentage for small systems | B98: finance_pct_small | C98: 0 | D98: of direct capital cost | E98: Small system construction assumed to take less than one year
A100: Construction Management and General Contractor Overhead
A101: Builder's risk insurance percentage | B101: br_ins_pct | C101: 0.0034 | E101: Enter 0% to exclude. 0.34% is national average rate. RSMeans Building Construction Cost Data 2009, reference section R01100-070
A102: Include performance bond cost? | B102: include_bond | C102: 1 | D102: <--- enter 1 for yes, 0 for no
A103: Include construction management cost? | B103: include_cm | C103: 1 | D103: <--- enter 1 for yes, 0 for no
A105: Buildings
A106: Include buildings in total capital cost? | B106: include_buildings | C106: 1 | D106: <--- enter 1 for yes, 0 for no
A107: Include concrete pad in total capital cost? | B107: include_pad | C107: 1 | D107: <--- enter 1 for yes, 0 for no
A109: Heating Table (1=include heating in buildings and O&M, 0 = do not include heating)
A110: Component Level | B110: Range Name | C110: System Size
C111: Small (<1 mgd) | D111: Medium (1-10 mgd) | E111: Large (>10 mgd)
A112: low cost | B112: heating_table | C112: 0 | D112: 1 | E112: 1
A113: mid cost | C113: 1 | D113: 1 | E113: 1
A114: high cost | C114: 1 | D114: 1 | E114: 1
A115: Buildings less than 500 ft2 (other than those used for chlorine storage)
A116: low cost | B116: heating_table_shed | C116: 0 | D116: 0 | E116: 1
A117: mid cost | C117: 0 | D117: 0 | E117: 1
A118: high cost | C118: 1 | D118: 1 | E118: 1
A120: Cooling Table (1=include cooling in buildings and O&M, 0 = do not include cooling)
A121: Component Level | B121: Range Name | C121: System Size
C122: Small (<1 mgd) | D122: Medium (1-10 mgd) | E122: Large (>10 mgd)
A123: low cost | B123: cooling_table | C123: 0 | D123: 0 | E123: 1
A124: mid cost | C124: 0 | D124: 1 | E124: 1
A125: high cost | C125: 1 | D125: 1 | E125: 1
A126: Buildings less than 500 ft2 (other than those used for chlorine storage)
A127: low cost | B127: cooling_table_shed | C127: 0 | D127: 0 | E127: 0
A128: mid cost | C128: 0 | D128: 0 | E128: 0
A129: high cost | C129: 0 | D129: 0 | E129: 0

Sheet Offgas Assumptions
A1: Default Offgas Assumptions
A2: Users may change any of the cells in the Value column
A4: Assumption | B4: Range Name | C4: Value | D4: Units | E4: Guidance
A5: Specific heat of air | B5: cpa | C5: 1.01 | D5: kJ/kg-deg C | E5: Rough assumption to account for high temperature and relative humidity in this application
A7: GAC
A8: GAC Density | B8: GAC_density | C8: 30 | D8: lbs/cu ft | E8: Bulk density, not particle density. GAC density range of 22-30 lb/cubic ft; lignite GAC approximately 22 and bituminous GAC approximately 28 lb/cubic ft (Randal J. Braker, General Manager, Duck River Utility Commission)
A9: Redundant GAC beds | B9: NRD_GAC | C9: 0 | D9: units | E9: Most of the unit costs are for dual bed units, which should provide sufficient redundancy.
A10: Freundlich isotherm constant K for MTBE | B10: K | C10: 80 | D10: (mg/g)(L/mg)^1/n | E10: Ramakrishnan et al. (2004), assumes 20% relative humidity. See source for values at other relative humidity assumptions.
A11: Freundlich isotherm constant 1/n for MTBE | B11: 1_n | C11: 0.32 | E11: Ramakrishnan et al. (2004), assumes 20% relative humidity. See source for values at other relative humidity assumptions.
A12: Makeup carbon for off-site regeneration | B12: makeup_rate_off | C12: 0.3 | E12: Makeup carbon needs are higher for transport and regeneration off-site -- 30% (Richard E. Hubel, Peter Keenan, American Water Works Service Company).
A13: Miles to non-hazardous solid waste disposal site | B13: non_haz_miles | C13: 10 | D13: miles | E13: For spent carbon disposal
A15: Thermal Oxidizer
A16: Redundant TO units | B16: NRD_TO | C16: 0 | D16: units
A17: Excess air required | B17: TO_ex_air | C17: 2 | E17: Thermal oxidizers typically require 180% to 550% excess air
A18: Recuperative system heat recovery | B18: TO_rec_eff | C18: 0.7 | E18: U.S. EPA, 2006; CMRP, 2000
A19: Regenerative system heat recovery | B19: TO_reg_eff | C19: 0.95 | E19: U.S. EPA, 2006; CMRP, 2000; van der Vaart et al. 1994
A21: Catalytic Oxidizer
A22: Redundant CO units | B22: NRD_CO | C22: 0 | D22: units
A23: Excess air required | B23: CO_ex_air | C23: 2 | E23: Thermal oxidizers typically require 180% to 550% excess air
A24: Recuperative system heat recovery | B24: CO_rec_eff | C24: 0.7 | E24: U.S. EPA, 2006; CMRP, 2000
A25: Regenerative system heat recovery | B25: CO_reg_eff | C25: 0.95 | E25: U.S. EPA, 2006; CMRP, 2000; van der Vaart et al. 1994
A27: Contaminant Specific Assumptions Table
A28: Contaminant Number | B28: Contaminant | C28: Heating Value | D28: GAC Bed Residence Time | E28: TO Operating Temperature | F28: CO Operating Temperature
C29: (BTU/gal) | D29: (sec) | E29: (deg C) | F29: (deg C)
A30: 1 | B30: MTBE | C30: 93500 | D30: 3 | E30: 816 | F30: 288
A31: 2 | B31: Radon | C31: 0 | D31: 0 | E31: 0 | F31: 0
A32: 3 | B32: TCE | C32: 0 | D32: 6.4 | E32: 1093 | F32: 500
A33: 4 | B33: PCE | C33: 0 | D33: 6.4 | E33: 1093 | F33: 500
A34: 5 | B34: Vinyl Chloride | C34: 0 | D34: 6.4 | E34: 1093 | F34: 500
A35: 6 | B35: Carbon Tetrachloride | C35: 0 | D35: 6.4 | E35: 1093 | F35: 500
A36: 7 | B36: Benzene | C36: 0 | D36: 6.4 | E36: 1093 | F36: 500
A37: 8 | B37: 1,2-Dichloropropane | C37: 0 | D37: 6.4 | E37: 1093 | F37: 500
A38: 9 | B38: Methylene Chloride | C38: 0 | D38: 6.4 | E38: 1093 | F38: 500
A39: 10 | B39: 1,2-Dichloroethane | C39: 0 | D39: 6.4 | E39: 1093 | F39: 500
A40: 11 | B40: 1,3-Butadiene | C40: 0 | D40: 6.4 | E40: 1093 | F40: 500
A41: 12 | B41: 1,1-Dichloroethane | C41: 0 | D41: 6.4 | E41: 1093 | F41: 500
A42: 13 | B42: 1,1,1,2-Tetrachloroethane | C42: 0 | D42: 6.4 | E42: 1093 | F42: 500
A43: 14 | B43: 1,1,2,2-Tetrachloroethane | C43: 0 | D43: 6.4 | E43: 1093 | F43: 500
A44: 15 | B44: 1,2,3-Trichloropropane | C44: 0 | D44: 6.4 | E44: 1093 | F44: 500
A45: 16 | B45: Other

Sheet Onda
A1: Onda Calculations
A3: Calculation | B3: Range Name | C3: Value | D3: Units | E3: Guidance
A4: Inputs
A5: Liquid Loading | C5: =L_LOAD -> 0.006586148313 | D5: m3/m2 s | E5: Calculated on tower design, displayed here for reference
A6: Air Loading | C6: =GAS_L -> 0.6125117931 | D6: m3/m2 s | E6: Calculated on tower design, for reference
A7: Percent removal or effluent concentration | B7: Units_rem | C7: =IF(Units_rem_I="percent removal",1,2) -> 2 | D7: <--- 1 for percent removal, 2 for effluent concentration
A8: Henry's Co-efficient for Onda | B8: ONDA_H | C8: =HENRY -> 0.187 | D8: atm m3/m3 | E8: From Inputs
A10: Calculated Values
A11: Reynold's number | B11: NR | C11: =PW*L_LOAD/(AP*UW) -> 32.08676684
A12: Froude number | B12: FR | C12: =(L_LOAD^2*AP)/(G) -> 0.0006942144635
A13: Weber number | B13: NW | C13: =(PW*L_LOAD^2)/(SW*AP) -> 0.003722452349
A14: Wetted Surface Area | B14: AW | C14: =AP*(1-EXP(-1.45*((SP/SW)^0.75)*(NR^0.1)*(FR^(-0.05))*(NW^0.2))) -> 64.1274882 | E14: Equation 18.56 from the Chemical Engineers Handbook, 5th Ed.
A15: Liquid phase Reynold's number | B15: NRW | C15: =(PW*L_LOAD)/(AW*UW) -> 78.55636538
A16: Schmidt number | B16: SCW | C16: =UW/(PW*DW) -> 2051.476141
A17: Air phase Reynold's number | B17: NRA | C17: =(+GAS_L*MWA)/(AP*UA*GO) -> 282.1705931
A18: Schmidt number | B18: SCA | C18: =UA/(PA*DA) -> 1.79158979
A19: Shape factor | B19: SHAPE | C19: =AP*DP -> 7.9756
A20: Liquid phase Sherwood number | B20: SHW | C20: =0.0051*(NRW^(2/3))*(SCW^(-0.5))*(SHAPE^0.4) -> 0.004739107292 | E20: Equation 18-55 from the Chemical Engineer's Handbook, 5th ed.
A21: Liquid phase co-efficient | B21: ONDA_KL | C21: =(SHW)/((PW)/(UW*G))^(1/3) -> 0.0001109314889 | D21: m/s
A22: Air phase Sherwood number | B22: SHA | C22: =5.23*(NRA^0.7)*(SCA^0.33)*(SHAPE^(-2)) -> 5.174899456 | E22: Equation 18-68 from the Chemical Engineer's Handbook, 5th ed.
A23: Air phase co-efficient | B23: ONDA_KG | C23: =(SHA)/((R_C*T/(AP*DA))) -> 0.0002801689321 | D23: kmole/m2 s atm
A24: Overall coefficient | B24: KLA | C24: =(AW/((1/ONDA_KL)+(1/(ONDA_KG*ONDA_H*R_C*TS/PS)))) -> 0.006499736747 | D24: /s
A25: Design Kla (with Safety Factor) | B25: DES_KLA | C25: =KLA/SF_KLA -> 0.004642669105
A26: Diffusion coefficient through air | B26: DA | C26: =C44 -> 8.012130212e-06 | D26: m2/s | E26: Treybal; Eq. 2.37
A27: Diffusion coefficient through water | B27: DW | C27: =C53 -> 6.372934064e-10 | D27: m2/s | E27: Treybal: Eq. 2.44
A29: Diffusion Co-efficient Through Air Using the Wilke-Lee modification of the Hirschfelder-Bird-Spotz Method; Treybal Equation 2.37
A30: Inputs
A31: Temperature | C31: =T -> 283 | D31: Deg. Kelvin | E31: From Inputs, displayed here for reference
A32: Molecular Weight of Contaminant | B32: MW | C32: =MW_IN -> 131.39 | D32: kg/kilomole | E32: From Inputs
A33: Molar Volume of Contaminant | B33: MV | C33: =MV_IN -> 0.102 | D33: m3/kilomole | E33: From Inputs
A34: Boiling Point of Contaminant | B34: TB | C34: =TB_IN -> 359.7 | D34: Deg. Kelvin | E34: From Inputs
A35: Melting Point of Contaminant | B35: TM | C35: =TM_IN -> 0 | D35: Deg. Kelvin | E35: From Inputs
A37: Calculated Values
A38: X | B38: X | C38: =SQRT((1/MW)+(1/MWA)) -> 0.2051674631 | E38: Input to Equation 2.37, Treybal
A39: Radius | B39: Radius | C39: =1.18*(MV^(1/3)) -> 0.5513347899 | E39: Equation 2.38, Treybal
A40: Molecular separation at collision | B40: R_ab | C40: =(RA+RADIUS)/2 -> 0.461217395 | E40: Known as Rca in Cummins
A41: E_kc | B41: E_kc | C41: =IF(TB>0,1.15*TB,1.92*TM) -> 413.655 | E41: Input for estimating value of collision integral
A42: K_te | B42: Kt_e | C42: =T/(SQRT(E_KA*E_KC)) -> 1.569480859 | E42: Input for estimating value of collision integral
A43: Collision Integral | B43: F_KT_E | C43: =EXP(-0.33789+LN(KT_E)*(-0.44268+LN(KT_E)*(0.081488*LN(KT_E)*(-0.0070712)))) -> 0.5842194933 | E43: Input to Equation 2.37, Treybal, calculated from relation derived by Cummins
A44: Diffusion Co-efficient Through Air | C44: =0.0001*(1.084-0.249*X)*(T^1.5)*X/(P_S*(R_AB^2)*F_KT_E) -> 8.012130212e-06 | D44: m2/s
A46: Diffusion Co-efficient Through Water Using the Wilke and Chang Method recommended by Treybal (For Radon)
A47: Inputs
A48: Temperature | C48: =T -> 283 | E48: From Inputs, displayed here for reference
A49: Molar Volume of Compound | C49: =MV -> 0.102 | E49: From Inputs, displayed here for reference
A50: X_1 | B50: X_1 | C50: 7.4815e-16 | E50: Constant portion of the Wilke and Chang equation: 1.17E-16 * (2.26 * Molecular Weight of Water) ^ (1/2); where molecular weight of water = 18
A52: Calculated Value
A53: Diffusion Co-efficient Through Water, Dw | C53: =X_1*T/(UW*(MV^0.6)) -> 6.372934064e-10 | D53: m2/s

Sheet Tower Design
A1: Tower Design Calculations
A2: This sheet calculates the design size and other parameters of the PTA system
A4: Calculation | B4: Range Name | C4: Value | D4: Units | E4: Guidance
A5: From Inputs
A6: Maximum Design Flow (metric) | B6: Qw | C6: =IF(df_units="cubic meters/second",(1-bp_pct)*QW_IN,IF(df_units="MGD",(1-bp_pct)*QW_IN*0.04583,IF(df_units="gpm",(1-bp_pct)*QW_IN*0.04583*24*60/1000000,"Unspecified units"))) -> 0.0013749 | D6: m3/s | E6: Converted to SI units if entered in others by user
A7: Daily Production Flow (metric) | B7: Qwa | C7: =IF(af_units="cubic meters/second",(1-bp_pct)*QWA_IN,IF(af_units="MGD",(1-bp_pct)*QWA_IN*0.04583,IF(af_units="gpm",(1-bp_pct)*QWA_IN*0.04583*24*60/1000000,QWA_IN*QW))) -> 0.00032081 | D7: m3/s | E7: Converted to SI units if entered in others by user
A8: Design flow in MGD | B8: design_flow | C8: =QW/0.04583 -> 0.03 | D8: MGD | E8: Design flow expressed in MGD
A9: Average flow in MGD | B9: average_flow | C9: =QWA/0.04583 -> 0.007 | D9: MGD | E9: Average flow expressed in MGD
A10: Design Flow Rate | B10: design_flow_rate | C10: =(QW/0.04583)*1000000/(24*60) -> 20.83333333 | D10: gpm | E10: Design flow expressed in gpm
A11: Average Flow Rate | B11: average_flow_rate | C11: =(QWA/0.04583)*1000000/(24*60) -> 4.861111111 | D11: gpm | E11: Average flow expressed in gpm
A12: Bypass Flow Rate | B12: bp_flow_rate | C12: =bp_pct/(1-bp_pct)*Design_Flow_Rate -> 0 | D12: gpm
A13: Target Percent Removal (from user input) | B13: Rem_in | C13: =IF(Units_rem=1,Rem_I,IF(Units_rem=2,1-Rem_I/Influent_conc,"Error")) -> 0.9 | E13: Used by design macro
A14: Target Contaminant | B14: contam | C14: 3 | D14: <--- 1 for MTBE, 2 for Radon, 3 for TCE, 4 for PCE, etc.
A15: Actual Percent Removal | B15: P_REM | C15: 0.9 | E15: Selected by design macro, may exceed user input target removal in systems that must be oversized for Radon
A17: Clearwell Size
A18: Access space per tower | B18: space_vessels | C18: =IF(D*3.28>max_space_vessels,max_space_vessels,ROUND(D*3.28,0)) -> 1 | D18: feet
A19: Working Volume | B19: W_vol | C19: =QW*AW_DET*60 -> 0.41247 | D19: m3 | E19: Based on the design flow and detention time
A20: Clearwell Length | B20: AirWell_L | C20: =IF(AW_DET=0,0,IF(TOT_COL=1,ROUND((D+2*space_vessels/3.28),2),IF(ROUND(SQRT(TOT_COL),3)=SQRT(TOT_COL),(ROUND(SQRT(((TOT_COL)*(D+space_vessels/3.28)^2)),0)/(D+space_vessels/3.28)*(D+space_vessels/3.28)+0.5*space_vessels),(ROUNDUP(SQRT(((TOT_COL)*(D+space_vessels/3.28)^2)),0)/(D+space_vessels/3.28)*(D+space_vessels/3.28)+0.5*space_vessels)))) -> 1.5 | D20: m
A21: Clearwell Width | B21: AirWell_W | C21: =IF(AW_DET=0,0,IF(TOT_COL=1,ROUND((D+2*space_vessels/3.28),2),IF(ROUND(SQRT(TOT_COL),3)=SQRT(TOT_COL),(ROUND(SQRT(((TOT_COL)*(D+space_vessels/3.28)^2)),0)/(D+space_vessels/3.28)*(D+space_vessels/3.28)+0.5*space_vessels),(ROUNDUP(SQRT(((TOT_COL)*(D+space_vessels/3.28)^2)),0)/(D+space_vessels/3.28)*(D+space_vessels/3.28)+0.5*space_vessels)))) -> 1.5 | D21: m
A22: Clearwell Depth | B22: AirWell_D | C22: =IF(AW_DET=0,0,freeboard/3.28+W_VOL/(AIRWELL_L*AIRWELL_W)) -> 1.097954146 | D22: m
A23: Clearwell Volume | B23: clearwell_gal | C23: =AIRWELL_L*AIRWELL_W*AIRWELL_D*264.2 -> 652.6788423 | D23: gal
A24: Concrete Volume | B24: Concrete_Vol | C24: =ROUNDUP((2*AIRWELL_D*AIRWELL_L+2*AIRWELL_D*AIRWELL_W+2*AIRWELL_W*AIRWELL_L)*1.2*conc_thick/3.28,0) -> 5 | D24: m3
A25: Concrete Volume in yards | B25: concrete_Vol_yd | C25: =CONCRETE_VOL*1.308 -> 6.54 | D25: cubic yd
A26: Excavation Volume in yards | B26: x_vol_yd | C26: =IF(AW_DET=0,0,ROUNDUP(((AIRWELL_W*3.28+overexcavate)*(AIRWELL_L*3.28+overexcavate)*(AIRWELL_D*3.28+overexcavate)+0.5*(3*(AIRWELL_D*3.28+overexcavate)*(AIRWELL_W*3.28+overexcavate)*(AIRWELL_D*3.28+overexcavate)))/27,0)) -> 52 | D26: cubic yd
A27: Backfill Volume in yards | B27: b_vol_yd | C27: =ROUNDUP(x_vol_yd-((AIRWELL_W*3.28)*(AIRWELL_L*3.28)*(AIRWELL_D*3.28))/27,0) -> 49 | D27: cubic yd
A29: Tower Design
A30: 1. Start with liquid loading of 25gpm and minimum feasible air to water ratio; macro modifies these to obtain realistic designs
A31: Liquid Loading | B31: L_Load | C31: 0.006586148313 | D31: m3/m2 - sec
A32: Ratio | B32: Ratio | C32: 93 | E32: Air to Water Ratio, selected by design macro
A34: 2. Calculate tower diameter using Cummins' approach
A35: Total Operating Area | B35: Tot_Area | C35: =QW/L_LOAD -> 0.2087563071 | D35: m2
A36: Maximum Tower Area, m2 | B36: Max_Area | C36: =Max_Area_cda -> 7.258 | D36: m2
A37: Minimum Tower Area, m2 | B37: Min_Area | C37: =Min_Area_cda -> 0.01825 | D37: m2
A38: Number of Operating Towers | B38: Num_col | C38: =IF(TOT_AREA>MAX_AREA,ROUNDUP(TOT_AREA/MAX_AREA,0),min_col) -> 2 | D38: units | E38: Rounded up to the next whole integer if greater than one as per Cummins
A39: Tower Diameter | B39: D | C39: =ROUND(SQRT((4*TOT_AREA)/(PI()*NUM_COL)),2) -> 0.36 | D39: m
A40: Number of redundant towers | B40: NRD_col | C40: =IF(NRD_I<>"",NRD_I,IF(design_flow>=1,IF(redund_freq=0,0,ROUNDUP(NUM_COL/redund_freq,0)),NRD_small)) -> 0 | D40: units
A41: Total Number of Towers (including redundancy) | B41: TOT_COL | C41: =NUM_COL+NRD_col -> 2 | D41: units
A43: 3. Calculate packing height using Cummins' approach
A44: Strip_Factor | B44: Strip_Factor | C44: =RATIO*DES_HENRY/OP_PRESS -> 12.42214286
A45: Design Henry | B45: Des_Henry | C45: =HENRY/SF_HENRY -> 0.1335714286 | D45: atm m3/m3 | E45: Henry with Safety Factor
A46: Design Kla | B46: Des_Kla | C46: =DES_KLA -> 0.004642669105 | D46: /s | E46: Calculated on Onda, displayed here for reference
A47: HTU | B47: HTU | C47: =L_LOAD/DES_KLA -> 1.418612476
A48: NTU | B48: NTU | C48: =IF(STRIP_FACTOR<=P_REM,1000000,(STRIP_FACTOR/(STRIP_FACTOR-1))*LN(((1/(1-P_REM))*(STRIP_FACTOR-1)+1)/(STRIP_FACTOR))) -> 2.422380164
A49: Packing Height | B49: Pack_ht | C49: =HTU*NTU -> 3.436418722 | D49: m
A51: 4. Calculate other design parameters
A52: Gas Loading | B52: G_Load | C52: =L_LOAD*RATIO -> 0.6125117931 | D52: m3/m2 . s
A53: Air_Flow | B53: Air_Flow | C53: =TOT_AREA*GAS_L -> 0.1278657 | D53: m3/s
A55: 5. Calculate air gradient using approach from Cummins' FNDel_p
A56: Conversion factor for N/m2 to psi | B56: N_m2_to_psi | C56: 0.000145
A57: Min_del_p | B57: Min_del_p | C57: 0.4 | D57: N/m2 (or pascal)
A58: Max_del_p | B58: Max_del_p | C58: 1500 | D58: N/m2 (or pascal)
A59: Air Gradient | B59: AIR_GRADIENT | C59: =AIR_GRADIENT -> 20.32142851 | D59: N/m2 . m | E59: Calculated below, displayed here for reference
A60: Air Pressure | B60: Air_P | C60: =AIR_GRADIENT*PACK_HT+500 -> 569.8329374 | D60: N/m2 . m
A61: Air Pressure in psi | B61: Air_P_psi | C61: =AIR_P*N_m2_to_psi -> 0.08262577592 | D61: psi | E61: Calculated for reference
A63: 6. Calculate additional tower dimensions
A64: Tower Volume | B64: col_vol | C64: =Shell_Height*AREA*264.17 -> 121.323738 | D64: gal
A65: Shell Height | B65: Shell_height | C65: =ROUND(PACK_HT+Free_Board_Col,1) -> 4.4 | D65: m | E65: Packing Height plus freeboard above packing from CDA
A66: Area Per Tower | B66: Area | C66: =TOT_AREA/NUM_COL -> 0.1043781536 | D66: m2 | E66: Cross-sectional area per tower
A67: Number of redistribution rings | B67: N_R | C67: =IF(PACK_HT<=ring_space,0,ROUNDUP(PACK_HT/ring_space,0)-1) -> 1 | D67: units | E67: Changed from original Cummins design to round up, remove extra ring at top
A68: Total redistribution rings | B68: tot_R | C68: =N_R*TOT_COL -> 2 | D68: units
A70: 7. Calculate packing parameters
A71: Nominal packing size | B71: DP | C71: =Packing_size*(2.54/100) -> 0.0508 | D71: m | E71: Calculated based on packing size in Input
A72: Total Packing Volume | B72: Pv | C72: =PACK_HT*AREA*TOT_COL -> 0.7173740822 | D72: m3
A73: Total Packing Volume (cubic feet) | B73: Pv_ft | C73: =PV*(3.28)^3 -> 25.31437523 | D73: ft3
A75: Internal Use - Air Gradient Calculations | C75: From Cummins' FNDel_p -- actual air gradient found in final column
A76: Log_step | C76: =(LN(MAX_DEL_P)-LN(MIN_DEL_P))/2 -> 4.114755559 | D76: =C76*0.5 -> 2.05737778 | E76: 1.02868889 | F76: 0.5143444449 | G76: 0.2571722225 | H76: 0.1285861112 | I76: 0.06429305562 | J76: 0.03214652781 | K76: 0.0160732639 | L76: 0.008036631952 | M76: 0.004018315976 | N76: 0.002009157988 | O76: 0.001004578994 | P76: 0.000502289497 | Q76: 0.0002511447485 | R76: 0.0001255723743 | S76: 6.278618713e-05
A77: Air gradient | C77: =SQRT(MAX_DEL_P*MIN_DEL_P) -> 24.49489743 | D77: =C77*EXP(SIGN(L_LOAD-C90)*D76) -> 3.13016916 | E77: =D77*EXP(SIGN(L_LOAD-D90)*E76) -> 8.75632186 | F77: 14.64531344 | G77: 18.94031284 | H77: 21.53929015 | I77: 20.19804183 | J77: 20.8578878 | K77: 20.52531341 | L77: 20.36102008 | M77: 20.27936723 | N77: 20.32015264 | O77: 20.3405761 | P77: 20.33036181 | Q77: 20.32525659 | R77: 20.32270445 | S77: =R77*EXP(SIGN(L_LOAD-R90)*S76) -> 20.32142851 | T77: Air_Gradient | U77: N/m2 . m | V77: In Cummins model, this is called del_p but actually its air gradient
A78: Mass Ratio | C78: =RATIO*1.29/PW -> 0.1200060018 | D78: =RATIO*1.29/PW -> 0.1200060018 | E78: 0.1200060018 | F78: 0.1200060018 | G78: 0.1200060018 | H78: 0.1200060018 | I78: 0.1200060018 | J78: 0.1200060018 | K78: 0.1200060018 | L78: 0.1200060018 | M78: 0.1200060018 | N78: 0.1200060018 | O78: 0.1200060018 | P78: 0.1200060018 | Q78: 0.1200060018 | R78: 0.1200060018 | S78: 0.1200060018
A79: X_Axis | C79: =SQRT(PA/(PW-PA))/C78 -> 0.2944872164 | D79: =SQRT(PA/(PW-PA))/D78 -> 0.2944872164 | E79: 0.2944872164 | F79: 0.2944872164 | G79: 0.2944872164 | H79: 0.2944872164 | I79: 0.2944872164 | J79: 0.2944872164 | K79: 0.2944872164 | L79: 0.2944872164 | M79: 0.2944872164 | N79: 0.2944872164 | O79: 0.2944872164 | P79: 0.2944872164 | Q79: 0.2944872164 | R79: 0.2944872164 | S79: 0.2944872164 | T79: X_Axis | V79: X Axis in Treybal
A80: X_11 | C80: =LOG10(X_AXIS) -> -0.5309335531 | D80: =LOG10(D79) -> -0.5309335531 | E80: -0.5309335531 | F80: -0.5309335531 | G80: -0.5309335531 | H80: -0.5309335531 | I80: -0.5309335531 | J80: -0.5309335531 | K80: -0.5309335531 | L80: -0.5309335531 | M80: -0.5309335531 | N80: -0.5309335531 | O80: -0.5309335531 | P80: -0.5309335531 | Q80: -0.5309335531 | R80: -0.5309335531 | S80: -0.5309335531 | T80: X_11
A81: Y_11 | C81: =LOG10(C77) -> 1.389075625 | D81: 0.4955678083 | E81: 0.9423217167 | F81: 1.165698671 | G81: 1.277387148 | H81: 1.333231387 | I81: 1.305309267 | J81: 1.319270327 | K81: 1.312289797 | L81: 1.308799532 | M81: 1.3070544 | N81: 1.307926966 | O81: 1.308363249 | P81: 1.308145108 | Q81: 1.308036037 | R81: 1.307981501 | S81: =LOG10(AIR_GRADIENT) -> 1.307954234 | T81: Y_11
A82: Z | C82: -4.1088301 | D82: -4.1088301 | E82: -4.1088301 | F82: -4.1088301 | G82: -4.1088301 | H82: -4.1088301 | I82: -4.1088301 | J82: -4.1088301 | K82: -4.1088301 | L82: -4.1088301 | M82: -4.1088301 | N82: -4.1088301 | O82: -4.1088301 | P82: -4.1088301 | Q82: -4.1088301 | R82: -4.1088301 | S82: -4.1088301
A83: Z | C83: =Z-0.43342855*X_11 -> -3.87870834 | D83: =D82-0.43342855*D80 -> -3.87870834 | E83: -3.87870834 | F83: -3.87870834 | G83: -3.87870834 | H83: -3.87870834 | I83: -3.87870834 | J83: -3.87870834 | K83: -3.87870834 | L83: -3.87870834 | M83: -3.87870834 | N83: -3.87870834 | O83: -3.87870834 | P83: -3.87870834 | Q83: -3.87870834 | R83: -3.87870834 | S83: -3.87870834
A84: Z | C84: =C83-0.28514237*X_11*X_11 -> -3.959087247 | D84: =D83-0.28514237*D80*D80 -> -3.959087247 | E84: -3.959087247 | F84: -3.959087247 | G84: -3.959087247 | H84: -3.959087247 | I84: -3.959087247 | J84: -3.959087247 | K84: -3.959087247 | L84: -3.959087247 | M84: -3.959087247 | N84: -3.959087247 | O84: -3.959087247 | P84: -3.959087247 | Q84: -3.959087247 | R84: -3.959087247 | S84: -3.959087247
A85: Z | C85: =C84+1.2885509*Y_11 -> -2.1691926 | D85: =D84+1.2885509*D81 -> -3.320522902 | E85: -2.744857751 | F85: -2.457025176 | G85: -2.313108888 | H85: -2.241150744 | I85: -2.277129816 | J85: -2.25914028 | K85: -2.268135048 | L85: -2.272632432 | M85: -2.274881124 | N85: -2.273756778 | O85: -2.273194605 | P85: -2.273475692 | Q85: -2.273616235 | R85: -2.273686507 | S85: -2.273721642
A86: Z | C86: =C85-0.15087096*Y_11*Y_11 -> -2.460302809 | D86: =D85-0.15087096*D81*D81 -> -3.357574917 | E86: -2.87882667 | F86: -2.662036692 | G86: -2.559287738 | H86: -2.50932477 | I86: -2.534188629 | J86: -2.521727293 | K86: -2.527950609 | L86: -2.531067781 | M86: -2.532627745 | N86: -2.531847648 | O86: -2.531457686 | P86: -2.53165266 | Q86: -2.531750152 | R86: -2.5317989 | S86: -2.531823274
A87: Z | C87: =C86-0.17824779*X_11*Y_11 -> -2.328843841 | D87: =D86-0.17824779*D80*D81 -> -3.310675503 | E87: -2.78964748 | F87: -2.551717613 | G87: -2.438398715 | H87: -2.383150775 | I87: -2.410657119 | J87: -2.396874541 | K87: -2.403758478 | L87: -2.407205961 | M87: -2.408931081 | N87: -2.408068406 | O87: -2.407637155 | P87: -2.407852773 | Q87: -2.407960588 | R87: -2.408014496 | S87: -2.408041451
A88: Y_Axis | C88: =10^C87 -> 0.004689819831 | D88: 0.0004890176078 | E88: 0.001623127067 | F88: 0.002807258383 | G88: 0.003644192291 | H88: 0.004138559705 | I88: 0.003884569364 | J88: 0.00400982537 | K88: 0.003946767303 | L88: 0.003915561405 | M88: 0.003900038726 | N88: 0.003907793391 | O88: 0.003911675729 | P88: 0.003909734143 | Q88: 0.003908763663 | R88: 0.003908278501 | S88: 0.00390803594
A89: Test Gas Loading (compare to G_load) | C89: =SQRT(Y_AXIS*PA*(PW-PA)/(CF*UW^0.1))/1.296 -> 0.6709817512 | D89: =SQRT(D88*PA*(PW-PA)/(CF*UW^0.1))/1.296 -> 0.2166680515 | E89: 0.3947379573 | F89: 0.519127246 | G89: 0.5914707495 | H89: 0.6303144186 | I89: 0.610666463 | J89: 0.6204336711 | K89: 0.6155359039 | L89: 0.6130976464 | M89: 0.6118811709 | N89: 0.6124891877 | O89: 0.6127933618 | P89: 0.6126412609 | Q89: 0.6125652208 | R89: 0.6125272034 | S89: 0.6125081953 | U89: m3/m2 . s
A90: Test Liquid Loading (compare to L_load) | C90: =C89/RATIO -> 0.00721485754 | D90: 0.002329763995 | E90: 0.004244494165 | F90: 0.005582013398 | G90: 0.006359900532 | H90: 0.006777574394 | I90: 0.006566306054 | J90: 0.006671329796 | K90: 0.006618665634 | L90: 0.006592447811 | M90: 0.006579367429 | N90: 0.006585905244 | O90: 0.006589175933 | P90: 0.00658754044 | Q90: 0.006586722805 | R90: =R89/RATIO -> 0.006586314015 | S90: 0.006586109627 | U90: m3/m2 . s
A91: Range Check | C91: =IF(X_AXIS<0.015,"X_Axis Out of Range",IF(OR(C77<20,C77>1500),"Del_p Out of Range","Range is OK")) -> Range is OK | D91: =IF(D79<0.015,"X_Axis Out of Range",IF(OR(D77<20,D77>1500),"Del_p Out of Range","Range is OK")) -> Del_p Out of Range | E91: Del_p Out of Range | F91: Del_p Out of Range | G91: Del_p Out of Range | H91: Range is OK | I91: Range is OK | J91: Range is OK | K91: Range is OK | L91: Range is OK | M91: Range is OK | N91: Range is OK | O91: Range is OK | P91: Range is OK | Q91: Range is OK | R91: Range is OK | S91: =IF(S79<0.015,"X_Axis Out of Range",IF(OR(AIR_GRADIENT<20,AIR_GRADIENT>1500),"Del_p Out of Range","Range is OK")) -> Range is OK

Sheet Retrofit
A1: Retrofit Calculations
A3: Calculation | B3: Range Name | C3: Value | D3: Units | E3: Guidance
A4: 1. INITIAL CALCULATIONS
A5: Is this a retrofit design? | B5: retrofit | C5: =IF(retrofit_I="",0,1) -> 0 | D5: 1 = retrofit, 0 = new treatment system
A6: Is there a new contaminant? | B6: r_new_contam | C6: =IF(AND(retrofit=1,retrofit_I="retrofit for new contaminant"),1,0) -> 0 | D6: 1 = new contaminant, 0 = same contaminant
A7: Percent removal or effluent concentration? | B7: r_units_rem | C7: =IF(r_new_contam=1,IF(r_units_rem_I="percent removal",1,2),Units_rem) -> 2 | D7: 1 = percent removal, 2 = effluent concentration
A8: Influent concentration | B8: r_influent_conc | C8: =IF(r_new_contam=1,r_influent_conc_I,Influent_conc) -> 5 | D8: ug/L
A9: Percent removal for retrofit | B9: r_Rem_in | C9: =IF(r_units_rem=1,r_rem_I,IF(r_units_rem=2,1-r_rem_I/r_influent_conc,"Error")) -> 1
B10: r_P_REM | C10: =r_Rem_in -> 1
A11: Additional available height per tower | B11: r_xtraheight | C11: =IF(r_xtraheight_I="",0,IF(r_xtraheight_units="meters",r_xtraheight_I,IF(r_xtraheight_units="feet",r_xtraheight_I/3.3,IF(r_xtraheight_units="fraction",PACK_HT*r_xtraheight_I,"Error")))) -> 0 | D11: meters
A12: Design Henry's coefficient for retrofit | B12: r_DES_HENRY | C12: =IF(r_new_contam=1,r_Henry,HENRY)/SF_HENRY -> 0.1335714286 | D12: atm m3/m3
A13: Molecular weight for retrofit | B13: r_Mw | C13: =IF(r_new_contam=1,r_Mw_in,MW_IN) -> 131.39 | D13: kg/kilomole
A14: Molar volume for retrofit | B14: r_Mv | C14: =IF(r_new_contam=1,r_Mv_in,MV_IN) -> 0.102 | D14: m3/kilomole
A15: Boiling point for retrofit | B15: r_Tb | C15: =IF(r_new_contam=1,r_Tb_in,TB_IN) -> 359.7 | D15: degrees Kelvin
A16: Melting point for retrofit | B16: r_Tm | C16: =IF(r_new_contam=1,r_Tm_in,TM_IN) -> 0 | D16: degrees Kelvin
A18: 2. AIR TO WATER RATIO FOR RETROFIT
A19: Air to Water Ratio | B19: r_RATIO | C19: 40 | E19: Air to Water Ratio, selected by design macro
A20: Gas Loading | B20: r_G_Load | C20: =L_LOAD*r_RATIO -> 0.2634459325 | D20: m3/m2 . s
A22: 3. ONDA CALCULATIONS
A23: Henry's Co-efficient for Onda | B23: r_ONDA_H | C23: =IF(r_new_contam=1,r_Henry,HENRY) -> 0.187 | D23: atm m3/m3
A24: Reynold's number | B24: r_NR | C24: =PW*L_LOAD/(AP*UW) -> 32.08676684
A25: Froude number | B25: r_FR | C25: =(L_LOAD^2*AP)/(G) -> 0.0006942144635
A26: Weber number | B26: r_NW | C26: =(PW*L_LOAD^2)/(SW*AP) -> 0.003722452349
A27: Wetted Surface Area | B27: r_AW | C27: =AP*(1-EXP(-1.45*((SP/SW)^0.75)*(r_NR^0.1)*(r_FR^(-0.05))*(r_NW^0.2))) -> 64.1274882
A28: Liquid phase Reynold's number | B28: r_NRW | C28: =(PW*L_LOAD)/(r_AW*UW) -> 78.55636538
A29: X_1 | B29: r_X_1 | C29: 7.4815e-16 | E29: Calculated value in Cummins' original program
A30: Diffusion Co-efficient Through Water, Dw | B30: r_DW | C30: =r_X_1*T/(UW*(r_Mv^0.6)) -> 6.372934064e-10 | D30: m2/s
A31: Schmidt number | B31: r_SCW | C31: =UW/(PW*r_DW) -> 2051.476141
A32: Air phase Reynold's number | B32: r_NRA | C32: =(r_G_Load*MWA)/(AP*UA*GO) -> 121.363696
A33: X | B33: r_X | C33: =SQRT((1/r_Mw)+(1/MWA)) -> 0.2051674631
A34: Radius | B34: r_Radius | C34: =1.18*(r_Mv^(1/3)) -> 0.5513347899
A35: Molecular separation at collision | B35: r_R_ab | C35: =(RA+r_Radius)/2 -> 0.461217395
A36: E_kc | B36: r_E_kc | C36: =IF(r_Tb>0,1.15*r_Tb,1.92*r_Tm) -> 413.655
A37: K_te | B37: r_Kt_e | C37: =T/(SQRT(E_KA*r_E_kc)) -> 1.569480859
A38: Collision Integral | B38: r_F_KT_E | C38: =EXP(-0.33789+LN(r_Kt_e)*(-0.44268+LN(r_Kt_e)*(0.081488*LN(r_Kt_e)*(-0.0070712)))) -> 0.5842194933
A39: Diffusion Co-efficient Through Air | B39: r_DA | C39: =0.0001*(1.084-0.249*r_X)*(T^1.5)*X/(P_S*(r_R_ab^2)*r_F_KT_E) -> 8.012130212e-06
A40: Schmidt number | B40: r_SCA | C40: =UA/(PA*r_DA) -> 1.79158979
A41: Nominal packing size | B41: r_DP | C41: =Packing_size*(2.54/100) -> 0.0508
A42: Shape factor | B42: r_SHAPE | C42: =AP*r_DP -> 7.9756 | D42: m2/s
A43: Liquid phase Sherwood number | B43: r_SHW | C43: =0.0051*(r_NRW^(2/3))*(r_SCW^(-0.5))*(r_SHAPE^0.4) -> 0.004739107292
A44: Liquid phase co-efficient | B44: r_ONDA_KL | C44: =(r_SHW)/((PW)/(UW*G))^(1/3) -> 0.0001109314889 | D44: meters
A45: Air phase Sherwood number | B45: r_SHA | C45: =5.23*(r_NRA^0.7)*(r_SCA^0.33)*(r_SHAPE^(-2)) -> 2.866855782
A46: Air phase co-efficient | B46: r_ONDA_KG | C46: =(r_SHA)/((R_C*T/(AP*r_DA))) -> 0.0001552115031
A47: Overall coefficient | B47: r_KLA | C47: =(r_AW/((1/r_ONDA_KL)+(1/(r_ONDA_KG*r_ONDA_H*R_C*TS/PS)))) -> 0.006077417021
A48: Design Kla (with Safety Factor) | B48: r_DES_KLA | C48: =r_KLA/SF_KLA -> 0.004341012158
A50: 4. PACKING HEIGHT REQUIRED FOR RETROFIT
A51: Strip Factor | B51: r_Strip_Factor | C51: =r_RATIO*r_DES_HENRY/OP_PRESS -> 5.342857143
A52: HTU | B52: r_HTU | C52: =L_LOAD/r_DES_KLA -> 1.517191861
A53: NTU | B53: r_NTU | C53: =IF(retrofit=0,0,IF(r_Strip_Factor<=r_P_REM,1000000,(r_Strip_Factor/(r_Strip_Factor-1))*LN(((1/(1-r_P_REM))*(r_Strip_Factor-1)+1)/(r_Strip_Factor)))) -> 0
A54: New packing height required | B54: r_Pack_ht | C54: =r_HTU*r_NTU -> 0 | D54: meters
A55: Check | B55: r_Check_Pack | C55: =IF(r_Pack_ht<=(PACK_HT+r_xtraheight),TRUE,FALSE) -> TRUE
A56: Packing height for retrofit | B56: New_Pack_ht | C56: =MAX(r_Pack_ht,PACK_HT) -> 3.436418722 | D56: meters | E56: Assume the system won't remove any packing, even if new ratio allows slightly less packing height
A58: 5. AIR GRADIENT CALCULATIONS
A59: Min_del_p | B59: Min_del_p | C59: =MIN_DEL_P -> 0.4 | D59: N/m2 or pascal | E59: From tower design page
A60: Max_del_p | B60: Max_del_p | C60: =MAX_DEL_P -> 1500 | D60: N/m2 or pascal | E60: From tower design page
A61: Air Gradient | B61: r_Air_Gradient | C61: =r_Air_Gradient -> 5.633342572 | D61: N/m2 . m | E61: Calculated below, displayed here for reference
A62: Check | B62: Check_Gradient | C62: =IF(r_Air_Gradient<20,FALSE,TRUE) -> FALSE
A63: Air Pressure | B63: r_Air_P | C63: =r_Air_Gradient*New_Pack_ht+500 -> 519.3585239 | D63: N/m2 . m
A64: Air Pressure in psi | B64: r_Air_P_psi | C64: =r_Air_P*N_m2_to_psi -> 0.07530698596 | D64: psi | E64: Calculated for reference
A66: 6. EQUIPMENT CALCULATIONS
A67: New Blowers
A68: Design air flow | B68: r_Air_Flow | C68: =TOT_AREA*r_G_Load -> 0.054996 | D68: m3/s
A69: Design air flow | B69: r_design_air_flow | C69: =r_Air_Flow*35.31*60 -> 116.5145256 | D69: cfm
A70: Flow per blower | B70: r_Q_Blower | C70: =IF(parallel_I="",MIN(MAX(r_design_air_flow*average_flow/design_flow,r_design_air_flow/2),max_blow_size),r_design_air_flow/parallel_I) -> 58.2572628 | D70: cfm
A71: Number of operating blowers | B71: r_Parallel | C71: =IF(r_RATIO=RATIO,0,ROUNDUP(r_design_air_flow/r_Q_Blower,0)) -> 2 | D71: units
A72: Total blowers | B72: r_tot_blowers | C72: =IF(r_Parallel=0,0,r_Parallel+NRD_blower) -> 2 | D72: units | E72: Includes redundancy
A74: Incremental materials for blowers | B74: r_blow_materials | C74: =IF(r_tot_blowers=0,0,pump_maintenance*(SUMPRODUCT(OUTPUT!J259:J260,OUTPUT!L259:L260)-SUMPRODUCT(OUTPUT!J62:J63,OUTPUT!L259:L260))) -> 0
A76: Incremental blowers for O&M | B76: r_blowers_added | C76: =IF(r_Parallel=0,0,r_Parallel-PARALLEL) -> 0 | D76: units
A77: Incremental labor hours for blowers | B77: r_blower_labor | C77: =IF(OR(manual=1,manual=2),r_blowers_added*uloe_pump*365/60,0)+r_blowers_added*uloe_pump_maint -> 0 | D77: hr/yr | E77: Includes both operation and maintenance
A79: Incremental daily air flow | B79: r_Daily_Air | C79: =(r_Air_Flow-AIR_FLOW)*QWA/QW -> -0.01700293 | D79: m3/s
A80: Incremental operating power | B80: r_blower_pwr | C80: =r_Daily_Air*(r_Air_P/BLOW_EFF) -> -12.61516661 | D80: Watts
A81: Incremental energy for all active blowers | B81: r_blow_energy | C81: =r_blower_pwr*24*365/1000000 -> -0.1105088595 | D81: MWhr/yr
A83: Additonal Packing
A84: Additional packing volume | B84: r_Pv | C84: =New_Pack_ht*AREA*TOT_COL-PV -> 0 | D84: m3
A85: Additional packing volume (cubic feet) | B85: r_Pv_ft | C85: =r_Pv*(3.28)^3 -> 0 | D85: ft3
A87: Incremental Equipment
A88: Incremental packing height increase | B88: r_pack_ht_added | C88: =New_Pack_ht-PACK_HT -> 0 | D88: meters
A89: New shell height | B89: r_Shell_height | C89: =Shell_Height+r_xtraheight -> 4.4 | D89: meters
A90: New tower volume | B90: r_col_vol | C90: =r_Shell_height*AREA*264.17 -> 121.323738 | D90: gal
A92: Original actual ring space | B92: r_ring_space | C92: =Shell_Height/(N_R+1) -> 2.2 | D92: meters
A93: in feet | B93: r_ring_space_ft | C93: =ROUNDUP(r_ring_space*3.3,1) -> 7.3 | D93: feet
A94: Additional redistribution rings per tower | B94: r_N_R | C94: =IF(r_xtraheight<=r_ring_space,0,ROUNDUP(r_xtraheight/r_ring_space,0)-1) -> 0 | D94: units
A95: Total additional redistribution rings | B95: r_tot_R | C95: =r_N_R*TOT_COL -> 0 | D95: units
A97: Incremental process pipe length | B97: r_proc_pipe_length | C97: =r_xtraheight*3.28*TOT_COL -> 0 | D97: feet
A99: Incremental materials for towers | B99: r_pta_materials | C99: =PTA_maintenance*SUMPRODUCT(OUTPUT!J263:J268,OUTPUT!L263:L268) -> 0
A101: Incremental pump operating head | B101: r_Head_O | C101: =r_pack_ht_added -> 0 | D101: m - H20
A102: Incremental pressure head | B102: r_Press_H | C102: =r_Head_O*PW*G -> 0 | D102: N/m2
A103: Incremental pump operating power | B103: r_PWR | C103: =IF(NUM_OF_PUMPS=0,0,QWA*(1+bp_pct)*(r_Press_H/PUMP_EFF)) -> 0 | D103: Watts
A104: Incremental energy for all active booster pumps | B104: r_pump_energy | C104: =r_PWR*24*365/1000000 -> 0 | D104: MWhr/yr
A106: Incremental lighting | B106: r_lighting | C106: =MIN(1,(r_blower_labor+Operator_LOE)/(24*365))*(total_fp*lighting_energy_1)/1000-lighting -> 0 | D106: MWhr/yr | E106: If operator labor increases, lighting usage will increase
A108: Standby Power
A109: Additional standby power for new blowers | B109: r_std_power_blow | C109: =r_blow_energy*design_flow/average_flow/365/24*1000 -> -0.05406499975 | D109: kW
A110: Supplemental standby generator cost | C110: =IF(ISERROR(VLOOKUP(r_std_power_blow,std_gen_cost_cl,3)),0,VLOOKUP(r_std_power_blow,std_gen_cost_cl,3)*r_std_power_blow) -> 0
A112: Incremental standby power useage for pumps | C112: =r_pump_energy*design_flow/average_flow/365/24*1000 -> 0 | D112: kW
A113: Total standby power required | B113: r_std_power_pumps | C113: =std_power+C112 -> 1.5 | D113: kW
A114: Total standby power cost | C114: =VLOOKUP(r_std_power_pumps,std_gen_cost_cl,3)*r_std_power_pumps -> 1396.979637
A115: Incremental standby power cost for pumps (opportunity cost) | C115: =C114-std_power_cost -> 0
A117: Retrofit standby power cost | B117: r_std_power_cost | C117: =C115+C110 -> 0
A119: Internal Use - Air Gradient Calculations | C119: From Cummins' FNDel_p -- actual air gradient found in final column
A120: Log_step | C120: =(LN(MAX_DEL_P)-LN(MIN_DEL_P))/2 -> 4.114755559 | D120: =C120*0.5 -> 2.05737778 | E120: 1.02868889 | F120: 0.5143444449 | G120: 0.2571722225 | H120: 0.1285861112 | I120: 0.06429305562 | J120: 0.03214652781 | K120: 0.0160732639 | L120: 0.008036631952 | M120: 0.004018315976 | N120: 0.002009157988 | O120: 0.001004578994 | P120: 0.000502289497 | Q120: 0.0002511447485 | R120: 0.0001255723743 | S120: 6.278618713e-05
A121: Air gradient | C121: =SQRT(MAX_DEL_P*MIN_DEL_P) -> 24.49489743 | D121: =C121*EXP(SIGN(L_LOAD-C134)*D120) -> 3.13016916 | E121: =D121*EXP(SIGN(L_LOAD-D134)*E120) -> 8.75632186 | F121: 5.235338446 | G121: 6.77069483 | H121: 5.953728155 | I121: 5.582990409 | J121: 5.765380056 | K121: 5.673452349 | L121: 5.628039628 | M121: 5.650700368 | N121: 5.639358615 | O121: 5.633696279 | P121: 5.630867243 | Q121: 5.632281583 | R121: 5.632988887 | S121: =R121*EXP(SIGN(L_LOAD-R134)*S120) -> 5.633342572 | T121: Air_Gradient | U121: N/m2 . m | V121: In Cummins model, this is called del_p but actually it's air gradient
A122: Mass Ratio | C122: =r_RATIO*1.29/PW -> 0.05161548465 | D122: 0.05161548465 | E122: 0.05161548465 | F122: 0.05161548465 | G122: 0.05161548465 | H122: 0.05161548465 | I122: 0.05161548465 | J122: 0.05161548465 | K122: 0.05161548465 | L122: 0.05161548465 | M122: 0.05161548465 | N122: 0.05161548465 | O122: 0.05161548465 | P122: 0.05161548465 | Q122: 0.05161548465 | R122: 0.05161548465 | S122: 0.05161548465
A123: X_Axis | C123: =SQRT(PA/(PW-PA))/C122 -> 0.684682778 | D123: 0.684682778 | E123: 0.684682778 | F123: 0.684682778 | G123: 0.684682778 | H123: 0.684682778 | I123: 0.684682778 | J123: 0.684682778 | K123: 0.684682778 | L123: 0.684682778 | M123: 0.684682778 | N123: 0.684682778 | O123: 0.684682778 | P123: 0.684682778 | Q123: 0.684682778 | R123: 0.684682778 | S123: 0.684682778 | T123: X_Axis | V123: X Axis in Treybal
A124: X_11 | C124: =LOG10(C123) -> -0.1645105959 | D124: =LOG10(D123) -> -0.1645105959 | E124: -0.1645105959 | F124: -0.1645105959 | G124: -0.1645105959 | H124: -0.1645105959 | I124: -0.1645105959 | J124: -0.1645105959 | K124: -0.1645105959 | L124: -0.1645105959 | M124: -0.1645105959 | N124: -0.1645105959 | O124: -0.1645105959 | P124: -0.1645105959 | Q124: -0.1645105959 | R124: -0.1645105959 | S124: -0.1645105959 | T124: X_11
A125: Y_11 | C125: =LOG10(C121) -> 1.389075625 | D125: 0.4955678083 | E125: 0.9423217167 | F125: 0.7189447625 | G125: 0.8306332396 | H125: 0.7747890011 | I125: 0.7468668818 | J125: 0.7608279414 | K125: 0.7538474116 | L125: 0.7503571467 | M125: 0.7521022791 | N125: 0.7512297129 | O125: 0.7507934298 | P125: 0.7505752882 | Q125: 0.750684359 | R125: 0.7507388944 | S125: =LOG10(AIR_GRADIENT) -> 1.307954234 | T125: Y_11
A126: Z | C126: -4.1088301 | D126: -4.1088301 | E126: -4.1088301 | F126: -4.1088301 | G126: -4.1088301 | H126: -4.1088301 | I126: -4.1088301 | J126: -4.1088301 | K126: -4.1088301 | L126: -4.1088301 | M126: -4.1088301 | N126: -4.1088301 | O126: -4.1088301 | P126: -4.1088301 | Q126: -4.1088301 | R126: -4.1088301 | S126: -4.1088301
A127: Z | C127: =C126-0.43342855*C124 -> -4.037526511 | D127: =D126-0.43342855*D124 -> -4.037526511 | E127: -4.037526511 | F127: -4.037526511 | G127: -4.037526511 | H127: -4.037526511 | I127: -4.037526511 | J127: -4.037526511 | K127: -4.037526511 | L127: -4.037526511 | M127: -4.037526511 | N127: -4.037526511 | O127: -4.037526511 | P127: -4.037526511 | Q127: -4.037526511 | R127: -4.037526511 | S127: -4.037526511
A128: Z | C128: =C127-0.28514237*C124*C124 -> -4.045243529 | D128: =D127-0.28514237*D124*D124 -> -4.045243529 | E128: -4.045243529 | F128: -4.045243529 | G128: -4.045243529 | H128: -4.045243529 | I128: -4.045243529 | J128: -4.045243529 | K128: -4.045243529 | L128: -4.045243529 | M128: -4.045243529 | N128: -4.045243529 | O128: -4.045243529 | P128: -4.045243529 | Q128: -4.045243529 | R128: -4.045243529 | S128: -4.045243529
A129: Z | C129: =C128+1.2885509*C125 -> -2.255348882 | D129: =D128+1.2885509*D125 -> -3.406679183 | E129: -2.831014033 | F129: -3.118846608 | G129: -2.97493032 | H129: -3.046888464 | I129: -3.082867536 | J129: -3.064878 | K129: -3.073872768 | L129: -3.078370152 | M129: -3.07612146 | N129: -3.077245806 | O129: -3.077807979 | P129: -3.078089066 | Q129: -3.077948522 | R129: -3.077878251 | S129: -2.359877924
A130: Z | C130: =C129-0.15087096*C125*C125 -> -2.54645909 | D130: =D129-0.15087096*D125*D125 -> -3.443731198 | E130: -2.964982952 | F130: -3.196829027 | G130: -3.079023977 | H130: -3.137455999 | I130: -3.167024887 | J130: -3.152211037 | K130: -3.15961061 | L130: -3.163315911 | M130: -3.161462801 | N130: -3.162389241 | O130: -3.162852547 | P130: -3.163084222 | Q130: -3.162968383 | R130: -3.162910465 | S130: -2.617979555
A131: Z | C131: =C130-0.17824779*C124*C125 -> -2.505726322 | D131: =D130-0.17824779*D124*D125 -> -3.429199341 | E131: -2.93735064 | F131: -3.175746942 | G131: -3.054666779 | H131: -3.114736358 | I131: -3.145124024 | J131: -3.129900784 | K131: -3.137505053 | L131: -3.141312701 | M131: -3.139408417 | N131: -3.140360444 | O131: -3.140836544 | P131: -3.141074615 | Q131: -3.140955577 | R131: -3.14089606 | S131: -2.579625563
A132: Y_Axis | C132: =10^C131 -> 0.003120855621 | D132: 0.0003722208177 | E132: 0.0011551792 | F132: 0.000667195422 | G132: 0.0008817251348 | H132: 0.0007678274646 | I132: 0.0007159389259 | J132: 0.0007414796147 | K132: 0.0007286096976 | L132: 0.0007222495825 | M132: 0.0007254234373 | N132: 0.0007238349618 | O132: 0.0007230418854 | P132: 0.0007226456373 | Q132: 0.0007228437372 | R132: 0.0007229428053 | S132: 0.002632536717
A133: Test Gas Loading (compare to G_load) | C133: =SQRT(C132*PA*(PW-PA)/(CF*UW^0.1))/1.296 -> 0.5473554771 | D133: =SQRT(D132*PA*(PW-PA)/(CF*UW^0.1))/1.296 -> 0.1890309682 | E133: 0.3330100264 | F133: 0.2530807765 | G133: 0.29093719 | H133: 0.2714966346 | I133: 0.2621625287 | J133: 0.2667977958 | K133: 0.2644722458 | L133: 0.2633154119 | M133: 0.2638933345 | N133: 0.2636042497 | O133: 0.2634597999 | P133: 0.2633875982 | Q133: 0.2634236971 | R133: 0.263441748 | S133: 0.5027126896 | U133: m3/m2 . s
A134: Test Liquid Loading (compare to L_load) | C134: =C133/r_RATIO -> 0.01368388693 | D134: 0.004725774206 | E134: 0.008325250661 | F134: 0.006327019412 | G134: 0.007273429751 | H134: 0.006787415866 | I134: 0.006554063216 | J134: 0.006669944894 | K134: 0.006611806144 | L134: 0.006582885297 | M134: 0.006597333363 | N134: 0.006590106242 | O134: 0.006586494998 | P134: 0.006584689954 | Q134: 0.006585592428 | R134: 0.006586043701 | S134: 0.01256781724 | U134: m3/m2 . s
A135: Range Check | C135: =IF(X_AXIS<0.015,"X_Axis Out of Range",IF(OR(C121<20,C121>1500),"Del_p Out of Range","Range is OK")) -> Range is OK | D135: =IF(D123<0.015,"X_Axis Out of Range",IF(OR(D121<20,D121>1500),"Del_p Out of Range","Range is OK")) -> Del_p Out of Range | E135: Del_p Out of Range | F135: Del_p Out of Range | G135: Del_p Out of Range | H135: Del_p Out of Range | I135: Del_p Out of Range | J135: Del_p Out of Range | K135: Del_p Out of Range | L135: Del_p Out of Range | M135: Del_p Out of Range | N135: Del_p Out of Range | O135: Del_p Out of Range | P135: Del_p Out of Range | Q135: Del_p Out of Range | R135: Del_p Out of Range | S135: =IF(S123<0.015,"X_Axis Out of Range",IF(OR(AIR_GRADIENT<20,AIR_GRADIENT>1500),"Del_p Out of Range","Range is OK")) -> Range is OK

Sheet Chemical Use
A1: Chemical Use and Storage Calculations
A3: Calculation | B3: Range Name | C3: Value | D3: Units | E3: Guidance
A4: Maximum Tank Sizes
A5: Maximum chemical storage tank size | B5: max_ctank_size | C5: =MAX(VLOOKUP(10^6,fg_cst_cost_cl,1)-1,VLOOKUP(10^6,pl_cst_cost_cl,1)-1,VLOOKUP(10^6,ss_cst_cost_cl,1)-1) -> 30025 | D5: gal | E5: The largest size for which costs are available
A6: Maximum chemical storage tank size excluding stainless steel | B6: max_ctank_size_noSS | C6: =MAX(VLOOKUP(10^6,fg_cst_cost_cl,1)-1,VLOOKUP(10^6,pl_cst_cost_cl,1)-1) -> 30025 | D6: gal | E6: The largest size for which costs are available (excluding stainless, which is not compatible with acids)
A8: Chemical Use and Storage - pH adjustment
A9: Acid solution strength | B9: acid_strength | C9: =CHOOSE(acid_type,0,hcl_strength,H2SO4_strength) -> 0
A10: Acid mg/meq | B10: acid_molwt | C10: =CHOOSE(acid_type,0,hcl_molwt,H2SO4_molwt) -> 0
A11: Maximum chemical tank mixer horsepower | B11: cmix_hp_max | C11: =MAX(VLOOKUP(10^6,port_mix_cost_cl,1)-0.1,VLOOKUP(10^6,mount_mix_cost_cl,1)-0.1,VLOOKUP(10^6,imp_mix_cost_cl,1)-0.1) -> 20 | D11: hp
A13: Original pH
A14: llo | B14: llo | C14: =10^(pHo-6.3) -> 15.84893192
A15: hlo | B15: hlo | C15: =10^(pHo-10.3) -> 0.001584893192
A16: do | B16: do | C16: =1+llo+(hlo*llo) -> 16.87405079
A17: carbonic | B17: carlo | C17: =1/do -> 0.05926259275
A18: bicarbonate | B18: bicarlo | C18: =llo/do -> 0.9392487982 | E18: For reference
A19: carbonate | B19: crbatelo | C19: =(hlo*llo)/do -> 0.001488609026
A20: Mole fraction at pH 4.3
A21: pHa | B21: pHa | C21: 4.3
A22: lalo | B22: lalo | C22: =10^(pHa-6.3) -> 0.01
A23: halo | B23: halo | C23: =10^(pHa-10.3) -> 1e-06
A24: da | B24: da | C24: =1+lalo+(halo*lalo) -> 1.01000001
A25: carbonic | B25: caralo | C25: =1/da -> 0.9900990001
A26: bicarbonate | B26: bicaralo | C26: =lalo/da -> 0.009900990001 | E26: For reference
A27: carbonate | B27: crbatealo | C27: =(halo*lalo)/da -> 9.900990001e-09
A28: Mole fraction at final pH
A29: flc | B29: flc | C29: =10^(pHf_selected-6.3) -> 0.1584893192
A30: fbc | B30: fbc | C30: =10^(pHf_selected-10.3) -> 1.584893192e-05
A31: dc | B31: dc | C31: =1+flc+(fbc*flc) -> 1.158491831
A32: carbonic | B32: fcc | C32: =1/dc -> 0.8631912398
A33: bicarbonate | B33: flbc | C33: =flc/dc -> 0.136806592 | E33: For reference
A34: carbonate | B34: flcc | C34: =(fbc*flc)/dc -> 2.168238363e-06
A36: Alkalinity in meq | B36: alk | C36: =alk_ppm/50 -> 2 | D36: meq/L
A37: Ct | B37: Ct | C37: =alk/((caralo-carlo)+(crbatelo-crbatealo)) -> 2.145174683
A38: meq of acid required per liter | B38: acid | C38: =Ct*((fcc-carlo)+(crbatelo-flcc)+10^(-pHf_selected)-10^(-pHo)) -> 1.727762771 | D38: meq/L
A39: Weight of acid required per liter | B39: mg_per_liter | C39: =acid*acid_molwt -> 0 | D39: mg/L
A40: Average HCl per day | B40: design_hcl_day | C40: =1000000*3.7854*mg_per_liter*2.2*average_flow/1000000 -> 0 | D40: lbs
A41: Initial HCl | B41: HCl_init | C41: =cstore_days*design_hcl_day -> 0 | D41: lbs
A42: Acid storage volume | B42: HCl_store | C42: =IF(acid_type=1,0,cstore_days*design_hcl_day/VLOOKUP(acid_strength,IF(acid_type=2,hcl_table_cl,h2so4_table_cl),4)) -> 0 | D42: gal
A43: Number of acid tanks | B43: HCl_tanks | C43: =ROUNDUP(HCl_store/max_ctank_size_noSS,0) -> 0 | D43: unit
A44: Acid tank volume | B44: HCl_tank_vol | C44: =IF(acid_type=1,0,HCl_store/HCl_tanks) -> 0 | D44: gal
A45: Annual acid use | B45: HCl_yr | C45: =design_hcl_day*365*(chem_freq/365) -> 0 | D45: lbs
A46: Design acid flow | B46: HCl_flow | C46: =IF(acid_type=1,0,(design_hcl_day/VLOOKUP(acid_strength,IF(acid_type=2,alarm_cost_cl,al_shell_cost_cl),4))*design_flow/average_flow/(24*60)) -> 0 | D46: gpm
A47: Number of metering pumps | B47: HCl_pumps | C47: =IF(acid_type=1,0,ROUNDUP(HCl_flow*60*pump_safety_factor/max_cm_pump_size,0)+NRD_cm_pump) -> 0
A48: Pump rating | B48: HCl_pump_rate | C48: =IF(HCl_pumps=0,0,(HCl_flow*60*pump_safety_factor)/(HCl_pumps-NRD_cm_pump)) -> 0 | D48: gph
A49: Acid day tank storage volume required (based on design flow) | B49: day_tank_vol_needed_acid | C49: =HCl_flow*60*24 -> 0 | D49: gallons
A50: Number of acid day tanks | B50: day_tanks_acid | C50: =IF(day_tank_vol_needed_acid<day_tank_needed,0,ROUNDUP(day_tank_vol_needed_acid/max_ctank_size_noSS,0)) -> 0 | D50: units
A51: Volume of acid day tanks | B51: day_tank_vol_acid | C51: =IF(day_tanks_acid=0,0,day_tank_vol_needed_acid/day_tanks_acid) -> 0 | D51: gallons
A53: Mixers per storage tank | B53: cmix_per_tank_acid | C53: =IF(HCl_tanks<>0,ROUNDUP(HCl_tank_vol/1000*cmix_hp_per/cmix_hp_max,0),0) -> 0 | D53: units
A54: Number of acid storage tank mixers | B54: cmixers_acid | C54: =IF(HCl_tanks<>0,HCl_tanks*cmix_per_tank_acid,0) -> 0 | D54: units
A55: Mixer size for acid storage tanks | B55: cmix_size_acid | C55: =IF(HCl_tanks<>0,HCl_tank_vol/1000*cmix_hp_per/cmix_per_tank_acid,0) -> 0 | D55: hp
A56: Mixers per acid day tank | B56: dmix_per_tank_acid | C56: =IF(day_tanks_acid<>0,ROUNDUP(day_tank_vol_acid/1000*cmix_hp_per/cmix_hp_max,0),0) -> 0 | D56: units
A57: Number of acid day tank mixers | B57: dmixers_acid | C57: =IF(day_tanks_acid<>0,day_tanks_acid*dmix_per_tank_acid,0) -> 0 | D57: units
A58: Mixer size for acid day tanks | B58: dmix_size_acid | C58: =IF(day_tanks_acid<>0,day_tank_vol_acid/1000*cmix_hp_per/dmix_per_tank_acid,0) -> 0 | D58: hp
A60: H3O+ to be destroyed | B60: h3o | C60: =(10^-pHf_selected)-(10^-pHo) -> 3.130654884e-06
A61: NaOH required to adjust pH | B61: NaOH_pH | C61: =h3o*28000 -> 0.08765833674 | D61: mg/L
A62: NaOH required to raise alkalinity | B62: NaOH_alk | C62: =alk_ppm*30/65 -> 46.15384615 | D62: mg/L
A63: NaOH required to raise alkalinity and pH | B63: NaOH_tot | C63: =NaOH_pH+NaOH_alk -> 46.24150449 | D63: mg/L
A64: Average NaOH per day | B64: design_NaOH_day | C64: =IF(acid_type=1,0,1000000*3.7854*NaOH_tot*2.2*average_flow/1000000) -> 0 | D64: lbs
A65: Initial NaOH | B65: NaOH_init | C65: =cstore_days*design_NaOH_day -> 0 | D65: lbs
A66: NaOH storage volume | B66: NaOH_store | C66: =cstore_days*design_NaOH_day/VLOOKUP(naoh_strength,NaOH_table_cl,2) -> 0 | D66: gal
A67: Number of NaOH tanks | B67: NaOH_tanks | C67: =ROUNDUP(NaOH_store/max_ctank_size,0) -> 0 | D67: units
A68: NaOH tank volume | B68: NaOH_tank_vol | C68: =IF(acid_type=1,0,NaOH_store/NaOH_tanks) -> 0 | D68: gal
A69: Annual NaOH use | B69: NaOH_yr | C69: =design_NaOH_day*365*(chem_freq/365) -> 0 | D69: lbs
A70: Design NaOH flow | B70: NaOH_flow | C70: =(design_NaOH_day/VLOOKUP(naoh_strength,NaOH_table_cl,2))*design_flow/average_flow/(24*60) -> 0 | D70: gpm
A71: Number of metering pumps | B71: NaOH_pumps | C71: =IF(acid_type=1,0,ROUNDUP(NaOH_flow*60*pump_safety_factor/max_cm_pump_size,0)+NRD_cm_pump) -> 0 | D71: units
A72: Pump rating | B72: NaOH_pump_rate | C72: =IF(NaOH_pumps=0,0,(NaOH_flow*60*pump_safety_factor)/(NaOH_pumps-NRD_cm_pump)) -> 0 | D72: gph
A73: Caustic day tank storage volume required (based on design flow) | B73: day_tank_vol_needed_NaOH | C73: =NaOH_flow*60*24 -> 0 | D73: gallons
A74: Number of caustic day tanks | B74: day_tanks_NaOH | C74: =IF(day_tank_vol_needed_NaOH<day_tank_needed,0,ROUNDUP(day_tank_vol_needed_NaOH/max_ctank_size,0)) -> 0 | D74: units
A75: Volume of caustic day tanks | B75: day_tank_vol_NaOH | C75: =IF(day_tanks_NaOH=0,0,day_tank_vol_needed_NaOH/day_tanks_NaOH) -> 0 | D75: gallons
A77: Mixers per caustic storage tank | B77: cmix_per_tank_NaOH | C77: =IF(NaOH_tanks<>0,ROUNDUP(NaOH_tank_vol/1000*cmix_hp_per/cmix_hp_max,0),0) -> 0 | D77: units
A78: Number of caustic storage tank mixers | B78: cmixers_NaOH | C78: =IF(NaOH_tanks<>0,NaOH_tanks*cmix_per_tank_NaOH,0) -> 0 | D78: units
A79: Mixer size for caustic storage tanks | B79: cmix_size_NaOH | C79: =IF(NaOH_tanks<>0,NaOH_tank_vol/1000*cmix_hp_per/cmix_per_tank_NaOH,0) -> 0 | D79: hp
A80: Mixers per caustic day tank | B80: dmix_per_tank_NaOH | C80: =IF(day_tanks_NaOH<>0,ROUNDUP(day_tank_vol_NaOH/1000*cmix_hp_per/cmix_hp_max,0),0) -> 0 | D80: units
A81: Number of caustic day tank mixers | B81: dmixers_NaOH | C81: =IF(day_tanks_NaOH<>0,day_tanks_NaOH*dmix_per_tank_NaOH,0) -> 0 | D81: units
A82: Mixer size for caustic day tanks | B82: dmix_size_NaOH | C82: =IF(day_tanks_NaOH<>0,day_tank_vol_NaOH/1000*cmix_hp_per/dmix_per_tank_NaOH,0) -> 0 | D82: hp
A84: Chemical Use and Storage - Corrosion Control
A85: Average sodium hexametaphosphate per day | B85: design_sh_day | C85: =average_flow*sh_dose*8.34 -> 0.2919 | D85: lbs
A86: Initial sodium hexametaphosphate | B86: sh_init | C86: =cstore_days*design_sh_day -> 8.757 | D86: lbs
A87: Sodium hexametaphosphate storage volume | B87: sh_store | C87: =cstore_days*design_sh_day/(sh_spgr*62.4*sh_strength/7.48) -> 4.225915087 | D87: gal
A88: Number of sodium hexametaphosphate tanks | B88: sh_tanks | C88: =ROUNDUP(sh_store/max_ctank_size,0) -> 1 | D88: units
A89: Sodium hexametaphosphate tank volume | B89: sh_tank_vol | C89: =sh_store/sh_tanks -> 4.225915087 | D89: gal
A90: Annual sodium hexametaphosphate use | B90: sh_yr | C90: =design_sh_day*365*(chem_freq/365) -> 106.5435 | D90: lbs
A91: Design sodium hexametaphosphate flow | B91: sh_flow | C91: =(sh_store/cstore_days)*(design_flow/average_flow)/(24*60) -> 0.0004192376079 | D91: gpm
A92: Number of metering pumps | B92: sh_pumps | C92: =ROUNDUP(sh_flow*60*pump_safety_factor/max_cm_pump_size,0)+NRD_cm_pump -> 2 | D92: units
A93: Pump rating | B93: sh_pump_rate | C93: =IF(sh_pumps=0,0,(sh_flow*60*pump_safety_factor)/(sh_pumps-NRD_cm_pump)) -> 0.006288564118 | D93: gph
A95: Average tetrasodium polyphosphate per day | B95: design_tp_day | C95: =average_flow*tp_dose*8.34 -> 0.2919 | D95: lbs
A96: Initial tetrasodium polyphosphate | B96: tp_init | C96: =cstore_days*design_tp_day -> 8.757 | D96: lbs
A97: Tetrasodium polyphosphate storage volume | B97: tp_store | C97: =cstore_days*design_tp_day/(tp_spgr*62.4*tp_strength/7.48) -> 10.56478772 | D97: gal
A98: Number of tetrasodium polyphosphate tanks | B98: tp_tanks | C98: =ROUNDUP(tp_store/max_ctank_size,0) -> 1 | D98: units
A99: Tetrasodium polyphosphate tank volume | B99: tp_tank_vol | C99: =tp_store/tp_tanks -> 10.56478772 | D99: gal
A100: Annual tetrasodium polyphosphate use | B100: tp_yr | C100: =design_tp_day*365*(chem_freq/365) -> 106.5435 | D100: lbs
A101: Design tetrasodium polyphosphate flow | B101: tp_flow | C101: =(tp_store/cstore_days)*(design_flow/average_flow)/(24*60) -> 0.00104809402 | D101: gpm
A102: Number of metering pumps | B102: tp_pumps | C102: =ROUNDUP(tp_flow*60*pump_safety_factor/max_cm_pump_size,0)+NRD_cm_pump -> 2 | D102: units
A103: Pump rating | B103: tp_pump_rate | C103: =IF(tp_pumps=0,0,(tp_flow*60*pump_safety_factor)/(tp_pumps-NRD_cm_pump)) -> 0.0157214103 | D103: gph
A105: Initial corrosion control chemical | B105: cc_init | C105: =CHOOSE(chem_type,0,sh_init,tp_init) -> 8.757 | D105: lbs
A106: Number of corrosion chemical tanks | B106: cc_tanks | C106: =CHOOSE(chem_type,0,sh_tanks,tp_tanks) -> 1 | D106: units
A107: Corrosion chemical tank volume | B107: cc_tank_vol | C107: =CHOOSE(chem_type,0,sh_tank_vol,tp_tank_vol) -> 4.225915087 | D107: gal
A108: Annual corrosion chemical use | B108: cc_yr | C108: =CHOOSE(chem_type,0,sh_yr,tp_yr) -> 106.5435 | D108: lbs
A109: Design corrosion chemical flow | B109: cc_flow | C109: =CHOOSE(chem_type,0,sh_flow,tp_flow) -> 0.0004192376079 | D109: gpm
A110: Number of metering pumps | B110: cc_pumps | C110: =CHOOSE(chem_type,0,sh_pumps,tp_pumps) -> 2 | D110: units
A111: Pump rating | B111: cc_pump_rate | C111: =CHOOSE(chem_type,0,sh_pump_rate,tp_pump_rate) -> 0.006288564118 | D111: gph
A113: Corrosion control day tank storage volume required (based on design flow) | B113: day_tank_vol_needed_sh | C113: =cc_flow*60*24 -> 0.6037021553 | D113: gallons
A114: Number of corrosion control day tanks | B114: day_tanks_sh | C114: =IF(day_tank_vol_needed_sh<day_tank_needed,0,ROUNDUP(day_tank_vol_needed_sh/max_ctank_size,0)) -> 0 | D114: units
A115: Volume of corrosion control day tanks | B115: day_tank_vol_sh | C115: =IF(day_tanks_sh=0,0,day_tank_vol_needed_sh/day_tanks_sh) -> 0 | D115: gallons
A117: Mixers per corrosion control storage tank | B117: cmix_per_tank_sh | C117: =IF(cc_tanks<>0,ROUNDUP(cc_tank_vol/1000*cmix_hp_per/cmix_hp_max,0),0) -> 1 | D117: units
A118: Number of corrosion control storage tank mixers | B118: cmixers_sh | C118: =IF(cc_tanks<>0,cc_tanks*cmix_per_tank_sh,0) -> 1 | D118: units
A119: Mixer size for corrosion control storage tanks | B119: cmix_size_sh | C119: =IF(cc_tanks<>0,cc_tank_vol/1000*cmix_hp_per/cmix_per_tank_sh,0) -> 0.001056478772 | D119: hp
A120: Mixers per corrosion control day tank | B120: dmix_per_tank_sh | C120: =IF(day_tanks_sh<>0,ROUNDUP(day_tank_vol_sh/1000*cmix_hp_per/cmix_hp_max,0),0) -> 0 | D120: units
A121: Number of corrosion control day tank mixers | B121: dmixers_sh | C121: =IF(day_tanks_sh<>0,day_tanks_sh*dmix_per_tank_sh,0) -> 0 | D121: units
A122: Mixer size for corrosion control day tanks | B122: dmix_size_sh | C122: =IF(day_tanks_sh<>0,day_tank_vol_sh/1000*cmix_hp_per/dmix_per_tank_sh,0) -> 0 | D122: hp

Sheet Offgas
A1: Offgas Calculations
A3: Calculation | B3: Range Name | C3: Value | D3: Units | E3: Guidance
A4: From Inputs
A5: Off-gas Pollution Control Technology | B5: Offgas_Tech | C5: =IF(OR(Offgas_Tech_I="none",Offgas_Tech_I=""),0,IF(Offgas_Tech_I="GAC",1,IF(Offgas_Tech_I="thermal oxidation",2,3))) -> 0 | D5: <--- 0 for none, 1 for GAC, 2 for Thermal Oxidation, 3 for Catalytic Oxidation
A6: Heat recovery type | B6: og_opt1 | C6: =IF(OR(Offgas_Tech=2,Offgas_Tech=3),IF(og_opt1_I="none",0,IF(og_opt1_I="recuperative",1,2)),"") ->  | D6: <--- 0 for none, 1 for recuperative, 2 for regenerative
A7: Spent GAC regeneration | B7: og_opt2 | C7: =IF(Offgas_Tech=1,IF(og_opt2_I="throwaway",0,1),"") ->  | D7: <--- 0 for throwaway (no regeneration), 1 for off-site regeneration
A9: Off-gas Control System
A10: Contaminant heating value | B10: BTU_contam | C10: =IF(Offgas_Tech=1,VLOOKUP(contam,contaminant_lookup,3),0) -> 0 | D10: BTU/gal | E10: From critical design assumptions for contaminant
A11: Contaminant release rate | B11: VOC_Release | C11: =(Influent_conc*P_REM/10^6)*(QW*60*60*24)*2.205 -> 0.00117870727 | D11: lbs/day | E11: Based on design flow
A12: Off-gas concentration | C12: =(Influent_conc*P_REM/1000)*(AIR_FLOW/QW) -> 0.4185 | D12: mg/m3
A13: Off-gas concentration | B13: C_0 | C13: =C12/1000 -> 0.0004185 | D13: mg/L
A14: Off-gas concentration | C14: =(C12*T)/(12.187*MW) -> 0.07396440604 | D14: ppmv
A15: Off-gas concentration | B15: C_gal | C15: =C14/10^6*1000*3.785 -> 0.0002799552769 | D15: gal/m3
A16: Off-gas flow (design) | C16: =Design_air_flow -> 270.896272 | D16: cfm | E16: Based on design flow
A17: Off-gas flow (design) | B17: Design_air_flow_liters_min | C17: =AIR_FLOW*1000*60 -> 7671.942 | D17: L/min | E17: For comparison
A18: Off-gas flow (average) | B18: Average_air_flow | C18: =C16*average_flow/design_flow -> 63.20913014 | D18: cfm | E18: Based on average flow
A19: Off-gas flow (average) | B19: Average_air_flow_liters_min | C19: =AIR_FLOW*1000*60*average_flow/design_flow -> 1790.1198 | D19: L/min
A20: Off-gas flow (average) | B20: DAILY_AIR | C20: =DAILY_AIR -> 0.02983533 | D20: m3/s | E20: Calculated on O&M, displayed here for reference
A22: GAC System
A23: GAC Bed Residence Time | B23: GAC_EBCT | C23: =IF(Offgas_Tech=1,VLOOKUP(contam,contaminant_lookup,4),0) -> 0 | D23: sec | E23: From critical design assumptions for contaminant
A24: Total bed size needed | B24: GAC_tot_bed_size | C24: =IF(Offgas_Tech=1,Design_air_flow/60*GAC_EBCT,0) -> 0 | D24: cf
A25: Maximum GAC unit bed size | B25: GAC_max_bed | C25: =MAX(VLOOKUP(10^6,og_gac_cost_cl,1)-0.1) -> 1333.3 | D25: cf | E25: The largest size for which costs are available.
A26: Number of units | B26: op_GAC_beds | C26: =IF(Offgas_Tech=1,ROUNDUP(GAC_tot_bed_size/GAC_max_bed,0),0) -> 0 | D26: units
A27: Total units including redundancy | B27: tot_GAC_beds | C27: =op_GAC_beds+NRD_GAC -> 0 | D27: units
A28: Bed size per unit | B28: GAC_bed_size | C28: =IF(Offgas_Tech=1,GAC_tot_bed_size/op_GAC_beds,0) -> 0 | D28: cf
A29: Total GAC Quantity | B29: GAC | C29: =IF(Offgas_Tech=1,Design_air_flow/60*GAC_EBCT*GAC_density,0) -> 0 | D29: lbs
A30: GAC in grams | B30: M | C30: =GAC*453 -> 0 | D30: grams
A31: Desired off-gas removal efficiency | B31: gas_prem | C31: =MAX(0.25,(VOC_Release-0.8*max_VOC_release)/VOC_Release) -> 0.25 | E31: Assumes breakthrough defined as 80% of limit specified on input page, with a minimum removal of 25%
A32: Breakthrough concentration | B32: Cb | C32: =IF(Offgas_Tech=1,(1-gas_prem)*C_0,0) -> 0 | D32: mg/L
A33: Bed Life | B33: bed_life | C33: =IF(AND(og_opt3="",contam=1),M*(K*Cb^_1_n/(Average_air_flow_liters_min*(C_0-Cb)))/(30*24*60),og_opt3) -> 0 | D33: months | E33: Theoretical calculation is valid only for MTBE; input is required for other contaminants
A34: GAC use rate | C34: =IF(Offgas_Tech=1,(GAC/bed_life)/(Average_air_flow*60*24*30/1000),0) -> 0 | D34: lb/1,000 cf of air | E34: For comparison: For MTBE, CMRP (2000) assumed 0.05 lb/1000 cf at 5 ppmv, 0.006 lb/1000 cf at 0.5 ppmv.
A35: Annual GAC use | B35: GAC_yr | C35: =IF(Offgas_Tech=1,GAC*12/bed_life,0) -> 0 | D35: lbs
A36: Annual Regenerated GAC | B36: regen_yr | C36: =IF(og_opt2=1,(1-makeup_rate_off)*GAC_yr,0) -> 0 | D36: lbs/yr
A37: Annual Regenerated GAC in cubic feet | B37: regen_yr_cf | C37: =regen_yr/GAC_density -> 0 | D37: cubic ft/yr
A38: Annual Virgin GAC | B38: GAC_makeup | C38: =IF(og_opt2=1,makeup_rate_off*GAC_yr,GAC_yr) -> 0 | D38: lbs/yr
A39: Annual Virgin GAC in cubic feet | B39: GAC_makeup_cf | C39: =GAC_makeup/GAC_density -> 0 | D39: cubic ft/yr
A40: Replacement/disposal frequency | B40: disp_freq | C40: =IF(Offgas_Tech=1,12/bed_life,0) -> 0 | D40: times per year
A41: Spent media quantity (total per event) | B41: spent_media | C41: =IF(og_opt2=0,GAC/2000,0) -> 0 | D41: tons
A42: Disposal | C42: =spent_media*disp_freq*nonhaz_disposal_cost_cl -> 0 | D42: $/year
A43: Transportation | C43: =spent_media*disp_freq*non_haz_miles*nonhaz_transportation_cost_cl -> 0 | D43: $/year
A44: Total annual spent media diposal fee | B44: disposal_fee | C44: =C43+C42 -> 0 | D44: $/year
A46: Thermal Oxidizer System
A47: Maximum TO capacity | B47: TO_max_size | C47: =IF(og_opt1=0,TO_max_size_no,IF(og_opt1=1,TO_max_size_rec,TO_max_size_reg)) -> 736000 | D47: scfm
A48: Total capacity needed | B48: TO_tot_size | C48: =IF(Offgas_Tech=2,Design_air_flow,0) -> 0 | D48: scfm
A49: Maximum TO capacity (no heat recovery) | B49: TO_max_size_no | C49: =MAX(VLOOKUP(10^6,og_to_cost_cl,1)-1) -> 25000 | D49: scfm | E49: The largest size for which costs are available.
A50: Maximum TO capacity (recuperative) | B50: TO_max_size_rec | C50: =MAX(VLOOKUP(10^6,og_torec_cost_cl,1)-1) -> 7257 | D50: scfm | E50: The largest size for which costs are available.
A51: Maximum TO capacity (regenerative) | B51: TO_max_size_reg | C51: =MAX(VLOOKUP(10^6,og_toreg_cost_cl,1)-1) -> 736000 | D51: scfm | E51: The largest size for which costs are available.
A52: Number of units | B52: op_TOs | C52: =IF(Offgas_Tech=2,ROUNDUP(TO_tot_size/TO_max_size,0),0) -> 0 | D52: units
A53: Total units including redundancy | B53: tot_TOs | C53: =op_TOs+NRD_TO -> 0 | D53: units
A54: Capacity per unit | B54: TO_size | C54: =IF(Offgas_Tech=2,TO_tot_size/op_TOs,0) -> 0 | D54: scfm
A55: TO operating temperature | B55: TO_op_temp | C55: =IF(Offgas_Tech=2,VLOOKUP(contam,contaminant_lookup,5),0) -> 0 | D55: deg C | E55: From critical design assumptions for contaminant
A56: Fuel BTUs required (no heat recovery) | C56: =IF(Offgas_Tech=2,MAX(0,((1+TO_ex_air)*(DAILY_AIR*60*60*24*365))*PA*cpa*(TO_op_temp-(T-273))/1.0545-BTU_contam*C_gal*DAILY_AIR*60*60*24*365),0) -> 0 | D56: BTU/yr | E56: kJ = Q (m3/yr) * p (kg/m3) * cp (kJ/kg-deg C) * delta T (deg C). 1 BTU = 1.0545 kJ
A57: Actual fuel BTUs required | C57: =C56*(1-IF(og_opt1=1,TO_rec_eff,IF(og_opt1=2,TO_reg_eff,0))) -> 0 | D57: BTU/yr
A58: Annual natural gas required | B58: TO_ng_yr | C58: =C57/100000 -> 0 | D58: therms/yr
A59: Excess air blower power | C59: =IF(Offgas_Tech=2,TO_ex_air*DAILY_AIR*(AIR_P/BLOW_EFF),0) -> 0 | D59: Watts
A60: Excess air blower energy per year | B60: TO_power_yr | C60: =C59*24*365/1000000 -> 0 | D60: MWhr/yr
A62: Catalytic Oxidizer System
A63: Maximum CO capacity | B63: CO_max_size | C63: =IF(og_opt1=0,CO_max_size_no,IF(og_opt1=1,CO_max_size_rec,CO_max_size_reg)) -> 736000 | D63: scfm
A64: Total capacity needed | B64: CO_tot_size | C64: =IF(Offgas_Tech=3,Design_air_flow,0) -> 0 | D64: scfm
A65: Maximum TO capacity (no heat recovery) | B65: CO_max_size_no | C65: =MAX(VLOOKUP(10^6,og_co_cost_cl,1)-1) -> 736000 | D65: scfm | E65: The largest size for which costs are available.
A66: Maximum TO capacity (recuperative) | B66: CO_max_size_rec | C66: =MAX(VLOOKUP(10^6,og_corec_cost_cl,1)-1) -> 736000 | D66: scfm | E66: The largest size for which costs are available.
A67: Maximum TO capacity (regenerative) | B67: CO_max_size_reg | C67: =MAX(VLOOKUP(10^6,og_coreg_cost_cl,1)-1) -> 736000 | D67: scfm | E67: The largest size for which costs are available.
A68: Number of units | B68: op_COs | C68: =IF(Offgas_Tech=3,ROUNDUP(CO_tot_size/CO_max_size,0),0) -> 0 | D68: units
A69: Total units including redundancy | B69: tot_COs | C69: =op_COs+NRD_CO -> 0 | D69: units
A70: Capacity per unit | B70: CO_size | C70: =IF(Offgas_Tech=3,CO_tot_size/op_COs,0) -> 0 | D70: scfm
A71: CO operating temperature | B71: CO_op_temp | C71: =IF(Offgas_Tech=3,VLOOKUP(contam,contaminant_lookup,6),0) -> 0 | D71: deg C
A72: Fuel BTUs required (no heat recovery) | C72: =IF(Offgas_Tech=3,MAX(0,((1+CO_ex_air)*(DAILY_AIR*60*60*24*365))*PA*cpa*(CO_op_temp-(T-273))/1.0545-BTU_contam*C_gal*DAILY_AIR*60*60*24*365),0) -> 0 | D72: BTU/yr | E72: kJ = Q (m3/yr) * p (kg/m3) * cp (kJ/kg-deg C) * delta T (deg C). 1 BTU = 1.0545 kJ
A73: Actual fuel BTUs required | C73: =C72*(1-IF(og_opt1=1,CO_rec_eff,IF(og_opt1=2,CO_reg_eff,0))) -> 0 | D73: BTU/yr
A74: Annual natural gas required | B74: CO_ng_yr | C74: =C73/100000 -> 0 | D74: therms/yr
A75: Excess air blower power | C75: =IF(Offgas_Tech=3,CO_ex_air*DAILY_AIR*(AIR_P/BLOW_EFF),0) -> 0 | D75: Watts
A76: Excess air blower energy per year | B76: CO_power_yr | C76: =C75*24*365/1000000 -> 0 | D76: MWhr/yr

Sheet Pumps Pipe Structure
A1: Pumps, Piping, and Structure Calculations
A3: Calculation | B3: Range Name | C3: Value | D3: Units | E3: Guidance
A4: Booster Pumps
A5: Flow of Each Pump | B5: Qp | C5: =IF(num_pumps_I="",MIN(MAX(average_flow_rate+bp_flow_rate*average_flow_rate/Design_Flow_Rate,(Design_Flow_Rate+bp_flow_rate)/2)*(1+pump_safety_factor),max_pump_size),IF(num_pumps_I=0,0,(Design_Flow_Rate+bp_flow_rate)*(1+pump_safety_factor)/num_pumps_I)) -> 13.02083333 | D5: gpm | E5: Includes safety factor
A6: Operating Pumps | B6: num_of_pumps | C6: =IF(QP=0,0,ROUNDUP(Design_Flow_Rate/QP*(1+pump_safety_factor),0)) -> 2 | D6: units
A7: Total Pumps | B7: tot_pumps | C7: =NUM_OF_PUMPS+NRD_pump -> 2 | D7: units | E7: Includes redundancy
A8: Maximum pump size | B8: max_pump_size | C8: =VLOOKUP(10^6,pump_cost_cl,1)-1 -> 10000 | D8: gpm | E8: The largest pump size for which costs are available. Applies to booster pumps.
A9: Maximum chemical metering pump size | B9: max_cm_pump_size | C9: =MAX(VLOOKUP(10^6,pvc_mmpump_cost_cl,1)-0.1,VLOOKUP(10^6,ss_mmpump_cost_cl,1)-0.1) -> 760 | D9: gph | E9: The largest size for which costs are available.
A11: Blowers
A12: Design air flow | B12: design_air_flow | C12: =AIR_FLOW*35.31*60 -> 270.896272 | D12: cfm
A13: Flow Per Blower | B13: Q_Blower | C13: =IF(parallel_I="",MIN(MAX(Design_air_flow*average_flow/design_flow,Design_air_flow/2),max_blow_size),Design_air_flow/parallel_I) -> 135.448136 | D13: cfm
A14: Number of operating blowers | B14: Parallel | C14: =ROUNDUP(Design_air_flow/Q_BLOWER,0) -> 2 | D14: units
A15: Total blowers | B15: tot_blowers | C15: =PARALLEL+NRD_blower -> 2 | D15: units | E15: Includes redundancy
A16: Maximum blower size | B16: max_blow_size | C16: =MAX(VLOOKUP(10^6,cent_blow_cost_cl,1)-1,VLOOKUP(10^6,pd_blow_cost_cl,1)-1) -> 5000 | D16: cfm | E16: The largest size for which costs are available.
A18: Inlet and outlet pipe length | B18: in_out_pipe_length | C18: =2*facil_length -> 40 | D18: linear feet
A19: Inlet and outlet pipe flow | B19: in_out_pipe_flow | C19: =Design_Flow_Rate -> 20.83333333 | D19: gpm
A20: Inlet and outlet piping diameter | B20: in_out_pipe_diam | C20: =VLOOKUP(in_out_pipe_flow,pipe_size_table_cl,2) -> 1.5 | D20: inches
A21: Bypass piping length | B21: bp_pipe_length | C21: =IF(bp_pct>0,2.5*facil_length,0) -> 0 | D21: linear feet
A22: Bypass pipe diameter | B22: bp_pipe_diam | C22: =IF(bp_pct>0,VLOOKUP(bp_flow_rate,pipe_size_table_cl,2),0) -> 0 | D22: inches
A23: Process piping length | B23: proc_pipe_length | C23: =2*facil_length+PACK_HT*3.28*TOT_COL -> 62.54290682 | D23: linear feet | E23: Includes additional length to account for tower height
A24: Process pipe flow | B24: proc_pipe_flow | C24: =Design_Flow_Rate/NUM_COL -> 10.41666667 | D24: gpm
A25: Process pipe diameter | B25: proc_pipe_diam | C25: =VLOOKUP(proc_pipe_flow,pipe_size_table_cl,2) -> 1.5 | D25: inches
A26: Air pipe diameter | B26: air_pipe_diam | C26: =proc_pipe_diam -> 1.5 | D26: inches | E26: Assume equal to liquid pipe diameter (from fwbs)
A27: Air pipe length | B27: air_pipe_length | C27: =air_L*TOT_COL+IF(Offgas_Tech=0,0,facil_length) -> 200 | D27: lf
A28: Chemical pipe length | B28: chem_pipe_length | C28: =facil_length -> 20 | D28: lf
A29: Acid pipe diameter | B29: HCl_pipe_diam | C29: =VLOOKUP(HCl_flow,pipe_size_table_cl,2) -> 0.5 | D29: inches
A30: NaOH pipe diameter | B30: NaOH_pipe_diam | C30: =VLOOKUP(NaOH_flow,pipe_size_table_cl,2) -> 0.5 | D30: inches
A31: Corrosion chemical pipe diameter | B31: cc_pipe_diam | C31: =VLOOKUP(cc_flow,pipe_size_table_cl,2) -> 0.5 | D31: inches
A33: Building Structure
A34: HCl tank diameter | B34: at_diam | C34: =ROUNDUP((2*(HCl_tank_vol/7.48)/PI())^(1/3),0) -> 0 | D34: feet
A35: HCl day tank diameter | B35: adt_diam | C35: =ROUNDUP((2*(day_tank_vol_acid/7.48)/PI())^(1/3),0) -> 0 | D35: feet
A36: NaOH tank diameter | B36: ct_diam | C36: =ROUNDUP((2*(NaOH_tank_vol/7.48)/PI())^(1/3),0) -> 0 | D36: feet
A37: NaOH day tank diameter | B37: cdt_diam | C37: =ROUNDUP((2*(day_tank_vol_NaOH/7.48)/PI())^(1/3),0) -> 0 | D37: feet
A38: Corrosion chemical tank diameter | B38: cct_diam | C38: =ROUNDUP((2*(cc_tank_vol/7.48)/PI())^(1/3),0) -> 1 | D38: feet
A39: Corrosion chemical day tank diameter | B39: ccdt_diam | C39: =ROUNDUP((2*(day_tank_vol_sh/7.48)/PI())^(1/3),0) -> 0 | D39: feet
A40: Access space per HCl tank | B40: space_at | C40: =IF(at_diam>max_space_vessels,max_space_vessels,at_diam) -> 0 | D40: feet
A41: Access space per HCl day tank | B41: space_adt | C41: =IF(adt_diam>max_space_vessels,max_space_vessels,adt_diam) -> 0 | D41: feet
A42: Access space per NaOH tank | B42: space_ct | C42: =IF(ct_diam>max_space_vessels,max_space_vessels,ct_diam) -> 0 | D42: feet
A43: Access space per NaOH day tank | B43: space_cdt | C43: =IF(cdt_diam>max_space_vessels,max_space_vessels,cdt_diam) -> 0 | D43: feet
A44: Access space per corrosion chemical tank | B44: space_cct | C44: =IF(cct_diam>max_space_vessels,max_space_vessels,cct_diam) -> 1 | D44: feet
A45: Access space per corrosion chemical day tank | B45: space_ccdt | C45: =IF(ccdt_diam>max_space_vessels,max_space_vessels,ccdt_diam) -> 0 | D45: feet
A46: HCl tank footprint | C46: =ROUNDUP((at_diam+2*space_at)^2+(HCl_tanks-1)*(at_diam+2*space_at)*(at_diam+space_at),0) -> 0 | D46: square ft
A47: HCl day tank footprint | C47: =ROUNDUP((adt_diam+2*space_adt)^2+(day_tanks_acid-1)*(adt_diam+2*space_adt)*(adt_diam+space_adt),0) -> 0 | D47: square feet
A48: NaOH tank footprint | C48: =ROUNDUP((ct_diam+2*space_ct)^2+(NaOH_tanks-1)*(ct_diam+2*space_ct)*(ct_diam+space_ct),0) -> 0 | D48: square ft
A49: NaOH day tank footprint | C49: =ROUNDUP((cdt_diam+2*space_cdt)^2+(day_tanks_NaOH-1)*(cdt_diam+2*space_cdt)*(cdt_diam+space_cdt),0) -> 0 | D49: square feet
A50: Corrosion chemical tank footprint | C50: =IF(chem_type=1,0,ROUNDUP((cct_diam+2*space_cct)^2+(cc_tanks-1)*(cct_diam+2*space_cct)*(cct_diam+space_cct),0)) -> 9 | D50: square ft
A51: Corrosion chemical day tank footprint | C51: =ROUNDUP((ccdt_diam+2*space_ccdt)^2+(day_tanks_sh-1)*(ccdt_diam+2*space_ccdt)*(ccdt_diam+space_ccdt),0) -> 0 | D51: square feet
A52: Chemical storage footprint | B52: cstore_fp | C52: =SUM(C46:C51) -> 9 | D52: square ft
A53: Booster pump footprint | B53: pump_fp | C53: =ROUNDUP((VLOOKUP(QP,pump_dim_table_cl,3)+2*space_pumps)*(VLOOKUP(QP,pump_dim_table_cl,4)+2*space_pumps)+(tot_pumps-1)*(VLOOKUP(QP,pump_dim_table_cl,3)+2*space_pumps)*(VLOOKUP(QP,pump_dim_table_cl,4)+space_pumps),0) -> 179 | D53: square ft
A54: Blower footprint | B54: blower_fp | C54: =ROUNDUP((VLOOKUP(Q_BLOWER,blow_dim_table_cl,7)+2*space_pumps)*(VLOOKUP(Q_BLOWER,blow_dim_table_cl,8)+2*space_pumps)+(tot_blowers-1)*(VLOOKUP(Q_BLOWER,blow_dim_table_cl,7)+2*space_pumps)*(VLOOKUP(Q_BLOWER,blow_dim_table_cl,8)+space_pumps),0) -> 184 | D54: square ft
A55: Tower footprint | B55: vessel_fp | C55: =ROUNDUP(AIRWELL_L*3.28*AIRWELL_W*3.28,0) -> 25 | D55: square ft | E55: Clearwell underneath towers, so no additional floorplan required
A56: Offgas treatment system footprint (GAC) | C56: =IF(Offgas_Tech=1,ROUNDUP(((GAC_bed_size/6)^(1/2)+2*space_pumps)*((GAC_bed_size/6)^(1/2)+2*space_pumps)+(tot_GAC_beds-1)*((GAC_bed_size/6)^(1/2)+2*space_pumps)*((GAC_bed_size/6)^(1/2)+space_pumps),0),0) -> 0 | D56: square ft
A57: Offgas treatment system footprint (TO) | C57: =IF(Offgas_Tech=2,ROUNDUP((VLOOKUP(TO_size,to_dim_table_cl,5)+2*space_pumps)*(VLOOKUP(TO_size,to_dim_table_cl,6)+2*space_pumps)+(tot_TOs-1)*(VLOOKUP(TO_size,to_dim_table_cl,5)+2*space_pumps)*(VLOOKUP(TO_size,to_dim_table_cl,6)+space_pumps),0),0) -> 0 | D57: square ft
A58: Offgas treatment system footprint (CO) | C58: =IF(Offgas_Tech=3,ROUNDUP((VLOOKUP(CO_size,co_dim_table_cl,5)+2*space_pumps)*(VLOOKUP(CO_size,co_dim_table_cl,6)+2*space_pumps)+(tot_COs-1)*(VLOOKUP(CO_size,co_dim_table_cl,5)+2*space_pumps)*(VLOOKUP(CO_size,co_dim_table_cl,6)+space_pumps),0),0) -> 0 | D58: square ft
A59: Offgas treatment system footprint | B59: offgas_fp | C59: =SUM(C56:C58) -> 0 | D59: square ft
A60: Office space | B60: office_fp | C60: =VLOOKUP(design_flow,labor_table_cl,3)*IF(ss_cat2=1,space_office_small,space_office) -> 0 | D60: square ft
A61: Exact building footprint required | B61: fp_required | C61: =cstore_fp+pump_fp+office_fp -> 188 | D61: square ft
A62: Total building footprint | B62: total_fp | C62: =ROUNDUP(fp_required,-1) -> 190 | D62: square ft | E62: Building covers chemical storage, pumps, and office space. Does not cover blowers or towers.
A63: Concrete Class A for pad | B63: conc_pad | C63: =ROUNDUP((cstore_fp+pump_fp+blower_fp)*1/27,0)*IF(ss_cat2=1,pad_thick_small,pad_thick) -> 4.666666667 | D63: cubic yd | E63: Pad underlies chemical storage, pumps, and blowers
A64: Facility length | B64: facil_length | C64: =ROUNDUP((total_fp+vessel_fp+blower_fp+offgas_fp)^0.5,-1) -> 20 | D64: feet
A65: Land for building | C65: =((total_fp)^0.5+(2*non_fire_buffer))*((total_fp)^0.5+(non_fire_buffer+fire_buffer)) -> 2154.883413 | D65: square ft | E65: Includes buffer area
A66: Land for towers | C66: =(AIRWELL_L*3.28+non_fire_buffer)*(AIRWELL_W*3.28+2*non_fire_buffer) -> 371.8064 | D66: square ft | E66: Includes setback on three sides (fourth side accomodated by building buffer), due to tower height, noise etc.
A67: Land for blowers | C67: =blower_fp -> 184 | D67: square ft
A68: Land for offgas system | C68: =offgas_fp -> 0 | D68: square ft
A69: Land acquisition required | B69: land_required | C69: =ROUNDUP(SUM(C65:C68),-2)/43560 -> 0.06427915519 | D69: acres
A70: Land acquisition cost | B70: land_cost | C70: =VLOOKUP(design_flow,land_cost_cl,3) -> 21571.31177 | D70: /acre

Sheet Instrumentation and Control
A1: Instrumentation and Control Calculations
A3: Calculation | B3: Range Name | C3: Value | D3: Units | E3: Guidance
A4: From Inputs
A5: Component level | B5: component_level | C5: =IF(component_level_I="high cost",2,IF(component_level_I="mid cost",1,"")) ->  | D5: blank = low cost, 1 = mid cost, 2 = high cost
A6: Manual system controls | B6: manual | C6: =IF(manual_I="manual",1,IF(manual_I="semi-automated",2,IF(manual_I="fully automated",3,IF(component_level="",1,IF(component_level=2,3,CHOOSE(ss_cat2,1,3,3)))))) -> 3 | D6: 1 = fully manual system, 2 = semi-automated system, 3 = fully automated system. | E6: Based on system size and component level (see cell comment), unless user overrides on input sheet
A8: Valves and Instrumentation
A9: Size of valves for inlet and outlet lines | B9: in_valve_size | C9: =in_out_pipe_diam -> 1.5 | D9: inches
A10: Size of valves for process line | B10: tank_valve_size | C10: =proc_pipe_diam -> 1.5 | D10: inches
A11: Size of valves for air line | B11: air_valve_size | C11: =air_pipe_diam -> 1.5 | D11: inches
A12: Size of valves for acid pipe lines | B12: HCl_valve_size | C12: =HCl_pipe_diam -> 0.5 | D12: inches
A13: Size of valves for caustic pipe lines | B13: NaOH_valve_size | C13: =NaOH_pipe_diam -> 0.5 | D13: inches
A14: Size of valves for corrosion control chemical pipe | B14: cc_valve_size | C14: =cc_pipe_diam -> 0.5 | D14: inches
A15: Size of valves for bypass line | B15: bypass_valve_size | C15: =bp_pipe_diam -> 0 | D15: inches
A17: Number of MOVs for process line | B17: tot_proc_MOVs | C17: =TOT_COL*VLOOKUP("proc_MOV_vessel",valve_table,manual+1,FALSE)+tot_pumps*VLOOKUP("proc_MOV_pump",valve_table,manual+1,FALSE) -> 6 | D17: valves
A18: Number of MOVs for air line | B18: tot_air_MOVs | C18: =TOT_COL*VLOOKUP("air_MOV_vessel",valve_table,manual+1,FALSE)+VLOOKUP("air_MOV_og",valve_table,manual+1,FALSE)*CHOOSE(Offgas_Tech+1,0,tot_GAC_beds,tot_TOs,tot_COs)+IF(Offgas_Tech=0,0,VLOOKUP("add_MOV_og",valve_table,manual+1,FALSE)) -> 2 | D18: valves
A19: Number of MOVs for acid line | B19: tot_HCl_MOVs | C19: =HCl_pumps*VLOOKUP("HCL_MOV_pump",valve_table,manual+1,FALSE)+VLOOKUP("chem_MOV_day",valve_table,manual+1,FALSE)*day_tanks_acid -> 0 | D19: valves
A20: Number of MOVs for caustic line | B20: tot_NaOH_MOVs | C20: =NaOH_pumps*VLOOKUP("NAOH_MOV_pump",valve_table,manual+1,FALSE)+VLOOKUP("chem_MOV_day",valve_table,manual+1,FALSE)*day_tanks_NaOH -> 0 | D20: valves
A21: Number of MOVs for corrosion chemical line | B21: tot_chem_MOVs | C21: =IF(chem_type=1,0,cc_pumps)*VLOOKUP("chem_MOV_pump",valve_table,manual+1,FALSE)+VLOOKUP("chem_MOV_day",valve_table,manual+1,FALSE)*day_tanks_sh -> 4 | D21: valves
A22: Number of MOVs for bypass line | B22: tot_bp_MOVs | C22: =IF(bp_pct=0,0,VLOOKUP("tot_bp_movs",valve_table,manual+1,FALSE)) -> 0 | D22: valves
A23: Total number of MOVs | B23: tot_MOVs | C23: =SUM(C17:C22) -> 12 | D23: valves
A24: Number of manual valves for process line | B24: tot_proc_man | C24: =TOT_COL*VLOOKUP("proc_man_vessel",valve_table,manual+1,FALSE)+tot_pumps*VLOOKUP("proc_man_pump",valve_table,manual+1,FALSE) -> 0 | D24: valves
A25: Number of manual valves for air line | B25: tot_air_man | C25: =TOT_COL*VLOOKUP("air_man_vessel",valve_table,manual+1,FALSE)+VLOOKUP("air_man_og",valve_table,manual+1,FALSE)*CHOOSE(Offgas_Tech+1,0,tot_GAC_beds,tot_TOs,tot_COs)+IF(Offgas_Tech=0,0,VLOOKUP("add_man_og",valve_table,manual+1,FALSE)) -> 0 | D25: valves
A26: Number of manual valves for acid line | B26: tot_HCl_man | C26: =HCl_pumps*VLOOKUP("HCL_man_pump",valve_table,manual+1,FALSE)+VLOOKUP("chem_man_day",valve_table,manual+1,FALSE)*day_tanks_acid -> 0 | D26: valves
A27: Number of manual valves for caustic line | B27: tot_NaOH_man | C27: =NaOH_pumps*VLOOKUP("NAOH_man_pump",valve_table,manual+1,FALSE)+VLOOKUP("chem_man_day",valve_table,manual+1,FALSE)*day_tanks_NaOH -> 0 | D27: valves
A28: Number of manual valves for corrosion chemical line | B28: tot_chem_man | C28: =IF(chem_type=1,0,cc_pumps)*VLOOKUP("chem_man_pump",valve_table,manual+1,FALSE)+VLOOKUP("chem_man_day",valve_table,manual+1,FALSE)*day_tanks_sh -> 0 | D28: valves
A29: Number of manual valves for bypass line | B29: tot_bp_man | C29: =IF(bp_pct=0,0,VLOOKUP("tot_bp_mans",valve_table,manual+1,FALSE)) -> 0 | D29: valves
A31: Number of check valves for acid line | B31: tot_HCl_chv | C31: =HCl_pumps*HCl_chv_pump -> 0 | D31: valves
A32: Number of check valves for caustic line | B32: tot_NaOH_chv | C32: =NaOH_pumps*NaOH_chv_pump -> 0 | D32: valves
A33: Number of check valves for corrosion chemical line | B33: tot_chem_chv | C33: =IF(chem_type=1,0,cc_pumps)*chem_chv_pump -> 4 | D33: valves
A35: Size of flow meters for influent line | B35: in_meter_size | C35: =in_out_pipe_diam -> 1.5 | D35: inches
A36: Size of flow meters for process line | B36: proc_meter_size | C36: =proc_pipe_diam -> 1.5 | D36: inches
A37: Number of flow meters for process line | B37: tot_fm_proc | C37: =fm_proc*TOT_COL -> 2 | D37: units
A38: Number of flow meters for air line | B38: tot_fm_air | C38: =fm_air*TOT_COL -> 2 | D38: units
A40: Turbidity meters | B40: tot_turb_meters | C40: =IF(ss_cat2=1,turb_meters_small,turb_meters) -> 0 | D40: units | E40: One for effluent line
A41: Total high/low alarms | B41: tot_chem_alarm | C41: =alarm_chem*(HCl_tanks+NaOH_tanks+IF(chem_type=1,0,cc_tanks)+day_tanks_acid+day_tanks_NaOH+day_tanks_sh) -> 1 | D41: units
A42: Total drive controllers | B42: tot_switches | C42: =IF(manual=2,0,S_booster_pump*tot_pumps+S_blower*tot_blowers+S_cm_pump*(HCl_pumps+NaOH_pumps+IF(chem_type=1,0,cc_pumps))+S_TO*tot_TOs+S_CO*tot_COs+S_mix*(cmixers_acid+cmixers_NaOH+cmixers_sh+dmixers_acid+dmixers_NaOH+dmixers_sh)) -> 7 | D42: units
A44: System Controls
A45: Flow meter lookup code - inlet/outlet | B45: fm_lkp_io | C45: =IF(OUTPUT!L209=1,"flow_op",IF(OUTPUT!L210=1,"flow_prop",IF(OUTPUT!L211=1,"flow_ven","flow_mag"))) -> flow_prop | E45: These codes are used to look up SCADA requirements, which depend on the type of flow meter selected.
A46: Flow meter lookup code - process | B46: fm_lkp_proc | C46: =IF(OUTPUT!L214=1,"flow_op",IF(OUTPUT!L215=1,"flow_prop",IF(OUTPUT!L216=1,"flow_ven","flow_mag"))) -> flow_prop
A47: Total discrete inputs | B47: discrete_inputs | C47: =VLOOKUP(fm_lkp_io,port_table,2,FALSE)*tot_fm_in+VLOOKUP(fm_lkp_proc,port_table,2,FALSE)*tot_fm_proc+VLOOKUP("flow_air",port_table,2,FALSE)*tot_fm_air+VLOOKUP("alarm",port_table,2,FALSE)*tot_chem_alarm+VLOOKUP("ph",port_table,2,FALSE)*pH_controls+VLOOKUP("temp",port_table,2,FALSE)*temp_meters+VLOOKUP("TDS",port_table,2,FALSE)*num_TDS+VLOOKUP("turb",port_table,2,FALSE)*tot_turb_meters+VLOOKUP("switch",port_table,2,FALSE)*tot_switches+VLOOKUP("TO",port_table,2,FALSE)*tot_TOs+VLOOKUP("CO",port_table,2,FALSE)*tot_COs+VLOOKUP("valve",port_table,2,FALSE)*tot_MOVs -> 22 | D47: units
A48: Total discrete outputs | B48: discrete_outputs | C48: =IF(manual=2,0,VLOOKUP(fm_lkp_io,port_table,3,FALSE)*tot_fm_in+VLOOKUP(fm_lkp_proc,port_table,3,FALSE)*tot_fm_proc+VLOOKUP("flow_air",port_table,3,FALSE)*tot_fm_air+VLOOKUP("alarm",port_table,3,FALSE)*tot_chem_alarm+VLOOKUP("ph",port_table,3,FALSE)*pH_controls+VLOOKUP("temp",port_table,3,FALSE)*temp_meters+VLOOKUP("TDS",port_table,3,FALSE)*num_TDS+VLOOKUP("turb",port_table,3,FALSE)*tot_turb_meters+VLOOKUP("switch",port_table,3,FALSE)*tot_switches++VLOOKUP("TO",port_table,3,FALSE)*tot_TOs+VLOOKUP("CO",port_table,3,FALSE)*tot_COs+VLOOKUP("valve",port_table,3,FALSE)*tot_MOVs) -> 8 | D48: units
A49: Total analog inputs | B49: analog_inputs | C49: =VLOOKUP(fm_lkp_io,port_table,4,FALSE)*tot_fm_in+VLOOKUP(fm_lkp_proc,port_table,4,FALSE)*tot_fm_proc+VLOOKUP("flow_air",port_table,4,FALSE)*tot_fm_air+VLOOKUP("alarm",port_table,4,FALSE)*tot_chem_alarm+VLOOKUP("ph",port_table,4,FALSE)*pH_controls+VLOOKUP("temp",port_table,4,FALSE)*temp_meters+VLOOKUP("TDS",port_table,4,FALSE)*num_TDS+VLOOKUP("turb",port_table,4,FALSE)*tot_turb_meters+VLOOKUP("switch",port_table,4,FALSE)*tot_switches+VLOOKUP("TO",port_table,4,FALSE)*tot_TOs+VLOOKUP("CO",port_table,4,FALSE)*tot_COs+VLOOKUP("valve",port_table,4,FALSE)*tot_MOVs -> 20 | D49: units
A50: Total analog outputs | B50: analog_outputs | C50: =IF(manual=2,0,VLOOKUP(fm_lkp_io,port_table,5,FALSE)*tot_fm_in+VLOOKUP(fm_lkp_proc,port_table,5,FALSE)*tot_fm_proc+VLOOKUP("flow_air",port_table,5,FALSE)*tot_fm_air+VLOOKUP("alarm",port_table,5,FALSE)*tot_chem_alarm+VLOOKUP("ph",port_table,5,FALSE)*pH_controls+VLOOKUP("temp",port_table,5,FALSE)*temp_meters+VLOOKUP("TDS",port_table,5,FALSE)*num_TDS+VLOOKUP("turb",port_table,5,FALSE)*tot_turb_meters+VLOOKUP("switch",port_table,5,FALSE)*tot_switches+VLOOKUP("TO",port_table,5,FALSE)*tot_TOs+VLOOKUP("CO",port_table,5,FALSE)*tot_COs+VLOOKUP("valve",port_table,5,FALSE)*tot_MOVs) -> 12 | D50: units
A51: I/O Discrete Output Modules | B51: plc_discrete_output | C51: =ROUNDUP(discrete_outputs/32,0) -> 1 | D51: units
A52: I/O Discrete Input Modules | B52: plc_discrete_input | C52: =ROUNDUP(discrete_inputs/32,0) -> 1 | D52: units
A53: I/O Combination Analog Modules | B53: plc_combination_analog | C53: =ROUNDUP((analog_inputs + analog_outputs)/12,0) -> 3 | D53: units
A54: Total number of PLC slots used | B54: plc_slots | C54: =plc_cpu + plc_ethernet + plc_discrete_input + plc_discrete_output + plc_combination_analog -> 9 | D54: units
A55: Expansions required | B55: plc_expansions | C55: =IF(plc_slots<=9,0,ROUNDUP((plc_slots-9)/8,0)) -> 0 | D55: units
A56: PLC Rack/Power Supplies | B56: plc_rack | C56: =1+plc_expansions -> 1 | D56: units
A57: Base Expansion Modules | B57: plc_base_expansion | C57: =plc_expansions -> 0 | D57: units
A58: Base Expansion Controller Modules | B58: plc_base_expansion_controller | C58: =plc_expansions -> 0 | D58: units
A59: Number of computer workstations | B59: workstations | C59: =ROUNDUP(Operator_LOE/2080/shifts_day/workstation_ratio,0) -> 1 | D59: units
A60: Number of printers | B60: printers | C60: =ROUNDUP(workstations/printer_ratio,0) -> 1 | D60: units

Sheet O&M
A1: Operation and Maintenance Calculations
A3: Calculation | B3: Range Name | C3: Value | D3: Units | E3: Guidance
A4: Labor and Materials
A5: Maintenance materials
A6: Material cost for pumps | B6: pump_materials | C6: =pump_maintenance*OUTPUT!J47 -> 119.2075221 | D6: /yr
A7: Material cost for blowers | B7: blow_materials | C7: =pump_maintenance*SUMPRODUCT(OUTPUT!J62:J63,OUTPUT!L62:L63) -> 561.8587615 | D7: /yr
A8: Material cost for PTA towers | B8: pta_materials | C8: =PTA_maintenance*SUMPRODUCT(OUTPUT!J32:J45,OUTPUT!L32:L45) -> 2460.73001 | D8: /yr
A9: Materials for clearwell | B9: tank_materials | C9: =pump_maintenance*OUTPUT!J65 -> 35.59345133 | D9: /yr
A11: General Labor
A12: Number of process instruments | B12: tot_inst | C12: =tot_fm_in+tot_fm_proc+tot_fm_air+temp_meters+pH_controls+tot_turb_meters+num_TDS -> 8 | E12: Instruments requiring daily observation
A13: Total number of instruments for maintenance | B13: tot_inst_maint | C13: =tot_fm_in+tot_fm_proc+tot_fm_air+temp_meters+pH_controls+tot_turb_meters+num_TDS -> 8 | E13: All instruments for preventative maintenance
A14: Number of process pumps, blowers, offgas units | B14: tot_pumps | C14: =NUM_OF_PUMPS+PARALLEL+CHOOSE(Offgas_Tech+1,0,op_GAC_beds,op_TOs,op_COs)+IF(chem_type=1,0,cc_pumps-NRD_cm_pump)+IF(HCl_pumps=0,0,HCl_pumps-NRD_cm_pump)+IF(NaOH_pumps=0,0,NaOH_pumps-NRD_cm_pump) -> 5 | E14: Pumps requiring daily observation/adjustment; includes blowers & offgas units in this technology
A15: Total number of pumps for maintenance | B15: tot_pumps_maint | C15: =NUM_OF_PUMPS+PARALLEL -> 4 | E15: Large, frequently operated pumps require preventative maintenance; includes blowers in this technology
A16: Number of process valves | B16: tot_valves | C16: =tot_proc_MOVs+tot_air_MOVs+tot_bp_MOVs+tot_proc_man+tot_air_man+tot_bp_man -> 8 | E16: Main process valves require frequent operation and preventative maintenance
A17: Number of chemical supplies | B17: tot_chem | C17: =cc_tanks+tp_tanks+sh_tanks+NaOH_tanks+HCl_tanks -> 3
A18: Media changeouts per year | B18: media_changes | C18: =IF(Offgas_Tech=1,op_GAC_beds*12/bed_life,0) -> 0 | E18: For offgas GAC
A20: Record system operating parameters (includes routine sampling) | C20: =IF(manual=1,tot_inst*uloe_inst*365/60,uloe_inst_auto*365/60) -> 30.41666667 | D20: hr/yr
A21: Preventative maintenance and calibration of instruments | C21: =tot_inst_maint*uloe_inst_maint*12/60 -> 16 | D21: hr/yr
A22: Verify/adjust pump, blower & offgas operating parameters | C22: =IF(OR(manual=1,manual=2),tot_pumps*uloe_pump*365/60,0) -> 0 | D22: hr/yr
A23: Preventative maintenance of pumps | C23: =tot_pumps_maint*uloe_pump_maint -> 121 | D23: hr/yr
A24: Verify/adjust valve positions | C24: =IF(OR(manual=1,manual=2),tot_valves*uloe_valve*52/60,0) -> 0 | D24: hr/yr
A25: Preventative maintenance and inspection of valves | C25: =tot_valves*uloe_valve_maint/60 -> 0.6666666667 | D25: hr/yr
A26: Visual inspection of facility | C26: =(total_fp+blower_fp+vessel_fp+offgas_fp)/100*uloe_fp*365/60 -> 24.2725 | D26: hr/yr
A27: Maintain/inspect chemical supply | C27: =tot_chem*uloe_chem_maint*12/60 -> 36 | D27: hr/yr
A28: Managing media changeouts | C28: =media_changes*uloe_throwaway -> 0 | D28: hr/yr | E28: For offgas GAC
A29: General Operator Labor | B29: General_Oper_Labor | C29: =SUM(C20:C28) -> 228.3558333 | D29: hr/yr
A31: Annual Operator LOE | B31: Operator_LOE | C31: =General_Oper_Labor -> 228.3558333 | D31: hr/yr
A32: Annual Manager LOE | B32: Manager_LOE | C32: =Operator_LOE*manager_percent -> 22.83558333 | D32: hr/yr | E32: Based on general operator labor and percentages in critical design assumptions
A33: Annual Administrative LOE | B33: Clerical_LOE | C33: =Operator_LOE*clerical_percent -> 22.83558333 | D33: hr/yr | E33: Based on general operator labor and percentages in critical design assumptions
A35: Building Maintenance
A36: Cost for all buildings, excluding heating and cooling | C36: =building_matl_rate_cl*total_fp -> 992.7606877 | D36: /yr | E36: Labor and materials; includes routine in-house maintenance and major repairs
A37: Cost to maintain heating system, building 1 | C37: =build1_need_heat*heating_matl_rate_cl*total_fp -> 0 | D37: /yr
A38: Cost to maintain cooling system, building 1 | C38: =build1_need_cool*cooling_matl_rate_cl*total_fp -> 0 | D38: /yr
A39: Annual maintenance for all buildings | B39: bldg_maint_cost | C39: =SUM(C36:C38) -> 992.7606877
A41: Energy
A42: Booster Pumps | E42: Other pumps and mechanical equipment used infrequently. Therefore, these energy costs may be assumed covered by overall process and building energy costs.
A43: Pump operating head | B43: Head_O | C43: =PACK_HT+AIRWELL_D+add_head -> 8.034372869 | D43: m - H20
A44: Pressure head | B44: Press_H | C44: =HEAD_O*PW*G -> 78793.55268 | D44: N/m2
A45: Operating power | B45: PWR | C45: =IF(NUM_OF_PUMPS=0,0,QWA*(1+bp_pct)*(PRESS_H/PUMP_EFF)) -> 33.70367951 | D45: Watts
A46: Energy for all active booster pumps | B46: pump_energy | C46: =PWR*24*365/1000000 -> 0.2952442325 | D46: MWhr/yr
A48: Blowers
A49: Daily Air Flow | B49: Daily_Air | C49: =(+QWA/QW)*AIR_FLOW -> 0.02983533 | D49: m3/s
A50: Operating Power | B50: blower_pwr | C50: =DAILY_AIR*(AIR_P/BLOW_EFF) -> 24.28736247 | D50: Watts
A51: Energy for all active blowers | B51: blow_energy | C51: =blower_pwr*24*365/1000000 -> 0.2127572953 | D51: MWhr/yr
A53: Building Lighting
A54: Lighting power per sf, building 1 | B54: lighting_energy_1 | C54: =IF(OR(total_fp<500,component_level=""),lighting_power_low,CHOOSE(component_level,lighting_power_mid,lighting_power_high))*24*365/1000 -> 8.76 | D54: kWh/sf/yr
A55: Lighting | B55: lighting | C55: =MIN(1,Operator_LOE/(24*365))*(total_fp*lighting_energy_1)/1000 -> 0.04338760833 | D55: MWh/yr
A57: HVAC
A58: Heating energy usage for:
A59: Electric resistance | B59: heating | C59: =IF(build1_heat=A59,VLOOKUP(A59,build1_heat_options, 7,FALSE),0) -> 0 | D59: MWh/yr
A60: Natural gas non-condensing furnace | B60: heating_gas_non | C60: 0 | D60: therms/yr
A61: Natural gas condensing furnace | B61: heating_gas | C61: 0 | D61: therms/yr
A62: Standard efficiency oil furnace | B62: heating_diesel_non | C62: 0 | D62: gal/yr
A63: Mid-efficiency oil furnace | B63: heating_diesel | C63: 0 | D63: gal/yr
A64: Heat pump | B64: heating_hp | C64: 0 | D64: MWh/yr
A66: Cooling energy usage for:
A67: Air conditioner | B67: cooling | C67: =IF(build1_cool=A67,VLOOKUP(A67,build1_cool_options, 7,FALSE),0) -> 0 | D67: MWh/yr
A68: Heat pump | B68: cooling_hp | C68: =IF(build1_cool=A68,VLOOKUP(A68,build1_cool_options, 7,FALSE),0) -> 0 | D68: MWh/yr

Sheet HVAC
A1: Building Heating, Ventilating, and Air Conditioning Calculations
A3: Calculation | B3: Range Name | C3: Value | D3: Units | E3: Guidance
A4: General information
A5: System size | B5: ss_cat2 | C5: =IF(design_flow<1,1,IF(design_flow<10,2,3)) -> 1 | D5: 1 indicates small system, 2 indicates medium, 3 indicates large | E5: ss_cat2 is used to select ventilation requirements and building type
A6: Buiding 1 length and width | B6: build1_side | C6: =total_fp^0.5 -> 13.78404875 | D6: ft
A8: Ventilation
A9: Building 1 weighted average air changes | B9: air_changes_build1 | C9: =(Air_changes_pump*pump_fp+Air_changes_chem_storage*(cstore_fp)+Air_changes_office*office_fp)/total_fp -> 18.93684211 | D9: air changes/hr
A10: Total ventilation | B10: ventilation | C10: =CHOOSE(ss_cat2,fan_days_small,fan_days_medium,fan_days_large)*24*0.746*Fan_pressure_drop*total_fp*Building_height*air_changes/33000000 -> 0.8784353455 | D10: MWh/yr
A12: Building 1 air exchange rate | B12: build1_cfm | C12: =total_fp*Building_height*air_changes_build1/60 -> 1199.333333 | D12: cfm
A14: Heating and Cooling
A15: Include heating for building 1 | B15: build1_need_heat | C15: =VLOOKUP(IF(component_level_I="","low cost",component_level_I),IF(total_fp<500,heating_table_shed,heating_table),ss_cat2+2,FALSE) -> 0 | D15: 1 for yes, 0 for no | E15: Based on system size, building floorplan, and component level input.
A16: Include cooling for building 1 | B16: build1_need_cool | C16: =VLOOKUP(IF(component_level_I="","low cost",component_level_I),IF(total_fp<500,cooling_table_shed,cooling_table),ss_cat2+2,FALSE) -> 0 | D16: 1 for yes, 0 for no
A18: Heating Requirements
A19: Building 1 side conductance heat loss | C19: =4*build1_side*Building_height*heat_DD*24/R_wall -> 10022233.4 | D19: BTU/yr
A20: Buiding 1 ceiling conductance heat loss | C20: =total_fp*heat_DD*24/R_ceiling -> 590760 | D20: BTU/yr
A21: Building 1 air exchange heat loss | C21: =build1_cfm*heat_viload -> 202302347.3 | D21: BTU/yr
A22: Building 1 total annual heat loss | B22: build1_heat_loss_yr | C22: =SUM(C19:C21) -> 212915340.7 | D22: BTU/yr
A23: Building 1 heating requirement in thousand BTU/hr | B23: build1_heat_mbh | C23: =build1_heat_loss_yr/365.25/24/1000 -> 24.28876805 | D23: MBH | E23: thousands of BTU per hour
A24: Building 1 number of heating zones | B24: build1_heat_zones | C24: =ROUNDUP(build1_heat_mbh/max_heat_cl,0) -> 1
A26: Cooling Requirements
A27: Building 1 side conductance cooling loss | C27: =4*build1_side*Building_height*cool_DD*24/R_wall -> 3454749.154 | D27: BTU/yr
A28: Buiding 1 ceiling conductance cooling loss | C28: =total_fp*cool_DD*24/R_ceiling -> 203640 | D28: BTU/yr
A29: Building 1 air exchange cooling loss | C29: =build1_cfm*cool_viload -> 62090686 | D29: BTU/yr
A30: Building 1 total annual cooling loss | B30: build1_cooling_loss_yr | C30: =SUM(C27:C29) -> 65749075.15 | D30: BTU/yr
A31: Building 1 cooling loss per hour | B31: build1_cooling_loss_hr | C31: =build1_cooling_loss_yr/365.25/24 -> 7500.464882 | D31: BTU/hr
A33: Building 1 power lost: booster pumps | B33: build1_eloss_pumps | C33: =pump_energy/PUMP_EFF*(1-PUMP_EFF)/365.25/24*1000 -> 0.0112268702 | D33: kWh
A34: Building 1 waste heat: booster pumps | B34: build1_waste_heat_pumps | C34: =build1_eloss_pumps*3415 -> 38.33976174 | D34: BTU/hr
A36: Building 1 total cooling requirement | B36: build1_cooling_req | C36: =build1_cooling_loss_hr+build1_waste_heat_pumps -> 7538.804644 | D36: BTU/hr
A37: Building 1 annual cooling requirement | B37: build1_cooling_yr | C37: =build1_cooling_req*365.25*24 -> 66085161.51 | D37: BTU/yr
